Workbook

Sheet Working_1
B2: INPUT MEASURED LIQUID COMPOSITION HERE | H2: Mauna Kea sample SR0684-8.95 (Stolper et al., 2004) | Q2: SOURCE PERIDOTITE COMPOSITION FOR Fe/Mg CALCULATION | Y2: R
B3: SiO2 | C3: TiO2 | D3: Al2O3 | E3: Cr2O3 | F3: FeO* | G3: MnO | H3: MgO | I3: CaO | J3: Na2O | K3: K2O | L3: NiO | M3: P2O5 | O3: sum | Q3: FeO | R3: 8.02 | Y3: 8.3143
B4: 47.74 | C4: 1.35 | D4: 15.57 | E4: 0 | F4: 10.88 | G4: 0.19 | H4: 10.01 | I4: 12.23 | J4: 1.85 | K4: 0.08 | L4: 0 | M4: 0.1 | O4: =SUM(B4:M4) -> 100 | Q4: MgO | R4: 38.12
B5: SPECIFY MOLE FRACTION Fe2+/Fe* | F5: 0.9 | K5: Option to fix Fe2O3/TiO2: | L5: 0.89547
Q6: Pressure | R6: 1 | S6: (bars) | X6: Precision of F iteration:
B7: INPUT COMPOSITION ERROR CODES: | G7: =IF(I4 < 13.81-0.274*H4, "Pyroxenite Source … no solution", IF(I4 > 2.318*B4-93.626, "Volatile peridotite source … no solution", "No error")) -> No error | Y7: 0.0001
A9: OUTPUT: | B9: BATCH PRIMARY MELT | H9: OUTPUT COMPOSITION ERROR CODES: | P9: =IF(G11 < 0.577*I11 - 0.00026*I11^3 + 5.48/I11,"FeO/MgO forbidden", "no Fe/Mg error") -> no Fe/Mg error | S9: =IF((INDEX(DY28:DY115,$EO$23)*(-INDEX($A28:$A115,$EO$22)+$EO$21)+INDEX(DY28:DY115,$EO$22)*(-$EO$21+INDEX($A28:$A115,$EO$23)))/(INDEX($A28:$A115,$EO$23)-INDEX($A28:$A115,$EO$22)) < 0, "Negative normative Quartz", "no Na/Si error") -> no Na/Si error
A10: %ol addition | B10: SiO2 | C10: TiO2 | D10: Al2O3 | E10: Cr2O3 | F10: Fe2O3 | G10: FeO | H10: MnO | I10: MgO | J10: CaO | K10: Na2O | L10: K2O | M10: NiO | N10: P2O5 | O10: T (°C) | P10: TP | Q10: TP new | R10: KD | S10: Xfo | T10: F (Fe/Mg) | U10: Proj F1 | V10: Proj F2 | W10: Proj F3 | AH10: Interpolated Fbatch
A11: =IF(OR(AH11<0,AND(EO21=0,ABS(DQ55-AJ55)>0.03)),"NO SOLUTION",EO21) -> 28.74904749 | B11: =(INDEX(B28:B115,$EO$23)*(-INDEX($A28:$A115,$EO$22)+$EO$21)+INDEX(B28:B115,$EO$22)*(-$EO$21+INDEX($A28:$A115,$EO$23)))/(INDEX($A28:$A115,$EO$23)-INDEX($A28:$A115,$EO$22)) -> 45.92675123 | C11: 1.022547403 | D11: 11.7223832 | E11: 0 | F11: 0.9070767704 | G11: 9.849659164 | H11: 0.1818606947 | I11: 19.62085991 | J11: 9.24567297 | K11: 1.388127594 | L11: 0.06002713922 | M11: 0 | N11: 0.07503392402 | O11: =(INDEX(AE28:AE115,$EO$23)*(-INDEX($A28:$A115,$EO$22)+$EO$21)+INDEX(AE28:AE115,$EO$22)*(-$EO$21+INDEX($A28:$A115,$EO$23)))/(INDEX($A28:$A115,$EO$23)-INDEX($A28:$A115,$EO$22)) -> 1427.737442 | P11: =1463+12.74*I11-2924/I11 -> 1563.944686 | Q11: =1025 + 28.6*I11 - 0.084*I11^2 -> 1553.818429 | R11: =(INDEX(AG28:AG115,$EO$23)*(-INDEX($A28:$A115,$EO$22)+$EO$21)+INDEX(AG28:AG115,$EO$22)*(-$EO$21+INDEX($A28:$A115,$EO$23)))/(INDEX($A28:$A115,$EO$23)-INDEX($A28:$A115,$EO$22)) -> 0.296353159 | S11: =(INDEX(AH28:AH115,$EO$23)*(-INDEX($A28:$A115,$EO$22)+$EO$21)+INDEX(AH28:AH115,$EO$22)*(-$EO$21+INDEX($A28:$A115,$EO$23)))/(INDEX($A28:$A115,$EO$23)-INDEX($A28:$A115,$EO$22)) -> 0.9229561916 | T11: =IF($A$11="NO SOLUTION",$A$11,(INDEX(AI28:AI115,$EO$23)*(-INDEX($A28:$A115,$EO$22)+$EO$21)+INDEX(AI28:AI115,$EO$22)*(-$EO$21+INDEX($A28:$A115,$EO$23)))/(INDEX($A28:$A115,$EO$23)-INDEX($A28:$A115,$EO$22))) -> 0.2230139051 | U11: =(INDEX(EE28:EE115,$EO$23)*(-INDEX($A28:$A115,$EO$22)+$EO$21)+INDEX(EE28:EE115,$EO$22)*(-$EO$21+INDEX($A28:$A115,$EO$23)))/(INDEX($A28:$A115,$EO$23)-INDEX($A28:$A115,$EO$22)) -> 0.2768800992 | V11: =(INDEX(EF28:EF115,$EO$23)*(-INDEX($A28:$A115,$EO$22)+$EO$21)+INDEX(EF28:EF115,$EO$22)*(-$EO$21+INDEX($A28:$A115,$EO$23)))/(INDEX($A28:$A115,$EO$23)-INDEX($A28:$A115,$EO$22)) -> 0.2230139051 | W11: =(INDEX(EG28:EG115,$EO$23)*(-INDEX($A28:$A115,$EO$22)+$EO$21)+INDEX(EG28:EG115,$EO$22)*(-$EO$21+INDEX($A28:$A115,$EO$23)))/(INDEX($A28:$A115,$EO$23)-INDEX($A28:$A115,$EO$22)) -> 0.2228351564 | AH11: =(INDEX(AI28:AI115,$EO$23)*(-INDEX($A28:$A115,$EO$22)+$EO$21)+INDEX(AI28:AI115,$EO$22)*(-$EO$21+INDEX($A28:$A115,$EO$23)))/(INDEX($A28:$A115,$EO$23)-INDEX($A28:$A115,$EO$22)) -> 0.2230139051
B13: ACCUMULATED FRACTIONAL PRIMARY MELT | H13: OUTPUT COMPOSITION ERROR CODES: | M13: =IF(J15 > 1.095 + 0.154*I15 + 116.58/I15, "Augite accumulation warning", IF(OR(AND(I15 <= 20.6, J15 < 11.436 - 0.104*I15),AND(I15 > 20.6, J15 < -23.209 + 3.643*I15 - 0.1*I15^2)), "Augite fractionation warning", "No error")) -> No error | P13: =IF(G15 < 0.577*I15 - 0.00026*I15^3 + 5.48/I15,"FeO/MgO forbidden", "no Fe/Mg error") -> no Fe/Mg error | T13: =IF((INDEX(DY28:DY115,$EK$23)*(-INDEX($A28:$A115,$EK$22)+$EK$21)+INDEX(DY28:DY115,$EK$22)*(-$EK$21+INDEX($A28:$A115,$EK$23)))/(INDEX($A28:$A115,$EK$23)-INDEX($A28:$A115,$EK$22)) < 0, "Negative normative Quartz", "no Na/Si error") -> no Na/Si error
A14: %ol addition | B14: SiO2 | C14: TiO2 | D14: Al2O3 | E14: Cr2O3 | F14: Fe2O3 | G14: FeO | H14: MnO | I14: MgO | J14: CaO | K14: Na2O | L14: K2O | M14: NiO | N14: P2O5 | O14: T (°C) | P14: TP_AFM | Q14: TP new | R14: KD | S14: Xfo | T14: F_AFM | U14: Proj F1 | V14: Proj F2 | W14: Proj F3 | X14: Residual Lithology | AH14: Interpolated FAFM | CP14: =AH55 -> 0.8567347144
A15: =IF(OR(AH15<0,AND(EK21=0,ABS(DR55-AJ55)>0.03)),"NO SOLUTION",EK21) -> 23.95399466 | B15: =(INDEX(B28:B115,$EK$23)*(-INDEX($A28:$A115,$EK$22)+$EK21)+INDEX(B28:B115,$EK$22)*(-$EK21+INDEX($A28:$A115,$EK$23)))/(INDEX($A28:$A115,$EK$23)-INDEX($A28:$A115,$EK$22)) -> 46.16703562 | C15: 1.070826748 | D15: 12.28506106 | E15: 0 | F15: 0.951388535 | G15: 9.942959996 | H15: 0.1844891695 | I15: 18.11547493 | J15: 9.685165731 | K15: 1.455939256 | L15: 0.0629595354 | M15: 0 | N15: 0.07869941925 | O15: =(INDEX(AE28:AE115,$EK$23)*(-INDEX($A28:$A115,$EK$22)+$EK$21)+INDEX(AE28:AE115,$EK$22)*(-$EK$21+INDEX($A28:$A115,$EK$23)))/(INDEX($A28:$A115,$EK$23)-INDEX($A28:$A115,$EK$22)) -> 1402.055949 | P15: =1463+12.74*I15-2924/I15 -> 1532.382189 | Q15: =1025 + 28.6*I15 - 0.084*I15^2 -> 1515.536267 | R15: =(INDEX(AG28:AG115,$EK$23)*(-INDEX($A28:$A115,$EK$22)+$EK$21)+INDEX(AG28:AG115,$EK$22)*(-$EK$21+INDEX($A28:$A115,$EK$23)))/(INDEX($A28:$A115,$EK$23)-INDEX($A28:$A115,$EK$22)) -> 0.2981659145 | S15: =(INDEX(AH28:AH115,$EK$23)*(-INDEX($A28:$A115,$EK$22)+$EK$21)+INDEX(AH28:AH115,$EK$22)*(-$EK$21+INDEX($A28:$A115,$EK$23)))/(INDEX($A28:$A115,$EK$23)-INDEX($A28:$A115,$EK$22)) -> 0.9159017202 | T15: =IF($A$15="NO SOLUTION",$A$15,(INDEX(DR28:DR115,$EK$23)*(-INDEX($A28:$A115,$EK$22)+$EK$21)+INDEX(DR28:DR115,$EK$22)*(-$EK$21+INDEX($A28:$A115,$EK$23)))/(INDEX($A28:$A115,$EK$23)-INDEX($A28:$A115,$EK$22))) -> 0.2103743184 | U15: =(INDEX(EE28:EE115,$EK$23)*(-INDEX($A28:$A115,$EK$22)+$EK$21)+INDEX(EE28:EE115,$EK$22)*(-$EK$21+INDEX($A28:$A115,$EK$23)))/(INDEX($A28:$A115,$EK$23)-INDEX($A28:$A115,$EK$22)) -> 0.2624154091 | V15: =(INDEX(EF28:EF115,$EK$23)*(-INDEX($A28:$A115,$EK$22)+$EK$21)+INDEX(EF28:EF115,$EK$22)*(-$EK$21+INDEX($A28:$A115,$EK$23)))/(INDEX($A28:$A115,$EK$23)-INDEX($A28:$A115,$EK$22)) -> 0.2103743184 | W15: =(INDEX(EG28:EG115,$EK$23)*(-INDEX($A28:$A115,$EK$22)+$EK$21)+INDEX(EG28:EG115,$EK$22)*(-$EK$21+INDEX($A28:$A115,$EK$23)))/(INDEX($A28:$A115,$EK$23)-INDEX($A28:$A115,$EK$22)) -> 0.2273711622 | X15: =IF(ABS(T15-U15)<0.0000001, "Harzburgite", IF(ABS(T15-V15)<0.000001,"Spinel Peridotite","Garnet Peridotite")) -> Spinel Peridotite | AH15: =(INDEX(DR28:DR115,$EK$23)*(-INDEX($A28:$A115,$EK$22)+$EK$21)+INDEX(DR28:DR115,$EK$22)*(-$EK$21+INDEX($A28:$A115,$EK$23)))/(INDEX($A28:$A115,$EK$23)-INDEX($A28:$A115,$EK$22)) -> 0.2103743184 | CP15: =(2/3)*$AH55/$CI55 -> 4.1404808
CP16: =CI55 -> 0.1379444813
B17: Normalized
B18: =B4*100/$O4 -> 47.74 | C18: 1.35 | D18: 15.57 | E18: 0 | F18: 10.88 | G18: 0.19 | H18: 10.01 | I18: 12.23 | J18: 1.85 | K18: 0.08 | L18: 0 | M18: 0.1 | N18: =SUM(B18:M18) -> 100
CN19: 0 | CO19: 0 | CP19: 0 | CQ19: 0 | CR19: 0 | CS19: 0.279 | CT19: 0.259 | CU19: 1 | CV19: 0.0056 | CW19: 0 | CX19: 0 | CY19: 3.346 | CZ19: 0
B20: SiO2 | C20: TiO2 | D20: Al2O3 | E20: Cr2O3 | F20: Fe2O3 | G20: FeO | H20: MnO | I20: MgO | J20: CaO | K20: Na2O | L20: K2O | M20: NiO | N20: P2O5 | O20: SUM | S20: Fe2O3/TiO2 | CN20: 0.82 | CO20: 0.0001 | CP20: 0.0001 | CQ20: 0.0001 | CR20: 0.0001 | CS20: 0.031 | CT20: -0.049 | CU20: 0 | CV20: 0.0135 | CW20: 0.0001 | CX20: 0.0001 | CY20: -3.665 | CZ20: 0.0001 | EH20: PRIM1 | EI20: PRIM2 | EJ20: PRIM3 | EK20: PRIMAFM | EL20: PRIM4 | EM20: PRIM5 | EN20: PRIM6 | EO20: PRIMBAT
B21: =B18 -> 47.74 | C21: =C18 -> 1.35 | D21: =D18 -> 15.57 | E21: =E18 -> 0 | F21: =(1-F5)/0.9*F18 -> 1.208888889 | G21: =F5*F18 -> 9.792 | H21: =G18 -> 0.19 | I21: 10.01 | J21: 12.23 | K21: 1.85 | L21: 0.08 | M21: 0 | N21: 0.1 | O21: =SUM(B21:N21) -> 100.1208889 | S21: =F21/C21 -> 0.895473251 | T21: =S21-L5 -> 3.251028806e-06 | EH21: =IF(MAX(EH55:EH115)=0,MIN(EH28:EH52),MAX(EH55:EH115)) -> 0 | EI21: =IF(MAX(EI55:EI115)=0,MIN(EI28:EI52),MAX(EI55:EI115)) -> 23.95399466 | EJ21: =IF(MAX(EJ55:EJ115)=0,MIN(EJ28:EJ52),MAX(EJ55:EJ115)) -> 0 | EK21: =IF(EH$21<>0,EH21,IF(EI$21<>0,EI21,EJ21)) -> 23.95399466 | EL21: =IF(MAX(EL55:EL115)=0,MIN(EL30:EL52),MAX(EL55:EL115)) -> 0 | EM21: =IF(MAX(EM55:EM115)=0,MIN(EM30:EM52),MAX(EM55:EM115)) -> 28.74904749 | EN21: =IF(MAX(EN55:EN115)=0,MIN(EN30:EN52),MAX(EN55:EN115)) -> 28.71026504 | EO21: =IF(EL$21<>0,EL21,IF(EM$21<>0,EM21,EN21)) -> 28.74904749
CO22: Olivine/Melt Molar Partition Coefficients (single cation basis) | EH22: =MATCH(EH21,EH28:EH115,0) -> 1 | EI22: =MATCH(EI21,EI28:EI115,0) -> 52 | EJ22: =MATCH(EJ21,EJ28:EJ115,0) -> 1 | EK22: =IF(EH$21<>0,EH22,IF(EI$21<>0,EI22,EJ22)) -> 52 | EL22: =MATCH(EL21,EL28:EL115,0) -> 1 | EM22: =MATCH(EM21,EM28:EM115,0) -> 56 | EN22: =MATCH(EN21,EN28:EN115,0) -> 58 | EO22: =IF(EL$21<>0,EL22,IF(EM$21<>0,EM22,EN22)) -> 56
B23: Renormalized | CO23: 0 | CP23: 0.0035 | CQ23: 0.067 | CR23: 0 | CS23: 0.263 | CT23: 0.214 | CU23: 1 | CV23: 0.0071 | CW23: 0 | CX23: 0 | CY23: 3.346 | CZ23: 0 | EH23: =EH22+1 -> 2 | EI23: 53 | EJ23: 2 | EK23: 53 | EL23: 2 | EM23: 57 | EN23: 59 | EO23: 57
B24: =B21*100/$O21 -> 47.68235733 | C24: 1.348369971 | D24: 15.55120033 | E24: 0 | F24: 1.207429241 | G24: 9.780176853 | H24: 0.1897705884 | I24: 9.997913633 | J24: 12.21523314 | K24: 1.847766256 | L24: 0.07990340566 | M24: 0 | N24: 0.09987925708 | AK24: Mole Fraction | AY24: Mole%Anhydrous | BO24: CATION MOLE FRAC | CB24: NORM CATION MOLE FRAC | CO24: 0.03 | CP24: -0.031 | CQ24: 0.183 | CR24: 0.0001 | CS24: 0.196 | CT24: 0.118 | CU24: 0 | CV24: -0.019 | CW24: 0.0001 | CX24: 0.0001 | CY24: -3.665 | CZ24: 0.0001
B25: MELT COMPOSITIONS ALONG OLIVINE CONTROL LINE | P25: EQUILIBRIUM OLIVINE COMPOSITION (WT % OXIDES) | AK25: 60.085 | AL25: 79.899 | AM25: 101.962 | AN25: 151.99 | AO25: 159.962 | AP25: 71.846 | AQ25: 70.937 | AR25: 40.311 | AS25: 56.079 | AT25: 61.979 | AU25: 94.203 | AV25: 74.71 | AW25: 141.945 | BO25: =AK25 -> 60.085 | BP25: =AL25 -> 79.899 | BQ25: =AM25/2 -> 50.981 | BR25: =AN25/2 -> 75.995 | BS25: =AO25/2 -> 79.981 | BT25: =AP25 -> 71.846 | BU25: =AQ25 -> 70.937 | BV25: =AR25 -> 40.311 | BW25: =AS25 -> 56.079 | BX25: =AT25/2 -> 30.9895 | BY25: =AU25/2 -> 47.1015 | BZ25: =AV25 -> 74.71 | CA25: =AW25/2 -> 70.9725 | CP25: 0.093 | CV25: 0.063
A26: %ol addition | B26: SiO2 | C26: TiO2 | D26: Al2O3 | E26: Cr2O3 | F26: Fe2O3 | G26: FeO | H26: MnO | I26: MgO | J26: CaO | K26: Na2O | L26: K2O | M26: NiO | N26: P2O5 | P26: =DC26 -> SiO2 | Q26: TiO2 | R26: Al2O3 | S26: Cr2O3 | T26: Fe2O3 | U26: FeO | V26: MnO | W26: MgO | X26: CaO | Y26: Na2O | Z26: K2O | AA26: NiO | AB26: P2O5 | AC26: SUM | AD26: P (bars) | AE26: T (K) | AF26: Old T (K) | AG26: KD | AH26: Xfo | AI26: F (Fe/Mg) | AJ26: F (proj) | AK26: SiO2 | AL26: TiO2 | AM26: Al2O3 | AN26: Cr2O3 | AO26: Fe2O3 | AP26: FeO | AQ26: MnO | AR26: MgO | AS26: CaO | AT26: Na2O | AU26: K2O | AV26: NiO | AW26: P2O5 | AY26: =AK26 -> SiO2 | AZ26: TiO2 | BA26: Al2O3 | BB26: Cr2O3 | BC26: Fe2O3 | BD26: FeO | BE26: MnO | BF26: MgO | BG26: CaO | BH26: Na2O | BI26: K2O | BJ26: NiO | BK26: P2O5 | BL26: PSI | BM26: SiO2A | BN26: SiO2# | BO26: Si | BP26: Ti | BQ26: Al | BR26: Cr | BS26: Fe3 | BT26: Fe2 | BU26: Mn | BV26: Mg | BW26: Ca | BX26: Na | BY26: K | BZ26: Ni | CA26: P | CB26: Si | CC26: Ti | CD26: Al | CE26: Cr | CF26: Fe3 | CG26: Fe2 | CH26: Mn | CI26: Mg | CJ26: Ca | CK26: Na | CL26: K | CM26: Ni | CN26: P | CO26: TiO2 | CP26: =BA26 -> Al2O3 | CQ26: Cr2O3 | CR26: Fe2O3 | CS26: FeO | CT26: MnO | CU26: MgO | CV26: CaO | CW26: Na2O | CX26: K2O | CY26: NiO | CZ26: P2O5 | DA26: Sum1 | DB26: Sum2 | DC26: SiO2 | DD26: =CO26 -> TiO2 | DE26: Al2O3 | DF26: Cr2O3 | DG26: Fe2O3 | DH26: FeO | DI26: MnO | DJ26: MgO | DK26: CaO | DL26: Na2O | DM26: K2O | DN26: NiO | DO26: P2O5 | DP26: K2O | DQ26: F(Fe/Mg) | DR26: FAFM | DS26: OL | DT26: AN | DU26: QZ | DV26: SUM | DW26: ANNORM | DX26: OLNORM | DY26: QZNORM | DZ26: S-CPX | EA26: S-GTLHZHZ | EB26: DOMAIN | EC26: F2temp | ED26: F3temp | EE26: F1 | EF26: F2 | EG26: F3 | EH26: PRIM1finder | EI26: PRIM2finder | EJ26: PRIM3finder | EL26: PRIM4finder | EM26: PRIM5finder | EN26: PRIM6finder | EO26: SUMA | EP26: SUMB | EQ26: DMGO2 | ER26: DMGO1
B27: Forward Fractionation (down-temperature)
A28: =A55-1 -> -1 | B28: =(B55-0.01*P55)/0.99 -> 47.76025848 | C28: 1.361539927 | D28: 15.70725345 | E28: 0 | F28: 1.219624153 | G28: 9.741367559 | H28: 0.1895680467 | I28: 9.637222173 | J28: 12.33513925 | K28: 1.866428506 | L28: 0.08071042189 | M28: 0 | N28: 0.1008880274 | P28: =DC28*BO$25*100/SUMPRODUCT($DC28:$DO28,$BO$25:$CA$25) -> 39.90095052 | Q28: 0.04497377345 | R28: 0.09901113868 | S28: 0 | T28: 0.0001342869185 | U28: 13.98725614 | V28: 0.2153533166 | W28: 45.39801203 | X28: 0.3540832939 | Y28: 0.0002055034184 | Z28: 8.886634311e-06 | AA28: 0 | AB28: 1.110829289e-05 | AC28: =SUM(B28:O28) -> 100 | AD28: =AD55 -> 1 | AE28: =(113100/$Y$3 + AD28*0.00000411/$Y$3)/(52.05/$Y$3 + 2*LN(EQ28) + 2*LN(1.5*(CG28+CH28+CI28+CJ28+CM28)) + 2*LN(3*CB28) - (3.5*LN(1-CD28) + 7*LN(1-CC28))) - 273.15 -> 1227.532525 | AF28: =54*AD28/10000 - 2*(AD28/10000)^2+935+33*I28-0.37*I28^2 -> 1218.669593 | AG28: =Kditerator(AD28,AE28+273.15,0.0001,B28:O28) -> 0.3048088926 | AH28: =1/(AG28/(AR28/AP28)+1) -> 0.8526102681 | AI28: =DQ28 -> -0.5875827148 | AJ28: =IF(EB28=1,EE28,IF(EB28=2,EF28,EG28)) -> 0.05945002731 | AK28: =B28/AK$25 -> 0.7948782306 | AL28: 0.01704076305 | AM28: 0.1540500721 | AN28: 0 | AO28: 0.007624461766 | AP28: 0.1355867767 | AQ28: 0.002672343724 | AR28: 0.2390717713 | AS28: 0.219960043 | AT28: 0.03011388545 | AU28: 0.0008567712482 | AV28: 0 | AW28: 0.0007107543581 | AY28: =AK28*100/SUM($AK28:$AW28) -> 49.60034678 | AZ28: =AL28*100/SUM($AK28:$AW28) -> 1.063342439 | BA28: =AM28*100/SUM($AK28:$AW28) -> 9.612713876 | BB28: 0 | BC28: 0.4757658885 | BD28: 8.460605518 | BE28: 0.1667540641 | BF28: 14.91806205 | BG28: 13.72549152 | BH28: 1.879104376 | BI28: 0.05346246681 | BJ28: 0 | BK28: 0.04435102294 | BL28: =IF(AY28<60,(0.46*(100/(100-AY28))-0.93)*(BH28+BI28)+(-5.33*(100/(100-AY28))+9.69),(11-5.5*(100/(100-AY28)))*EXP(-0.13*(BH28+BI28))) -> -0.9188939286 | BM28: =AY28+BL28*(BH28+BI28) -> 47.82452284 | BN28: =BM28+0.8*O28 -> 47.82452284 | BO28: =B28/BO$25 -> 0.7948782306 | BP28: 0.01704076305 | BQ28: 0.3081001441 | BR28: 0 | BS28: 0.01524892353 | BT28: 0.1355867767 | BU28: 0.002672343724 | BV28: 0.2390717713 | BW28: 0.219960043 | BX28: 0.0602277709 | BY28: 0.001713542496 | BZ28: 0 | CA28: 0.001421508716 | CB28: =BO28/SUM($BO28:$CA28) -> 0.4426018007 | CC28: =BP28/SUM($BO28:$CA28) -> 0.009488588466 | CD28: =BQ28/SUM($BO28:$CA28) -> 0.1715554324 | CE28: 0 | CF28: 0.008490861561 | CG28: 0.07549703742 | CH28: 0.001488006714 | CI28: 0.1331192532 | CJ28: 0.1224775159 | CK28: 0.03353585345 | CL28: 0.0009541297839 | CM28: 0 | CN28: 0.0007915203779 | CO28: =(CO$23*(2/3)*$AH28/$CI28+CO$24)*CC28*100 -> 0.0284657654 | CP28: =(CP$23*(2/3)*$AH28/$CI28+CP$24+CP$25*$CI28/((2/3)*$AH28))*CD28*100 -> 0.09821562552 | CQ28: =(CQ$23*(2/3)*$AH28/$CI28+CQ$24)*CE28*100 -> 0 | CR28: 8.490861561e-05 | CS28: 9.957950286 | CT28: 0.1535265987 | CU28: 56.84068454 | CV28: =(CV$23*(2/3)*$AH28/$CI28+CV$24+CV$25*$CI28/((2/3)*$AH28))*CJ28*100 -> 0.3193081898 | CW28: =(CW$23*(2/3)*$AH28/$CI28+CW$24)*CK28*100 -> 0.0003353585345 | CX28: 9.541297839e-06 | CY28: 0 | CZ28: 7.915203779e-06 | DA28: =0.5*(CP28-CQ28-CW28-CX28-CZ28)+CQ28+CR28+CS28+CT28+CU28+CV28+2*CW28+2*CX28+CY28+2*CZ28 -> 67.32119156 | DB28: =0.5*(DE28-DF28-DL28-DM28-DO28)+DF28+DG28+DI28+DK28+2*DL28+2*DM28+CY28+2*DO28 -> 0.5174762165 | DC28: =(100/3)-DD28-0.5*(DE28-DF28-DL28-DM28-DO28)-DF28 -> 33.25668865 | DD28: =CO28*(200/3)/$DA28 -> 0.02818900927 | DE28: 0.09726073197 | DF28: 0 | DG28: 8.408309839e-05 | DH28: =(1-$AH28)*((200/3)-DB28) -> 9.749711445 | DI28: =CT28*(200/3)/$DA28 -> 0.1520339487 | DJ28: =$AH28*((200/3)-DB28) -> 56.39947901 | DK28: =CV28*(200/3)/$DA28 -> 0.3162037415 | DL28: 0.000332098038 | DM28: 9.448533335e-06 | DN28: =(3.346*(DJ28/CI28)/100-3.665)*CM28*100 -> 0 | DO28: =CZ28*(200/3)/$DA28 -> 7.838248845e-06 | DP28: =0.3813-0.7896/I28+1.0389/I28^2 -> 0.3105535531 | DQ28: =FFeMg($G28, $I28, $R$3, $R$4, $DP28,$Y$7) -> -0.5875827148 | DR28: =IF(DQ28 >=0, (0.98/DQ28-0.9*LN(DQ28)^2+0.07*LN(DQ28)^4)^-1, DQ28) -> -0.5875827148 | DS28: =-1.5*AZ28+0.5*(BA28+BB28+BD28+BE28+BF28+BJ28)-0.5*BG28-0.5*BH28+3*BI28 -> 7.342143546 | DT28: =AZ28+BA28+BB28 -> 10.67605632 | DU28: =AY28-0.5*(BA28+BB28+BD28+BE28+BF28+BJ28)-1.5*BG28-3*(BH28+BI28) -> 6.635341224 | DV28: =DS28+DT28+DU28 -> 24.65354109 | DW28: =DT28/DV28 -> 0.4330435242 | DX28: =DS28/DV28 -> 0.2978129397 | DY28: =DU28/DV28 -> 0.2691435361 | DZ28: =-0.074 + 0.1713/DX28 - 0.0135/DX28^2 -> 0.3489820635 | EA28: =IF(DW28<700,1/(16.843 + 28.733*DW28 - 14.183*EXP(DW28)),0) -> 0.1348389029 | EB28: =IF(AND(DX28>0.5,DY28<EA28),3,IF(DY28>DZ28,1,2)) -> 2 | EC28: =IF(DY28>0,((-1.994+2.25*DY28+0.041/DY28)+(-1.183-3.005*DY28+13.774*DY28^2-12.615*DY28^3))/2 + EXP(0.931+1.623*DY28)*DY28^0.245*DX28 + EXP(0.769-7.514*DY28)*DY28^0.577/DX28,0) -> 0.05945002731 | ED28: =-2.5345+5.329*(DY28+DX28*0.348)+0.3012/(DY28+DX28*0.348) -> 0.2600355922 | EE28: =6.2819*DW28^2-14.7789*DW28^3+0.00825*(1/DW28)^2 -> 0.02186428548 | EF28: =IF(AND(EC28>0,DY28<-0.1773+0.1404/DX28-0.008434/DX28^2),-EC28,EC28) -> 0.05945002731 | EG28: =IF(AND(ED28>0,DY28<-0.0896+0.02002/DX28+0.02989/DX28^2),-ED28,ED28) -> -0.2600355922 | EH28: =IF(AND(EB28=1,ABS($DR28-EE28)<0.03,DR28>=0),(EE29-$DR29)*($A28-$A29)/($DR28-$DR29-EE28+EE29)+$A29,0) -> 0 | EI28: =IF(AND(EB28=2,ABS($DR28-EF28)<0.03,DR28>=0),(EF29-$DR29)*($A28-$A29)/($DR28-$DR29-EF28+EF29)+$A29,0) -> 0 | EJ28: =IF(AND(EB28=3,ABS($DR28-EG28)<0.03,DR28>=0),(EG29-$DR29)*($A28-$A29)/($DR28-$DR29-EG28+EG29)+$A29,0) -> 0 | EL28: =IF(AND(ABS($DQ28-EE28)<0.03,EB28=1,DQ28>=0),(EE29-$DQ29)*($A28-$A29)/($DQ28-$DQ29-EE28+EE29)+$A29,0) -> 0 | EM28: =IF(AND(ABS($DQ28-EF28)<0.03,EB28=2,DQ28>=0),(EF29-$DQ29)*($A28-$A29)/($DQ28-$DQ29-EF28+EF29)+$A29,0) -> 0 | EN28: =IF(AND(ABS($DQ28-EG28)<0.03,EB28=3,DQ28>=0),(EG29-$DQ29)*($A28-$A29)/($DQ28-$DQ29-EG28+EG29)+$A29,0) -> 0 | EO28: =SUMPRODUCT($CO$19:$CZ$19,$CC28:$CN28) -> 0.1552541945 | EP28: =SUMPRODUCT($CO$20:$CZ$20,$CC28:$CN28) -> 0.003943423934 | EQ28: =(2/3-EP28)/EO28 -> 4.268633417 | ER28: =CU28/(CI28*100) -> 4.269907107
A29: =A28-1 -> -2 | B29: =(B28-0.01*P28)/0.99 -> 47.83964543 | C29: 1.374838575 | D29: 15.86491246 | E29: 0 | F29: 1.231942232 | G29: 9.698479796 | H29: 0.1893075895 | I29: 9.276002073 | J29: 12.45616002 | K29: 1.885279244 | L29: 0.08152558891 | M29: 0 | N29: 0.1019069861 | P29: 39.82795012 | Q29: 0.04540365616 | R29: 0.09649586529 | S29: 0 | T29: 0.0001356151492 | U29: 14.37027582 | V29: 0.2211969966 | W29: 45.07369448 | X29: 0.3646197179 | Y29: 0.0002075360509 | Z29: 8.97453193e-06 | AA29: 0 | AB29: 1.121816491e-05 | AC29: 100 | AD29: =AD28 -> 1 | AE29: =(113100/$Y$3 + AD29*0.00000411/$Y$3)/(52.05/$Y$3 + 2*LN(EQ29) + 2*LN(1.5*(CG29+CH29+CI29+CJ29+CM29)) + 2*LN(3*CB29) - (3.5*LN(1-CD29) + 7*LN(1-CC29))) - 273.15 -> 1218.329357 | AF29: =54*AD29/10000 - 2*(AD29/10000)^2+935+33*I29-0.37*I29^2 -> 1209.277109 | AG29: =Kditerator(AD29,AE29+273.15,0.0001,B29:O29) -> 0.3049292735 | AH29: 0.8482624202 | AI29: -0.6358345474 | AJ29: =IF(EB29=1,EE29,IF(EB29=2,EF29,EG29)) -> 0.05019451426 | AK29: 0.7961994746 | AL29: 0.01720720629 | AM29: 0.1555963247 | AN29: 0 | AO29: 0.007701468052 | AP29: 0.1349898365 | AQ29: 0.002668672054 | AR29: 0.2301109393 | AS29: 0.2221180838 | AT29: 0.03041803262 | AU29: 0.0008654245503 | AV29: 0 | AW29: 0.0007179329046 | AY29: 49.80625323 | AZ29: 1.076396683 | BA29: 9.733327135 | BB29: 0 | BC29: 0.4817652865 | BD29: 8.444288393 | BE29: 0.1669387639 | BF29: 14.39458839 | BG29: 13.89459536 | BH29: 1.902799843 | BI29: 0.05413662741 | BJ29: 0 | BK29: 0.04491028842 | BL29: -0.9553714302 | BM29: 47.93665203 | BN29: 47.93665203 | BO29: 0.7961994746 | BP29: 0.01720720629 | BQ29: 0.3111926495 | BR29: 0 | BS29: 0.0154029361 | BT29: 0.1349898365 | BU29: 0.002668672054 | BV29: 0.2301109393 | BW29: 0.2221180838 | BX29: 0.06083606524 | BY29: 0.001730849101 | BZ29: 0 | CA29: 0.001435865809 | CB29: 0.4438389925 | CC29: 0.009592105176 | CD29: 0.1734734026 | CE29: 0 | CF29: 0.008586320212 | CG29: 0.07524967669 | CH29: 0.001487643177 | CI29: 0.1282746481 | CJ29: 0.123819055 | CK29: 0.03391288083 | CL29: 0.0009648566038 | CM29: 0 | CN29: 0.0008004190589 | CO29: 0.02877631553 | CP29: 0.09584866303 | CQ29: 0 | CR29: 8.586320212e-05 | CS29: 10.19975479 | CT29: 0.1579036295 | CU29: 56.55082802 | CV29: 0.3292498567 | CW29: 0.0003391288083 | CX29: 9.648566038e-06 | CY29: 0 | CZ29: 8.004190589e-06 | DA29: 67.28628166 | DB29: =0.5*(DE29-DF29-DL29-DM29-DO29)+DF29+DG29+DI29+DK29+2*DL29+2*DM29+CY29+2*DO29 -> 0.5307657966 | DC29: 33.25751574 | DD29: 0.02851132486 | DE29: 0.09496602742 | DF29: 0 | DG29: 8.5072519e-05 | DH29: 10.03530153 | DI29: 0.1564495522 | DJ29: 56.10059934 | DK29: 0.326217914 | DL29: 0.000336005894 | DM29: 9.559715889e-06 | DN29: 0 | DO29: 7.930482897e-06 | DP29: 0.3082511463 | DQ29: -0.6358345474 | DR29: =IF(DQ29 >=0, (0.98/DQ29-0.9*LN(DQ29)^2+0.07*LN(DQ29)^4)^-1, DQ29) -> -0.6358345474 | DS29: 7.018688595 | DT29: 10.80972382 | DU29: 6.723979435 | DV29: 24.55239185 | DW29: 0.4402717212 | DX29: 0.2858657779 | DY29: 0.2738625009 | DZ29: =-0.074 + 0.1713/DX29 - 0.0135/DX29^2 -> 0.3600325052 | EA29: 0.1339531575 | EB29: =IF(AND(DX29>0.5,DY29<EA29),3,IF(DY29>DZ29,1,2)) -> 2 | EC29: =IF(DY29>0,((-1.994+2.25*DY29+0.041/DY29)+(-1.183-3.005*DY29+13.774*DY29^2-12.615*DY29^3))/2 + EXP(0.931+1.623*DY29)*DY29^0.245*DX29 + EXP(0.769-7.514*DY29)*DY29^0.577/DX29,0) -> 0.05019451426 | ED29: =-2.5345+5.329*(DY29+DX29*0.348)+0.3012/(DY29+DX29*0.348) -> 0.2618121798 | EE29: -0.001020148929 | EF29: =IF(AND(EC29>0,DY29<-0.1773+0.1404/DX29-0.008434/DX29^2),-EC29,EC29) -> 0.05019451426 | EG29: =IF(AND(ED29>0,DY29<-0.0896+0.02002/DX29+0.02989/DX29^2),-ED29,ED29) -> -0.2618121798 | EH29: 0 | EI29: 0 | EJ29: 0 | EL29: 0 | EM29: 0 | EN29: 0 | EO29: =SUMPRODUCT($CO$19:$CZ$19,$CC29:$CN29) -> 0.1503479942 | EP29: =SUMPRODUCT($CO$20:$CZ$20,$CC29:$CN29) -> 0.003954135703 | EQ29: =(2/3-EP29)/EO29 -> 4.40785748 | ER29: =CU29/(CI29*100) -> 4.408574012
A30: -3 | B30: 47.92057165 | C30: 1.388267211 | D30: 16.0241894 | E30: 0 | F30: 1.244384724 | G30: 9.651289937 | H30: 0.1889854742 | I30: 8.914409221 | J30: 12.57829679 | K30: 1.904320372 | L30: 0.08234898906 | M30: 0 | N30: 0.1029362363 | P30: 39.75081206 | Q30: 0.04583346343 | R30: 0.09447215919 | S30: 0 | T30: 0.0001369440054 | U30: 14.77277 | V30: 0.2273810197 | W30: 44.73210919 | X30: 0.3762552032 | Y30: 0.0002095696407 | Z30: 9.062470948e-06 | AA30: 0 | AB30: 1.132808868e-05 | AC30: 100 | AD30: =AD31 -> 0 | AE30: 1208.889976 | AF30: 1199.772828 | AG30: 0.3050350637 | AH30: 0.8436718779 | AI30: -0.6866661947 | AJ30: 0.04095137844 | AK30: 0.7975463368 | AL30: 0.01737527642 | AM30: 0.1571584453 | AN30: 0 | AO30: 0.007779252095 | AP30: 0.134333017 | AQ30: 0.00266413119 | AR30: 0.2211408603 | AS30: 0.2242960251 | AT30: 0.03072525165 | AU30: 0.0008741652501 | AV30: 0 | AW30: 0.0007251839538 | AY30: 50.01488534 | AZ30: 1.089620023 | BA30: 9.855554791 | BB30: 0 | BC30: 0.4878442588 | BD30: 8.424150586 | BE30: 0.1670701875 | BF30: 13.86795257 | BG30: 14.06581594 | BH30: 1.9268096 | BI30: 0.05481972988 | BJ30: 0 | BK30: 0.04547697184 | BL30: -0.9924478823 | BM30: 48.04822151 | BN30: 48.04822151 | BO30: 0.7975463368 | BP30: 0.01737527642 | BQ30: 0.3143168906 | BR30: 0 | BS30: 0.01555850419 | BT30: 0.134333017 | BU30: 0.00266413119 | BV30: 0.2211408603 | BW30: 0.2242960251 | BX30: 0.0614505033 | BY30: 0.0017483305 | BZ30: 0 | CA30: 0.001450367908 | CB30: 0.4450890844 | CC30: 0.009696672801 | CD30: 0.175411773 | CE30: 0 | CF30: 0.008682781256 | CG30: 0.07496763105 | CH30: 0.001486779711 | CI30: 0.1234127454 | CJ30: 0.1251735577 | CK30: 0.03429386731 | CL30: 0.0009756960639 | CM30: 0 | CN30: 0.0008094111831 | CO30: 0.0290900184 | CP30: 0.09397193184 | CQ30: 0 | CR30: 8.682781256e-05 | CS30: 10.45506394 | CT30: 0.1625489077 | CU30: 56.24479186 | CV30: 0.3402396456 | CW30: 0.0003429386731 | CX30: 9.756960639e-06 | CY30: 0 | CZ30: 8.094111831e-06 | DA30: 67.25025833 | DB30: 0.5456261883 | DC30: 33.25809636 | DD30: 0.02883757785 | DE30: 0.09315645191 | DF30: 0 | DG30: 8.607432865e-05 | DH30: 10.33657809 | DI30: 0.161138323 | DJ30: 55.78446239 | DK30: 0.3372870768 | DL30: 0.0003399626823 | DM30: 9.672290616e-06 | DN30: 0 | DO30: 8.02387186e-06 | DP30: 0.305797706 | DQ30: -0.6866661947 | DR30: -0.6866661947 | DS30: 6.691080454 | DT30: 10.94517481 | DU30: 6.813909372 | DV30: 24.45016464 | DW30: 0.4476523972 | DX30: 0.2736619795 | DY30: 0.2786856233 | DZ30: 0.3716924198 | EA30: 0.1330816855 | EB30: 2 | EC30: 0.04095137844 | ED30: 0.2636395524 | EE30: -0.02574394794 | EF30: 0.04095137844 | EG30: -0.2636395524 | EH30: 0 | EI30: 0 | EJ30: 0 | EL30: 0 | EM30: 0 | EN30: 0 | EO30: 0.1454147624 | EP30: 0.003963974406 | EQ30: 4.557327478 | ER30: 4.557454067
A31: -4 | B31: 48.00309447 | C31: 1.401827147 | D31: 16.18509563 | E31: 0 | F31: 1.256952883 | G31: 9.599557815 | H31: 0.1885976405 | I31: 8.552614271 | J31: 12.70154974 | K31: 1.923553814 | L31: 0.08318070549 | M31: 0 | N31: 0.1039758819 | P31: 39.66914701 | Q31: 0.04626270806 | R31: 0.09302834332 | S31: 0 | T31: 0.0001382720268 | U31: 15.1964208 | V31: 0.2339363518 | W31: 44.37171023 | X31: 0.3891240948 | Y31: 0.0002116019528 | Z31: 9.150354716e-06 | AA31: 0 | AB31: 1.143794339e-05 | AC31: 100 | AD31: 0 | AE31: 1199.202032 | AF31: 1190.171803 | AG31: 0.3051285179 | AH31: 0.8388157207 | AI31: -0.7403012754 | AJ31: 0.03184430521 | AK31: 0.7989197715 | AL31: 0.01754498989 | AM31: 0.1587365453 | AN31: 0 | AO31: 0.007857821751 | AP31: 0.1336129752 | AQ31: 0.002658663891 | AR31: 0.2121657679 | AS31: 0.22649387 | AT31: 0.03103557357 | AU31: 0.0008829942304 | AV31: 0 | AW31: 0.0007325082381 | AY31: 50.22626285 | AZ31: 1.103013476 | BA31: 9.979404356 | BB31: 0 | BC31: 0.4940033214 | BD31: 8.399942837 | BE31: 0.1671441316 | BF31: 13.33837765 | BG31: 14.23915273 | BH31: 1.951135685 | BI31: 0.05551183222 | BJ31: 0 | BK31: 0.0460511213 | BL31: -1.030132878 | BM31: 48.15914927 | BN31: 48.15914927 | BO31: 0.7989197715 | BP31: 0.01754498989 | BQ31: 0.3174730906 | BR31: 0 | BS31: 0.0157156435 | BT31: 0.1336129752 | BU31: 0.002658663891 | BV31: 0.2121657679 | BW31: 0.22649387 | BX31: 0.06207114714 | BY31: 0.001765988461 | BZ31: 0 | CA31: 0.001465016476 | CB31: 0.446352091 | CC31: 0.009802289547 | CD31: 0.1773704731 | CE31: 0 | CF31: 0.008780243761 | CG31: 0.07464883583 | CH31: 0.001485380923 | CI31: 0.11853585 | CJ31: 0.1265408819 | CK31: 0.0346788092 | CL31: 0.0009866480595 | CM31: 0 | CN31: 0.0008184966637 | CO31: 0.02940686864 | CP31: 0.09267572903 | CQ31: 0 | CR31: 8.780243761e-05 | CS31: 10.72510854 | CT31: 0.1674881051 | CU31: 55.92104804 | CV31: 0.3524089559 | CW31: 0.000346788092 | CX31: 9.866480595e-06 | CY31: 0 | CZ31: 8.184966637e-06 | DA31: 67.21302658 | DB31: 0.5622620259 | DC31: 33.25838525 | DD31: 0.02916782667 | DE31: 0.09192238841 | DF31: 0 | DG31: 8.70887109e-05 | DH31: 10.65499082 | DI31: 0.1661266312 | DJ31: 55.44941382 | DK31: 0.3495443011 | DL31: 0.0003439691278 | DM31: 9.786278144e-06 | DN31: 0 | DO31: 8.118432844e-06 | DP31: 0.3031802172 | DQ31: -0.7403012754 | DR31: -0.7403012754 | DS31: 6.359305563 | DT31: 11.08241783 | DU31: 6.905156707 | DV31: 24.3468801 | DW31: 0.4551884178 | DX31: 0.2611959124 | DY31: 0.2836156698 | DZ31: 0.3839499623 | EA31: 0.1322252983 | EB31: 2 | EC31: 0.03184430521 | ED31: 0.265520555 | EE31: -0.05244403102 | EF31: 0.03184430521 | EG31: -0.265520555 | EH31: 0 | EI31: 0 | EJ31: 0 | EL31: 0 | EM31: 0 | EN31: 0 | EO31: 0.1404562178 | EP31: 0.003972875848 | EQ31: 4.718152044 | ER31: 4.717648548
A32: -5 | B32: 48.08727576 | C32: 1.415519717 | D32: 16.34764177 | E32: 0 | F32: 1.26964798 | G32: 9.543023846 | H32: 0.1881396737 | I32: 8.190805221 | J32: 12.82591767 | K32: 1.942981514 | L32: 0.08402082221 | M32: 0 | N32: 0.1050260278 | P32: 39.58254006 | Q32: 0.04669079697 | R32: 0.09226581517 | S32: 0 | T32: 0.0001395974339 | U32: 15.64298963 | V32: 0.2408978002 | W32: 43.99086197 | X32: 0.4033799029 | Y32: 0.0002136302642 | Z32: 9.238065478e-06 | AA32: 0 | AB32: 1.154758185e-05 | AC32: 100 | AD32: 0 | AE32: 1189.252227 | AF32: 1180.473535 | AG32: 0.305209379 | AH32: 0.8336694094 | AI32: -0.7969897481 | AJ32: 0.02303877067 | AK32: 0.8003208082 | AL32: 0.01771636338 | AM32: 0.1603307288 | AN32: 0 | AO32: 0.007937184957 | AP32: 0.1328260981 | AQ32: 0.002652207926 | AR32: 0.2031903258 | AS32: 0.2287115974 | AT32: 0.03134902973 | AU32: 0.0008919123829 | AV32: 0 | AW32: 0.0007399064973 | AY32: 50.44040308 | AZ32: 1.116577878 | BA32: 10.10488107 | BB32: 0 | BC32: 0.5002429081 | BD32: 8.371395396 | BE32: 0.1671560148 | BF32: 12.80611703 | BG32: 14.41460105 | BH32: 1.975779812 | BI32: 0.05621298315 | BJ32: 0 | BK32: 0.04663277723 | BL32: -1.06843583 | BM32: 48.26934917 | BN32: 48.26934917 | BO32: 0.8003208082 | BP32: 0.01771636338 | BQ32: 0.3206614575 | BR32: 0 | BS32: 0.01587436991 | BT32: 0.1328260981 | BU32: 0.002652207926 | BV32: 0.2031903258 | BW32: 0.2287115974 | BX32: 0.06269805946 | BY32: 0.001783824766 | BZ32: 0 | CA32: 0.001479812995 | CB32: 0.4476280145 | CC32: 0.009908952112 | CD32: 0.1793493935 | CE32: 0 | CF32: 0.008878705406 | CG32: 0.07429106175 | CH32: 0.001483408348 | CI32: 0.1136465292 | CJ32: 0.1279208502 | CK32: 0.03506769733 | CL32: 0.0009977123298 | CM32: 0 | CN32: 0.0008276752845 | CO32: 0.02972685634 | CP32: 0.09206435487 | CQ32: 0 | CR32: 8.878705406e-05 | CS32: 11.01128197 | CT32: 0.1727503983 | CU32: 55.57796063 | CV32: 0.3659089544 | CW32: 0.0003506769733 | CX32: 9.977123298e-06 | CY32: 0 | CZ32: 8.276752845e-06 | DA32: 67.17457632 | DB32: 0.580907982 | DC32: 33.25833019 | DD32: 0.02950209039 | DE32: 0.09136825262 | DF32: 0 | DG32: 8.81157316e-05 | DH32: 10.99208327 | DI32: 0.1714442257 | DJ32: 55.09367541 | DK32: 0.3631423022 | DL32: 0.0003480254907 | DM32: 9.901685871e-06 | DN32: 0 | DO32: 8.214171987e-06 | DP32: 0.3003845545 | DQ32: -0.7969897481 | DR32: -0.7969897481 | DS32: 6.023356457 | DT32: 11.22145895 | DU32: 6.997748361 | DV32: 24.24256377 | DW32: 0.4628825176 | DX32: 0.2484620239 | DY32: 0.2886554586 | DZ32: 0.3967590279 | EA32: 0.1313848552 | EB32: 2 | EC32: 0.02303877067 | ED32: 0.2674583126 | EE32: -0.08126569415 | EF32: 0.02303877067 | EG32: -0.2674583126 | EH32: 0 | EI32: 0 | EJ32: 0 | EL32: 0 | EM32: 0 | EN32: 0 | EO32: 0.1354742949 | EP32: 0.003980770397 | EQ32: 4.891598783 | ER32: 4.890423054
A33: -6 | B33: 48.17318218 | C33: 1.429346272 | D33: 16.51183748 | E33: 0 | F33: 1.282471297 | G33: 9.48140803 | H33: 0.1876067633 | I33: 7.829188486 | J33: 12.95139785 | K33: 1.962605432 | L33: 0.08486942407 | M33: 0 | N33: 0.1060867801 | P33: 39.49051736 | Q33: 0.04711707467 | R33: 0.09230158728 | S33: 0 | T33: 0.0001409182576 | U33: 16.11448456 | V33: 0.2483044761 | W33: 43.58769881 | X33: 0.4191985844 | Y33: 0.0002156515615 | Z33: 9.32547293e-06 | AA33: 0 | AB33: 1.165684116e-05 | AC33: 100 | AD33: 0 | AE33: 1179.026208 | AF33: 1170.683629 | AG33: 0.3052786198 | AH33: 0.8282047432 | AI33: -0.8570029264 | AJ33: 0.01475675121 | AK33: 0.8017505564 | AL33: 0.01788941379 | AM33: 0.1619410906 | AN33: 0 | AO33: 0.008017349727 | AP33: 0.1319684886 | AQ33: 0.002644695481 | AR33: 0.1942196543 | AS33: 0.2309491584 | AT33: 0.03166565178 | AU33: 0.0009009206083 | AV33: 0 | AW33: 0.0007473794786 | AY33: 50.65732065 | AZ33: 1.130313865 | BA33: 10.2319876 | BB33: 0 | BC33: 0.5065633602 | BD33: 8.338216902 | BE33: 0.1671008344 | BF33: 12.27145679 | BG33: 14.59215148 | BH33: 2.000743327 | BI33: 0.05692322103 | BJ33: 0 | BK33: 0.04722197146 | BL33: -1.107365928 | BM33: 48.37873082 | BN33: 48.37873082 | BO33: 0.8017505564 | BP33: 0.01788941379 | BQ33: 0.3238821813 | BR33: 0 | BS33: 0.01603469945 | BT33: 0.1319684886 | BU33: 0.002644695481 | BV33: 0.1942196543 | BW33: 0.2309491584 | BX33: 0.06333130356 | BY33: 0.001801841217 | BZ33: 0 | CA33: 0.001494758957 | CB33: 0.4489168434 | CC33: 0.01001665556 | CD33: 0.1813483823 | CE33: 0 | CF33: 0.008978162355 | CG33: 0.0738919067 | CH33: 0.00148082011 | CI33: 0.1087476316 | CJ33: 0.1293132463 | CK33: 0.03546051656 | CL33: 0.001008888444 | CM33: 0 | CN33: 0.0008369466878 | CO33: 0.03004996668 | CP33: 0.09225880803 | CQ33: 0 | CR33: 8.978162355e-05 | CS33: 11.31514825 | CT33: 0.1783687424 | CU33: 55.21364955 | CV33: 0.3809136769 | CW33: 0.0003546051656 | CX33: 1.008888444e-05 | CY33: 0 | CZ33: 8.369466878e-06 | DA33: 67.134859 | DB33: 0.6018345852 | DC33: 33.25787046 | DD33: 0.02984040097 | DE33: 0.09161540359 | DF33: 0 | DG33: 8.915549476e-05 | DH33: 11.34962479 | DI33: 0.1771248152 | DJ33: 54.71520729 | DK33: 0.3782572199 | DL33: 0.0003521321818 | DM33: 1.001852549e-05 | DN33: 0 | DO33: 8.311098986e-06 | DP33: 0.297395486 | DQ33: -0.8570029264 | DR33: -0.8570029264 | DS33: 5.683232525 | DT33: 11.36230147 | DU33: 7.091712719 | DV33: 24.13724671 | DW33: 0.4707372636 | DX33: 0.2354548799 | DY33: 0.2938078565 | DZ33: 0.4100170404 | EA33: 0.1305612658 | EB33: 2 | EC33: 0.01475675121 | ED33: 0.2694562682 | EE33: -0.1123628325 | EF33: 0.01475675121 | EG33: -0.2694562682 | EH33: 0 | EI33: 0 | EJ33: 0 | EL33: 0 | EM33: 0 | EN33: 0 | EO33: 0.1304711602 | EP33: 0.003987582702 | EQ33: 5.079123104 | ER33: 5.077227773
A34: -7 | B34: 48.26088587 | C34: 1.443308183 | D34: 16.67769138 | E34: 0 | F34: 1.295424129 | G34: 9.414407257 | H34: 0.1869936551 | I34: 7.467991413 | J34: 13.07798572 | K34: 1.982427551 | L34: 0.08572659678 | M34: 0 | N34: 0.107158246 | P34: 39.39254469 | Q34: 0.04754080085 | R34: 0.09327093106 | S34: 0 | T34: 0.0001422322718 | U34: 16.61315599 | V34: 0.2562004812 | W34: 43.16012353 | X34: 0.4367825004 | Y34: 0.000217662438 | Z34: 9.412429751e-06 | AA34: 0 | AB34: 1.176553719e-05 | AC34: 100 | AD34: 0 | AE34: 1168.508477 | AF34: 1160.808485 | AG34: 0.3053376033 | AH34: 0.8223897147 | AI34: -0.9206857642 | AJ34: 0.007297695443 | AK34: 0.8032102166 | AL34: 0.01806415829 | AM34: 0.1635677152 | AN34: 0 | AO34: 0.008098324159 | AP34: 0.1310359276 | AQ34: 0.002636052485 | AR34: 0.1852593935 | AS34: 0.2332064716 | AT34: 0.0319854717 | AU34: 0.0009100198166 | AV34: 0 | AW34: 0.0007549279367 | AY34: 50.87702702 | AZ34: 1.144221837 | BA34: 10.36072363 | BB34: 0 | BC34: 0.5129649107 | BD34: 8.300091673 | BE34: 0.166973117 | BF34: 11.73472022 | BG34: 14.77178914 | BH34: 2.026027152 | BI34: 0.05764257207 | BJ34: 0 | BK34: 0.04781872571 | BL34: -1.146932057 | BM34: 48.48719942 | BN34: 48.48719942 | BO34: 0.8032102166 | BP34: 0.01806415829 | BQ34: 0.3271354305 | BR34: 0 | BS34: 0.01619664832 | BT34: 0.1310359276 | BU34: 0.002636052485 | BV34: 0.1852593935 | BW34: 0.2332064716 | BX34: 0.0639709434 | BY34: 0.001820039633 | BZ34: 0 | CA34: 0.001509855873 | CB34: 0.4502185508 | CC34: 0.01012539308 | CD34: 0.1833672386 | CE34: 0 | CF34: 0.009078609041 | CG34: 0.07344877372 | CH34: 0.00147757051 | CI34: 0.1038423242 | CJ34: 0.130717809 | CK34: 0.03585724489 | CL34: 0.001020175776 | CM34: 0 | CN34: 0.0008463103547 | CO34: 0.03037617924 | CP34: 0.09339980278 | CQ34: 0 | CR34: 9.078609041e-05 | CS34: 11.63847191 | CT34: 0.1843805561 | CU34: 54.82598098 | CV34: 0.3976243448 | CW34: 0.0003585724489 | CX34: 1.020175776e-05 | CY34: 0 | CZ34: 8.463103547e-06 | DA34: 67.09381433 | DB34: 0.6253546626 | DC34: 33.25693537 | DD34: 0.0301827916 | DE34: 0.09280518005 | DF34: 0 | DG34: 9.020810767e-05 | DH34: 11.72961627 | DI34: 0.1832067113 | DJ34: 54.31169574 | DK34: 0.3950928997 | DL34: 0.0003562896247 | DM34: 1.013680905e-05 | DN34: 0 | DO34: 8.409223842e-06 | DP34: 0.2941967546 | DQ34: -0.9206857642 | DR34: -0.9206857642 | DS34: 5.33894113 | DT34: 11.50494546 | DU34: 7.187079812 | DV34: 24.0309664 | DW34: 0.4787550059 | DX34: 0.2221692228 | DY34: 0.2990757713 | DZ34: 0.4235284444 | EA34: 0.1297554931 | EB34: 2 | EC34: 0.007297695443 | ED34: 0.2715182266 | EE34: -0.1458980615 | EF34: 0.007297695443 | EG34: -0.2715182266 | EH34: 0 | EI34: 0 | EJ34: 0 | EL34: 0 | EM34: 0 | EN34: 0 | EO34: 0.1254492425 | EP34: 0.003993230949 | EQ34: 5.282402846 | ER34: 5.279733617
A35: -8 | B35: 48.35046507 | C35: 1.457406844 | D35: 16.84521078 | E35: 0 | F35: 1.308507785 | G35: 9.341692623 | H35: 0.1862945962 | I35: 7.107464825 | J35: 13.20567464 | K35: 2.002449873 | L35: 0.08659242693 | M35: 0 | N35: 0.1082405337 | P35: 39.28801814 | Q35: 0.04796113966 | R35: 0.09533064848 | S35: 0 | T35: 0.0001435369606 | U35: 17.14153273 | V35: 0.2646356869 | W35: 42.70577188 | X35: 0.4563652032 | Y35: 0.0002196590435 | Z35: 9.498769451e-06 | AA35: 0 | AB35: 1.187346181e-05 | AC35: 100 | AD35: 0 | AE35: 1157.682283 | AF35: 1150.855398 | AG35: 0.3053881789 | AH35: 0.8161878621 | AI35: -0.9883919174 | AJ35: 0.001069041774 | AK35: 0.8047010913 | AL35: 0.01824061432 | AM35: 0.1652106744 | AN35: 0 | AO35: 0.008180116432 | AP35: 0.1300238374 | AQ35: 0.002626197841 | AR35: 0.1763157656 | AS35: 0.2354834188 | AT35: 0.0323085218 | AU35: 0.0009192109267 | AV35: 0 | AW35: 0.0007625526342 | AY35: 51.09953 | AZ35: 1.15830192 | BA35: 10.49108533 | BB35: 0 | BC35: 0.5194476676 | BD35: 8.256676986 | BE35: 0.1667668614 | BF35: 11.19627257 | BG35: 14.95349286 | BH35: 2.051631714 | BI35: 0.05837104837 | BJ35: 0 | BK35: 0.04842305003 | BL35: -1.187142711 | BM35: 48.5946556 | BN35: 48.5946556 | BO35: 0.8047010913 | BP35: 0.01824061432 | BQ35: 0.3304213487 | BR35: 0 | BS35: 0.01636023286 | BT35: 0.1300238374 | BU35: 0.002626197841 | BV35: 0.1763157656 | BW35: 0.2354834188 | BX35: 0.0646170436 | BY35: 0.001838421853 | BZ35: 0 | CA35: 0.001525105268 | CB35: 0.451533093 | CC35: 0.01023515575 | CD35: 0.1854057055 | CE35: 0 | CF35: 0.009180037938 | CG35: 0.07295884908 | CH35: 0.001473609576 | CI35: 0.09893413073 | CJ35: 0.1321342267 | CK35: 0.0362578526 | CL35: 0.001031573481 | CM35: 0 | CN35: 0.0008557655835 | CO35: 0.03070546725 | CP35: 0.09565149391 | CQ35: 0 | CR35: 9.180037938e-05 | CS35: 11.98324896 | CT35: 0.1908284629 | CU35: 54.41252414 | CV35: 0.416274514 | CW35: 0.000362578526 | CX35: 1.031573481e-05 | CY35: 0 | CZ35: 8.557655835e-06 | DA35: 67.0513658 | DB35: 0.6518313179 | DC35: 33.25544231 | DD35: 0.03052929833 | DE35: 0.09510270499 | DF35: 0 | DG35: 9.127368576e-05 | DH35: 12.13432802 | DI35: 0.1897336075 | DJ35: 53.88050733 | DK35: 0.4138861891 | DL35: 0.0003604982754 | DM35: 1.025654952e-05 | DN35: 0 | DO35: 8.508557315e-06 | DP35: 0.2907712738 | DQ35: -0.9883919174 | DR35: -0.9883919174 | DS35: 4.990498847 | DT35: 11.64938725 | DU35: 7.28388155 | DV35: 23.92376764 | DW35: 0.4869378193 | DX35: 0.2086000383 | DY35: 0.3044621424 | DZ35: 0.4369435776 | EA35: 0.1289685566 | EB35: 2 | EC35: 0.001069041774 | ED35: 0.2736484058 | EE35: -0.1820427275 | EF35: 0.001069041774 | EG35: -0.2736484058 | EH35: 0 | EI35: 0 | EJ35: 0 | EL35: 0 | EM35: 0 | EN35: 0 | EO35: 0.1204112662 | EP35: 0.003997626122 | EQ35: 5.503380718 | ER35: 5.49987388
A36: -9 | B36: 48.44200494 | C36: 1.471643669 | D36: 17.01440149 | E36: 0 | F36: 1.321723585 | G36: 9.262906359 | H36: 0.1855032721 | I36: 6.747885966 | J36: 13.33445555 | K36: 2.02267442 | L36: 0.08746700196 | M36: 0 | N36: 0.1093337524 | P36: 39.17625294 | Q36: 0.04837714786 | R36: 0.09866303325 | S36: 0 | T36: 0.0001448294825 | U36: 17.70246406 | V36: 0.2736666541 | W36: 42.22197088 | X36: 0.4782172555 | Y36: 0.0002216370298 | Z36: 9.58430399e-06 | AA36: 0 | AB36: 1.198037999e-05 | AC36: 100 | AD36: 0 | AE36: 1146.529509 | AF36: 1140.83267 | AG36: 0.3054328049 | AH36: 0.8095574915 | AI36: -1.060552925 | AJ36: -0.003368288224 | AK36: 0.8062245974 | AL36: 0.0184187996 | AM36: 0.166870025 | AN36: 0 | AO36: 0.008262734807 | AP36: 0.1289272383 | AQ36: 0.002615042532 | AR36: 0.167395648 | AS36: 0.2377798382 | AT36: 0.03263483471 | AU36: 0.000928494867 | AV36: 0 | AW36: 0.0007702543411 | AY36: =AK36*100/SUM($AK36:$AW36) -> 51.32483315 | AZ36: 1.172553925 | BA36: 10.62306486 | BB36: 0 | BC36: 0.5260115936 | BD36: 8.207599982 | BE36: 0.1664754735 | BF36: 10.6565264 | BG36: 15.13723417 | BH36: 2.077556864 | BI36: 0.05910864576 | BJ36: 0 | BK36: 0.04903494097 | BL36: -1.228005887 | BM36: 48.70099533 | BN36: 48.70099533 | BO36: 0.8062245974 | BP36: 0.0184187996 | BQ36: 0.33374005 | BR36: 0 | BS36: 0.01652546961 | BT36: 0.1289272383 | BU36: 0.002615042532 | BV36: 0.167395648 | BW36: 0.2377798382 | BX36: 0.06526966941 | BY36: 0.001856989734 | BZ36: 0 | CA36: 0.001540508682 | CB36: 0.4528604066 | CC36: 0.01034593226 | CD36: 0.1874634627 | CE36: 0 | CF36: 0.0092824393 | CG36: 0.07241907741 | CH36: 0.001468882527 | CI36: 0.09402697642 | CJ36: 0.1335621297 | CK36: 0.0366623012 | CL36: 0.001043080463 | CM36: 0 | CN36: 0.0008653114658 | CO36: 0.03103779679 | CP36: 0.09920603262 | CQ36: 0 | CR36: 9.2824393e-05 | CS36: 12.35174315 | CT36: 0.1977611749 | CU36: 53.97049943 | CV36: 0.4371363793 | CW36: 0.000366623012 | CX36: 1.043080463e-05 | CY36: 0 | CZ36: 8.653114658e-06 | DA36: 67.00741454 | DB36: 0.6816877008 | DC36: 33.25329447 | DD36: 0.03087996257 | DE36: 0.09870154748 | DF36: 0 | DG36: 9.235235995e-05 | DH36: 12.56634492 | DI36: 0.1967555146 | DJ36: 53.41863405 | DK36: 0.4349134419 | DL36: 0.000364758651 | DM36: 1.037776162e-05 | DN36: 0 | DO36: 8.609111611e-06 | DP36: 0.2871015098 | DQ36: -1.060552925 | DR36: -1.060552925 | DS36: 4.63793289 | DT36: 11.79561878 | DU36: 7.382152014 | DV36: 23.81570369 | DW36: 0.4952874347 | DX36: 0.194742635 | DY36: 0.3099699304 | DZ36: 0.4496538873 | EA36: 0.1282015356 | EB36: 2 | EC36: -0.003368288224 | ED36: 0.2758514972 | EE36: -0.2209767643 | EF36: -0.003368288224 | EG36: -0.2758514972 | EH36: 0 | EI36: 0 | EJ36: 0 | EL36: 0 | EM36: 0 | EN36: 0 | EO36: 0.1153602875 | EP36: 0.004000671159 | EQ36: 5.744316435 | ER36: 5.739895239
A37: -10 | B37: 48.53559839 | C37: 1.486020099 | D37: 17.18526753 | E37: 0 | F37: 1.335072865 | G37: 9.177658302 | H37: 0.1846127329 | I37: 6.389561876 | J37: 13.46431654 | K37: 2.043103236 | L37: 0.08835041022 | M37: 0 | N37: 0.1104380128 | P37: 39.05647037 | Q37: 0.04878776206 | R37: 0.1034806891 | S37: 0 | T37: 0.0001461066315 | U37: 18.29916877 | V37: 0.2833577209 | W37: 41.7056899 | X37: 0.5026533347 | Y37: 0.0002235914904 | Z37: 9.668821205e-06 | AA37: 0 | AB37: 1.208602651e-05 | AC37: 100 | AD37: 0 | AE37: 1135.030549 | AF37: 1130.749737 | AG37: 0.3054747014 | AH37: 0.802450738 | AI37: -1.137683404 | AJ37: -0.005230155244 | AK37: 0.8077822816 | AL37: 0.01859873213 | AM37: 0.1685458066 | AN37: 0 | AO37: 0.008346187629 | AP37: 0.1277406996 | AQ37: 0.002602488587 | AR37: 0.1585066576 | AS37: 0.2400955178 | AT37: 0.03296444338 | AU37: 0.0009378725754 | AV37: 0 | AW37: 0.0007780338354 | AY37: 51.55293515 | AZ37: 1.1869773 | BA37: 10.7566497 | BB37: 0 | BC37: 0.5326564835 | BD37: 8.152454133 | BE37: 0.1660916913 | BF37: 10.11594786 | BG37: 15.32297618 | BH37: 2.103801792 | BI37: 0.05985534116 | BJ37: 0 | BK37: 0.04965437937 | BL37: -1.269528969 | BM37: 48.80610974 | BN37: 48.80610974 | BO37: 0.8077822816 | BP37: 0.01859873213 | BQ37: 0.3370916132 | BR37: 0 | BS37: 0.01669237526 | BT37: 0.1277406996 | BU37: 0.002602488587 | BV37: 0.1585066576 | BW37: 0.2400955178 | BX37: 0.06592888676 | BY37: 0.001875745151 | BZ37: 0 | CA37: 0.001556067671 | CB37: 0.4542004069 | CC37: 0.01045770859 | CD37: 0.1895401167 | CE37: 0 | CF37: 0.009385800862 | CG37: 0.07182613317 | CH37: 0.001463329169 | CI37: 0.08912523838 | CJ37: 0.1350010818 | CK37: 0.03707054224 | CL37: 0.001054695343 | CM37: 0 | CN37: 0.0008749468581 | CO37: 0.03137312576 | CP37: 0.1042891671 | CQ37: 0 | CR37: 9.385800862e-05 | CS37: 12.74652843 | CT37: 0.2052345484 | CU37: 53.49671586 | CV37: 0.4605285346 | CW37: 0.0003707054224 | CX37: 1.054695343e-05 | CY37: 0 | CZ37: 8.749468581e-06 | DA37: 66.96183082 | DB37: 0.7154190365 | DC37: 33.25037791 | DD37: 0.0312348347 | DE37: 0.1038294661 | DF37: 0 | DG37: 9.344428755e-05 | DH37: 13.0286203 | DI37: 0.2043298855 | DJ37: 52.92262733 | DK37: 0.4584985495 | DL37: 0.0003690713728 | DM37: 1.050046303e-05 | DN37: 0 | DO37: 8.710901393e-06 | DP37: 0.2831701588 | DQ37: -1.137683404 | DR37: -1.137683404 | DS37: 4.281282782 | DT37: 11.943627 | DU37: 7.481927793 | DV37: 23.70683757 | DW37: 0.5038051559 | DX37: 0.1805927412 | DY37: 0.315602103 | DZ37: 0.4606071179 | EA37: 0.1274555718 | EB37: 2 | EC37: -0.005230155244 | ED37: 0.2781327369 | EE37: -0.2628883469 | EF37: -0.005230155244 | EG37: -0.2781327369 | EH37: 0 | EI37: 0 | EJ37: 0 | EL37: 0 | EM37: 0 | EN37: 0 | EO37: 0.1102997378 | EP37: 0.004002259984 | EQ37: 6.007851149 | ER37: 6.002420508
A38: -11 | B38: 48.63134716 | C38: 1.500537597 | D38: 17.35781083 | E38: 0 | F38: 1.348556974 | G38: 9.085521832 | H38: 0.1836153088 | I38: 6.032833311 | J38: 13.59524243 | K38: 2.063738384 | L38: 0.08924274094 | M38: 0 | N38: 0.1115534262 | P38: 38.92770679 | Q38: 0.04919197926 | R38: 0.1100320276 | S38: 0 | T38: 0.0001473653772 | U38: 18.93569651 | V38: 0.2937818263 | W38: 41.15315609 | X38: 0.5300399526 | Y38: 0.0002255177878 | Z38: 9.752120552e-06 | AA38: 0 | AB38: 1.219015069e-05 | AC38: 100 | AD38: 0 | AE38: 1123.16418 | AF38: 1120.61732 | AG38: 0.3055269935 | AH38: 0.7948076544 | AI38: -1.220412558 | AJ38: -0.003398774964 | AK38: 0.8093758369 | AL38: 0.01878043025 | AM38: 0.170238038 | AN38: 0 | AO38: 0.008430483328 | AP38: 0.1264582834 | AQ38: 0.002588427883 | AR38: 0.1496572477 | AS38: 0.2424301866 | AT38: 0.03329738112 | AU38: 0.000947344999 | AV38: 0 | AW38: 0.000785891903 | AY38: 51.783829 | AZ38: 1.201571068 | BA38: 10.89182188 | BB38: 0 | BC38: 0.5393819375 | BD38: 8.090795186 | BE38: 0.1656074975 | BF38: 9.575063855 | BG38: 15.51067224 | BH38: 2.13036492 | BI38: 0.06061108967 | BJ38: 0 | BK38: 0.05028132798 | BL38: -1.311718579 | BM38: 48.90988506 | BN38: 48.90988506 | BO38: 0.8093758369 | BP38: 0.01878043025 | BQ38: 0.3404760761 | BR38: 0 | BS38: 0.01686096666 | BT38: 0.1264582834 | BU38: 0.002588427883 | BV38: 0.1496572477 | BW38: 0.2424301866 | BX38: 0.06659476223 | BY38: 0.001894689998 | BZ38: 0 | CA38: 0.001571783806 | CB38: 0.455552985 | CC38: 0.0105704676 | CD38: 0.1916351906 | CE38: 0 | CF38: 0.009490107489 | CG38: 0.07117638788 | CH38: 0.001456883187 | CI38: 0.08423380437 | CJ38: 0.1364505711 | CK38: 0.03748251596 | CL38: 0.001066416422 | CM38: 0 | CN38: 0.0008846703497 | CO38: 0.03171140281 | CP38: 0.1111663296 | CQ38: 0 | CR38: 9.490107489e-05 | CS38: 13.17046778 | CT38: 0.213311667 | CU38: 52.98717696 | CV38: 0.4868227294 | CW38: 0.0003748251596 | CX38: 1.066416422e-05 | CY38: 0 | CZ38: 8.846703497e-06 | DA38: 66.91404871 | DB38: 0.7536075317 | DC38: 33.24655793 | DD38: 0.03159416537 | DE38: 0.1107553464 | DF38: 0 | DG38: 9.455022447e-05 | DH38: 13.52485521 | DI38: 0.2125230512 | DJ38: 52.38820393 | DK38: 0.4850229399 | DL38: 0.0003734394265 | DM38: 1.062473868e-05 | DN38: 0 | DO38: 8.813997128e-06 | DP38: 0.2789612934 | DQ38: -1.220412558 | DR38: -1.220412558 | DS38: 3.920602298 | DT38: 12.09339295 | DU38: 7.583248401 | DV38: 23.59724365 | DW38: 0.5124917609 | DX38: 0.166146621 | DY38: 0.3213616181 | DZ38: 0.4679698948 | EA38: 0.1267318718 | EB38: 2 | EC38: -0.003398774964 | ED38: 0.2804979902 | EE38: -0.3079732807 | EF38: -0.003398774964 | EG38: -0.2804979902 | EH38: 0 | EI38: 0 | EJ38: 0 | EL38: 0 | EM38: 0 | EN38: 0 | EO38: 0.1052334725 | EP38: 0.004002276394 | EQ38: 6.297087555 | ER38: 6.290488404
A39: -12 | B39: 48.72936373 | C39: 1.515197654 | D39: 17.53203082 | E39: 0 | F39: 1.362177273 | G39: 8.986025118 | H39: 0.1825025157 | I39: 5.678082575 | J39: 13.72721417 | K39: 2.084581948 | L39: 0.09014408426 | M39: 0 | N39: 0.1126801053 | P39: 38.78908229 | Q39: 0.04958812245 | R39: 0.1186096796 | S39: 0 | T39: 0.0001486006644 | U39: 19.61545882 | V39: 0.3050236774 | W39: 40.56102964 | X39: 0.5608096251 | Y39: 0.0002274081859 | Z39: 9.8338675e-06 | AA39: 0 | AB39: 1.229233437e-05 | AC39: 100 | AD39: 0 | AE39: 1110.907525 | AF39: 1110.447695 | AG39: 0.3055790497 | AH39: 0.7865729409 | AI39: -1.309536781 | AJ39: -0.003758966462 | AK39: 0.8110071354 | AL39: 0.01896391261 | AM39: 0.1719467137 | AN39: 0 | AO39: 0.00851563042 | AP39: 0.1250734226 | AQ39: 0.002572740822 | AR39: 0.140856902 | AS39: 0.2447835049 | AT39: 0.03363368155 | AU39: 0.0009569130947 | AV39: 0 | AW39: 0.0007938293376 | AY39: 52.01750072 | AZ39: 1.216333735 | BA39: 11.02855686 | BB39: 0 | BC39: 0.5461873172 | BD39: 8.022132685 | BE39: 0.1650140198 | BF39: 9.034475382 | BG39: 15.70026402 | BH39: 2.157243725 | BI39: 0.06137581954 | BJ39: 0 | BK39: 0.05091572729 | BL39: -1.354580333 | BM39: 49.01220232 | BN39: 49.01220232 | BO39: 0.8110071354 | BP39: 0.01896391261 | BQ39: 0.3438934274 | BR39: 0 | BS39: 0.01703126084 | BT39: 0.1250734226 | BU39: 0.002572740822 | BV39: 0.140856902 | BW39: 0.2447835049 | BX39: 0.06726736309 | BY39: 0.001913826189 | BZ39: 0 | CA39: 0.001587658675 | CB39: 0.4569180021 | CC39: 0.01068418844 | CD39: 0.1937481077 | CE39: 0 | CF39: 0.00959534058 | CG39: 0.07046583916 | CH39: 0.001449471336 | CI39: 0.07935818494 | CJ39: 0.1379099951 | CK39: 0.03789814887 | CL39: 0.001078241609 | CM39: 0 | CN39: 0.0008944802065 | CO39: 0.03205256533 | CP39: 0.1201540062 | CQ39: 0 | CR39: 9.59534058e-05 | CS39: 13.62702156 | CT39: 0.2220686271 | CU39: 52.43819606 | CV39: 0.5164659222 | CW39: 0.0003789814887 | CX39: 1.078241609e-05 | CY39: 0 | CZ39: 8.944802065e-06 | DA39: 66.86452319 | DB39: 0.7969403711 | DC39: 33.24167515 | DD39: 0.03195771967 | DE39: 0.1197984626 | DF39: 0 | DG39: 9.566947335e-05 | DH39: 14.05838197 | DI39: 0.2214115115 | DJ39: 51.81134433 | DK39: 0.5149376655 | DL39: 0.0003778600575 | DM39: 1.075051021e-05 | DN39: 0 | DO39: 8.918333807e-06 | DP39: 0.274462296 | DQ39: -1.309536781 | DR39: -1.309536781 | DS39: 3.555962458 | DT39: 12.24489059 | DU39: 7.686156588 | DV39: 23.48700964 | DW39: 0.5213473652 | DX39: 0.1514012432 | DY39: 0.3272513916 | DZ39: 0.4684854046 | EA39: 0.1260317111 | EB39: 2 | EC39: 0.003758966462 | ED39: 0.2829538472 | EE39: -0.3564339472 | EF39: -0.003758966462 | EG39: -0.2829538472 | EH39: 0 | EI39: 0 | EJ39: 0 | EL39: 0 | EM39: 0 | EN39: 0 | EO39: 0.1001658631 | EP39: 0.004000591703 | EQ39: 6.615687764 | ER39: 6.607786721
A40: -13 | B40: 48.82977061 | C40: 1.53000179 | D40: 17.70792396 | E40: 0 | F40: 1.375935139 | G40: 8.878657101 | H40: 0.1812649282 | I40: 5.325729575 | J40: 13.86020816 | K40: 2.105636035 | L40: 0.09105453123 | M40: 0 | N40: 0.113818164 | P40: 38.63936768 | Q40: 0.04997484129 | R40: 0.1295580101 | S40: 0 | T40: 0.000149808409 | U40: 20.34350578 | V40: 0.3171793406 | W40: 39.92454325 | X40: 0.5954697196 | Y40: 0.0002292564347 | Z40: 9.91379177e-06 | AA40: 0 | AB40: 1.239223971e-05 | AC40: 100 | AD40: 0 | AE40: 1098.235659 | AF40: 1100.25462 | AG40: 0.3056452615 | AH40: 0.7776683694 | AI40: -1.40608068 | AJ40: -0.01870454313 | AK40: 0.8126782161 | AL40: 0.01914919824 | AM40: 0.173671799 | AN40: 0 | AO40: 0.008601637505 | AP40: 0.1235790037 | AQ40: 0.002555294531 | AR40: 0.1321160372 | AS40: 0.247155052 | AT40: 0.03397337864 | AU40: 0.0009665778291 | AV40: 0 | AW40: 0.000801846941 | AY40: 52.25392956 | AZ40: 1.231263292 | BA40: 11.16682319 | BB40: 0 | BC40: 0.5530717465 | BD40: 7.945935337 | BE40: 0.1643014145 | BF40: 8.494853145 | BG40: 15.89168064 | BH40: 2.184434748 | BI40: 0.06214943232 | BJ40: 0 | BK40: 0.05155749563 | BL40: -1.398118868 | BM40: 49.11293782 | BN40: 49.11293782 | BO40: 0.8126782161 | BP40: 0.01914919824 | BQ40: 0.3473435979 | BR40: 0 | BS40: 0.01720327501 | BT40: 0.1235790037 | BU40: 0.002555294531 | BV40: 0.1321160372 | BW40: 0.247155052 | BX40: 0.06794675728 | BY40: 0.001933155658 | BZ40: 0 | CA40: 0.001603693882 | CB40: 0.4582952935 | CC40: 0.01079884665 | CD40: 0.1958781877 | CE40: 0 | CF40: 0.009701478168 | CG40: 0.06969016108 | CH40: 0.001441012487 | CI40: 0.07450446787 | CJ40: 0.1393786555 | CK40: 0.03831735422 | CL40: 0.001090168436 | CM40: 0 | CN40: 0.0009043743807 | CO40: 0.03239653994 | CP40: 0.1316268439 | CQ40: 0 | CR40: 9.701478168e-05 | CS40: 14.11997599 | CT40: 0.2315904374 | CU40: 51.84455796 | CV40: 0.5499813593 | CW40: 0.0003831735422 | CX40: 1.090168436e-05 | CY40: 0 | CZ40: 9.043743807e-06 | DA40: 66.81262086 | DB40: 0.8462342404 | DC40: 33.23553903 | DD40: 0.03232576872 | DE40: 0.1313393011 | DF40: 0 | DG40: 9.680284995e-05 | DH40: 14.63396407 | DI40: 0.2310845211 | DJ40: 51.18646836 | DK40: 0.5487799084 | DL40: 0.000382336488 | DM40: 1.08778693e-05 | DN40: 0 | DO40: 9.023987475e-06 | DP40: 0.2696668187 | DQ40: -1.40608068 | DR40: -1.40608068 | DS40: 3.187452206 | DT40: 12.39808648 | DU40: 7.790699508 | DV40: 23.3762382 | DW40: 0.5303713274 | DX40: 0.1363543689 | DY40: 0.3332743037 | DZ40: 0.4561866889 | EA40: 0.1253564312 | EB40: 2 | EC40: 0.01870454313 | ED40: 0.285507755 | EE40: -0.4084781662 | EF40: -0.01870454313 | EG40: -0.285507755 | EH40: 0 | EI40: 0 | EJ40: 0 | EL40: 0 | EM40: 0 | EN40: 0 | EO40: 0.09510176552 | EP40: 0.003997066271 | EQ40: 6.968005239 | ER40: 6.958583752
A41: -14 | B41: 48.93270398 | C41: 1.544951557 | D41: 17.88548322 | E41: 0 | F41: 1.38983196 | G41: 8.762850549 | H41: 0.1798920553 | I41: 4.976246608 | J41: 13.99419542 | K41: 2.12690277 | L41: 0.09197417383 | M41: 0 | N41: 0.1149677173 | P41: 38.47722223 | Q41: 0.05035046365 | R41: 0.1432849159 | S41: 0 | T41: 0.0001509835551 | U41: 21.12520702 | V41: 0.3303597175 | W41: 39.23854942 | X41: 0.6346217179 | Y41: 0.0002310547971 | Z41: 9.991558794e-06 | AA41: 0 | AB41: 1.248944849e-05 | AC41: 100 | AD41: 0 | AE41: 1085.121723 | AF41: 1090.053817 | AG41: 0.3057345499 | AH41: 0.7680072851 | AI41: -1.511461052 | AJ41: -0.04529783677 | AK41: 0.8143913452 | AL41: 0.01933630656 | AM41: 0.1754132247 | AN41: 0 | AO41: 0.008688513273 | AP41: 0.1219671318 | AQ41: 0.002535941121 | AR41: 0.1234463697 | AS41: 0.249544311 | AT41: 0.03431650672 | AU41: 0.0009763401785 | AV41: 0 | AW41: 0.0008099455232 | AY41: 52.49308565 | AZ41: 1.246357052 | BA41: 11.30658065 | BB41: 0 | BC41: 0.5600340353 | BD41: 7.861614851 | BE41: 0.1634587293 | BF41: 7.95696184 | BG41: 16.08483559 | BH41: 2.211933289 | BI41: 0.06293179429 | BJ41: 0 | BK41: 0.05220652205 | BL41: -1.4423374 | BM41: 49.21196266 | BN41: 49.21196266 | BO41: 0.8143913452 | BP41: 0.01933630656 | BQ41: 0.3508264494 | BR41: 0 | BS41: 0.01737702655 | BT41: 0.1219671318 | BU41: 0.002535941121 | BV41: 0.1234463697 | BW41: 0.249544311 | BX41: 0.06863301344 | BY41: 0.001952680357 | BZ41: 0 | CA41: 0.001619891046 | CB41: 0.4596846582 | CC41: 0.01091441298 | CD41: 0.1980246198 | CE41: 0 | CF41: 0.009808493858 | CG41: 0.06884456669 | CH41: 0.001431416523 | CI41: 0.06967952519 | CJ41: 0.1408557347 | CK41: 0.03874002776 | CL41: 0.001102193936 | CM41: 0 | CN41: 0.0009143504119 | CO41: 0.03274323894 | CP41: 0.1460332096 | CQ41: 0 | CR41: 9.808493858e-05 | CS41: 14.6537236 | CT41: 0.2419768258 | CU41: 51.20048567 | CV41: 0.5879957361 | CW41: 0.0003874002776 | CX41: 1.102193936e-05 | CY41: 0 | CZ41: 9.143504119e-06 | DA41: 66.75790787 | DB41: 0.9024634724 | DC41: 33.22792154 | DD41: 0.0326984872 | DE41: 0.145833619 | DF41: 0 | DG41: 9.795088124e-05 | DH41: 15.25681604 | DI41: 0.2416461046 | DJ41: 50.50738715 | DK41: 0.5871920944 | DL41: 0.0003868707992 | DM41: 1.100687515e-05 | DN41: 0 | DO41: 9.131007258e-06 | DP41: 0.2645798617 | DQ41: -1.511461052 | DR41: -1.511461052 | DS41: 2.815183405 | DT41: 12.55293771 | DU41: 7.896928983 | DV41: 23.26505009 | DW41: 0.5395620321 | DX41: 0.1210048289 | DY41: 0.339433139 | DZ41: 0.4196514103 | EA41: 0.1247074437 | EB41: 2 | EC41: 0.04529783677 | ED41: 0.288168152 | EE41: -0.4643169944 | EF41: -0.04529783677 | EG41: -0.288168152 | EH41: 0 | EI41: 0 | EJ41: 0 | EL41: 0 | EM41: 0 | EN41: 0 | EO41: 0.09004668828 | EP41: 0.003991544987 | EQ41: 7.359239238 | ER41: 7.347995776
A42: -15 | B42: 49.0383149 | C42: 1.560048538 | D42: 18.06469734 | E42: 0 | F42: 1.403869142 | G42: 8.637978261 | H42: 0.1783721799 | I42: 4.630162742 | J42: 14.12914061 | K42: 2.148384302 | L42: 0.09290310497 | M42: 0 | N42: 0.1161288812 | P42: 38.30110084 | Q42: 0.0507131406 | R42: 0.1602754407 | S42: 0 | T42: 0.0001521205087 | U42: 21.96668822 | V42: 0.3446927592 | W42: 38.4971406 | X42: 0.6789814382 | Y42: 0.0002327947123 | Z42: 1.006679837e-05 | AA42: 0 | AB42: 1.258349796e-05 | AC42: 100 | AD42: 0 | AE42: 1071.536733 | AF42: 1079.86316 | AG42: 0.3058582941 | AH42: 0.757488163 | AI42: -1.627676756 | AJ42: -0.5241621035 | AK42: 0.8161490372 | AL42: 0.01952525736 | AM42: 0.1771708807 | AN42: 0 | AO42: 0.008776266499 | AP42: 0.1202290769 | AQ42: 0.002514515414 | AR42: 0.1148610241 | AS42: 0.2519506519 | AT42: 0.03466310044 | AU42: 0.0009862011291 | AV42: 0 | AW42: 0.0008181259024 | AY42: 52.73492901 | AZ42: 1.261611561 | BA42: 11.44777901 | BB42: 0 | BC42: 0.567072642 | BD42: 7.768522105 | BE42: 0.1624737466 | BF42: 7.421668928 | BG42: 16.27962435 | BH42: 2.239733257 | BI42: 0.0637227322 | BJ42: 0 | BK42: 0.05286266284 | BL42: -1.487237514 | BM42: 49.30914285 | BN42: 49.30914285 | BO42: 0.8161490372 | BP42: 0.01952525736 | BQ42: 0.3543417615 | BR42: 0 | BS42: 0.017552533 | BT42: 0.1202290769 | BU42: 0.002514515414 | BV42: 0.1148610241 | BW42: 0.2519506519 | BX42: 0.06932620089 | BY42: 0.001972402258 | BZ42: 0 | CA42: 0.001636251805 | CB42: 0.4610858564 | CC42: 0.01103085295 | CD42: 0.2001864452 | CE42: 0 | CF42: 0.009916356376 | CG42: 0.06792377908 | CH42: 0.001420583056 | CI42: 0.06489108145 | CJ42: 0.1423402795 | CK42: 0.03916604597 | CL42: 0.001114314596 | CM42: 0 | CN42: 0.0009244053846 | CO42: 0.03309255884 | CP42: 0.163911648 | CQ42: 0 | CR42: 9.916356376e-05 | CS42: 15.23330238 | CT42: 0.2533439454 | CU42: 50.49921087 | CV42: 0.6312608098 | CW42: 0.0003916604597 | CX42: 1.114314596e-05 | CY42: 0 | CZ42: 9.244053846e-06 | DA42: 66.69979106 | DB42: 0.9667974456 | DC42: 33.21854801 | DD42: 0.03307612445 | DE42: 0.1638302463 | DF42: 0 | DG42: 9.911431724e-05 | DH42: 15.93299598 | DI42: 0.25321813 | DJ42: 49.76687324 | DK42: 0.6309473136 | DL42: 0.0003914659536 | DM42: 1.113761206e-05 | DN42: 0 | DO42: 9.239463072e-06 | DP42: 0.2592257946 | DQ42: -1.627676756 | DR42: -1.627676756 | DS42: 2.439293947 | DT42: 12.70939057 | DU42: 8.004902623 | DV42: 23.15358714 | DW42: 0.5489166967 | DX42: 0.1053527444 | DY42: 0.3457305589 | DZ42: 0.3356623904 | EA42: 0.1240862286 | EB42: 1 | EC42: 0.08990948113 | ED42: 0.2909446458 | EE42: -0.5241621035 | EF42: -0.08990948113 | EG42: -0.2909446458 | EH42: 0 | EI42: 0 | EJ42: 0 | EL42: 0 | EM42: 0 | EN42: 0 | EO42: 0.08500685239 | EP42: 0.003983856197 | EQ42: 7.795639902 | ER42: 7.782149678
A43: -16 | B43: 49.14677161 | C43: 1.57529435 | D43: 18.24555009 | E43: 0 | F43: 1.418048102 | G43: 8.503344827 | H43: 0.1766921741 | I43: 4.288072056 | J43: 14.2650008 | K43: 2.170082802 | L43: 0.09384141848 | M43: 0 | N43: 0.1173017731 | P43: 38.10921988 | Q43: 0.05106084905 | R43: 0.1811089993 | S43: 0 | T43: 0.000153213144 | U43: 22.87493867 | V43: 0.3603264226 | W43: 37.69352944 | X43: 0.7294052423 | Y43: 0.0002344668059 | Z43: 1.013910512e-05 | AA43: 0 | AB43: 1.26738814e-05 | AC43: 100 | AD43: 0 | AE43: 1057.449504 | AF43: 1069.70298 | AG43: 0.3060309972 | AH43: 0.7459916131 | AI43: -1.757694673 | AJ43: -0.5882221628 | AK43: 0.8179540919 | AL43: 0.01971607092 | AM43: 0.1789446077 | AN43: 0 | AO43: 0.00886490605 | AP43: 0.11835516 | AQ43: 0.002490832345 | AR43: 0.1063747378 | AS43: 0.2543733091 | AT43: 0.03501319483 | AU43: 0.0009961616773 | AV43: 0 | AW43: 0.0008263889049 | AY43: 52.97940795 | AZ43: 1.277022482 | BA43: 11.59035631 | BB43: 0 | BC43: 0.574185616 | BD43: 7.665939163 | BE43: 0.1613327988 | BF43: 6.889959579 | BG43: 16.47592138 | BH43: 2.267826949 | BI43: 0.06452202686 | BJ43: 0 | BK43: 0.05352573617 | BL43: -1.53281885 | BM43: 49.40433948 | BN43: 49.40433948 | BO43: 0.8179540919 | BP43: 0.01971607092 | BQ43: 0.3578892153 | BR43: 0 | BS43: 0.0177298121 | BT43: 0.11835516 | BU43: 0.002490832345 | BV43: 0.1063747378 | BW43: 0.2543733091 | BX43: 0.07002638966 | BY43: 0.001992323355 | BZ43: 0 | CA43: 0.00165277781 | CB43: 0.4624986055 | CC43: 0.01114812603 | CD43: 0.2023625344 | CE43: 0 | CF43: 0.01002502885 | CG43: 0.06692196666 | CH43: 0.001408399931 | CI43: 0.06014783517 | CJ43: 0.1438311782 | CK43: 0.03959526322 | CL43: 0.001126526271 | CM43: 0 | CN43: 0.0009345358619 | CO43: 0.0334443781 | CP43: 0.1859122973 | CQ43: 0 | CR43: 0.0001002502885 | CS43: 15.86448957 | CT43: 0.2658273908 | CU43: 49.7327742 | CV43: 0.6806832377 | CW43: 0.0003959526322 | CX43: 1.126526271e-05 | CY43: 0 | CZ43: 9.345358619e-06 | DA43: 66.63745565 | DB43: 1.040647848 | DC43: 33.20708577 | DD43: 0.03345903869 | DE43: 0.1859937933 | DF43: 0 | DG43: 0.000100294234 | DH43: 16.66955918 | DI43: 0.2659439182 | DJ43: 48.95645964 | DK43: 0.6809816202 | DL43: 0.0003961262009 | DM43: 1.127020092e-05 | DN43: 0 | DO43: 9.349455225e-06 | DP43: 0.2536614528 | DQ43: -1.757694673 | DR43: -1.757694673 | DS43: 2.059952118 | DT43: 12.86737879 | DU43: 8.114685024 | DV43: 23.04201593 | DW43: 0.5584311212 | DX43: 0.08939982177 | DY43: 0.352169057 | DZ43: 0.1529913645 | EA43: 0.1234943306 | EB43: 1 | EC43: 0.1637907963 | ED43: 0.2938482252 | EE43: -0.5882221628 | EF43: 0.1637907963 | EG43: -0.2938482252 | EH43: 0 | EI43: 0 | EJ43: 0 | EL43: 0 | EM43: 0 | EN43: 0 | EO43: 0.07998929405 | EP43: 0.003973809476 | EQ43: 8.284769419 | ER43: 8.268422971
A44: -17 | B44: 49.25826203 | C44: 1.590690648 | D44: 18.42801919 | E44: 0 | F44: 1.432370272 | G44: 8.358177213 | H44: 0.1748372827 | I44: 3.950643194 | J44: 14.40172399 | K44: 2.192000462 | L44: 0.09478920919 | M44: 0 | N44: 0.1184865115 | P44: =DC44*BO$25*100/SUMPRODUCT($DC44:$DO44,$BO$25:$CA$25) -> 37.89951865 | Q44: 0.05139140947 | R44: 0.2064810235 | S44: 0 | T44: 0.0001542548562 | U44: 23.85792358 | V44: 0.3774321069 | W44: 36.81991675 | X44: 0.7869231962 | Y44: 0.0002360609702 | Z44: 1.020804195e-05 | AA44: 0 | AB44: 1.276005244e-05 | AC44: 100 | AD44: 0 | AE44: 1042.826622 | AF44: 1059.59642 | AG44: 0.306271139 | AH44: 0.7333767777 | AI44: -1.906116828 | AJ44: -0.6566980523 | AK44: 0.8198096369 | AL44: 0.01990876792 | AM44: 0.1807341871 | AN44: 0 | AO44: 0.008954440881 | AP44: 0.1163346215 | AQ44: 0.002464683912 | AR44: 0.09800409798 | AS44: 0.2568113552 | AT44: 0.03536682525 | AU44: 0.001006222829 | AV44: 0 | AW44: 0.0008347353657 | AY44: 53.2264573 | AZ44: 1.292584446 | BA44: =AM44*100/SUM($AK44:$AW44) -> 11.7342369 | BB44: 0 | BC44: 0.5813705325 | BD44: 7.553070228 | BE44: 0.1600205549 | BF44: 6.362953912 | BG44: 16.67357642 | BH44: 2.296204789 | BI44: 0.06532940581 | BJ44: 0 | BK44: 0.054195516 | BL44: -1.579078728 | BM44: 49.49740888 | BN44: 49.49740888 | BO44: 0.8198096369 | BP44: 0.01990876792 | BQ44: 0.3614683743 | BR44: 0 | BS44: 0.01790888176 | BT44: 0.1163346215 | BU44: 0.002464683912 | BV44: 0.09800409798 | BW44: 0.2568113552 | BX44: 0.07073365051 | BY44: 0.002012445659 | BZ44: 0 | CA44: 0.001669470731 | CB44: 0.4639225744 | CC44: 0.0112661848 | CD44: =BQ44/SUM($BO44:$CA44) -> 0.2045515584 | CE44: 0 | CF44: 0.010134468 | CG44: 0.06583266975 | CH44: 0.001394741479 | CI44: 0.05545959866 | CJ44: 0.1453271341 | CK44: 0.04002750854 | CL44: 0.001138824099 | CM44: 0 | CN44: 0.0009447378084 | CO44: 0.0337985544 | CP44: 0.2128240653 | CQ44: =(CQ$23*(2/3)*$AH44/$CI44+CQ$24)*CE44*100 -> 0 | CR44: 0.00010134468 | CS44: 16.55389967 | CT44: 0.2795857059 | CU44: 48.89178518 | CV44: 0.7373624659 | CW44: =(CW$23*(2/3)*$AH44/$CI44+CW$24)*CK44*100 -> 0.0004002750854 | CX44: 1.138824099e-05 | CY44: 0 | CZ44: 9.447378084e-06 | DA44: 66.56977806 | DB44: 1.12572927 | DC44: 33.19312954 | DD44: =CO44*(200/3)/$DA44 -> 0.03384774631 | DE44: 0.2131338188 | DF44: 0 | DG44: 0.0001014921815 | DH44: 17.47473592 | DI44: 0.2799926273 | DJ44: 48.06620147 | DK44: =CV44*(200/3)/$DA44 -> 0.7384356559 | DL44: 0.0004008576635 | DM44: 1.140481594e-05 | DN44: 0 | DO44: 9.461128216e-06 | DP44: 0.2479976145 | DQ44: -1.906116828 | DR44: -1.906116828 | DS44: 1.677361743 | DT44: 13.02682135 | DU44: 8.226349287 | DV44: 22.93053238 | DW44: 0.5680993853 | DX44: 0.07314970778 | DY44: 0.3587509069 | DZ44: -0.2551767602 | EA44: 0.1229333532 | EB44: 1 | EC44: 0.2887456454 | ED44: 0.2968915208 | EE44: -0.6566980523 | EF44: 0.2887456454 | EG44: -0.2968915208 | EH44: 0 | EI44: 0 | EJ44: 0 | EL44: 0 | EM44: 0 | EN44: 0 | EO44: 0.07500198351 | EP44: 0.003961193068 | EQ44: 8.835839301 | ER44: 8.815748105
A45: -18 | B45: =(B44-0.01*P44)/0.99 -> 49.37299681 | C45: 1.606239125 | D45: 18.61207513 | E45: 0 | F45: 1.446837101 | G45: 8.201614118 | H45: 0.1727908703 | I45: 3.618630329 | J45: 14.53924723 | K45: 2.214139497 | L45: 0.09574657283 | M45: 0 | N45: 0.119683216 | P45: 37.66961703 | Q45: 0.05170252866 | R45: 0.2372302762 | S45: 0 | T45: 0.0001552386887 | U45: 24.92469191 | V45: 0.396208591 | W45: 35.86735252 | X45: 0.852781228 | Y45: 0.0002375665594 | Z45: 1.027314852e-05 | AA45: 0 | AB45: 1.284143564e-05 | AC45: 100 | AD45: 0 | AE45: 1027.632496 | AF45: 1049.569841 | AG45: 0.3066022689 | AH45: 0.7194770484 | AI45: -2.080401896 | AJ45: -0.7297765976 | AK45: 0.8217191781 | AL45: 0.02010336957 | AM45: 0.1825393297 | AN45: 0 | AO45: 0.009044880038 | AP45: 0.1141554731 | AQ45: 0.002435835605 | AR45: 0.08976781348 | AS45: 0.2592636678 | AT45: 0.03572402744 | AU45: 0.001016385602 | AV45: 0 | AW45: 0.000843166128 | AY45: 53.47599626 | AZ45: 1.308290892 | BA45: 11.87932906 | BB45: 0 | BC45: 0.5886244157 | BD45: 7.429031492 | BE45: 0.1585197707 | BF45: 5.841926763 | BG45: 16.87241006 | BH45: 2.324855022 | BI45: 0.06614453464 | BJ45: 0 | BK45: 0.05487172493 | BL45: -1.626011722 | BM45: 49.58820296 | BN45: 49.58820296 | BO45: 0.8217191781 | BP45: 0.02010336957 | BQ45: 0.3650786593 | BR45: 0 | BS45: 0.01808976008 | BT45: 0.1141554731 | BU45: 0.002435835605 | BV45: 0.08976781348 | BW45: 0.2592636678 | BX45: 0.07144805488 | BY45: 0.002032771203 | BZ45: 0 | CA45: 0.001686332256 | CB45: 0.4653573787 | CC45: 0.01138497386 | CD45: 0.2067519567 | CE45: 0 | CF45: 0.01024462317 | CG45: 0.06464871835 | CH45: 0.001379466492 | CI45: 0.05083745821 | CJ45: 0.1468266338 | CK45: 0.04046258189 | CL45: 0.001151202386 | CM45: 0 | CN45: 0.0009550065025 | CO45: 0.03415492159 | CP45: 0.2456091923 | CQ45: 0 | CR45: 0.0001024462317 | CS45: 17.30907842 | CT45: 0.294804374 | CU45: 47.96513656 | CV45: 0.8026389361 | CW45: 0.0004046258189 | CX45: 1.151202386e-05 | CY45: 0 | CZ45: 9.550065025e-06 | DA45: 66.49520386 | DB45: 1.224137295 | DC45: 33.17618248 | DD45: 0.03424299259 | DE45: 0.2462425138 | DF45: 0 | DG45: 0.0001027103969 | DH45: 18.3581315 | DI45: 0.2955645489 | DJ45: 47.08439787 | DK45: 0.8047086 | DL45: 0.0004056691765 | DM45: 1.154170847e-05 | DN45: 0 | DO45: 9.574690574e-06 | DP45: 0.2424346346 | DQ45: -2.080401896 | DR45: -2.080401896 | DS45: 1.291768266 | DT45: 13.18761995 | DU45: 8.339978952 | DV45: 22.81936717 | DW45: 0.5779134826 | DX45: 0.05660841759 | DY45: 0.3654780998 | DZ45: -1.260756969 | EA45: 0.1224049493 | EB45: 1 | EC45: 0.5130962654 | ED45: 0.3000891237 | EE45: -0.7297765976 | EF45: 0.5130962654 | EG45: -0.3000891237 | EH45: 0 | EI45: 0 | EJ45: 0 | EL45: 0 | EM45: 0 | EN45: 0 | EO45: 0.0700539616 | EP45: 0.003945771001 | EQ45: 9.460148727 | ER45: 9.434998966
A46: -19 | B46: 49.49121277 | C46: 1.621941515 | D46: 18.79767962 | E46: 0 | F46: 1.461450049 | G46: 8.03269414 | H46: 0.1705341257 | I46: 3.292885661 | J46: 14.67749436 | K46: 2.236502143 | L46: 0.09671360616 | M46: 0 | N46: 0.1208920077 | P46: 37.41677159 | Q46: 0.05199188262 | R46: 0.2743734438 | S46: 0 | T46: 0.0001561575816 | U46: 26.08546158 | V46: 0.4168864453 | W46: 34.82560172 | X46: 0.9284949534 | Y46: 0.0002389727697 | Z46: 1.033395761e-05 | AA46: 0 | AB46: 1.291744701e-05 | AC46: 100 | AD46: 0 | AE46: 1011.82956 | AF46: 1039.653281 | AG46: 0.3070543944 | AH46: 0.7040950808 | AI46: -2.293153831 | AJ46: -0.8076224515 | AK46: 0.8236866567 | AL46: 0.02029989756 | AM46: 0.1843596597 | AN46: 0 | AO46: 0.00913623266 | AP46: 0.1118043334 | AQ46: 0.00240402224 | AR46: 0.0816870249 | AS46: 0.2617288888 | AT46: 0.03608483749 | AU46: 0.001026651021 | AV46: 0 | AW46: 0.0008516820438 | AY46: 53.72792616 | AZ46: 1.324133866 | BA46: 12.02552221 | BB46: 0 | BC46: 0.5959436513 | BD46: 7.292839969 | BE46: 0.1568110013 | BF46: 5.328330144 | BG46: 17.07220859 | BH46: 2.353763374 | BI46: 0.0669670072 | BJ46: 0 | BK46: 0.05555402602 | BL46: -1.673609166 | BM46: 49.67656961 | BN46: 49.67656961 | BO46: 0.8236866567 | BP46: 0.02029989756 | BQ46: 0.3687193194 | BR46: 0 | BS46: 0.01827246532 | BT46: 0.1118043334 | BU46: 0.00240402224 | BV46: 0.0816870249 | BW46: 0.2617288888 | BX46: 0.07216967497 | BY46: 0.002053302043 | BZ46: 0 | CA46: 0.001703364088 | CB46: 0.4668025747 | CC46: 0.01150442874 | CD46: 0.2089618986 | CE46: 0 | CF46: 0.01035543527 | CG46: 0.06336214176 | CH46: 0.001362415868 | CI46: 0.04629395563 | CJ46: 0.1483279087 | CK46: 0.04090024989 | CL46: 0.001163654494 | CM46: 0 | CN46: 0.0009653364361 | CO46: 0.03451328622 | CP46: 0.2854472332 | CQ46: 0 | CR46: 0.0001035543527 | CS46: 18.13857712 | CT46: 0.3117001924 | CU46: 46.93967205 | CV46: 0.8781554488 | CW46: 0.0004090024989 | CX46: 1.163654494e-05 | CY46: 0 | CZ46: 9.653364361e-06 | DA46: 66.41157743 | DB46: 1.338449612 | DC46: 33.15563163 | DD46: 0.03464585299 | DE46: 0.2865436462 | DF46: 0 | DG46: 0.0001039521087 | DH46: 19.33094079 | DI46: 0.312897444 | DJ46: 45.99727627 | DK46: 0.8815284751 | DL46: 0.0004105734921 | DM46: 1.168124133e-05 | DN46: 0 | DO46: 9.690443277e-06 | DP46: 0.2373224385 | DQ46: -2.293153831 | DR46: -2.293153831 | DS46: 0.9034659036 | DT46: 13.34965608 | DU46: 8.455670477 | DV46: 22.70879246 | DW46: 0.5878628774 | DX46: 0.03978485009 | DY46: 0.3723522725 | DZ46: -4.297344916 | EA46: 0.1219108057 | EB46: 1 | EC46: 0.9691981923 | ED46: 0.3034579803 | EE46: -0.8076224515 | EF46: 0.9691981923 | EG46: -0.3034579803 | EH46: 0 | EI46: 0 | EJ46: 0 | EL46: 0 | EM46: 0 | EN46: 0 | EO46: 0.06515549518 | EP46: 0.003927279884 | EQ46: 10.17165759 | ER46: 10.1394818
A47: -20 | B47: 49.61317682 | C47: 1.637799592 | D47: 18.98478373 | E47: 0 | F47: 1.476210593 | G47: 7.850342954 | H47: 0.1680457184 | I47: 2.974373377 | J47: 14.81637314 | K47: 2.259090659 | L47: 0.09769040689 | M47: 0 | N47: 0.1221130086 | P47: 37.13783447 | Q47: 0.05225726198 | R47: 0.3191490896 | S47: 0 | T47: 0.0001570048091 | U47: 27.35164936 | V47: 0.4397327941 | W47: 33.6830377 | X47: 1.015918673 | Y47: 0.000240269308 | Z47: 1.039002413e-05 | AA47: 0 | AB47: 1.298753016e-05 | AC47: 100 | AD47: 0 | AE47: 995.3786636 | AF47: 1029.88097 | AG47: 0.3076657301 | AH47: 0.6869972043 | AI47: -2.566624461 | AJ47: -0.8903676635 | AK47: 0.8257165153 | AL47: 0.0204983741 | AM47: 0.1861946973 | AN47: 0 | AO47: 0.009228507977 | AP47: 0.1092662494 | AQ47: 0.002368943124 | AR47: 0.073785651 | AS47: =J47/AS$25 -> 0.2642053735 | AT47: 0.03644929185 | AU47: 0.001037020126 | AV47: 0 | AW47: 0.0008602839735 | AY47: 53.98212782 | AZ47: 1.340103813 | BA47: 12.17268368 | BB47: 0 | BC47: 0.6033238865 | BD47: 7.143401557 | BE47: 0.1548722693 | BF47: 4.823818308 | BG47: 17.27271767 | BH47: 2.382912652 | BI47: 0.06779633438 | BJ47: 0 | BK47: 0.05624201352 | BL47: -1.721858605 | BM47: 49.76235346 | BN47: 49.76235346 | BO47: 0.8257165153 | BP47: 0.0204983741 | BQ47: 0.3723893946 | BR47: 0 | BS47: 0.01845701595 | BT47: 0.1092662494 | BU47: 0.002368943124 | BV47: 0.073785651 | BW47: =J47/BW$25 -> 0.2642053735 | BX47: 0.07289858369 | BY47: 0.002074040251 | BZ47: 0 | CA47: 0.001720567947 | CB47: 0.4682576548 | CC47: 0.01162447451 | CD47: 0.2111792381 | CE47: 0 | CF47: 0.01046683559 | CG47: 0.06196407211 | CH47: 0.001343409913 | CI47: 0.04184329035 | CJ47: 0.1498288896 | CK47: 0.04134024112 | CL47: 0.001176172701 | CM47: 0 | CN47: 0.0009757212032 | CO47: 0.03487342353 | CP47: 0.3337909341 | CQ47: 0 | CR47: 0.0001046683559 | CS47: 19.05197921 | CT47: 0.3305257615 | CU47: 45.79981362 | CV47: 0.9659351252 | CW47: 0.0004134024112 | CX47: 1.176172701e-05 | CY47: 0 | CZ47: 9.757212032e-06 | DA47: 66.31590623 | DB47: 1.471857445 | DC47: 33.13071585 | DD47: 0.03505787727 | DE47: 0.3355564329 | DF47: 0 | DG47: 0.0001052219714 | DH47: 20.40615755 | DI47: 0.3322739901 | DJ47: 44.78865167 | DK47: 0.9710441834 | DL47: 0.0004155889938 | DM47: 1.182393755e-05 | DN47: 0 | DO47: 9.808820222e-06 | DP47: 0.2332633245 | DQ47: -2.566624461 | DR47: -2.566624461 | DS47: 0.5128060301 | DT47: 13.51278749 | DU47: 8.573536453 | DV47: 22.59912998 | DW47: 0.5979339694 | DX47: 0.02269140585 | DY47: 0.3793746247 | DZ47: -18.74357479 | EA47: 0.1214526219 | EB47: 1 | EC47: 2.195304389 | ED47: 0.3070178836 | EE47: -0.8903676635 | EF47: 2.195304389 | EG47: -0.3070178836 | EH47: 0 | EI47: 0 | EJ47: 0 | EL47: 0 | EM47: 0 | EN47: 0 | EO47: 0.06031825142 | EP47: 0.003905425427 | EQ47: 10.98773963 | ER47: 10.9455574
A48: -21 | B48: 49.73919038 | C48: 1.653815172 | D48: 19.17332549 | E48: 0 | F48: 1.491120225 | G48: 7.653360061 | H48: 0.1653014045 | I48: 2.664184849 | J48: 14.95577167 | K48: 2.28190733 | L48: 0.09867707373 | M48: 0 | N48: 0.1233463422 | P48: 36.82922382 | Q48: 0.05249681258 | R48: 0.3730736612 | S48: 0 | T48: 0.0001577747025 | U48: 28.73578806 | V48: 0.4650561437 | W48: 32.42660467 | X48: 1.117334118 | Y48: 0.0002414474997 | Z48: 1.044097296e-05 | AA48: 0 | AB48: 1.30512162e-05 | AC48: 100 | AD48: 0 | AE48: 978.2397745 | AF48: 1020.291884 | AG48: 0.3084848523 | AH48: 0.6679075686 | AI48: -2.941935524 | AJ48: -0.9780983954 | AK48: =B48/AK$25 -> 0.8278137702 | AL48: 0.02069882191 | AM48: 0.1880438349 | AN48: 0 | AO48: 0.009321715315 | AP48: 0.1065245116 | AQ48: 0.002330256488 | AR48: 0.06609076552 | AS48: 0.2666911263 | AT48: 0.03681742735 | AU48: 0.001047493962 | AV48: 0 | AW48: 0.0008689727864 | AY48: 54.23845879 | AZ48: 1.356189326 | BA48: 12.32065491 | BB48: 0 | BC48: 0.6107599199 | BD48: 6.979498942 | BE48: 0.1526786882 | BF48: 4.330274986 | BG48: 17.47363499 | BH48: 2.412282313 | BI48: 0.06863193167 | BJ48: 0 | BK48: 0.05693520253 | BL48: -1.770743196 | BM48: 49.84539677 | BN48: 49.84539677 | BO48: =B48/BO$25 -> 0.8278137702 | BP48: 0.02069882191 | BQ48: 0.3760876697 | BR48: 0 | BS48: 0.01864343063 | BT48: 0.1065245116 | BU48: 0.002330256488 | BV48: 0.06609076552 | BW48: 0.2666911263 | BX48: 0.07363485471 | BY48: 0.002094987925 | BZ48: 0 | CA48: 0.001737945573 | CB48: 0.4697220436 | CC48: 0.0117450244 | CD48: 0.213401462 | CE48: 0 | CF48: 0.01057874446 | CG48: 0.06044464721 | CH48: 0.001322245267 | CI48: 0.03750153786 | CJ48: 0.1513271527 | CK48: 0.04178224099 | CL48: 0.001188748055 | CM48: 0 | CN48: 0.0009861533784 | CO48: 0.03523507319 | CP48: 0.3924368902 | CQ48: 0 | CR48: 0.0001057874446 | CS48: 20.05983084 | CT48: 0.3515735179 | CU48: 44.52717124 | CV48: 1.068479972 | CW48: 0.0004178224099 | CX48: 1.188748055e-05 | CY48: 0 | CZ48: 9.861533784e-06 | DA48: 66.20403916 | DB48: 1.62833678 | DC48: 33.10048376 | DD48: 0.03548129252 | DE48: 0.3951792018 | DF48: 0 | DG48: 0.0001065266772 | DH48: 21.59873711 | DI48: 0.3540302801 | DJ48: 43.43959278 | DK48: 1.075946408 | DL48: 0.000420742113 | DM48: 1.197054913e-05 | DN48: 0 | DO48: 9.930445241e-06 | DP48: 0.2312917975 | DQ48: -2.941935524 | DR48: -2.941935524 | DS48: 0.1202069144 | DT48: 13.67684423 | DU48: 8.693709808 | DV48: 22.49076095 | DW48: 0.6081094481 | DX48: 0.005344724202 | DY48: 0.3865458277 | DZ48: -440.6122243 | EA48: 0.1210320784 | EB48: 1 | EC48: 11.78113367 | ED48: 0.3107920867 | EE48: -0.9780983954 | EF48: 11.78113367 | EG48: -0.3107920867 | EH48: 0 | EI48: 0 | EJ48: 0 | EL48: 0 | EM48: 0 | EN48: 0 | EO48: 0.05555548801 | EP48: 0.003879878845 | EQ48: 11.93017669 | ER48: 11.87342541
A49: -22 | B49: 49.86959408 | C49: 1.669990104 | D49: 19.36322702 | E49: 0 | F49: 1.506180452 | G49: 7.440406243 | H49: 0.1622735789 | I49: 2.363554346 | J49: 15.09555387 | K49: 2.30495446 | L49: 0.09967370638 | M49: 0 | N49: 0.124592133 | P49: 36.48692099 | Q49: 0.05270941555 | R49: 0.4380130567 | S49: 0 | T49: 0.0001584637959 | U49: 30.25123448 | V49: 0.4932107081 | W49: 31.04192183 | X49: 1.235564959 | Y49: 0.0002425020406 | Z49: 1.048657473e-05 | AA49: 0 | AB49: 1.310821841e-05 | AC49: 100 | AD49: 0 | AE49: 960.3731042 | AF49: 1010.930329 | AG49: 0.3095732631 | AH49: 0.646502847 | AI49: -3.499147024 | AJ49: -1.070838159 | AK49: 0.8299840906 | AL49: 0.02090126415 | AM49: 0.1899063085 | AN49: 0 | AO49: 0.009415864093 | AP49: 0.10356048 | AQ49: 0.002287573183 | AR49: 0.05863298717 | AS49: 0.2691837206 | AT49: 0.03718928121 | AU49: 0.00105807359 | AV49: 0 | AW49: 0.0008777493605 | AY49: 54.4967506 | AZ49: 1.372376884 | BA49: 12.46924712 | BB49: 0 | BC49: 0.618245582 | BD49: 6.799780517 | BE49: 0.150202042 | BF49: 3.849841599 | BG49: 17.67460154 | BH49: 2.44184799 | BI49: 0.06947310581 | BJ49: 0 | BK49: 0.05763301795 | BL49: -1.820241087 | BM49: 49.92554076 | BN49: 49.92554076 | BO49: 0.8299840906 | BP49: 0.02090126415 | BQ49: 0.3798126169 | BR49: 0 | BS49: 0.01883172819 | BT49: 0.10356048 | BU49: 0.002287573183 | BV49: 0.05863298717 | BW49: 0.2691837206 | BX49: 0.07437856242 | BY49: 0.00211614718 | BZ49: 0 | CA49: 0.001755498721 | CB49: 0.4711950964 | CC49: 0.01186597826 | CD49: 0.2156256303 | CE49: 0 | CF49: 0.01069106996 | CG49: 0.05879292252 | CH49: 0.001298691479 | CI49: 0.03328687423 | CJ49: 0.1528198559 | CK49: 0.04222588636 | CL49: 0.001201370226 | CM49: 0 | CN49: 0.0009966243912 | CO49: 0.03559793478 | CP49: 0.4636141181 | CQ49: 0 | CR49: 0.0001069106996 | CS49: 21.17339657 | CT49: 0.3751782259 | CU49: 43.1001898 | CV49: 1.188894365 | CW49: 0.0004222588636 | CX49: 1.201370226e-05 | CY49: 0 | CZ49: 9.966243912e-06 | DA49: 66.07023929 | DB49: 1.812871613 | DC49: 33.06373855 | DD49: 0.03591928344 | DE49: 0.4677992422 | DF49: 0 | DG49: 0.0001078758008 | DH49: 22.92563191 | DI49: 0.3785650241 | DJ49: 41.92816314 | DK49: 1.199626718 | DL49: 0.0004260706667 | DM49: 1.212215201e-05 | DN49: 0 | DO49: 1.00562109e-05 | DP49: 0.2331967279 | DQ49: -3.499147024 | DR49: -3.499147024 | DS49: -0.2738351352 | DT49: 13.841624 | DU49: 8.816349365 | DV49: 22.38413823 | DW49: 0.618367518 | DX49: -0.0122334455 | DY49: 0.3938659275 | DZ49: -104.2827542 | EA49: 0.1206507946 | EB49: 1 | EC49: -6.390189384 | ED49: 0.3148080762 | EE49: -1.070838159 | EF49: -6.390189384 | EG49: -0.3148080762 | EH49: 0 | EI49: 0 | EJ49: 0 | EL49: 0 | EM49: 0 | EN49: 0 | EO49: 0.0508822519 | EP49: 0.003850273427 | EQ49: 13.02647521 | ER49: 12.94810366
A50: -23 | B50: 50.0047726 | C50: 1.686326273 | D50: 19.5543908 | E50: 0 | F50: 1.521392795 | G50: 7.209993837 | H50: 0.1589307796 | I50: 2.073873866 | J50: 15.23555376 | K50: 2.328234379 | L50: 0.1006804056 | M50: 0 | N50: 0.125850507 | P50: 36.10635853 | Q50: 0.05289605676 | R50: 0.5162646314 | S50: 0 | T50: 0.0001590749488 | U50: 31.91241088 | V50: 0.5245970802 | W50: 29.51293146 | X50: 1.374115158 | Y50: 0.0002434373067 | Z50: 1.052701867e-05 | AA50: 0 | AB50: 1.315877334e-05 | AC50: 100 | AD50: 0 | AE50: 941.7408416 | AF50: 1001.846485 | AG50: 0.3110245792 | AH50: 0.6223968386 | AI50: -4.404323804 | AJ50: -1.168526893 | AK50: 0.8322338787 | AL50: 0.02110572439 | AM50: 0.1917811616 | AN50: 0 | AO50: 0.009510963825 | AP50: 0.1003534482 | AQ50: 0.002240449689 | AR50: 0.05144684741 | AS50: 0.2716801968 | AT50: 0.03756489099 | AU50: 0.001068760077 | AV50: 0 | AW50: 0.0008866145829 | AY50: 54.75680623 | AZ50: 1.388650583 | BA50: 12.6182365 | BB50: 0 | BC50: 0.6257736155 | BD50: 6.602752491 | BE50: 0.1474103285 | BF50: 3.384943977 | BG50: 17.87519143 | BH50: 2.471581018 | BI50: 0.07031904128 | BJ50: 0 | BK50: 0.05833478324 | BL50: -1.870324841 | BM50: 50.00262741 | BN50: 50.00262741 | BO50: 0.8322338787 | BP50: 0.02110572439 | BQ50: 0.3835623233 | BR50: 0 | BS50: 0.01902192765 | BT50: 0.1003534482 | BU50: 0.002240449689 | BV50: 0.05144684741 | BW50: 0.2716801968 | BX50: 0.07512978199 | BY50: 0.002137520155 | BZ50: 0 | CA50: 0.001773229166 | CB50: 0.4726761027 | CC50: 0.01198722115 | CD50: 0.2178483101 | CE50: 0 | CF50: 0.01080370658 | CG50: 0.05699681062 | CH50: 0.001272487283 | CI50: 0.02921978539 | CJ50: 0.1543036638 | CK50: 0.04267076054 | CL50: 0.001214027357 | CM50: 0 | CN50: 0.001007124407 | CO50: 0.03596166344 | CP50: 0.5500749162 | CQ50: 0 | CR50: 0.0001080370658 | CS50: 22.40369341 | CT50: 0.4017083595 | CU50: 41.49312257 | CV50: 1.331008068 | CW50: 0.0004267076054 | CX50: 1.214027357e-05 | CY50: 0 | CZ50: 1.007124407e-05 | DA50: 65.90535128 | DB50: 2.031737193 | DC50: 33.01896871 | DD50: 0.0363770799 | DE50: 0.5564291878 | DF50: 0 | DG50: 0.0001092850719 | DH50: 24.40635371 | DI50: 0.4063487529 | DJ50: 40.22857577 | DK50: 1.346383404 | DL50: 0.0004316367812 | DM50: 1.228051373e-05 | DN50: 0 | DO50: 1.018758353e-05 | DP50: 0.2421143752 | DQ50: -4.404323804 | DR50: -4.404323804 | DS50: -0.668733323 | DT50: 14.00688709 | DU50: 8.941647267 | DV50: 22.27980103 | DW50: 0.6286809773 | DX50: -0.03001522869 | DY50: 0.4013342514 | DZ50: -20.76588584 | EA50: 0.1203102711 | EB50: 1 | EC50: -3.184745397 | ED50: 0.3190985498 | EE50: -1.168526893 | EF50: -3.184745397 | EG50: -0.3190985498 | EH50: 0 | EI50: 0 | EJ50: 0 | EL50: 0 | EM50: 0 | EN50: 0 | EO50: 0.04631557028 | EP50: 0.003816201828 | EQ50: 14.31161186 | ER50: 14.20035158
A51: -24 | B51: 50.14516062 | C51: 1.702825568 | D51: 19.74669511 | E51: 0 | F51: 1.536758793 | G51: 6.960474472 | H51: 0.1552371806 | I51: 1.796711668 | J51: 15.37556829 | K51: 2.351749439 | L51: 0.101697273 | M51: 0 | N51: 0.1271215913 | P51: 35.68318345 | Q51: 0.05305782767 | R51: 0.6107079226 | S51: 0 | T51: 0.0001596113439 | U51: 33.73011239 | V51: 0.5596687992 | W51: 27.82544856 | X51: 1.537393409 | Y51: 0.0002442581687 | Z51: 1.05625154e-05 | AA51: 0 | AB51: 1.320314425e-05 | AC51: 100 | AD51: 0 | AE51: 922.3100784 | AF51: 993.0970611 | AG51: 0.3129069125 | AH51: 0.5951894532 | AI51: -6.031930449 | AJ51: -1.270994762 | AK51: 0.834570369 | AL51: 0.02131222629 | AM51: 0.1936672006 | AN51: 0 | AO51: 0.009607024121 | AP51: 0.09688047313 | AQ51: 0.002188380966 | AR51: 0.04457125023 | AS51: 0.2741769341 | AT51: 0.03794429466 | AU51: 0.001079554505 | AV51: 0 | AW51: 0.0008955693493 | AY51: 55.01839725 | AZ51: 1.404991809 | BA51: 12.76735836 | BB51: 0 | BC51: 0.6333355331 | BD51: 6.386769234 | BE51: 0.1442672994 | BF51: 2.938324727 | BG51: 18.07489942 | BH51: 2.501447876 | BI51: 0.07116878434 | BJ51: 0 | BK51: 0.05903970721 | BL51: -1.920960769 | BM51: 50.07650157 | BN51: 50.07650157 | BO51: 0.834570369 | BP51: 0.02131222629 | BQ51: 0.3873344012 | BR51: 0 | BS51: 0.01921404824 | BT51: 0.09688047313 | BU51: 0.002188380966 | BV51: 0.04457125023 | BW51: 0.2741769341 | BX51: 0.07588858933 | BY51: 0.00215910901 | BZ51: 0 | CA51: 0.001791138699 | CB51: 0.4741642924 | CC51: 0.01210862148 | CD51: 0.2200654961 | CE51: 0 | CF51: 0.01091653374 | CG51: 0.05504300499 | CH51: 0.001243336872 | CI51: 0.02532332337 | CJ51: 0.1557746558 | CK51: 0.0431163873 | CL51: 0.0012267059 | CM51: 0 | CN51: 0.001017642185 | CO51: 0.03632586444 | CP51: 0.6552892463 | CQ51: 0 | CR51: 0.0001091653374 | CS51: 23.76187728 | CT51: 0.4315847747 | CU51: 39.67929688 | CV51: 1.499659252 | CW51: 0.000431163873 | CX51: 1.2267059e-05 | CY51: 0 | CZ51: 1.017642185e-05 | DA51: 65.70085238 | DB51: 2.2928959 | DC51: 32.96424255 | DD51: 0.03685986114 | DE51: 0.6649221154 | DF51: 0 | DG51: 0.0001107700874 | DH51: 26.05918135 | DI51: 0.4379291481 | DJ51: 38.31458942 | DK51: 1.521704511 | DL51: 0.000437502059 | DM51: 1.244738696e-05 | DN51: 0 | DO51: 1.032601707e-05 | DP51: 0.2636534072 | DQ51: -6.031930449 | DR51: -6.031930449 | DS51: -1.063795197 | DT51: 14.17235017 | DU51: 9.069838334 | DV51: 22.1783933 | DW51: 0.6390160898 | DX51: -0.04796538607 | DY51: 0.4089492963 | DZ51: -9.513160183 | EA51: 0.1200118141 | EB51: 1 | EC51: -2.405150757 | ED51: 0.3237026317 | EE51: -1.270994762 | EF51: -2.405150757 | EG51: -0.3237026317 | EH51: 0 | EI51: 0 | EJ51: 0 | EL51: 0 | EM51: 0 | EN51: 0 | EO51: 0.04187468408 | EP51: 0.003777212639 | EQ51: 15.83031535 | ER51: 15.66907167
A52: -25 | B52: 50.2912412 | C52: 1.719489889 | D52: 19.93998791 | E52: 0 | F52: 1.552279996 | G52: 6.690074089 | H52: 0.1511520127 | I52: 1.533795134 | J52: 15.51534783 | K52: 2.375502016 | L52: 0.1027244115 | M52: 0 | N52: 0.1284055144 | P52: 35.21267111 | Q52: 0.05320088322 | R52: 0.7249163729 | S52: 0 | T52: 0.0001600914073 | U52: 35.71413627 | V52: 0.598917329 | W52: 25.9648054 | X52: 1.730923715 | Y52: 0.0002449928245 | Z52: 1.05942843e-05 | AA52: 0 | AB52: 1.324285538e-05 | AC52: 100 | AD52: 0 | AE52: 902.0553181 | AF52: 984.7448042 | AG52: 0.3153490358 | AH52: 0.5644140441 | AI52: -9.334921185 | AJ52: -1.37793225 | AK52: 0.8370016011 | AL52: 0.02152079361 | AM52: 0.1955629343 | AN52: 0 | AO52: 0.00970405469 | AP52: 0.09311686231 | AQ52: 0.00213079229 | AR52: 0.038049047 | AS52: 0.2766694811 | AT52: 0.03832753056 | AU52: 0.001090457963 | AV52: 0 | AW52: 0.0009046145648 | AY52: 55.28126737 | AZ52: 1.421379295 | BA52: 12.91630368 | BB52: 0 | BC52: 0.6409216437 | BD52: 6.150069672 | BE52: 0.1407319869 | BF52: 2.513017344 | BG52: 18.27313059 | BH52: 2.531410289 | BI52: 0.07202124602 | BJ52: 0 | BK52: 0.05974688646 | BL52: -1.972109509 | BM52: 50.14701529 | BN52: 50.14701529 | BO52: 0.8370016011 | BP52: 0.02152079361 | BQ52: 0.3911258686 | BR52: 0 | BS52: 0.01940810938 | BT52: 0.09311686231 | BU52: 0.00213079229 | BV52: 0.038049047 | BW52: 0.2766694811 | BX52: 0.07665506112 | BY52: 0.002180915927 | BZ52: 0 | CA52: 0.00180922913 | CB52: 0.4756588825 | CC52: 0.01223003233 | CD52: 0.222272566 | CE52: 0 | CF52: 0.01102941692 | CG52: 0.05291729743 | CH52: 0.001210906023 | CI52: 0.02162285849 | CJ52: 0.1572282491 | CK52: 0.04356223532 | CL52: 0.001239390739 | CM52: 0 | CN52: 0.001028165185 | CO52: 0.03669009699 | CP52: 0.7835215035 | CQ52: 0 | CR52: 0.0001102941692 | CS52: 25.25565726 | CT52: 0.4652275473 | CU52: 37.62760294 | CV52: 1.70078348 | CW52: 0.0004356223532 | CX52: 1.239390739e-05 | CY52: 0 | CZ52: 1.028165185e-05 | DA52: 65.44182972 | DB52: 2.606456788 | DC52: 32.89709686 | DD52: 0.03737680435 | DE52: 0.7981862231 | DF52: 0 | DG52: 0.0001123584815 | DH52: 27.90372775 | DI52: 0.4739349427 | DJ52: 36.15648212 | DK52: 1.732616062 | DL52: 0.0004437756453 | DM52: 1.2625877e-05 | DN52: 0 | DO52: 1.047408759e-05 | DP52: 0.3081086614 | DQ52: -9.334921185 | DR52: -9.334921185 | DS52: -1.458214302 | DT52: 14.33768297 | DU52: 9.201215545 | DV52: 22.08068422 | DW52: 0.6493314624 | DX52: -0.06604026793 | DY52: 0.4167088055 | DZ52: -5.763267248 | EA52: 0.1197564322 | EB52: 1 | EC52: -2.083946728 | ED52: 0.3286675461 | EE52: -1.37793225 | EF52: -2.083946728 | EG52: -0.3286675461 | EH52: 0 | EI52: 0 | EJ52: 0 | EL52: 0 | EM52: 0 | EN52: 0 | EO52: 0.03758088733 | EP52: 0.003732819368 | EQ52: 17.64018613 | ER52: 17.40177089
B54: Back Fractionation (up-temperature)
A55: 0 | B55: =B24 -> 47.68235733 | C55: 1.348369971 | D55: 15.55120033 | E55: 0 | F55: 1.207429241 | G55: 9.780176853 | H55: 0.1897705884 | I55: 9.997913633 | J55: 12.21523314 | K55: 1.847766256 | L55: 0.07990340566 | M55: 0 | N55: 0.09987925708 | P55: =DC55*BO$25*100/SUMPRODUCT($DC55:$DO55,$BO$25:$CA$25) -> 39.97014291 | Q55: 0.04454428341 | R55: 0.1019412489 | S55: 0 | T55: 0.0001329607143 | U55: 13.6222969 | V55: 0.2098222167 | W55: 45.70636823 | X55: 0.3445279841 | Y55: 0.0002034738872 | Z55: 8.798870797e-06 | AA55: 0 | AB55: 1.09985885e-05 | AC55: =SUM(B55:O55) -> 100 | AD55: =R6 -> 1 | AE55: =(113100/$Y$3 + AD55*0.00000411/$Y$3)/(52.05/$Y$3 + 2*LN(EQ55) + 2*LN(1.5*(CG55+CH55+CI55+CJ55+CM55)) + 2*LN(3*CB55) - (3.5*LN(1-CD55) + 7*LN(1-CC55))) - 273.15 -> 1236.510945 | AF55: =54*AD55/10000 - 2*(AD55/10000)^2+935+33*I55-0.37*I55^2 -> 1227.951987 | AG55: =Kditerator(AD55,AE55+273.15,0.0001,B55:O55) -> 0.3046746353 | AH55: =1/(AG55/(AR55/AP55)+1) -> 0.8567347144 | AI55: =DQ55 -> -0.5417097447 | AJ55: =IF(EB55=1,EE55,IF(EB55=2,EF55,EG55)) -> 0.06862550299 | AK55: =B55/AK$25 -> 0.7935817147 | AL55: 0.01687593049 | AM55: 0.1525195693 | AN55: 0 | AO55: 0.00754822546 | AP55: 0.13612695 | AQ55: 0.002675198957 | AR55: 0.2480194893 | AS55: 0.2178218788 | AT55: 0.02981277942 | AU55: 0.0008482044697 | AV55: 0 | AW55: 0.0007036475894 | AY55: =AK55*100/SUM($AK55:$AW55) -> 49.39714428 | AZ55: =AL55*100/SUM($AK55:$AW55) -> 1.050456126 | BA55: =AM55*100/SUM($AK55:$AW55) -> 9.493705603 | BB55: 0 | BC55: 0.4698454806 | BD55: 8.473333581 | BE55: 0.1665199518 | BF55: 15.4381764 | BG55: 13.55850138 | BH55: 1.855720891 | BI55: 0.05279718244 | BJ55: 0 | BK55: 0.04379912094 | BL55: -0.8830056777 | BM55: 47.71191199 | BN55: =BM55+0.8*O55 -> 47.71191199 | BO55: =B55/BO$25 -> 0.7935817147 | BP55: 0.01687593049 | BQ55: 0.3050391386 | BR55: 0 | BS55: 0.01509645092 | BT55: 0.13612695 | BU55: 0.002675198957 | BV55: 0.2480194893 | BW55: 0.2178218788 | BX55: 0.05962555885 | BY55: 0.001696408939 | BZ55: 0 | CA55: 0.001407295179 | CB55: =BO55/SUM($BO55:$CA55) -> 0.4413774833 | CC55: =BP55/SUM($BO55:$CA55) -> 0.009386123183 | CD55: =BQ55/SUM($BO55:$CA55) -> 0.1696579002 | CE55: 0 | CF55: 0.008396405047 | CG55: 0.07571163688 | CH55: 0.001487902961 | CI55: 0.1379444813 | CJ55: 0.1211490523 | CK55: 0.03316278414 | CL55: 0.0009435155756 | CM55: 0 | CN55: 0.0007827151165 | CO55: =(CO$23*(2/3)*$AH55/$CI55+CO$24)*CC55*100 -> 0.02815836955 | CP55: =(CP$23*(2/3)*$AH55/$CI55+CP$24+CP$25*$CI55/((2/3)*$AH55))*CD55*100 -> 0.1009946739 | CQ55: =(CQ$23*(2/3)*$AH55/$CI55+CQ$24)*CE55*100 -> 0 | CR55: 8.396405047e-05 | CS55: 9.728539907 | CT55: 0.1493948149 | CU55: 57.11564763 | CV55: =(CV$23*(2/3)*$AH55/$CI55+CV$24+CV$25*$CI55/((2/3)*$AH55))*CJ55*100 -> 0.310299527 | CW55: =(CW$23*(2/3)*$AH55/$CI55+CW$24)*CK55*100 -> 0.0003316278414 | CX55: 9.435155756e-06 | CY55: 0 | CZ55: 7.827151165e-06 | DA55: 67.35498651 | DB55: 0.5055789775 | DC55: 33.25565409 | DD55: =CO55*(200/3)/$DA55 -> 0.02787061113 | DE55: 0.09996258045 | DF55: 0 | DG55: 8.310599785e-05 | DH55: =(1-$AH55)*((200/3)-DB55) -> 9.478587123 | DI55: =CT55*(200/3)/$DA55 -> 0.1478681066 | DJ55: =$AH55*((200/3)-DB55) -> 56.68250057 | DK55: =CV55*(200/3)/$DA55 -> 0.3071284875 | DL55: 0.0003282388418 | DM55: 9.338735205e-06 | DN55: =(3.346*(DJ55/CI55)/100-3.665)*CM55*100 -> 0 | DO55: =CZ55*(200/3)/$DA55 -> 7.747163272e-06 | DP55: =0.3813-0.7896/I55+1.0389/I55^2 -> 0.312716859 | DQ55: =FFeMg($G55, $I55, $R$3, $R$4, $DP55,$Y$7) -> -0.5417097447 | DR55: -0.5417097447 | DS55: =-1.5*AZ55+0.5*(BA55+BB55+BD55+BE55+BF55+BJ55)-0.5*BG55-0.5*BH55+3*BI55 -> 7.66146399 | DT55: =AZ55+BA55+BB55 -> 10.54416173 | DU55: =AY55-0.5*(BA55+BB55+BD55+BE55+BF55+BJ55)-1.5*BG55-3*(BH55+BI55) -> 6.547970225 | DV55: 24.75359594 | DW55: 0.4259648478 | DX55: 0.3095091318 | DY55: 0.2645260204 | DZ55: =-0.074 + 0.1713/DX55 - 0.0135/DX55^2 -> 0.3385324067 | EA55: =IF(DW55<700,1/(16.843 + 28.733*DW55 - 14.183*EXP(DW55)),0) -> 0.1357381543 | EB55: =IF(AND(DX55>0.5,DY55<EA55),3,IF(DY55>DZ55,1,2)) -> 2 | EC55: 0.06862550299 | ED55: 0.258307193 | EE55: 0.04303815479 | EF55: 0.06862550299 | EG55: -0.258307193 | EH55: =IF(AND(EB55=1,ABS($DR55-EE55)<0.03,DR55>=0),(EE56-$DR56)*($A55-$A56)/($DR55-$DR56-EE55+EE56)+$A56,0) -> 0 | EI55: =IF(AND(EB55=2,ABS($DR55-EF55)<0.03,DR55>=0),(EF56-$DR56)*($A55-$A56)/($DR55-$DR56-EF55+EF56)+$A56,0) -> 0 | EJ55: =IF(AND(EB55=3,ABS($DR55-EG55)<0.03,DR55>=0),(EG56-$DR56)*($A55-$A56)/($DR55-$DR56-EG55+EG56)+$A56,0) -> 0 | EL55: =IF(AND(ABS($DQ55-EE55)<0.03,EB55=1,DQ55>=0),(EE56-$DQ56)*($A55-$A56)/($DQ55-$DQ56-EE55+EE56)+$A56,0) -> 0 | EM55: =IF(AND(ABS($DQ55-EF55)<0.03,EB55=2,DQ55>=0),(EF56-$DQ56)*($A55-$A56)/($DQ55-$DQ56-EF55+EF56)+$A56,0) -> 0 | EN55: =IF(AND(ABS($DQ55-EG55)<0.03,EB55=3,DQ55>=0),(EG56-$DQ56)*($A55-$A56)/($DQ55-$DQ56-EG55+EG56)+$A56,0) -> 0 | EO55: =SUMPRODUCT($CO$19:$CZ$19,$CC55:$CN55) -> 0.1601318295 | EP55: =SUMPRODUCT($CO$20:$CZ$20,$CC55:$CN55) -> 0.003931898649 | EQ55: 4.138682296 | ER55: 4.1404808
A56: =A55+1 -> 1 | B56: =(B55+0.01*P55)/1.01 -> 47.60599877 | C56: 1.335460805 | D56: 15.39823737 | E56: 0 | F56: 1.195475813 | G56: 9.818217645 | H56: 0.1899691194 | I56: 10.35146269 | J56: 12.09770141 | K56: 1.829473555 | L56: 0.07911236995 | M56: 0 | N56: 0.09889046244 | P56: 40.03389627 | Q56: 0.04411947729 | R56: 0.1051573167 | S56: 0 | T56: 0.0001316493597 | U56: 13.28437771 | V56: 0.2047138074 | W56: 45.9914225 | X56: 0.3359601939 | Y56: 0.0002014670808 | Z56: 8.712089979e-06 | AA56: 0 | AB56: 1.089011247e-05 | AC56: 100 | AD56: =AD55 -> 1 | AE56: =(113100/$Y$3 + AD56*0.00000411/$Y$3)/(52.05/$Y$3 + 2*LN(EQ56) + 2*LN(1.5*(CG56+CH56+CI56+CJ56+CM56)) + 2*LN(3*CB56) - (3.5*LN(1-CD56) + 7*LN(1-CC56))) - 273.15 -> 1245.131282 | AF56: =54*AD56/10000 - 2*(AD56/10000)^2+935+33*I56-0.37*I56^2 -> 1236.95714 | AG56: =Kditerator(AD56,AE56+273.15,0.0001,B56:O56) -> 0.3045323535 | AH56: 0.8605381342 | AI56: -0.4992508808 | AJ56: =IF(EB56=1,EE56,IF(EB56=2,EF56,EG56)) -> 0.07754423715 | AK56: 0.7923108724 | AL56: 0.01671436195 | AM56: 0.1510193735 | AN56: 0 | AO56: 0.007473498785 | AP56: 0.1366564269 | AQ56: 0.002677997652 | AR56: 0.2567900248 | AS56: 0.2157260544 | AT56: 0.02951763589 | AU56: 0.0008398073304 | AV56: 0 | AW56: 0.0006966815488 | AY56: 49.19893734 | AZ56: 1.037886611 | BA56: 9.377623046 | BB56: 0 | BC56: 0.4640706208 | BD56: 8.485748735 | BE56: 0.1662915949 | BF56: 15.94550419 | BG56: 13.39561655 | BH56: 1.832912269 | BI56: 0.0521482535 | BJ56: 0 | BK56: 0.04326078697 | BL56: -0.8481039338 | BM56: 47.6002101 | BN56: 47.6002101 | BO56: 0.7923108724 | BP56: 0.01671436195 | BQ56: 0.3020387471 | BR56: 0 | BS56: 0.01494699757 | BT56: 0.1366564269 | BU56: 0.002677997652 | BV56: 0.2567900248 | BW56: 0.2157260544 | BX56: 0.05903527179 | BY56: 0.001679614661 | BZ56: 0 | CA56: 0.001393363098 | CB56: 0.4401801087 | CC56: 0.009285912784 | CD56: 0.1678021256 | CE56: 0 | CF56: 0.008304027174 | CG56: 0.0759215138 | CH56: 0.001487801491 | CI56: 0.1426635238 | CJ56: 0.1198498233 | CK56: 0.03279792473 | CL56: 0.0009331349471 | CM56: 0 | CN56: 0.0007741036266 | CO56: 0.02785773835 | CP56: 0.1040609979 | CQ56: 0 | CR56: 8.304027174e-05 | CS56: 9.517525054 | CT56: 0.14558987 | CU56: 57.36920894 | CV56: 0.3022347543 | CW56: 0.0003279792473 | CX56: 9.331349471e-06 | CY56: 0 | CZ56: 7.741036266e-06 | DA56: 67.38718974 | DB56: 0.4951047253 | DC56: 33.25446997 | DD56: 0.02755987546 | DE56: 0.102948348 | DF56: 0 | DG56: 8.215238144e-05 | DH56: 9.228409495 | DI56: 0.1440331816 | DJ56: 56.94315245 | DK56: 0.2990031741 | DL56: 0.0003244723995 | DM56: 9.231576018e-06 | DN56: 0 | DO56: 7.658266896e-06 | DP56: 0.314716427 | DQ56: -0.4992508808 | DR56: -0.4992508808 | DS56: 7.97293422 | DT56: 10.41550966 | DU56: 6.462747166 | DV56: 24.85119104 | DW56: 0.4191151096 | DX56: 0.3208270463 | DY56: 0.2600578441 | DZ56: =-0.074 + 0.1713/DX56 - 0.0135/DX56^2 -> 0.3287754357 | EA56: 0.1366391541 | EB56: =IF(AND(DX56>0.5,DY56<EA56),3,IF(DY56>DZ56,1,2)) -> 2 | EC56: 0.07754423715 | ED56: 0.2566380233 | EE56: 0.06239610553 | EF56: 0.07754423715 | EG56: -0.2566380233 | EH56: 0 | EI56: 0 | EJ56: 0 | EL56: 0 | EM56: 0 | EN56: 0 | EO56: =SUMPRODUCT($CO$19:$CZ$19,$CC56:$CN56) -> 0.1649021258 | EP56: =SUMPRODUCT($CO$20:$CZ$20,$CC56:$CN56) -> 0.003920626993 | EQ56: 4.01902666 | ER56: 4.021294821
A57: 2 | B57: 47.53102746 | C57: 1.322675248 | D57: 15.24682073 | E57: 0 | F57: 1.183640722 | G57: 9.852536062 | H57: 0.1901151064 | I57: 10.70433358 | J57: 11.98124852 | K57: 1.81136195 | L57: 0.07832916542 | M57: 0 | N57: 0.09791145677 | P57: 40.09461662 | Q57: 0.0436958854 | R57: 0.1086548764 | S57: 0 | T57: 0.0001303424743 | U57: 12.9610047 | V57: 0.1998564509 | W57: 46.26366721 | X57: 0.3281550405 | Y57: 0.0001994671137 | Z57: 8.625604916e-06 | AA57: 0 | AB57: 1.078200614e-05 | AC57: 100 | AD57: 1 | AE57: 1253.555951 | AF57: 1245.852788 | AG57: 0.304375866 | AH57: 0.8641637631 | AI57: -0.4586917534 | AJ57: 0.08626952624 | AK57: 0.7910631182 | AL57: 0.01655434045 | AM57: 0.1495343435 | AN57: 0 | AO57: 0.007399511896 | AP57: 0.1371340932 | AQ57: 0.002680055633 | AR57: 0.2655437369 | AS57: 0.2136494681 | AT57: 0.02922541426 | AU57: 0.000831493322 | AV57: 0 | AW57: 0.0006897844712 | AY57: 49.00331361 | AZ57: 1.025477636 | BA57: 9.263076689 | BB57: 0 | BC57: 0.4583712648 | BD57: 8.494928941 | BE57: 0.166019125 | BF57: 16.44941183 | BG57: 13.23476174 | BH57: 1.81040186 | BI57: 0.05150780903 | BJ57: 0 | BK57: 0.04272949148 | BL57: -0.813756832 | BM57: 47.4881719 | BN57: 47.4881719 | BO57: 0.7910631182 | BP57: 0.01655434045 | BQ57: 0.299068687 | BR57: 0 | BS57: 0.01479902379 | BT57: 0.1371340932 | BU57: 0.002680055633 | BV57: 0.2655437369 | BW57: 0.2136494681 | BX57: 0.05845082851 | BY57: 0.001662986644 | BZ57: 0 | CA57: 0.001379568942 | CB57: 0.4389951747 | CC57: 0.009186720263 | CD57: 0.1659661631 | CE57: 0 | CF57: 0.00821261905 | CG57: 0.07610164578 | CH57: 0.001487278908 | CI57: 0.1473617168 | CJ57: 0.1185633402 | CK57: 0.03243689547 | CL57: 0.0009228632906 | CM57: 0 | CN57: 0.0007655825369 | CO57: 0.02756016079 | CP57: 0.1074047328 | CQ57: 0 | CR57: 8.21261905e-05 | CS57: 9.316332281 | CT57: 0.1419802381 | CU57: 57.61091754 | CV57: 0.2948908965 | CW57: 0.0003243689547 | CX57: 9.228632906e-06 | CY57: 0 | CZ57: 7.655825369e-06 | DA57: 67.41841733 | DB57: 0.4856907324 | DC57: 33.25314565 | DD57: 0.02725285056 | DE57: 0.1062071138 | DF57: 0 | DG57: 8.121044047e-05 | DH57: 8.989774728 | DI57: 0.140397084 | DJ57: 57.19120121 | DK57: 0.2916027086 | DL57: 0.000320752071 | DM57: 9.125728816e-06 | DN57: 0 | DO57: 7.570458907e-06 | DP57: 0.3166022919 | DQ57: -0.4586917534 | DR57: -0.4586917534 | DS57: 8.280443467 | DT57: 10.28855433 | DU57: 6.378723705 | DV57: 24.9477215 | DW57: 0.4124045688 | DX57: 0.3319118128 | DY57: 0.2556836184 | DZ57: 0.3195579889 | EA57: 0.1375520836 | EB57: 2 | EC57: 0.08626952624 | ED57: 0.2550124187 | EE57: 0.08031418915 | EF57: 0.08626952624 | EG57: 0.2550124187 | EH57: 0 | EI57: 0 | EJ57: 0 | EL57: 0 | EM57: 0 | EN57: 0 | EO57: 0.1696432359 | EP57: 0.003908628529 | EQ57: 3.906775503 | ER57: 3.909490118
A58: 3 | B58: 47.45739963 | C58: 1.310012086 | D58: 15.0969379 | E58: 0 | F58: 1.171922797 | G58: 9.883312979 | H58: 0.1902115554 | I58: 11.05640619 | J58: 11.86587136 | K58: 1.793429648 | L58: 0.07755371453 | M58: 0 | N58: 0.09694214316 | P58: 40.15252501 | Q58: 0.04327380067 | R58: 0.1123849821 | S58: 0 | T58: 0.0001290409305 | U58: 12.65122041 | V58: 0.1952317084 | W58: 46.52398314 | X58: 0.3210352204 | Y58: 0.000197475321 | Z58: 8.53947334e-06 | AA58: 0 | AB58: 1.067434167e-05 | AC58: 100 | AD58: 1 | AE58: 1261.793527 | AF58: 1254.636481 | AG58: 0.3042054352 | AH58: 0.8676243138 | AI58: -0.4199414111 | AJ58: 0.09476543502 | AK58: 0.7898377237 | AL58: 0.01639585083 | AM58: 0.1480643563 | AN58: 0 | AO58: 0.007326257469 | AP58: 0.1375624667 | AQ58: 0.002681415275 | AR58: 0.274277646 | AS58: 0.211592064 | AT58: 0.02893608558 | AU58: 0.0008232616215 | AV58: 0 | AW58: 0.0006829556741 | AY58: 48.81024874 | AZ58: 1.013227823 | BA58: 9.150054304 | BB58: 0 | BC58: 0.4527467335 | BD58: 8.501060425 | BE58: 0.165705616 | BF58: 16.94976034 | BG58: 13.07592809 | BH58: 1.788186981 | BI58: 0.05087577273 | BJ58: 0 | BK58: 0.04220517118 | BL58: -0.779955089 | BM58: 47.37586239 | BN58: 47.37586239 | BO58: 0.7898377237 | BP58: 0.01639585083 | BQ58: 0.2961287127 | BR58: 0 | BS58: 0.01465251494 | BT58: 0.1375624667 | BU58: 0.002681415275 | BV58: 0.274277646 | BW58: 0.211592064 | BX58: 0.05787217117 | BY58: 0.001646523243 | BZ58: 0 | CA58: 0.001365911348 | CB58: 0.4378226342 | CC58: 0.009088543615 | CD58: 0.1641499882 | CE58: 0 | CF58: 0.008122178133 | CG58: 0.07625358945 | CH58: 0.001486361393 | CI58: 0.1520375108 | CJ58: 0.1172896559 | CK58: 0.03207968633 | CL58: 0.0009127003204 | CM58: 0 | CN58: 0.0007571516105 | CO58: 0.02726563085 | CP58: 0.1109766944 | CQ58: 0 | CR58: 8.122178133e-05 | CS58: 9.124240183 | CT58: 0.1385509126 | CU58: 57.84162092 | CV58: 0.2881935616 | CW58: 0.0003207968633 | CX58: 9.127003204e-06 | CY58: 0 | CZ58: 7.571516105e-06 | DA58: 67.44868139 | DB58: 0.4772223625 | DC58: 33.25170561 | DD58: 0.02694950717 | DE58: 0.1096900064 | DF58: 0 | DG58: 8.028007828e-05 | DH58: 8.761873109 | DI58: 0.1369445231 | DJ58: 57.42757119 | DK58: 0.2848521826 | DL58: 0.0003170774745 | DM58: 9.021182738e-06 | DN58: 0 | DO58: 7.483730296e-06 | DP58: 0.3183829577 | DQ58: -0.4199414111 | DR58: -0.4199414111 | DS58: 8.584018391 | DT58: 10.16328213 | DU58: 6.295878 | DV58: 25.04317852 | DW58: 0.4058303589 | DX58: 0.3427687258 | DY58: 0.2514009152 | DZ58: 0.3108508726 | EA58: 0.1384763111 | EB58: 2 | EC58: 0.09476543502 | ED58: 0.2534283217 | EE58: 0.09689451878 | EF58: 0.09476543502 | EG58: 0.2534283217 | EH58: 0 | EI58: 0 | EJ58: 0 | EL58: 0 | EM58: 0 | EN58: 0 | EO58: 0.174354052 | EP58: 0.003895950945 | EQ58: 3.801292303 | ER58: 3.804430933
A59: 4 | B59: 47.38507414 | C59: 1.297470122 | D59: 14.94857599 | E59: 0 | F59: 1.160320879 | G59: 9.910718003 | H59: 0.1902612599 | I59: 11.40757032 | J59: 11.75156605 | K59: 1.775674874 | L59: 0.07678594052 | M59: 0 | N59: 0.09598242565 | P59: 40.2078219 | Q59: 0.04285348264 | R59: 0.1163046427 | S59: 0 | T59: 0.0001277454994 | U59: 12.35415129 | V59: 0.1908228687 | W59: 46.77317157 | X59: 0.3145319969 | Y59: 0.0001954928829 | Z59: 8.453746286e-06 | AA59: 0 | AB59: 1.056718286e-05 | AC59: 100 | AD59: 1 | AE59: 1269.852033 | AF59: 1263.306136 | AG59: 0.3040213838 | AH59: 0.8709312904 | AI59: -0.3828533503 | AJ59: 0.1030062364 | AK59: 0.7886340041 | AL59: 0.01623887811 | AM59: 0.1466092857 | AN59: 0 | AO59: 0.007253728254 | AP59: 0.1379439078 | AQ59: 0.00268211596 | AR59: 0.2829890183 | AS59: 0.2095537733 | AT59: 0.02864962123 | AU59: 0.0008151114138 | AV59: 0 | AW59: 0.0006761944813 | AY59: 48.61971731 | AZ59: 1.00113571 | BA59: 9.03854258 | BB59: 0 | BC59: 0.4471963107 | BD59: 8.504317299 | BE59: 0.1653539146 | BF59: 17.44642762 | BG59: 12.91910463 | BH59: 1.766264805 | BI59: 0.05025206408 | BJ59: 0 | BK59: 0.04168775928 | BL59: -0.7466894387 | BM59: 47.26334334 | BN59: 47.26334334 | BO59: 0.7886340041 | BP59: 0.01623887811 | BQ59: 0.2932185714 | BR59: 0 | BS59: 0.01450745651 | BT59: 0.1379439078 | BU59: 0.00268211596 | BV59: 0.2829890183 | BW59: 0.2095537733 | BX59: 0.05729924247 | BY59: 0.001630222828 | BZ59: 0 | CA59: 0.001352388963 | CB59: 0.4366624333 | CC59: 0.008991380024 | CD59: 0.1623535559 | CE59: 0 | CF59: 0.008032701134 | CG59: 0.07637880454 | CH59: 0.001485073273 | CI59: 0.156689507 | CJ59: 0.1160288043 | CK59: 0.03172628432 | CL59: 0.000902645667 | CM59: 0 | CN59: 0.0007488105408 | CO59: 0.02697414007 | CP59: 0.1147338406 | CQ59: 0 | CR59: 8.032701134e-05 | CS59: 8.940595409 | CT59: 0.1352883602 | CU59: 58.06208603 | CV59: 0.2820768217 | CW59: 0.0003172628432 | CX59: 9.02645667e-06 | CY59: 0 | CZ59: 7.488105408e-06 | DA59: 67.47799453 | DB59: 0.4695981246 | DC59: 33.25017124 | DD59: 0.02664981402 | DE59: 0.1133543277 | DF59: 0 | DG59: 7.936119214e-05 | DH59: 8.543970213 | DI59: 0.1336617082 | DJ59: 57.65309833 | DK59: 0.2786852451 | DL59: 0.0003134482043 | DM59: 8.917926239e-06 | DN59: 0 | DO59: 7.398071485e-06 | DP59: 0.3200661984 | DQ59: -0.3828533503 | DR59: -0.3828533503 | DS59: 8.883688615 | DT59: 10.03967829 | DU59: 6.214189042 | DV59: 25.13755595 | DW59: 0.399389595 | DX59: 0.353403037 | DY59: 0.2472073679 | DZ59: 0.302623783 | EA59: 0.1394112378 | EB59: 2 | EC59: 0.1030062364 | ED59: 0.2518838384 | EE59: 0.1122328994 | EF59: 0.1030062364 | EG59: 0.2518838384 | EH59: 0 | EI59: 0 | EJ59: 0 | EL59: 0 | EM59: 0 | EN59: 0 | EO59: 0.1790335888 | EP59: 0.003882638746 | EQ59: 3.702009397 | ER59: 3.705550368
A60: 5 | B60: 47.31401223 | C60: 1.285048175 | D60: 14.80172182 | E60: 0 | F60: 1.148833818 | G60: 9.934910412 | H60: 0.1902668204 | I60: 11.75772478 | J60: 11.63832809 | K60: 1.758095871 | L60: 0.07602576738 | M60: 0 | N60: 0.09503220923 | P60: 40.26068943 | Q60: 0.04243516099 | R60: 0.1203760668 | S60: 0 | T60: 0.0001264568622 | U60: 12.06899875 | V60: 0.1866147558 | W60: 47.01196291 | X60: 0.3085841225 | Y60: 0.0001935208416 | Z60: 8.368468824e-06 | AA60: 0 | AB60: 1.046058603e-05 | AC60: 100 | AD60: 1 | AE60: 1277.738984 | AF60: 1271.860004 | AG60: 0.3038240807 | AH60: 0.8740951283 | AI60: -0.3473121859 | AJ60: 0.1109741365 | AK60: 0.7874513145 | AL60: 0.0160834075 | AM60: 0.1451690024 | AN60: 0 | AO60: 0.007181917069 | AP60: 0.1382806337 | AQ60: 0.002682194346 | AR60: 0.2916753438 | AS60: 0.2075345154 | AT60: 0.02836599285 | AU60: 0.0008070418923 | AV60: 0 | AW60: 0.0006695002235 | AY60: 48.43169298 | AZ60: 0.9891997633 | BA60: 8.928527292 | BB60: 0 | BC60: 0.441719248 | BD60: 8.504862555 | BE60: 0.1649666598 | BF60: 17.93930678 | BG60: 12.76427856 | BH60: 1.744632375 | BI60: 0.04963659903 | BJ60: 0 | BK60: 0.04117718604 | BL60: -0.7139506552 | BM60: 47.15067347 | BN60: 47.15067347 | BO60: 0.7874513145 | BP60: 0.0160834075 | BQ60: 0.2903380047 | BR60: 0 | BS60: 0.01436383414 | BT60: 0.1382806337 | BU60: 0.002682194346 | BV60: 0.2916753438 | BW60: 0.2075345154 | BX60: 0.05673198569 | BY60: 0.001614083785 | BZ60: 0 | CA60: 0.001339000447 | CB60: 0.4355145119 | CC60: 0.008895225948 | CD60: 0.1605768028 | CE60: 0 | CF60: 0.007944184103 | CG60: 0.07647866174 | CH60: 0.001483437185 | CI60: 0.1613164429 | CJ60: 0.1147808017 | CK60: 0.03137667384 | CL60: 0.0008926988866 | CM60: 0 | CN60: 0.0007405589596 | CO60: 0.02668567784 | CP60: 0.1186384673 | CQ60: 0 | CR60: 7.944184103e-05 | CS60: 8.764805071 | CT60: 0.1321803482 | CU60: 58.27300855 | CV60: 0.2764821159 | CW60: 0.0003137667384 | CX60: 8.926988866e-06 | CY60: 0 | CZ60: 7.405589596e-06 | DA60: 67.50636991 | DB60: 0.4627279758 | DC60: 33.24856122 | DD60: 0.02635373805 | DE60: 0.1171627384 | DF60: 0 | DG60: 7.845367396e-05 | DH60: 8.33539841 | DI60: 0.1305361734 | DJ60: 57.86854028 | DK60: 0.2730429897 | DL60: 0.0003098638334 | DM60: 8.815947174e-06 | DN60: 0 | DO60: 7.313472398e-06 | DP60: 0.3216591187 | DQ60: -0.3473121859 | DR60: -0.3473121859 | DS60: 9.179486324 | DT60: 9.917727056 | DU60: 6.133636574 | DV60: 25.23084995 | DW60: 0.3930793879 | DX60: 0.3638199403 | DY60: 0.2431006718 | DZ60: 0.2948465576 | EA60: 0.1403562953 | EB60: 2 | EC60: 0.1109741365 | ED60: 0.2503772214 | EE60: 0.1264191478 | EF60: 0.1109741365 | EG60: 0.2503772214 | EH60: 0 | EI60: 0 | EJ60: 0 | EL60: 0 | EM60: 0 | EN60: 0 | EO60: 0.1836809722 | EP60: 0.003868733529 | EQ60: 3.608419125 | ER60: 3.612341526
A61: 6 | B61: 47.24417735 | C61: 1.272745076 | D61: 14.65636196 | E61: 0 | F61: 1.137460478 | G61: 9.956039999 | H61: 0.1902306613 | I61: 12.10677665 | J61: 11.52615241 | K61: 1.740690897 | L61: 0.07527311987 | M61: 0 | N61: 0.09409139983 | P61: 40.31129345 | Q61: 0.04201903883 | R61: 0.1245660144 | S61: 0 | T61: 0.0001251756194 | U61: 11.79503138 | V61: 0.1825935607 | W61: 47.24102427 | X61: 0.3031369151 | Y61: 0.0001915601161 | Z61: 8.283680698e-06 | AA61: 0 | AB61: 1.035460087e-05 | AC61: 100 | AD61: 1 | AE61: 1285.461425 | AF61: 1280.296634 | AG61: 0.3036139295 | AH61: 0.8771253147 | AI61: -0.3132120076 | AJ61: 0.1186575223 | AK61: 0.7862890464 | AL61: 0.01592942435 | AM61: 0.1437433746 | AN61: 0 | AO61: 0.007110816806 | AP61: 0.1385747293 | AQ61: 0.002681684612 | AR61: 0.3003343169 | AS61: 0.2055342001 | AT61: 0.02808517235 | AU61: 0.0007990522581 | AV61: 0 | AW61: 0.0006628722381 | AY61: 48.24614869 | AZ61: 0.9774183927 | BA61: 8.819993431 | BB61: 0 | BC61: 0.4363147707 | BD61: 8.502848952 | BE61: 0.1645463015 | BF61: 18.42830467 | BG61: 12.61143548 | BH61: 1.72328663 | BI61: 0.04902929048 | BJ61: 0 | BK61: 0.04067337922 | BL61: -0.6817295721 | BM61: 47.03790852 | BN61: 47.03790852 | BO61: 0.7862890464 | BP61: 0.01592942435 | BQ61: 0.2874867492 | BR61: 0 | BS61: 0.01422163361 | BT61: 0.1385747293 | BU61: 0.002681684612 | BV61: 0.3003343169 | BW61: 0.2055342001 | BX61: 0.05617034469 | BY61: 0.001598104516 | BZ61: 0 | CA61: 0.001325744476 | CB61: 0.4343788048 | CC61: 0.008800077201 | CD61: 0.1588196492 | CE61: 0 | CF61: 0.007856622496 | CG61: 0.07655444972 | CH61: 0.001481474226 | CI61: 0.1659171804 | CJ61: 0.1135456491 | CK61: 0.03103083695 | CL61: 0.0008828594685 | CM61: 0 | CN61: 0.0007323964433 | CO61: 0.0264002316 | CP61: 0.1226575218 | CQ61: 0 | CR61: 7.856622496e-05 | CS61: 8.596330103 | CT61: 0.1292157958 | CU61: 58.47502098 | CV61: 0.2713573146 | CW61: 0.0003103083695 | CX61: 8.828594685e-06 | CY61: 0 | CZ61: 7.323964433e-06 | DA61: 67.53382121 | DB61: 0.4565318736 | DC61: 33.24689194 | DD61: 0.0260612447 | DE61: 0.1210825624 | DF61: 0 | DG61: 7.755741104e-05 | DH61: 8.135549474 | DI61: 0.1275566262 | DJ61: 58.07458532 | DK61: 0.2678730052 | DL61: 0.0003063239168 | DM61: 8.715232878e-06 | DN61: 0 | DO61: 7.22992253e-06 | DP61: 0.3231682135 | DQ61: -0.3132120076 | DR61: -0.3132120076 | DS61: 9.471445905 | DT61: 9.797411824 | DU61: 6.054201028 | DV61: 25.32305876 | DW61: 0.3868968563 | DX61: 0.3740245598 | DY61: 0.2390785839 | DZ61: 0.2874899342 | EA61: 0.1413109442 | EB61: 2 | EC61: 0.1186575223 | ED61: 0.2489068549 | EE61: 0.1395374117 | EF61: 0.1186575223 | EG61: 0.2489068549 | EH61: 0 | EI61: 0 | EJ61: 0 | EL61: 0 | EM61: 0 | EN61: 0 | EO61: 0.1882954294 | EP61: 0.003854274212 | EQ61: 3.520066285 | ER61: 3.52434997
A62: 7 | B62: 47.17553494 | C62: 1.26055967 | D62: 14.51248279 | E62: 0 | F62: 1.126199732 | G62: 9.974247835 | H62: 0.1901550464 | I62: 12.45464048 | J62: 11.41503344 | K62: 1.72345823 | L62: 0.07452792347 | M62: 0 | N62: 0.09315990434 | P62: 40.35978521 | Q62: 0.04160529548 | R62: 0.1288452381 | S62: 0 | T62: 0.0001239022998 | U62: 11.53157804 | V62: 0.1787466949 | W62: 47.4609661 | X62: 0.2981414629 | Y62: 0.0001896115158 | Z62: 8.199416898e-06 | AA62: 0 | AB62: 1.024927112e-05 | AC62: 100 | AD62: 1 | AE62: 1293.025967 | AF62: 1288.61485 | AG62: 0.3033913599 | AH62: 0.8800304948 | AI62: -0.2804554706 | AJ62: 0.1260496015 | AK62: 0.7851466246 | AL62: 0.01577691423 | AM62: 0.1423322688 | AN62: 0 | AO62: 0.007040420427 | AP62: 0.1388281579 | AQ62: 0.002680618668 | AR62: 0.3089638184 | AS62: 0.2035527282 | AT62: 0.02780713194 | AU62: 0.0007911417202 | AV62: 0 | AW62: 0.0006563098689 | AY62: 48.06305674 | AZ62: 0.9657899557 | BA62: 8.712925329 | BB62: 0 | BC62: 0.4309820814 | BD62: 8.498419815 | BE62: 0.1640951169 | BF62: 18.91334061 | BG62: 12.46055962 | BH62: 1.702224423 | BI62: 0.04843004886 | BJ62: 0 | BK62: 0.04017626451 | BL62: -0.6500170986 | BM62: 46.9251014 | BN62: 46.9251014 | BO62: 0.7851466246 | BP62: 0.01577691423 | BQ62: 0.2846645376 | BR62: 0 | BS62: 0.01408084085 | BT62: 0.1388281579 | BU62: 0.002680618668 | BV62: 0.3089638184 | BW62: 0.2035527282 | BX62: 0.05561426387 | BY62: 0.00158228344 | BZ62: 0 | CA62: 0.001312619738 | CB62: 0.4332552413 | CC62: 0.008705929016 | CD62: 0.1570820011 | CE62: 0 | CF62: 0.007770011245 | CG62: 0.07660738157 | CH62: 0.001479204076 | CI62: 0.170490695 | CJ62: 0.1123233337 | CK62: 0.03068875361 | CL62: 0.0008731268432 | CM62: 0 | CN62: 0.0007243225194 | CO62: 0.02611778705 | CP62: 0.1267620144 | CQ62: 0 | CR62: 7.770011245e-05 | CS62: 8.434679456 | CT62: 0.1263846447 | CU62: 58.66869966 | CV62: 0.2666559183 | CW62: 0.0003068875361 | CX62: 8.731268432e-06 | CY62: 0 | CZ62: 7.243225194e-06 | DA62: 67.56036268 | DB62: 0.4509385339 | DC62: 33.24517773 | DD62: 0.02577229805 | DE62: 0.1250851924 | DF62: 0 | DG62: 7.66722867e-05 | DH62: 7.943868137 | DI62: 0.1247128146 | DJ62: 58.27186 | DK62: 0.2631285641 | DL62: 0.0003028279936 | DM62: 8.61577024e-06 | DN62: 0 | DO62: 7.147411003e-06 | DP62: 0.3245994225 | DQ62: -0.2804554706 | DR62: -0.2804554706 | DS62: 9.759603626 | DT62: 9.678715285 | DU62: 5.975863469 | DV62: 25.41418238 | DW62: 0.380839137 | DX62: 0.3840219402 | DY62: 0.2351389228 | DZ62: 0.2805259901 | EA62: 0.1422746716 | EB62: 2 | EC62: 0.1260496015 | ED62: 0.2474712413 | EE62: 0.151666485 | EF62: 0.1260496015 | EG62: 0.2474712413 | EH62: 0 | EI62: 0 | EJ62: 0 | EL62: 0 | EM62: 0 | EN62: 0 | EO62: 0.192876279 | EP62: 0.003839297249 | EQ62: 3.436541668 | ER62: 3.441167253
A63: 8 | B63: 47.10805227 | C63: 1.248490815 | D63: 14.37007054 | E63: 0 | F63: 1.115050467 | G63: 9.989666946 | H63: 0.1900420925 | I63: 12.80123777 | J63: 11.3049652 | K63: 1.706396165 | L63: 0.07379010442 | M63: 0 | N63: 0.09223763052 | P63: 40.40630293 | Q63: 0.04119408902 | R63: 0.1331879999 | S63: 0 | T63: 0.0001226373678 | U63: 11.27802179 | V63: 0.1750626612 | W63: 47.67234802 | X63: 0.293553939 | Y63: 0.0001876757513 | Z63: 8.115708166e-06 | AA63: 0 | AB63: 1.014463521e-05 | AC63: 100 | AD63: 1 | AE63: 1300.438821 | AF63: 1296.813722 | AG63: 0.3031568189 | AH63: 0.8828185627 | AI63: -0.2489840821 | AJ63: 0.1331473406 | AK63: 0.7840235045 | AL63: 0.01562586284 | AM63: 0.1409355499 | AN63: 0 | AO63: 0.006970720964 | AP63: 0.1390427713 | AQ63: 0.002679026354 | AR63: 0.3175619004 | AS63: 0.2015899928 | AT63: 0.02753184409 | AU63: 0.0007833094957 | AV63: 0 | AW63: 0.0006498124663 | AY63: 47.88238892 | AZ63: 0.954312769 | BA63: 8.607306763 | BB63: 0 | BC63: 0.4257203646 | BD63: 8.491709767 | BE63: 0.1636152246 | BF63: 19.39434511 | BG63: 12.311634 | BH63: 1.681442532 | BI63: 0.04783878251 | BJ63: 0 | BK63: 0.03968576587 | BL63: -0.6188042336 | BM63: 46.81230232 | BN63: 46.81230232 | BO63: 0.7840235045 | BP63: 0.01562586284 | BQ63: 0.2818710998 | BR63: 0 | BS63: 0.01394144193 | BT63: 0.1390427713 | BU63: 0.002679026354 | BV63: 0.3175619004 | BW63: 0.2015899928 | BX63: 0.05506368817 | BY63: 0.001566618991 | BZ63: 0 | CA63: 0.001299624933 | CB63: 0.4321437467 | CC63: 0.008612776113 | CD63: 0.1553637518 | CE63: 0 | CF63: 0.007684344811 | CG63: 0.07663860049 | CH63: 0.001476645125 | CI63: 0.1750360655 | CJ63: 0.1111138305 | CK63: 0.03035040197 | CL63: 0.0008635003883 | CM63: 0 | CN63: 0.0007163366716 | CO63: 0.02583832834 | CP63: 0.1309265127 | CQ63: 0 | CR63: 7.684344811e-05 | CS63: 8.279404996 | CT63: 0.123677746 | CU63: 58.85457085 | CV63: 0.26233637 | CW63: 0.0003035040197 | CX63: 8.635003883e-06 | CY63: 0 | CZ63: 7.163366716e-06 | DA63: 67.58600901 | DB63: 0.4458843638 | DC63: 33.24343116 | DD63: 0.02548686108 | DE63: 0.1291455778 | DF63: 0 | DG63: 7.579818095e-05 | DH63: 7.759846449 | DI63: 0.1219954128 | DJ63: 58.46093585 | DK63: 0.2587679253 | DL63: 0.0002993755898 | DM63: 8.517545775e-06 | DN63: 0 | DO63: 7.065926632e-06 | DP63: 0.3259581809 | DQ63: -0.2489840821 | DR63: -0.2489840821 | DS63: 10.04399736 | DT63: 9.561619532 | DU63: 5.89860554 | DV63: 25.50422243 | DW63: 0.3749033932 | DX63: 0.393817039 | DY63: 0.2312795678 | DZ63: 0.2739283743 | EA63: 0.1432469904 | EB63: 2 | EC63: 0.1331473406 | ED63: 0.2460689901 | EE63: 0.1628801148 | EF63: 0.1331473406 | EG63: 0.2460689901 | EH63: 0 | EI63: 0 | EJ63: 0 | EL63: 0 | EM63: 0 | EN63: 0 | EO63: 0.1974229235 | EP63: 0.003823836827 | EQ63: 3.357476518 | ER63: 3.362425377
A64: 9 | B64: 47.04169831 | C64: 1.236537382 | D64: 14.22911131 | E64: 0 | F64: 1.104011577 | G64: 10.00242293 | H64: 0.1898937813 | I64: 13.14649629 | J64: 11.19594133 | K64: 1.689503011 | L64: 0.07305958968 | M64: 0 | N64: 0.0913244871 | P64: 40.45099698 | Q64: 0.04078552091 | R64: 0.1375711206 | S64: 0 | T64: 0.0001213811189 | U64: 11.0336692 | V64: 0.1715310096 | W64: 47.87578614 | X64: 0.2893348204 | Y64: 0.0001857532747 | Z64: 8.032574042e-06 | AA64: 0 | AB64: 1.004071755e-05 | AC64: 100 | AD64: 1 | AE64: 1307.705824 | AF64: 1304.892542 | AG64: 0.3029066794 | AH64: 0.8854981095 | AI64: -0.2186596023 | AJ64: 0.1399506313 | AK64: 0.7829191698 | AL64: 0.01547625605 | AM64: 0.1395530816 | AN64: 0 | AO64: 0.006901711515 | AP64: 0.1392203175 | AQ64: 0.002676935609 | AR64: 0.3261267715 | AS64: 0.1996458805 | AT64: 0.02725928155 | AU64: 0.0007755548091 | AV64: 0 | AW64: 0.0006433793871 | AY64: 47.70411661 | AZ64: 0.9429851147 | BA64: 8.503121056 | BB64: 0 | BC64: 0.4205287897 | BD64: 8.48284538 | BE64: 0.1631085984 | BF64: 19.87125892 | BG64: 12.16464066 | BH64: 1.660937675 | BI64: 0.0472553981 | BJ64: 0 | BK64: 0.03920180587 | BL64: -0.5880820769 | BM64: 46.69955888 | BN64: 46.69955888 | BO64: 0.7829191698 | BP64: 0.01547625605 | BQ64: 0.2791061632 | BR64: 0 | BS64: 0.01380342303 | BT64: 0.1392203175 | BU64: 0.002676935609 | BV64: 0.3261267715 | BW64: 0.1996458805 | BX64: 0.0545185631 | BY64: 0.001551109618 | BZ64: 0 | CA64: 0.001286758774 | CB64: 0.4310442422 | CC64: 0.00852061275 | CD64: 0.1536647834 | CE64: 0 | CF64: 0.00759961724 | CG64: 0.07664918499 | CH64: 0.001473814572 | CI64: 0.1795524653 | CJ64: 0.1099171033 | CK64: 0.03001575849 | CL64: 0.0008539794346 | CM64: 0 | CN64: 0.0007084383448 | CO64: 0.02556183825 | CP64: 0.1351283076 | CQ64: 0 | CR64: 7.59961724e-05 | CS64: 8.130107267 | CT64: 0.1210869217 | CU64: 59.0332073 | CV64: 0.258361534 | CW64: 0.0003001575849 | CX64: 8.539794346e-06 | CY64: 0 | CZ64: 7.084383448e-06 | DA64: 67.61087684 | DB64: 0.4413119104 | DC64: 33.24166357 | DD64: 0.025204858 | DE64: 0.1332411923 | DF64: 0 | DG64: 7.493485855e-05 | DH64: 7.58292832 | DI64: 0.1193958994 | DJ64: 58.64242644 | DK64: 0.2547534224 | DL64: 0.0002959657765 | DM64: 8.420533051e-06 | DN64: 0 | DO64: 6.985447488e-06 | DP64: 0.3272494662 | DQ64: -0.2186596023 | DR64: -0.2186596023 | DS64: 10.32466633 | DT64: 9.446106171 | DU64: 5.822409426 | DV64: 25.59318193 | DW64: 0.3690868215 | DX64: 0.4034147204 | DY64: 0.2274984581 | DZ64: 0.2676724063 | EA64: 0.1442274366 | EB64: 2 | EC64: 0.1399506313 | ED64: 0.2446988069 | EE64: 0.1732473001 | EF64: 0.1399506313 | EG64: 0.2446988069 | EH64: 0 | EI64: 0 | EJ64: 0 | EL64: 0 | EM64: 0 | EN64: 0 | EO64: 0.2019348417 | EP64: 0.003807925034 | EQ64: 3.282537754 | ER64: 3.28779709
A65: 10 | B65: 46.97644385 | C65: 1.224698255 | D65: 14.08959111 | E65: 0 | F65: 1.093081971 | G65: 10.01263329 | H65: 0.1897119716 | I65: 13.49035064 | J65: 11.08795513 | K65: 1.672777098 | L65: 0.07233630694 | M65: 0 | N65: 0.09042038367 | P65: 40.49393047 | Q65: 0.04037979762 | R65: 0.1419758681 | S65: 0 | T65: 0.0001201341599 | U65: 10.79827416 | V65: 0.1681419382 | W65: 48.07152675 | X65: 0.2854491538 | Y65: 0.000183845015 | Z65: 7.950054701e-06 | AA65: 0 | AB65: 9.937568377e-06 | AC65: 100 | AD65: 1 | AE65: 1314.832488 | AF65: 1312.850834 | AG65: 0.302650476 | AH65: 0.8880727219 | AI65: -0.189430592 | AJ65: 0.146461637 | AK65: 0.7818331338 | AL65: 0.01532807988 | AM65: 0.1381847267 | AN65: 0 | AO65: 0.006833385251 | AP65: 0.1393624321 | AQ65: 0.002674372635 | AR65: 0.3346568093 | AS65: 0.1977202719 | AT65: 0.02698941735 | AU65: 0.0007678768928 | AV65: 0 | AW65: 0.0006370099945 | AY65: 47.52821078 | AZ65: 0.9318052408 | BA65: 8.400351091 | BB65: 0 | BC65: 0.4154065113 | BD65: 8.471944663 | BE65: 0.1625770779 | BF65: 20.34403338 | BG65: 12.01956063 | BH65: 1.640706515 | BI65: 0.04667980063 | BJ65: 0 | BK65: 0.03872430571 | BL65: -0.5578418218 | BM65: 46.58691612 | BN65: 46.58691612 | BO65: 0.7818331338 | BP65: 0.01532807988 | BQ65: 0.2763694535 | BR65: 0 | BS65: 0.0136667705 | BT65: 0.1393624321 | BU65: 0.002674372635 | BV65: 0.3346568093 | BW65: 0.1977202719 | BX65: 0.0539788347 | BY65: 0.001535753786 | BZ65: 0 | CA65: 0.001274019989 | CB65: 0.4299566449 | CC65: 0.008429432719 | CD65: 0.1519849669 | CE65: 0 | CF65: 0.007515822158 | CG65: 0.07664014368 | CH65: 0.001470728517 | CI65: 0.1840391673 | CJ65: 0.1087331056 | CK65: 0.02968479802 | CL65: 0.0008445632661 | CM65: 0 | CN65: 0.0007006269449 | CO65: 0.02528829816 | CP65: 0.1393487226 | CQ65: 0 | CR65: 7.515822158e-05 | CS65: 7.986386661 | CT65: 0.1186041924 | CU65: 59.20484813 | CV65: 0.2546978672 | CW65: 0.0002968479802 | CX65: 8.445632661e-06 | CY65: 0 | CZ65: 7.006269449e-06 | DA65: 67.63475482 | DB65: 0.4371717175 | DC65: 33.23988383 | DD65: 0.02492633481 | DE65: 0.1373541586 | DF65: 0 | DG65: 7.40824465e-05 | DH65: 7.412887098 | DI65: 0.1169065546 | DJ65: 58.81660785 | DK65: 0.2510522565 | DL65: 0.000292599055 | DM65: 8.324746337e-06 | DN65: 0 | DO65: 6.905985409e-06 | DP65: 0.3284778445 | DQ65: -0.189430592 | DR65: -0.189430592 | DS65: 10.60165107 | DT65: 9.332156332 | DU65: 5.747257774 | DV65: 25.68106518 | DW65: 0.3633866534 | DX65: 0.4128197564 | DY65: 0.2237935901 | DZ65: 0.2617350867 | EA65: 0.1452155695 | EB65: 2 | EC65: 0.146461637 | ED65: 0.243359485 | EE65: 0.1828325839 | EF65: 0.146461637 | EG65: 0.243359485 | EH65: 0 | EI65: 0 | EJ65: 0 | EL65: 0 | EM65: 0 | EN65: 0 | EO65: 0.2064115915 | EP65: 0.003791591704 | EQ65: 3.211423691 | ER65: 3.216970007
A66: 11 | B66: 46.91226055 | C66: 1.212972329 | D66: 13.95149591 | E66: 0 | F66: 1.082260567 | G66: 10.02041192 | H66: 0.189498407 | I66: 13.83273852 | J66: 10.98099962 | K66: 1.656216769 | L66: 0.07162018459 | M66: 0 | N66: 0.08952523074 | P66: 40.53523968 | Q66: 0.03997697741 | R66: 0.1463840652 | S66: 0 | T66: 0.0001188966563 | U66: 10.57119626 | V66: 0.1648866934 | W66: 48.26013289 | X66: 0.2818648884 | Y66: 0.000181951225 | Z66: 7.86816108e-06 | AA66: 0 | AB66: 9.83520135e-06 | AC66: 100 | AD66: 1 | AE66: 1321.82397 | AF66: 1320.688249 | AG66: 0.3023835875 | AH66: 0.8905501925 | AI66: -0.16122671 | AJ66: 0.1526842577 | AK66: 0.7807649254 | AL66: 0.01518132053 | AM66: 0.1368303476 | AN66: 0 | AO66: 0.006765735407 | AP66: 0.1394707 | AQ66: 0.002671362011 | AR66: 0.3431504682 | AS66: 0.1958130427 | AT66: 0.02672222476 | AU66: 0.0007602749869 | AV66: 0 | AW66: 0.000630703658 | AY66: 47.3546424 | AZ66: 0.9207713891 | BA66: 8.298979591 | BB66: 0 | BC66: 0.4103526815 | BD66: 8.459121191 | BE66: 0.1620223817 | BF66: 20.81262513 | BG66: 11.87637445 | BH66: 1.620745703 | BI66: 0.04611189483 | BJ66: 0 | BK66: 0.03825318634 | BL66: -0.528074818 | BM66: 46.47441687 | BN66: 46.47441687 | BO66: 0.7807649254 | BP66: 0.01518132053 | BQ66: 0.2736606953 | BR66: 0 | BS66: 0.01353147081 | BT66: 0.1394707 | BU66: 0.002671362011 | BV66: 0.3431504682 | BW66: 0.1958130427 | BX66: 0.05344444953 | BY66: 0.001520549974 | BZ66: 0 | CA66: 0.001261407316 | CB66: 0.42888087 | CC66: 0.008339229575 | CD66: 0.150324167 | CE66: 0 | CF66: 0.007432952974 | CG66: 0.07661245174 | CH66: 0.001467402064 | CI66: 0.1884954953 | CJ66: 0.1075617838 | CK66: 0.02935749451 | CL66: 0.000835251142 | CM66: 0 | CN66: 0.0006929018575 | CO66: 0.02501768873 | CP66: 0.1435701081 | CQ66: 0 | CR66: 7.432952974e-05 | CS66: 7.847913965 | CT66: 0.1162228082 | CU66: 59.37001283 | CV66: 0.2513155104 | CW66: 0.0002935749451 | CX66: 8.35251142e-06 | CY66: 0 | CZ66: 6.929018575e-06 | DA66: 67.65778779 | DB66: 0.4334174491 | DC66: 33.23810082 | DD66: 0.0246512038 | DE66: 0.141466945 | DF66: 0 | DG66: 7.324067406e-05 | DH66: 7.249216377 | DI66: 0.1145202565 | DJ66: 58.98403284 | DK66: 0.2476339813 | DL66: 0.0002892743562 | DM66: 8.23015521e-06 | DN66: 0 | DO66: 6.827515158e-06 | DP66: 0.3296474972 | DQ66: -0.16122671 | DR66: -0.16122671 | DS66: 10.87499267 | DT66: 9.21975098 | DU66: 5.673133776 | DV66: 25.76787743 | DW66: 0.3578001722 | DX66: 0.4220368054 | DY66: 0.2201630224 | DZ66: 0.2560950693 | EA66: 0.1462109674 | EB66: 2 | EC66: 0.1526842577 | ED66: 0.2420498971 | EE66: 0.191696309 | EF66: 0.1526842577 | EG66: 0.2420498971 | EH66: 0 | EI66: 0 | EJ66: 0 | EL66: 0 | EM66: 0 | EN66: 0 | EO66: 0.2108527725 | EP66: 0.003774865584 | EQ66: 3.143860967 | ER66: 3.149678073
A67: 12 | B67: 46.84912172 | C67: 1.201358514 | D67: 13.81481163 | E67: 0 | F67: 1.071546293 | G67: 10.02586523 | H67: 0.1892547266 | I67: 14.17360381 | J67: 10.8750676 | K67: 1.639820384 | L67: 0.07091115175 | M67: 0 | N67: 0.08863893969 | P67: 40.57502252 | Q67: 0.0395771535 | R67: 0.1507803375 | S67: 0 | T67: 0.0001176688769 | U67: 10.35198791 | V67: 0.1617571361 | W67: 48.44200635 | X67: 0.2785533279 | Y67: 0.0001800723162 | Z67: 7.786910973e-06 | AA67: 0 | AB67: 9.733638716e-06 | AC67: 100 | AD67: 1 | AE67: 1328.68515 | AF67: 1328.404639 | AG67: 0.3021064937 | AH67: 0.8929361146 | AI67: -0.1339825037 | AJ67: 0.1586237325 | AK67: 0.7797141004 | AL67: 0.01503596433 | AM67: 0.1354898063 | AN67: 0 | AO67: 0.006698755287 | AP67: 0.1395466028 | AQ67: 0.002667926845 | AR67: 0.3516063559 | AS67: 0.1939240642 | AT67: 0.02645767735 | AU67: 0.0007527483387 | AV67: 0 | AW67: 0.0006244597534 | AY67: 47.18338213 | AZ67: 0.9098817761 | BA67: 8.198988965 | BB67: 0 | BC67: 0.4053664417 | BD67: 8.444480716 | BE67: 0.1614461144 | BF67: 21.27700017 | BG67: 11.73506189 | BH67: 1.601051847 | BI67: 0.04555158422 | BJ67: 0 | BK67: 0.03778836775 | BL67: -0.498772518 | BM67: 46.36210159 | BN67: 46.36210159 | BO67: 0.7797141004 | BP67: 0.01503596433 | BQ67: 0.2709796126 | BR67: 0 | BS67: 0.01339751057 | BT67: 0.1395466028 | BU67: 0.002667926845 | BV67: 0.3516063559 | BW67: 0.1939240642 | BX67: 0.05291535469 | BY67: 0.001505496677 | BZ67: 0 | CA67: 0.001248919507 | CB67: 0.4278168292 | CC67: 0.008249996479 | CD67: 0.1486822395 | CE67: 0 | CF67: 0.007351002745 | CG67: 0.07656702003 | CH67: 0.001463849381 | CI67: 0.1929208619 | CJ67: 0.1064030754 | CK67: 0.02903382054 | CL67: 0.0008260422821 | CM67: 0 | CN67: 0.0006852624353 | CO67: 0.02474998944 | CP67: 0.1477774497 | CQ67: 0 | CR67: 7.351002745e-05 | CS67: 7.714372779 | CT67: 0.1139363855 | CU67: 59.52907431 | CV67: 0.2481874958 | CW67: 0.0002903382054 | CX67: 8.260422821e-06 | CY67: 0 | CZ67: 6.852624353e-06 | DA67: 67.67999138 | DB67: 0.4300082237 | DC67: 33.23632191 | DD67: 0.02437942532 | DE67: 0.1455648823 | DF67: 0 | DG67: 7.240941373e-05 | DH67: 7.091554006 | DI67: 0.1122304965 | DJ67: 59.14510444 | DK67: 0.2444715597 | DL67: 0.0002859911765 | DM67: 8.136745344e-06 | DN67: 0 | DO67: 6.750024848e-06 | DP67: 0.3307622691 | DQ67: -0.1339825037 | DR67: -0.1339825037 | DS67: 11.1447332 | DT67: 9.108870741 | DU67: 5.600021016 | DV67: 25.85362496 | DW67: 0.3523247032 | DX67: 0.431070429 | DY67: 0.2166048678 | DZ67: 0.250732578 | EA67: =IF(DW67<700,1/(16.843 + 28.733*DW67 - 14.183*EXP(DW67)),0) -> 0.1472132291 | EB67: 2 | EC67: 0.1586237325 | ED67: 0.2407689877 | EE67: 0.1998949021 | EF67: 0.1586237325 | EG67: 0.2407689877 | EH67: 0 | EI67: 0 | EJ67: 0 | EL67: 0 | EM67: 0 | EN67: 0 | EO67: 0.2152580547 | EP67: 0.003757773356 | EQ67: 3.079600873 | ER67: 3.08567325
A68: 13 | B68: 46.78700193 | C68: 1.189855728 | D68: 13.67952419 | E68: 0 | F68: 1.060938089 | G68: 10.02909416 | H68: 0.1889824732 | I68: 14.51289493 | J68: 10.77015161 | K68: 1.623586322 | L68: 0.07020913824 | M68: 0 | N68: 0.0877614228 | P68: 40.61336922 | Q68: 0.03918040676 | R68: 0.1551512019 | S68: 0 | T68: 0.0001164510534 | U68: 10.14023422 | V68: 0.1587457707 | W68: 48.61751861 | X68: 0.275488571 | Y68: 0.0001782086433 | Z68: 7.70631971e-06 | AA68: 0 | AB68: 9.632899638e-06 | AC68: 100 | AD68: 1 | AE68: 1335.420635 | AF68: 1336.000008 | AG68: 0.3018196696 | AH68: 0.8952356455 | AI68: -0.1076372321 | AJ68: 0.1642863041 | AK68: 0.7786802352 | AL68: 0.01489199775 | AM68: 0.1341629646 | AN68: 0 | AO68: 0.00663243826 | AP68: 0.1395915453 | AQ68: 0.002664088885 | AR68: 0.3600231929 | AS68: 0.1920532038 | AT68: 0.02619574891 | AU68: 0.0007452962033 | AV68: 0 | AW68: 0.0006182776625 | AY68: 47.01440054 | AZ68: 0.8991346066 | BA68: 8.100361442 | BB68: 0 | BC68: 0.4004469291 | BD68: 8.428123029 | BE68: 0.1608497767 | BF68: 21.7371314 | BG68: 11.5956022 | BH68: 1.581621539 | BI68: 0.04499877182 | BJ68: 0 | BK68: 0.03732976947 | BL68: -0.469926504 | BM68: 46.25000854 | BN68: 46.25000854 | BO68: 0.7786802352 | BP68: 0.01489199775 | BQ68: 0.2683259291 | BR68: 0 | BS68: 0.01326487652 | BT68: 0.1395915453 | BU68: 0.002664088885 | BV68: 0.3600231929 | BW68: 0.1920532038 | BX68: 0.05239149782 | BY68: 0.001490592407 | BZ68: 0 | CA68: 0.001236555325 | CB68: 0.4267644317 | CC68: 0.008161726302 | CD68: 0.1470590333 | CE68: 0 | CF68: 0.007269964273 | CG68: 0.07650471119 | CH68: 0.001460083777 | CI68: 0.1973147466 | CJ68: 0.1052569112 | CK68: 0.02871374768 | CL68: 0.0008169358777 | CM68: 0 | CN68: 0.0006777080074 | CO68: 0.02448517891 | CP68: 0.1519576188 | CQ68: 0 | CR68: 7.269964273e-05 | CS68: 7.585471927 | CT68: 0.1117390645 | CU68: 59.68237637 | CV68: 0.2452895297 | CW68: 0.0002871374768 | CX68: 8.169358777e-06 | CY68: 0 | CZ68: 6.777080074e-06 | DA68: 67.70138153 | DB68: 0.4269073189 | DC68: 33.23455352 | DD68: 0.02411095939 | DE68: 0.1496351727 | DF68: 0 | DG68: 7.158853689e-05 | DH68: 6.939565628 | DI68: 0.1100312992 | DJ68: 59.30019372 | DK68: 0.2415406443 | DL68: 0.0002827490078 | DM68: 8.044502286e-06 | DN68: 0 | DO68: 6.673502491e-06 | DP68: 0.3318256954 | DQ68: -0.1076372321 | DR68: -0.1076372321 | DS68: 11.41091536 | DT68: 8.999496049 | DU68: 5.527903485 | DV68: 25.9383149 | DW68: 0.3469576218 | DX68: 0.4399250841 | DY68: 0.2131172941 | DZ68: 0.2456293233 | EA68: 0.1482219717 | EB68: 2 | EC68: 0.1642863041 | ED68: 0.2395157674 | EE68: 0.2074811145 | EF68: 0.1642863041 | EG68: 0.2395157674 | EH68: 0 | EI68: 0 | EJ68: 0 | EL68: 0 | EM68: 0 | EN68: 0 | EO68: 0.2196271615 | EP68: 0.003740340155 | EQ68: 3.018416858 | ER68: 3.024729646
A69: 14 | B69: 46.72587685 | C69: 1.178462903 | D69: 13.54561951 | E69: 0 | F69: 1.050434904 | G69: 10.03019456 | H69: 0.1886831 | I69: 14.85056447 | J69: 10.66624406 | K69: 1.607512974 | L69: 0.06951407456 | M69: 0 | N69: 0.0868925932 | P69: 40.65036303 | Q69: 0.03878680694 | R69: 0.159484855 | S69: 0 | T69: 0.0001152433839 | U69: 9.935550043 | V69: 0.1558456836 | W69: 48.78701361 | X69: 0.2726472108 | Y69: 0.0001763605094 | Z69: 7.626400408e-06 | AA69: 0 | AB69: 9.53300051e-06 | AC69: 100 | AD69: 1 | AE69: 1342.034779 | AF69: 1343.474499 | AG69: 0.3015235827 | AH69: 0.8974535483 | AI69: -0.0821344211 | AJ69: 0.1696789568 | AK69: 0.7776629251 | AL69: 0.01474940742 | AM69: 0.1328496843 | AN69: 0 | AO69: 0.006566777762 | AP69: 0.1396068613 | AQ69: 0.002659868615 | AR69: 0.3683998033 | AS69: 0.1902003256 | AT69: 0.02593641353 | AU69: 0.0007379178429 | AV69: 0 | AW69: 0.0006121567734 | AY69: 46.84766816 | AZ69: 0.8885280779 | BA69: 8.003079127 | BB69: 0 | BC69: 0.3955932777 | BD69: 8.410142366 | BE69: 0.1602347729 | BF69: 22.19299799 | BG69: 11.45797421 | BH69: 1.562451359 | BI69: 0.04445336034 | BJ69: 0 | BK69: 0.03687731079 | BL69: -0.4415284919 | BM69: 46.13817394 | BN69: 46.13817394 | BO69: 0.7776629251 | BP69: 0.01474940742 | BQ69: 0.2656993686 | BR69: 0 | BS69: 0.01313355552 | BT69: 0.1396068613 | BU69: 0.002659868615 | BV69: 0.3683998033 | BW69: 0.1902003256 | BX69: 0.05187282706 | BY69: 0.001475835686 | BZ69: 0 | CA69: 0.001224313547 | CB69: 0.4257235846 | CC69: 0.008074411667 | CD69: 0.1454543916 | CE69: 0 | CF69: 0.007189830138 | CG69: 0.07642634298 | CH69: 0.001456117766 | CI69: 0.2016766902 | CJ69: 0.1041232156 | CK69: 0.02839724663 | CL69: 0.0008079310947 | CM69: 0 | CN69: 0.0006702378819 | CO69: 0.024223235 | CP69: 0.1560991563 | CQ69: 0 | CR69: 7.189830138e-05 | CS69: 7.460943043 | CT69: 0.1096254574 | CU69: 59.83023655 | CV69: 0.2425996982 | CW69: 0.0002839724663 | CX69: 8.079310947e-06 | CY69: 0 | CZ69: 6.702378819e-06 | DA69: 67.72197436 | DB69: 0.4240817129 | DC69: 33.23280128 | DD69: 0.0238457657 | DE69: 0.153666672 | DF69: 0 | DG69: 7.077791422e-05 | DH69: 6.792942038 | DI69: 0.1079171701 | DJ69: 59.44964292 | DK69: 0.2388192809 | DL69: 0.0002795473394 | DM69: 7.953411502e-06 | DN69: 0 | DO69: 6.597936029e-06 | DP69: 0.3328410297 | DQ69: -0.0821344211 | DR69: -0.0821344211 | DS69: 11.67358231 | DT69: 8.891607205 | DU69: 5.456765563 | DV69: 26.02195508 | DW69: 0.3416963552 | DX69: 0.4486051211 | DY69: 0.2096985237 | DZ69: 0.2407684061 | EA69: 0.1492368296 | EB69: 2 | EC69: 0.1696789568 | ED69: 0.2382893068 | EE69: 0.2145042586 | EF69: 0.1696789568 | EG69: 0.2382893068 | EH69: 0 | EI69: 0 | EJ69: 0 | EL69: 0 | EM69: 0 | EN69: 0 | EO69: 0.2239598644 | EP69: 0.003722589677 | EQ69: 2.960102154 | ER69: 2.966641138
A70: 15 | B70: 46.66572325 | C70: 1.167178981 | D70: 13.41308352 | E70: 0 | F70: 1.0400357 | G70: 10.02925749 | H70: 0.188357977 | I70: 15.18656892 | J70: 10.56333716 | K70: 1.59159875 | L70: 0.0688258919 | M70: 0 | N70: 0.08603236488 | P70: 40.686092 | Q70: 0.03839639802 | R70: 0.1637706947 | S70: 0 | T70: 0.0001140459899 | U70: 9.737518979 | V70: 0.1530505159 | W70: 48.95085791 | X70: 0.270007953 | Y70: 0.0001745281003 | Z70: 7.547161094e-06 | AA70: 0 | AB70: 9.433951368e-06 | AC70: 100 | AD70: 1 | AE70: 1348.531696 | AF70: 1350.82838 | AG70: 0.3012165941 | AH70: 0.8995948586 | AI70: -0.05742145697 | AJ70: 0.1748092064 | AK70: 0.7766617833 | AL70: 0.01460818009 | AM70: 0.1315498276 | AN70: 0 | AO70: 0.006501767294 | AP70: 0.1395938185 | AQ70: 0.002655285352 | AR70: 0.3767351074 | AS70: 0.1883652911 | AT70: 0.02567964553 | AU70: 0.0007306125272 | AV70: 0 | AW70: 0.0006060964802 | AY70: 46.68315551 | AZ70: 0.8780603833 | BA70: 7.907124043 | BB70: 0 | BC70: 0.3908046208 | BD70: 8.390627785 | BE70: 0.1596024186 | BF70: 22.64458479 | BG70: 11.3221564 | BH70: 1.543537884 | BI70: 0.04391525238 | BJ70: 0 | BK70: 0.03643091092 | BL70: -0.4135703347 | BM70: 46.02663199 | BN70: 46.02663199 | BO70: 0.7766617833 | BP70: 0.01460818009 | BQ70: 0.2630996552 | BR70: 0 | BS70: 0.01300353459 | BT70: 0.1395938185 | BU70: 0.002655285352 | BV70: 0.3767351074 | BW70: 0.1883652911 | BX70: 0.05135929106 | BY70: 0.001461225054 | BZ70: 0 | CA70: 0.00121219296 | CB70: 0.4246941927 | CC70: 0.007988044971 | CD70: 0.1438681522 | CE70: 0 | CF70: 0.007110592723 | CG70: 0.07633269119 | CH70: 0.001451963124 | CI70: 0.2060062897 | CJ70: 0.1030019076 | CK70: 0.0280842873 | CL70: 0.0007990270775 | CM70: 0 | CN70: 0.0006628513489 | CO70: 0.02396413491 | CP70: 0.1601918645 | CQ70: 0 | CR70: 7.110592723e-05 | CS70: 7.340542494 | CT70: 0.1075906658 | CU70: 59.97299057 | CV70: 0.2400982034 | CW70: 0.000280842873 | CX70: 7.990270775e-06 | CY70: 0 | CZ70: 6.628513489e-06 | DA70: 67.74183217 | DB70: 0.4215013443 | DC70: 33.23107024 | DD70: 0.02358378779 | DE70: 0.1576493769 | DF70: 0 | DG70: 6.997736844e-05 | DH70: 6.651355192 | DI70: 0.1058830389 | DJ70: 59.59381013 | DK70: 0.2362874812 | DL70: 0.0002763854711 | DM70: 7.863453073e-06 | DN70: 0 | DO70: 6.523308939e-06 | DP70: 0.3338112702 | DQ70: -0.05742145697 | DR70: -0.05742145697 | DS70: 11.93277756 | DT70: 8.785184426 | DU70: 5.386591992 | DV70: 26.10455398 | DW70: 0.3365383846 | DX70: 0.4571147843 | DY70: 0.2063468311 | DZ70: 0.2361342185 | EA70: 0.1502574531 | EB70: 2 | EC70: 0.1748092064 | ED70: 0.2370887312 | EE70: 0.2210104308 | EF70: 0.1748092064 | EG70: 0.2370887312 | EH70: 0 | EI70: 0 | EJ70: 0 | EL70: 0 | EM70: 0 | EN70: 0 | EO70: 0.2282559797 | EP70: 0.003704544282 | EQ70: 2.904467709 | ER70: 2.911221335
A71: 16 | B71: 46.60651898 | C71: 1.156002916 | D71: 13.28190221 | E71: 0 | F71: 1.029739446 | G71: 10.02636899 | H71: 0.1880083982 | I71: 15.52086881 | J71: 10.46142301 | K71: 1.575842075 | L71: 0.06814452215 | M71: 0 | N71: 0.08518065269 | P71: 40.72059403 | Q71: 0.03800927805 | R71: 0.1680006171 | S71: 0 | T71: 0.0001128591528 | U71: 9.545982033 | V71: 0.1503542769 | W71: 49.10920541 | X71: 0.2675519766 | Y71: 0.0001727118468 | Z71: 7.468620403e-06 | AA71: 0 | AB71: 9.335775504e-06 | AC71: 100 | AD71: 1 | AE71: 1354.915288 | AF71: 1358.062044 | AG71: 0.3009054474 | AH71: 0.9016617797 | AI71: -0.03340975464 | AJ71: 0.1796849354 | AK71: 0.7756764414 | AL71: 0.01446830268 | AM71: 0.130263257 | AN71: 0 | AO71: 0.006437400419 | AP71: 0.1395536145 | AQ71: 0.002650357334 | AR71: 0.3850281265 | AS71: 0.1865479593 | AT71: 0.02542541949 | AU71: 0.0007233795331 | AV71: 0 | AW71: 0.000600096183 | AY71: 46.52083315 | AZ71: 0.8677297122 | BA71: 7.812478142 | BB71: 0 | BC71: 0.3860800907 | BD71: 8.369663004 | BE71: 0.1589539462 | BF71: 23.09188249 | BG71: 11.18812694 | BH71: 1.524877687 | BI71: 0.04338435044 | BJ71: 0 | BK71: 0.03599048896 | BL71: -0.3860440171 | BM71: 45.91541498 | BN71: 45.91541498 | BO71: 0.7756764414 | BP71: 0.01446830268 | BQ71: 0.2605265139 | BR71: 0 | BS71: 0.01287480084 | BT71: 0.1395536145 | BU71: 0.002650357334 | BV71: 0.3850281265 | BW71: 0.1865479593 | BX71: 0.05085083899 | BY71: 0.001446759066 | BZ71: 0 | CA71: 0.001200192366 | CB71: 0.4236761594 | CC71: 0.007902618395 | CD71: 0.1423001486 | CE71: 0 | CF71: 0.007032244221 | CG71: 0.07622448776 | CH71: 0.00144763094 | CI71: 0.2103032001 | CJ71: 0.1018929011 | CK71: 0.02777483886 | CL71: 0.0007902229486 | CM71: 0 | CN71: 0.0006555476807 | CO71: 0.02370785519 | CP71: 0.1642277399 | CQ71: 0 | CR71: 7.032244221e-05 | CS71: 7.22402848 | CT71: 0.1056299216 | CU71: 60.11078532 | CV71: 0.2377671718 | CW71: 0.0002777483886 | CX71: 7.902229486e-06 | CY71: 0 | CZ71: 6.555476807e-06 | DA71: 67.76083339 | DB71: 0.4191404519 | DC71: 33.22936411 | DD71: 0.02332503306 | DE71: 0.1615758757 | DF71: 0 | DG71: 6.918691196e-05 | DH71: 6.514663825 | DI71: 0.1039242645 | DJ71: 59.73286239 | DK71: 0.2339278311 | DL71: 0.0002732634519 | DM71: 7.774628391e-06 | DN71: 0 | DO71: 6.449622374e-06 | DP71: 0.3347391842 | DQ71: -0.03340975464 | DR71: -0.03340975464 | DS71: 12.18854496 | DT71: 8.680207854 | DU71: 5.317367845 | DV71: 26.18612066 | DW71: 0.3314812441 | DX71: 0.4654582142 | DY71: 0.2030605417 | DZ71: 0.2317123454 | EA71: 0.1512835082 | EB71: 2 | EC71: 0.1796849354 | ED71: 0.2359132166 | EE71: 0.2270427242 | EF71: 0.1796849354 | EG71: 0.2359132166 | EH71: 0 | EI71: 0 | EJ71: 0 | EL71: 0 | EM71: 0 | EN71: 0 | EO71: 0.2325153689 | EP71: 0.003686224931 | EQ71: 2.8513403 | ER71: 2.858291518
A72: 17 | B72: =(B71+0.01*P71)/1.01 -> 46.5482425 | C72: 1.144933672 | D72: 13.1520616 | E72: 0 | F72: 1.019545123 | G72: 10.02161268 | H72: 0.1876355851 | I72: 15.8534266 | J72: 10.36049359 | K72: 1.560241388 | L72: 0.06746989786 | M72: 0 | N72: 0.08433737233 | P72: 40.75396821 | Q72: 0.03762544234 | R72: 0.1721659365 | S72: 0 | T72: 0.0001116828488 | U72: 9.360454874 | V72: 0.1477515803 | W72: 49.26247319 | X72: 0.2652615406 | Y72: 0.0001709117125 | Z72: 7.390776757e-06 | AA72: 0 | AB72: 9.238470946e-06 | AC72: 100 | AD72: 1 | AE72: 1361.189228 | AF72: 1365.175958 | AG72: 0.3005842873 | AH72: 0.9036599725 | AI72: -0.01019224508 | AJ72: 0.1843142531 | AK72: 0.7747065407 | AL72: 0.01432976223 | AM72: 0.1289898354 | AN72: 0 | AO72: 0.006373670767 | AP72: 0.1394874131 | AQ72: 0.002645101782 | AR72: 0.393277929 | AS72: 0.1847481872 | AT72: 0.02517371026 | AU72: 0.0007162181444 | AV72: 0 | AW72: 0.0005941552878 | AY72: 46.36067183 | AZ72: 0.8575342652 | BA72: 7.719123455 | BB72: 0 | BC72: 0.3814188254 | BD72: 8.347328753 | BE72: 0.1582905129 | BF72: 23.53488456 | BG72: 11.05586391 | BH72: 1.506467364 | BI72: 0.04286055766 | BJ72: 0 | BK72: 0.03555596457 | BL72: -0.358941686 | BM72: 45.80455346 | BN72: 45.80455346 | BO72: 0.7747065407 | BP72: 0.01432976223 | BQ72: 0.2579796708 | BR72: 0 | BS72: 0.01274734153 | BT72: 0.1394874131 | BU72: 0.002645101782 | BV72: 0.393277929 | BW72: 0.1847481872 | BX72: 0.05034742051 | BY72: 0.001432436289 | BZ72: 0 | CA72: 0.001188310576 | CB72: 0.4226693869 | CC72: 0.007818124022 | CD72: 0.1407502113 | CE72: 0 | CF72: 0.006954776742 | CG72: 0.07610244172 | CH72: 0.001443131676 | CI72: 0.2145671069 | CJ72: 0.1007961066 | CK72: 0.02746887014 | CL72: 0.0007815178216 | CM72: 0 | CN72: 0.0006483261417 | CO72: 0.02345437207 | CP72: 0.1681986164 | CQ72: 0 | CR72: 6.954776742e-05 | CS72: 7.111202384 | CT72: 0.1037391909 | CU72: 60.24399817 | CV72: 0.2355903875 | CW72: 0.0002746887014 | CX72: 7.815178216e-06 | CY72: 0 | CZ72: 6.483261417e-06 | DA72: 67.77913246 | DB72: 0.4169738774 | DC72: 33.22768706 | DD72: 0.02306941307 | DE72: 0.1654379554 | DF72: 0 | DG72: 6.840627284e-05 | DH72: 6.382497226 | DI72: 0.102036509 | DJ72: 59.86719556 | DK72: 0.2317236185 | DL72: 0.0002701802078 | DM72: 7.686906901e-06 | DN72: 0 | DO72: 6.376850988e-06 | DP72: 0.3356273234 | DQ72: -0.01019224508 | DR72: -0.01019224508 | DS72: 12.44092828 | DT72: 8.57665772 | DU72: 5.24907857 | DV72: 26.26666457 | DW72: 0.3265225281 | DX72: 0.4736394394 | DY72: 0.1998380325 | DZ72: 0.2274894752 | EA72: 0.1523146742 | EB72: 2 | EC72: 0.1843142531 | ED72: 0.2347619846 | EE72: 0.23264142 | EF72: 0.1843142531 | EG72: 0.2347619846 | EH72: 0 | EI72: 0 | EJ72: 0 | EL72: 0 | EM72: 0 | EN72: 0 | EO72: 0.2367379175 | EP72: 0.003667651863 | EQ72: 2.800561152 | ER72: 2.807699607
A73: 18 | B73: 46.49087345 | C73: 1.133970224 | D73: 13.02354778 | E73: 0 | F73: 1.009451723 | G73: 10.01506656 | H73: 0.187240694 | I73: 16.18420923 | J73: 10.2605408 | K73: 1.544795146 | L73: 0.06680195225 | M73: 0 | N73: 0.08350244031 | P73: 40.78626474 | Q73: 0.03724494203 | R73: 0.1762602039 | S73: 0 | T73: 0.0001105172196 | U73: 9.180705039 | V73: 0.1452373216 | W73: 49.41087066 | X73: 0.2631209915 | Y73: 0.0001691279142 | Z73: 7.313639533e-06 | AA73: 0 | AB73: 9.142049417e-06 | AC73: 100 | AD73: 1 | AE73: 1367.357022 | AF73: 1372.170712 | AG73: 0.3002556389 | AH73: 0.9055923375 | AI73: 0.01243097431 | AJ73: 0.1887053995 | AK73: 0.7737517424 | AL73: 0.01419254589 | AM73: 0.1277294264 | AN73: 0 | AO73: 0.006310572029 | AP73: 0.1393962999 | AQ73: 0.002639534996 | AR73: 0.4014836951 | AS73: 0.1829658303 | AT73: 0.0249244929 | AU73: 0.0007091276525 | AV73: 0 | AW73: 0.0005882732066 | AY73: 46.20264231 | AZ73: 0.8474722388 | BA73: 7.627041955 | BB73: 0 | BC73: 0.376819962 | BD73: 8.323700006 | BE73: 0.157613204 | BF73: 23.97359068 | BG73: 10.92534511 | BH73: 1.488303505 | BI73: 0.04234377706 | BJ73: 0 | BK73: 0.0351272573 | BL73: -0.3322556079 | BM73: 45.69407617 | BN73: 45.69407617 | BO73: 0.7737517424 | BP73: 0.01419254589 | BQ73: 0.2554588529 | BR73: 0 | BS73: 0.01262114406 | BT73: 0.1393962999 | BU73: 0.002639534996 | BV73: 0.4014836951 | BW73: 0.1829658303 | BX73: 0.04984898581 | BY73: 0.001418255305 | BZ73: 0 | CA73: 0.001176546413 | CB73: 0.4216737757 | CC73: 0.007734553716 | CD73: 0.1392181667 | CE73: 0 | CF73: 0.006878182208 | CG73: 0.07596721387 | CH73: 0.001438475194 | CI73: 0.2187977569 | CJ73: 0.09971142975 | CK73: 0.02716634924 | CL73: 0.0007729107885 | CM73: 0 | CN73: 0.0006411859788 | CO73: 0.02320366115 | CP73: 0.1720982579 | CQ73: 0 | CR73: 6.878182208e-05 | CS73: 7.00186307 | CT73: 0.1019144979 | CU73: 60.3728225 | CV73: 0.2335531838 | CW73: 0.0002716634924 | CX73: 7.729107885e-06 | CY73: 0 | CZ73: 6.411859788e-06 | DA73: 67.79669987 | DB73: 0.4149801785 | DC73: 33.22604209 | DD73: 0.02281690327 | DE73: 0.1692297297 | DF73: 0 | DG73: 6.76353689e-05 | DH73: 6.25466686 | DI73: 0.1002157904 | DJ73: 59.99701963 | DK73: 0.2296603269 | DL73: 0.0002671354141 | DM73: 7.600279365e-06 | DN73: 0 | DO73: 6.304987117e-06 | DP73: 0.3364780511 | DQ73: 0.01243097431 | DR73: 0.01143497547 | DS73: 12.68997159 | DT73: 8.474514194 | DU73: 5.18170988 | DV73: 26.34619566 | DW73: 0.3216598822 | DX73: 0.4816623907 | DY73: 0.1966777271 | DZ73: 0.223453304 | EA73: 0.1533506449 | EB73: 2 | EC73: 0.1887053995 | ED73: 0.2336342998 | EE73: 0.2378441847 | EF73: 0.1887053995 | EG73: 0.2336342998 | EH73: 0 | EI73: 0 | EJ73: 0 | EL73: 0 | EM73: 0 | EN73: 0 | EO73: 0.2409235586 | EP73: 0.003648843782 | EQ73: 2.751984184 | ER73: 2.759298055
A74: 19 | B74: 46.43439217 | C74: 1.123111558 | D74: 12.89634691 | E74: 0 | F74: 0.9994582456 | G74: 10.00680556 | H74: 0.186824819 | I74: 16.51318608 | J74: 10.16155645 | K74: 1.529501819 | L74: 0.06614061919 | M74: 0 | N74: 0.08267577399 | P74: =DC74*BO$25*100/SUMPRODUCT($DC74:$DO74,$BO$25:$CA$25) -> 40.81754044 | Q74: 0.03686780585 | R74: 0.1802776139 | S74: 0 | T74: 0.0001093623404 | U74: 9.006461411 | V74: 0.1428067871 | W74: 49.55463693 | X74: 0.2611160074 | Y74: 0.0001673605668 | Z74: 7.237213701e-06 | AA74: 0 | AB74: 9.046517127e-06 | AC74: 100 | AD74: 1 | AE74: 1373.421987 | AF74: 1379.046974 | AG74: 0.2999199174 | AH74: 0.9074621526 | AI74: 0.03446945189 | AJ74: 0.1928666549 | AK74: 0.7728117196 | AL74: 0.01405664099 | AM74: 0.1264818944 | AN74: 0 | AO74: 0.006248097958 | AP74: 0.1392813178 | AQ74: 0.0026336724 | AR74: 0.4096446647 | AS74: =J74/AS$25 -> 0.1812007426 | AT74: 0.02467774276 | AU74: 0.0007021073553 | AV74: 0 | AW74: 0.0005824493571 | AY74: =AK74*100/SUM($AK74:$AW74) -> 46.04671553 | AZ74: 0.8375418391 | BA74: =AM74*100/SUM($AK74:$AW74) -> 7.536215694 | BB74: 0 | BC74: 0.3722826427 | BD74: 8.298848292 | BE74: 0.1569230392 | BF74: 24.40800375 | BG74: 10.79654829 | BH74: 1.470382724 | BI74: 0.04183391225 | BJ74: 0 | BK74: 0.03470428719 | BL74: -0.3059781987 | BM74: 45.58401021 | BN74: 45.58401021 | BO74: 0.7728117196 | BP74: 0.01405664099 | BQ74: 0.2529637887 | BR74: 0 | BS74: 0.01249619592 | BT74: 0.1392813178 | BU74: 0.0026336724 | BV74: 0.4096446647 | BW74: =J74/BW$25 -> 0.1812007426 | BX74: 0.04935548553 | BY74: 0.001404214711 | BZ74: 0 | CA74: 0.001164898714 | CB74: 0.4206892253 | CC74: 0.007651899237 | CD74: =BQ74/SUM($BO74:$CA74) -> 0.1377038386 | CE74: 0 | CF74: 0.006802452455 | CG74: 0.07581943725 | CH74: 0.001433670807 | CI74: 0.2229949317 | CJ74: 0.09863877333 | CK74: 0.02686724392 | CL74: 0.0007644009321 | CM74: 0 | CN74: 0.000634126431 | CO74: 0.02295569771 | CP74: 0.1759211278 | CQ74: =(CQ$23*(2/3)*$AH74/$CI74+CQ$24)*CE74*100 -> 0 | CR74: 6.802452455e-05 | CS74: 6.895828148 | CT74: 0.1001522199 | CU74: 60.49747684 | CV74: 0.2316422555 | CW74: =(CW$23*(2/3)*$AH74/$CI74+CW$24)*CK74*100 -> 0.0002686724392 | CX74: 7.644009321e-06 | CY74: 0 | CZ74: 6.34126431e-06 | DA74: 67.81355204 | DB74: 0.4131396923 | DC74: 33.22443186 | DD74: =CO74*(200/3)/$DA74 -> 0.02256746331 | DE74: 0.1729458911 | DF74: 0 | DG74: 6.687407114e-05 | DH74: 6.130958772 | DI74: 0.09845841218 | DJ74: 60.1225682 | DK74: =CV74*(200/3)/$DA74 -> 0.2277246446 | DL74: 0.0002641285614 | DM74: 7.51473129e-06 | DN74: 0 | DO74: 6.234018737e-06 | DP74: 0.3372935534 | DQ74: 0.03446945189 | DR74: 0.03672751373 | DS74: 12.93571886 | DT74: 8.373757533 | DU74: 5.115247805 | DV74: 26.42472419 | DW74: 0.3168910098 | DX74: 0.4895308939 | DY74: 0.1935780963 | DZ74: 0.2195924573 | EA74: 0.1543911263 | EB74: 2 | EC74: 0.1928666549 | ED74: 0.2325294656 | EE74: 0.2426862379 | EF74: 0.1928666549 | EG74: 0.2325294656 | EH74: 0 | EI74: 0 | EJ74: 0 | EL74: 0 | EM74: 0 | EN74: 0 | EO74: 0.2450722526 | EP74: 0.003629818521 | EQ74: 2.705474982 | ER74: 2.712952997
A75: 20 | B75: 46.37877978 | C75: 1.11235667 | D75: 12.77044524 | E75: 0 | F75: 0.9895637022 | G75: 9.99690116 | H75: 0.1863889969 | I75: 16.84032916 | J75: 10.06353228 | K75: 1.514359893 | L75: 0.06548583323 | M75: 0 | N75: 0.08185729154 | P75: 40.84784819 | Q75: 0.03649405662 | R75: 0.1842132006 | S75: 0 | T75: 0.0001082182684 | U75: 8.837470269 | V75: 0.1404555936 | W75: 49.69399518 | X75: 0.2592335742 | Y75: 0.0001656097581 | Z75: 7.161503053e-06 | AA75: 0 | AB75: 8.951878816e-06 | AC75: 100 | AD75: 1 | AE75: 1379.387274 | AF75: 1385.805488 | AG75: 0.299577526 | AH75: 0.9092724729 | AI75: 0.0558367432 | AJ75: 0.1968062755 | AK75: =B75/AK$25 -> 0.7718861576 | AL75: 0.01392203494 | AM75: 0.1252471042 | AN75: 0 | AO75: 0.006186242371 | AP75: 0.1391434618 | AQ75: 0.002627528609 | AR75: 0.4177601438 | AS75: 0.179452777 | AT75: 0.02443343541 | AU75: 0.000695156558 | AV75: 0 | AW75: 0.0005766831628 | AY75: 45.89286264 | AZ75: 0.8277412814 | BA75: 7.446626801 | BB75: 0 | BC75: 0.3678060147 | BD75: 8.272841428 | BE75: 0.1562209768 | BF75: 24.83813022 | BG75: 10.66945114 | BH75: 1.452701651 | BI75: 0.0413308674 | BJ75: 0 | BK75: 0.03428697473 | BL75: -0.2801020159 | BM75: 45.47438112 | BN75: 45.47438112 | BO75: =B75/BO$25 -> 0.7718861576 | BP75: 0.01392203494 | BQ75: 0.2504942083 | BR75: 0 | BS75: 0.01237248474 | BT75: 0.1391434618 | BU75: 0.002627528609 | BV75: 0.4177601438 | BW75: 0.179452777 | BX75: 0.04886687083 | BY75: 0.001390313116 | BZ75: 0 | CA75: 0.001153366326 | CB75: 0.4197156343 | CC75: 0.007570152241 | CD75: 0.1362070488 | CE75: 0 | CF75: 0.00672757923 | CG75: 0.07565971455 | CH75: 0.001428727314 | CI75: 0.2271584508 | CJ75: 0.09757803712 | CK75: 0.02657152157 | CL75: 0.0007559873248 | CM75: 0 | CN75: 0.000627146729 | CO75: 0.02271045672 | CP75: 0.1796625125 | CQ75: 0 | CR75: 6.72757923e-05 | CS75: 6.792928109 | CT75: 0.09844899622 | CU75: 60.61816486 | CV75: 0.2298455277 | CW75: 0.0002657152157 | CX75: 7.559873248e-06 | CY75: 0 | CZ75: 6.27146729e-06 | DA75: 67.82970534 | DB75: 0.4114346595 | DC75: 33.22285869 | DD75: 0.022321053 | DE75: 0.1765819382 | DF75: 0 | DG75: 6.612225126e-05 | DH75: 6.011173358 | DI75: 0.09676094539 | DJ75: 60.24405865 | DK75: 0.2259044928 | DL75: 0.0002611591429 | DM75: 7.430248257e-06 | DN75: 0 | DO75: 6.163933888e-06 | DP75: 0.3380758563 | DQ75: 0.0558367432 | DR75: 0.06706870118 | DS75: 13.178214 | DT75: 8.274368082 | DU75: 5.049678659 | DV75: 26.50226074 | DW75: 0.3122136698 | DX75: 0.4972486735 | DY75: 0.1905376567 | DZ75: 0.215896412 | EA75: 0.1554358364 | EB75: 2 | EC75: 0.1968062755 | ED75: 0.2314468216 | EE75: 0.2472005186 | EF75: 0.1968062755 | EG75: 0.2314468216 | EH75: 0 | EI75: 0 | EJ75: 0 | EL75: 0 | EM75: 0 | EN75: 0 | EO75: 0.2491839886 | EP75: 0.003610592957 | EQ75: 2.660909626 | ER75: 2.66854104
A76: 21 | B76: 46.32401808 | C76: 1.101704565 | D76: 12.64582908 | E76: 0 | F76: 0.9797671132 | G76: 9.985421646 | H76: 0.1859342107 | I76: 17.16561298 | J76: 9.966460018 | K76: 1.499367871 | L76: 0.06483752955 | M76: 0 | N76: 0.08104691194 | P76: 40.87723721 | Q76: 0.03612371177 | R76: 0.1880627481 | S76: 0 | T76: 0.0001070850448 | U76: 8.673493889 | V76: 0.1381796601 | W76: 49.82915402 | X76: 0.2574618582 | Y76: 0.0001638755511 | Z76: 7.086510319e-06 | AA76: 0 | AB76: 8.858137899e-06 | AC76: 100 | AD76: 1 | AE76: 1385.255878 | AF76: 1392.447069 | AG76: 0.2992288554 | AH76: 0.9110261499 | AI76: 0.07674997551 | AJ76: 0.2005324416 | AK76: 0.7709747537 | AL76: 0.01378871531 | AM76: 0.1240249218 | AN76: 0 | AO76: 0.006124999145 | AP76: 0.1389836824 | AQ76: 0.002621117481 | AR76: 0.4258295001 | AS76: 0.1777217857 | AT76: 0.02419154667 | AU76: 0.0006882745725 | AV76: 0 | AW76: 0.0005709740529 | AY76: 45.74105497 | AZ76: 0.8180687914 | BA76: 7.358257503 | BB76: 0 | BC76: 0.3633892306 | BD76: 8.24574375 | BE76: 0.155507918 | BF76: 25.26397976 | BG76: 10.54403134 | BH76: 1.43525694 | BI76: 0.04083454731 | BJ76: 0 | BK76: 0.03387524094 | BL76: -0.2546197582 | BM76: 45.36521292 | BN76: 45.36521292 | BO76: 0.7709747537 | BP76: 0.01378871531 | BQ76: 0.2480498436 | BR76: 0 | BS76: 0.01224999829 | BT76: 0.1389836824 | BU76: 0.002621117481 | BV76: 0.4258295001 | BW76: 0.1777217857 | BX76: 0.04838309333 | BY76: 0.001376549145 | BZ76: 0 | CA76: 0.001141948106 | CB76: 0.4187529006 | CC76: 0.007489304291 | CD76: 0.1347276172 | CE76: 0 | CF76: 0.006653554207 | CG76: 0.0754886199 | CH76: 0.001423653035 | CI76: 0.231288168 | CJ76: 0.09652911834 | CK76: 0.02627914932 | CL76: 0.0007476690313 | CM76: 0 | CN76: 0.0006202460967 | CO76: 0.02246791287 | CP76: 0.1833184323 | CQ76: 0 | CR76: 6.653554207e-05 | CS76: 6.693005213 | CT76: 0.09680170547 | CU76: 60.73507666 | CV76: 0.2281520341 | CW76: 0.0002627914932 | CX76: 7.476690313e-06 | CY76: 0 | CZ76: 6.202460967e-06 | DA76: 67.84517607 | DB76: 0.4098490331 | DC76: 33.22132449 | DD76: 0.02207763241 | DE76: 0.1801340866 | DF76: 0 | DG76: 6.537978175e-05 | DH76: 5.89512416 | DI76: 0.09512020463 | DJ76: 60.36169347 | DK76: 0.2241889031 | DL76: 0.000258226655 | DM76: 7.346815938e-06 | DN76: 0 | DO76: 6.094720682e-06 | DP76: 0.3388268393 | DQ76: 0.07674997551 | DR76: 0.1012380128 | DS76: 13.41750078 | DT76: 8.176326294 | DU76: 4.984989031 | DV76: 26.57881611 | DW76: 0.3076256769 | DX76: 0.5048193541 | DY76: 0.187554969 | DZ76: 0.2123554249 | EA76: 0.1564845045 | EB76: 2 | EC76: 0.2005324416 | ED76: 0.2303857405 | EE76: 0.2514178389 | EF76: 0.2005324416 | EG76: 0.2303857405 | EH76: 0 | EI76: 0 | EJ76: 0 | EL76: 0 | EM76: 0 | EN76: 0 | EO76: 0.2532587821 | EP76: 0.00359118307 | EQ76: 2.618173704 | ER76: 2.625948279
A77: 22 | B77: 46.27008956 | C77: 1.091154259 | D77: 12.52248486 | E77: 0 | F77: 0.970067509 | G77: 9.972432262 | H77: 0.1854613934 | I77: 17.48901438 | J77: 9.870331323 | K77: 1.484524267 | L77: 0.06419564398 | M77: 0 | N77: 0.08024455497 | P77: 40.90575339 | Q77: 0.03575678393 | R77: 0.1918227106 | S77: 0 | T77: 0.0001059626966 | U77: 8.514309271 | V77: 0.1359751825 | W77: 49.96030867 | X77: 0.2557900923 | Y77: 0.000162157987 | Z77: 7.012237275e-06 | AA77: 0 | AB77: 8.765296594e-06 | AC77: 100 | AD77: 1 | AE77: 1391.030646 | AF77: 1398.972594 | AG77: 0.2988742836 | AH77: 0.9127258483 | AI77: 0.09706777862 | AJ77: 0.2040532175 | AK77: 0.7700772165 | AL77: 0.01365666978 | AM77: 0.1228152141 | AN77: 0 | AO77: 0.006064362217 | AP77: 0.1388028876 | AQ77: 0.002614452167 | AR77: 0.4338521589 | AS77: 0.17600762 | AT77: 0.02395205258 | AU77: 0.0006814607176 | AV77: 0 | AW77: 0.0005653214623 | AY77: 45.5912641 | AZ77: 0.8085226072 | BA77: 7.271090144 | BB77: 0 | BC77: 0.3590314497 | BD77: 8.217616325 | BE77: 0.1547847108 | BF77: 25.68556494 | BG77: 10.42026659 | BH77: 1.418045271 | BI77: 0.04034485748 | BJ77: 0 | BK77: 0.03346900744 | BL77: -0.229524265 | BM77: 45.25652818 | BN77: 45.25652818 | BO77: 0.7700772165 | BP77: 0.01365666978 | BQ77: 0.2456304281 | BR77: 0 | BS77: 0.01212872443 | BT77: 0.1388028876 | BU77: 0.002614452167 | BV77: 0.4338521589 | BW77: 0.17600762 | BX77: 0.04790410516 | BY77: 0.001362921435 | BZ77: 0 | CA77: 0.001130642925 | CB77: 0.4178009215 | CC77: 0.007409346878 | CD77: 0.1332653622 | CE77: 0 | CF77: 0.006580369002 | CG77: 0.07530670054 | CH77: 0.00141845584 | CI77: 0.2353839691 | CJ77: 0.09549191204 | CK77: 0.02599009404 | CL77: 0.0007394451092 | CM77: 0 | CN77: 0.0006134237523 | CO77: 0.02222804063 | CP77: 0.1868855614 | CQ77: 0 | CR77: 6.580369002e-05 | CS77: 6.595912497 | CT77: 0.09520744452 | CU77: 60.84838989 | CV77: 0.2265518086 | CW77: 0.0002599009404 | CX77: 7.394451092e-06 | CY77: 0 | CZ77: 6.134237523e-06 | DA77: 67.85998037 | DB77: 0.4083683095 | DC77: 33.21983089 | DD77: 0.02183716187 | DE77: 0.1835991899 | DF77: 0 | DG77: 6.464653606e-05 | DH77: 5.782636782 | DI77: 0.0935332273 | DJ77: 60.47566158 | DK77: 0.2225679086 | DL77: 0.0002553305979 | DM77: 7.264420111e-06 | DN77: 0 | DO77: 6.026367323e-06 | DP77: 0.3395482477 | DQ77: 0.09706777862 | DR77: 0.1375210744 | DS77: 13.65362279 | DT77: 8.079612752 | DU77: 4.921165775 | DV77: 26.65440132 | DW77: 0.3031249006 | DX77: 0.5122464628 | DY77: 0.1846286366 | DZ77: 0.208960468 | EA77: 0.1575368705 | EB77: 2 | EC77: 0.2040532175 | ED77: 0.2293456262 | EE77: 0.2553670286 | EF77: 0.2040532175 | EG77: 0.2293456262 | EH77: 0 | EI77: 0 | EJ77: 0 | EL77: 0 | EM77: 0 | EN77: 0 | EO77: 0.2572966733 | EP77: 0.003571603997 | EQ77: 2.57716143 | ER77: 2.585069413
A78: 23 | B78: 46.21697732 | C78: 1.080704779 | D78: 12.40039909 | E78: 0 | F78: 0.9604639293 | G78: 9.957995401 | H78: 0.1849714309 | I78: 17.81051234 | J78: 9.775137846 | K78: 1.469827612 | L78: 0.06356011297 | M78: 0 | N78: 0.07945014121 | P78: 40.93343957 | Q78: 0.03539328131 | R78: 0.1954901413 | S78: 0 | T78: 0.0001048512375 | U78: 8.359706994 | V78: 0.1338386107 | W78: 50.08764201 | X78: 0.2542084752 | Y78: 0.0001604570868 | Z78: 6.938684835e-06 | AA78: 0 | AB78: 8.673356044e-06 | AC78: 100 | AD78: 1 | AE78: 1396.71429 | AF78: 1405.382998 | AG78: 0.2985141762 | AH78: 0.9143740615 | AI78: 0.116926612 | AJ78: 0.2073765208 | AK78: 0.7691932648 | AL78: 0.01352588617 | AM78: 0.1216178487 | AN78: 0 | AO78: 0.006004325585 | AP78: 0.1386019458 | AQ78: 0.002607545159 | AR78: 0.4418275989 | AS78: 0.1743101312 | AT78: 0.02371492945 | AU78: 0.0006747143187 | AV78: 0 | AW78: 0.0005597248315 | AY78: 45.44346183 | AZ78: 0.7991009803 | BA78: 7.185107202 | BB78: 0 | BC78: 0.3547318379 | BD78: 8.188517143 | BE78: 0.1540521535 | BF78: 26.10290098 | BG78: 10.29813462 | BH78: 1.401063349 | BI78: 0.03986170419 | BJ78: 0 | BK78: 0.03306819649 | BL78: -0.2048085149 | BM78: 45.14834811 | BN78: 45.14834811 | BO78: 0.7691932648 | BP78: 0.01352588617 | BQ78: 0.2432356975 | BR78: 0 | BS78: 0.01200865117 | BT78: 0.1386019458 | BU78: 0.002607545159 | BV78: 0.4418275989 | BW78: 0.1743101312 | BX78: 0.0474298589 | BY78: 0.001349428637 | BZ78: 0 | CA78: 0.001119449663 | CB78: 0.4168595936 | CC78: 0.00733027143 | CD78: 0.1318201012 | CE78: 0 | CF78: 0.006508015185 | CG78: 0.07511447833 | CH78: 0.001413143179 | CI78: 0.2394457697 | CJ78: 0.09446631136 | CK78: 0.02570432245 | CL78: 0.0007313146113 | CM78: 0 | CN78: 0.0006066789102 | CO78: 0.02199081429 | CP78: 0.1903611577 | CQ78: 0 | CR78: 6.508015185e-05 | CS78: 6.501512874 | CT78: 0.09366351002 | CU78: 60.95827077 | CV78: 0.2250357886 | CW78: 0.0002570432245 | CX78: 7.313146113e-06 | CY78: 0 | CZ78: 6.066789102e-06 | DA78: 67.87413423 | DB78: 0.4069793764 | DC78: 33.2183792 | DD78: 0.02159960201 | DE78: 0.1869746699 | DF78: 0 | DG78: 6.392238868e-05 | DH78: 5.67354791 | DI78: 0.0919972545 | DJ78: 60.58613938 | DK78: 0.2210324459 | DL78: 0.0002524704759 | DM78: 7.183046675e-06 | DN78: 0 | DO78: 5.958862111e-06 | DP78: 0.3402417044 | DQ78: 0.116926612 | DR78: 0.1747965127 | DS78: 13.8866234 | DT78: 7.984208182 | DU78: 4.858195997 | DV78: 26.72902758 | DW78: 0.298709265 | DX78: 0.5195334307 | DY78: 0.1817573042 | DZ78: 0.2057031684 | EA78: 0.1585926844 | EB78: 2 | EC78: 0.2073765208 | ED78: 0.2283259109 | EE78: 0.2590750698 | EF78: 0.2073765208 | EG78: 0.2283259109 | EH78: 0 | EI78: 0 | EJ78: 0 | EL78: 0 | EM78: 0 | EN78: 0 | EO78: 0.2612977246 | EP78: 0.003551870086 | EQ78: 2.537774861 | ER78: 2.545806962
A79: 24 | B79: 46.16466506 | C79: 1.07035516 | D79: 12.27955841 | E79: 0 | F79: 0.9509554236 | G79: 9.942170763 | H79: 0.1844651654 | I79: 18.13008788 | J79: 9.680871218 | K79: 1.455276452 | L79: 0.06293087362 | M79: 0 | N79: 0.07866359202 | P79: 40.96033576 | Q79: 0.03503320823 | R79: 0.1990626286 | S79: 0 | T79: 0.0001037506696 | U79: 8.209490171 | V79: 0.131766628 | W79: 50.21132555 | X79: 0.2527080803 | Y79: 0.0001587728537 | Z79: 6.865853134e-06 | AA79: 0 | AB79: 8.582316417e-06 | AC79: 100 | AD79: 1 | AE79: 1402.309393 | AF79: 1411.679268 | AG79: 0.2981488865 | AH79: 0.9159731254 | AI79: 0.1363846992 | AJ79: 0.2105100992 | AK79: 0.7683226273 | AL79: 0.0133963524 | AM79: 0.1204326946 | AN79: 0 | AO79: 0.005944883307 | AP79: 0.1383816881 | AQ79: 0.002600408325 | AR79: 0.4497553492 | AS79: 0.1726291699 | AT79: 0.0234801538 | AU79: 0.0006680347082 | AV79: 0 | AW79: 0.0005541836065 | AY79: 45.29762024 | AZ79: 0.7898021769 | BA79: 7.100291299 | BB79: 0 | BC79: 0.3504895689 | BD79: 8.158501302 | BE79: 0.153310998 | BF79: 26.5160055 | BG79: 10.17761329 | BH79: 1.38430791 | BI79: 0.03938499459 | BJ79: 0 | BK79: 0.03267273103 | BL79: -0.1804656246 | BM79: 45.04069261 | BN79: 45.04069261 | BO79: 0.7683226273 | BP79: 0.0133963524 | BQ79: 0.2408653892 | BR79: 0 | BS79: 0.01188976661 | BT79: 0.1383816881 | BU79: 0.002600408325 | BV79: 0.4497553492 | BW79: 0.1726291699 | BX79: 0.0469603076 | BY79: 0.001336069416 | BZ79: 0 | CA79: 0.001108367213 | CB79: 0.4159288136 | CC79: 0.007252069329 | CD79: 0.1303916506 | CE79: 0 | CF79: 0.006436484292 | CG79: 0.07491245124 | CH79: 0.001407722109 | CI79: 0.2434735125 | CJ79: 0.0934522078 | CK79: 0.02542180112 | CL79: 0.0007232765866 | CM79: 0 | CN79: 0.0006000107814 | CO79: 0.02175620799 | CP79: 0.1937429999 | CQ79: 0 | CR79: 6.436484292e-05 | CS79: 6.409678322 | CT79: 0.09216738159 | CU79: 61.06487503 | CV79: 0.2235957288 | CW79: 0.0002542180112 | CX79: 7.232765866e-06 | CY79: 0 | CZ79: 6.000107814e-06 | DA79: 67.8876535 | DB79: 0.4056703786 | DC79: 33.21697051 | DD79: 0.02136491381 | DE79: 0.1902584539 | DF79: 0 | DG79: 6.320721526e-05 | DH79: 5.567704427 | DI79: 0.09050971405 | DJ79: 60.69329186 | DK79: 0.2195742694 | DL79: 0.0002496457977 | DM79: 7.102681654e-06 | DN79: 0 | DO79: 5.892193454e-06 | DP79: 0.3409087195 | DQ79: 0.1363846992 | DR79: 0.2120392453 | DS79: 14.11654567 | DT79: 7.890093476 | DU79: 4.796067049 | DV79: 26.80270619 | DW79: 0.2943767476 | DX79: 0.5266835955 | DY79: 0.1789396569 | DZ79: 0.2025757539 | EA79: 0.1596517056 | EB79: 2 | EC79: 0.2105100992 | ED79: 0.2273260532 | EE79: 0.2625672231 | EF79: 0.2105100992 | EG79: 0.2273260532 | EH79: 0 | EI79: 23.95399466 | EJ79: 0 | EL79: 0 | EM79: 0 | EN79: 0 | EO79: 0.2652620188 | EP79: 0.00353199494 | EQ79: 2.499923188 | ER79: 2.508070566
A80: 25 | B80: 46.11313705 | C80: 1.060104448 | D80: 12.15994954 | E80: 0 | F80: 0.9415410506 | G80: 9.92501551 | H80: 0.1839433977 | I80: 18.4477239 | J80: 9.587523068 | K80: 1.440869347 | L80: 0.06230786364 | M80: 0 | N80: 0.07788482955 | P80: 40.9864794 | Q80: 0.03467656542 | R80: 0.2025382399 | S80: 0 | T80: 0.0001026609843 | U80: 8.063473502 | V80: 0.1297561323 | W80: 50.33152033 | X80: 0.2512807748 | Y80: 0.0001571052747 | Z80: 6.793741609e-06 | AA80: 0 | AB80: 8.492177012e-06 | AC80: 100 | AD80: 1 | AE80: 1407.818419 | AF80: 1417.862437 | AG80: 0.2977787551 | AH80: 0.917525231 | AI80: 0.1553751899 | AJ80: 0.2134615138 | AK80: 0.767465042 | AL80: 0.01326805652 | AM80: 0.1192596216 | AN80: 0 | AO80: 0.005886029498 | AP80: 0.13814291 | AQ80: 0.002593052958 | AR80: 0.4576349854 | AS80: 0.1709645869 | AT80: 0.02324770239 | AU80: 0.0006614212248 | AV80: 0 | AW80: 0.0005486972387 | AY80: 45.15371167 | AZ80: 0.780624479 | BA80: 7.01662522 | BB80: 0 | BC80: 0.346303824 | BD80: 8.127621175 | BE80: 0.1525619529 | BF80: 26.92489827 | BG80: 10.05868051 | BH80: 1.367775721 | BI80: 0.03891463669 | BJ80: 0 | BK80: 0.03228253478 | BL80: -0.1564888474 | BM80: 44.93358032 | BN80: 44.93358032 | BO80: 0.767465042 | BP80: 0.01326805652 | BQ80: 0.2385192433 | BR80: 0 | BS80: 0.011772059 | BT80: 0.13814291 | BU80: 0.002593052958 | BV80: 0.4576349854 | BW80: 0.1709645869 | BX80: 0.04649540479 | BY80: 0.00132284245 | BZ80: 0 | CA80: 0.001097394477 | CB80: 0.4150084775 | CC80: 0.007174731922 | CD80: 0.1289798265 | CE80: 0 | CF80: 0.006365767838 | CG80: 0.07470109465 | CH80: 0.00140219932 | CI80: 0.2474671655 | CJ80: 0.09244949155 | CK80: 0.02514249653 | CL80: 0.0007153300814 | CM80: 0 | CN80: 0.0005934185746 | CO80: 0.02152419577 | CP80: 0.1970293312 | CQ80: 0 | CR80: 6.365767838e-05 | CS80: 6.320289153 | CT80: 0.09071670673 | CU80: 61.16834873 | CV80: 0.2222241242 | CW80: 0.0002514249653 | CX80: 7.153300814e-06 | CY80: 0 | CZ80: 5.934185746e-06 | DA80: 67.90055381 | DB80: 0.4044305971 | DC80: 33.21560567 | DD80: 0.02113305863 | DE80: 0.1934489191 | DF80: 0 | DG80: 6.250089266e-05 | DH80: 5.464962613 | DI80: 0.08906820503 | DJ80: 60.79727346 | DK80: 0.218185873 | DL80: 0.0002468560772 | DM80: 7.023311213e-06 | DN80: 0 | DO80: 5.826349873e-06 | DP80: 0.3415507001 | DQ80: 0.1553751899 | DR80: 0.2482291105 | DS80: 14.34343238 | DT80: 7.797249699 | DU80: 4.734766519 | DV80: 26.8754486 | DW80: 0.2901253785 | DX80: 0.5337002033 | DY80: 0.1761744181 | DZ80: 0.1995710032 | EA80: 0.1607137027 | EB80: 2 | EC80: 0.2134615138 | ED80: 0.2263455367 | EE80: 0.2658671455 | EF80: 0.2134615138 | EG80: 0.2263455367 | EH80: 0 | EI80: 0 | EJ80: 0 | EL80: 0 | EM80: 0 | EN80: 0 | EO80: 0.2691896577 | EP80: 0.003511991461 | EQ80: 2.463522116 | ER80: 2.471776351
A81: 26 | B81: 46.06237806 | C81: 1.049951697 | D81: 12.04155933 | E81: 0 | F81: 0.9322198784 | G81: 9.906584401 | H81: 0.1834068901 | I81: 18.76340505 | J81: 9.495085026 | K81: 1.426604869 | L81: 0.06169102136 | M81: 0 | N81: 0.07711377671 | P81: 41.01190553 | Q81: 0.03432335039 | R81: 0.2059154702 | S81: 0 | T81: 0.0001015821637 | U81: 7.921482411 | V81: 0.1278042195 | W81: 50.44837771 | X81: 0.2499191462 | Y81: 0.0001554543222 | Z81: 6.722349066e-06 | AA81: 0 | AB81: 8.402936333e-06 | AC81: 100 | AD81: 1 | AE81: 1413.243715 | AF81: 1423.93358 | AG81: 0.2974041108 | AH81: 0.9190324358 | AI81: 0.1738904541 | AJ81: 0.2162381272 | AK81: 0.7666202557 | AL81: 0.0131409867 | AM81: 0.1180985007 | AN81: 0 | AO81: 0.005827758333 | AP81: 0.1378863736 | AQ81: 0.002585489802 | AR81: 0.4654661271 | AS81: 0.1693162329 | AT81: 0.02301755222 | AU81: 0.0006548732139 | AV81: 0 | AW81: 0.0005432651851 | AY81: 45.01170876 | AZ81: 0.7715661855 | BA81: 6.934091919 | BB81: 0 | BC81: 0.3421737932 | BD81: 8.095926565 | BE81: 0.1518056862 | BF81: 27.32960106 | BG81: 9.941314372 | BH81: 1.351463582 | BI81: 0.03845053944 | BJ81: 0 | BK81: 0.03189753221 | BL81: -0.1328715714 | BM81: 44.82702869 | BN81: 44.82702869 | BO81: 0.7666202557 | BP81: 0.0131409867 | BQ81: 0.2361970014 | BR81: 0 | BS81: 0.01165551667 | BT81: 0.1378863736 | BU81: 0.002585489802 | BV81: 0.4654661271 | BW81: 0.1693162329 | BX81: 0.04603510444 | BY81: 0.001309746428 | BZ81: 0 | CA81: 0.00108653037 | CB81: 0.4140984814 | CC81: 0.007098250532 | CD81: 0.1275844447 | CE81: 0 | CF81: 0.006295857323 | CG81: 0.0744808626 | CH81: 0.001396581153 | CI81: 0.25142672 | CJ81: 0.09145805163 | CK81: 0.0248663751 | CL81: 0.0007074741408 | CM81: 0 | CN81: 0.0005869014978 | CO81: 0.0212947516 | CP81: 0.2002188093 | CQ81: 0 | CR81: 6.295857323e-05 | CS81: 6.233233348 | CT81: 0.08930928714 | CU81: 61.26882905 | CV81: 0.2209141409 | CW81: 0.000248663751 | CX81: 7.074741408e-06 | CY81: 0 | CZ81: 5.869014978e-06 | DA81: 67.9128506 | DB81: 0.403250341 | DC81: 33.21428532 | DD81: 0.0209039982 | DE81: 0.1965448439 | DF81: 0 | DG81: 6.180329905e-05 | DH81: 5.365187418 | DI81: 0.08767048391 | DJ81: 60.89822891 | DK81: 0.2168604213 | DL81: 0.000244100833 | DM81: 6.944921661e-06 | DN81: 0 | DO81: 5.761320011e-06 | DP81: 0.3421689583 | DQ81: 0.1738904541 | DR81: 0.2827165916 | DS81: 14.56732598 | DT81: 7.705658104 | DU81: 4.674282225 | DV81: 26.94726631 | DW81: 0.2859532398 | DX81: 0.540586411 | DY81: 0.1734603493 | DZ81: 0.1966822004 | EA81: 0.1617784524 | EB81: 2 | EC81: 0.2162381272 | ED81: 0.2253838677 | EE81: 0.2689970005 | EF81: 0.2162381272 | EG81: 0.2253838677 | EH81: 0 | EI81: 0 | EJ81: 0 | EL81: 0 | EM81: 0 | EN81: 0 | EO81: 0.2730807603 | EP81: 0.003491871891 | EQ81: 2.428493293 | ER81: 2.436846372
A82: 27 | B82: 46.01237338 | C82: 1.03989597 | D82: 11.92437474 | E82: 0 | F82: 0.9229909844 | G82: 9.886929926 | H82: 0.1828563686 | I82: 19.07711765 | J82: 9.40354873 | K82: 1.412481608 | L82: 0.06108028573 | M82: 0 | N82: 0.07635035716 | P82: 41.036647 | Q82: 0.03397355778 | R82: 0.209193197 | S82: 0 | T82: 0.000100514181 | U82: 7.78335226 | V82: 0.1259081673 | W82: 50.56204008 | X82: 0.2486164374 | Y82: 0.0001538199553 | Z82: 6.651673742e-06 | AA82: 0 | AB82: 8.314592178e-06 | AC82: 100 | AD82: 1 | AE82: 1418.587527 | AF82: 1429.893808 | AG82: 0.2970252702 | AH82: 0.9204966737 | AI82: 0.192124948 | AJ82: 0.2188470956 | AK82: 0.7657880233 | AL82: 0.01301513123 | AM82: 0.116949204 | AN82: 0 | AO82: 0.005770064043 | AP82: 0.1376128097 | AQ82: 0.002577729092 | AR82: 0.4732484347 | AS82: 0.1676839589 | AT82: 0.0227896805 | AU82: 0.0006483900272 | AV82: 0 | AW82: 0.0005378869081 | AY82: 44.87158444 | AZ82: 0.7626256123 | BA82: 6.852674529 | BB82: 0 | BC82: 0.3380986749 | BD82: 8.063464853 | BE82: 0.1510428279 | BF82: 27.73013739 | BG82: 9.825493076 | BH82: 1.335368329 | BI82: 0.0379926128 | BJ82: 0 | BK82: 0.03151764859 | BL82: -0.1096073178 | BM82: 44.72105404 | BN82: 44.72105404 | BO82: 0.7657880233 | BP82: 0.01301513123 | BQ82: 0.233898408 | BR82: 0 | BS82: 0.01154012809 | BT82: 0.1376128097 | BU82: 0.002577729092 | BV82: 0.4732484347 | BW82: 0.1676839589 | BX82: 0.04557936099 | BY82: 0.001296780054 | BZ82: 0 | CA82: 0.001075773816 | CB82: 0.4131987212 | CC82: 0.007022616465 | CD82: 0.1262053207 | CE82: 0 | CF82: 0.006226744244 | CG82: 0.07425218892 | CH82: 0.001390873625 | CI82: 0.2553521889 | CJ82: 0.09047777617 | CK82: 0.02459340327 | CL82: 0.0006997078092 | CM82: 0 | CN82: 0.0005804587582 | CO82: 0.0210678494 | CP82: 0.2033104617 | CQ82: 0 | CR82: 6.226744244e-05 | CS82: 6.148405953 | CT82: 0.08794306635 | CU82: 61.36644492 | CV82: 0.2196595541 | CW82: 0.0002459340327 | CX82: 6.997078092e-06 | CY82: 0 | CZ82: 5.804587582e-06 | DA82: 67.92455909 | DB82: 0.4021208507 | DC82: 33.21300993 | DD82: 0.02067769466 | DE82: 0.1995453627 | DF82: 0 | DG82: 6.111431396e-05 | DH82: 5.268251806 | DI82: 0.08631445192 | DJ82: 60.99629401 | DK82: 0.2155916869 | DL82: 0.0002413795893 | DM82: 6.867499458e-06 | DN82: 0 | DO82: 5.697092637e-06 | DP82: 0.3427647191 | DQ82: 0.192124948 | DR82: 0.3154468119 | DS82: 14.78826852 | DT82: 7.615300141 | DU82: 4.614602205 | DV82: 27.01817087 | DW82: 0.281858464 | DX82: 0.5473452882 | DY82: 0.1707962478 | DZ82: 0.1939030938 | EA82: 0.1628457398 | EB82: 2 | EC82: 0.2188470956 | ED82: 0.2244405738 | EE82: 0.2719775611 | EF82: 0.2188470956 | EG82: 0.2244405738 | EH82: 0 | EI82: 0 | EJ82: 0 | EL82: 0 | EM82: 28.73661846 | EN82: 0 | EO82: 0.2769354614 | EP82: 0.003471647852 | EQ82: 2.394763803 | ER82: 2.403208102
A83: 28 | B83: 45.96310877 | C83: 1.029936343 | D83: 11.80838284 | E83: 0 | F83: 0.913853455 | G83: 9.866102424 | H83: 0.182292525 | I83: 19.38884956 | J83: 9.312905836 | K83: 1.398498164 | L83: 0.06047559628 | M83: 0 | N83: 0.07559449536 | P83: 41.06073461 | Q83: 0.03362717959 | R83: 0.2123706394 | S83: 0 | T83: 9.945700195e-05 | U83: 7.648927635 | V83: 0.1240654223 | W83: 50.67264156 | X83: 0.2473664872 | Y83: 0.0001522021216 | Z83: 6.581713365e-06 | AA83: 0 | AB83: 8.227141706e-06 | AC83: 100 | AD83: 1 | AE83: 1423.851998 | AF83: 1435.744265 | AG83: 0.2966425383 | AH83: 0.9219197651 | AI83: 0.209960677 | AJ83: 0.2212953643 | AK83: 0.7649681079 | AL83: 0.01289047851 | AM83: 0.1158116047 | AN83: 0 | AO83: 0.005712940917 | AP83: 0.1373229188 | AQ83: 0.00256978058 | AR83: 0.4809816069 | AS83: 0.166067616 | AT83: 0.02256406467 | AU83: 0.0006419710231 | AV83: 0 | AW83: 0.0005325618751 | AY83: 44.73331195 | AZ83: 0.7538010937 | BA83: 6.772356373 | BB83: 0 | BC83: 0.3340776766 | BD83: 8.030281133 | BE83: 0.1502739724 | BF83: 28.12653239 | BG83: 9.711195006 | BH83: 1.31948683 | BI83: 0.0375407677 | BJ83: 0 | BK83: 0.03114281006 | BL83: -0.08668973867 | BM83: 44.61567158 | BN83: 44.61567158 | BO83: 0.7649681079 | BP83: 0.01289047851 | BQ83: 0.2316232094 | BR83: 0 | BS83: 0.01142588183 | BT83: 0.1373229188 | BU83: 0.00256978058 | BV83: 0.4809816069 | BW83: 0.166067616 | BX83: 0.04512812934 | BY83: 0.001283942046 | BZ83: 0 | CA83: 0.00106512375 | CB83: 0.4123090929 | CC83: 0.006947821023 | CD83: 0.1248422704 | CE83: 0 | CF83: 0.006158420104 | CG83: 0.07401548835 | CH83: 0.001385082449 | CI83: 0.2592436051 | CJ83: 0.08950855257 | CK83: 0.02432354745 | CL83: 0.0006920301316 | CM83: 0 | CN83: 0.0005740895636 | CO83: 0.02084346307 | CP83: 0.2063036455 | CQ83: 0 | CR83: 6.158420104e-05 | CS83: 6.065708532 | CT83: 0.08661611853 | CU83: 61.46131767 | CV83: 0.2184546929 | CW83: 0.0002432354745 | CX83: 6.920301316e-06 | CY83: 0 | CZ83: 5.740895636e-06 | DA83: 67.93569427 | DB83: 0.4010342111 | DC83: 33.21177982 | DD83: 0.02045411061 | DE83: 0.2024499273 | DF83: 0 | DG83: 6.043381829e-05 | DH83: 5.174036151 | DI83: 0.08499814367 | DJ83: 61.09159631 | DK83: 0.2143739951 | DL83: 0.0002386918758 | DM83: 6.791031225e-06 | DN83: 0 | DO83: 5.633656649e-06 | DP83: 0.343339127 | DQ83: 0.209960677 | DR83: 0.3459714061 | DS83: 15.00630168 | DT83: 7.526157467 | DU83: 4.555714713 | DV83: 27.08817386 | DW83: 0.2778392337 | DX83: 0.55397982 | DY83: 0.1681809463 | DZ83: 0.1912278585 | EA83: 0.1639153575 | EB83: 2 | EC83: 0.2212953643 | ED83: 0.2235152029 | EE83: 0.274828306 | EF83: 0.2212953643 | EG83: 0.2235152029 | EH83: 0 | EI83: 0 | EJ83: 0 | EL83: 0 | EM83: 28.74904749 | EN83: 0 | EO83: 0.2807539106 | EP83: 0.003451330377 | EQ83: 2.362265712 | ER83: 2.370793974
A84: 29 | B84: 45.91457041 | C84: 1.020071895 | D84: 11.69357084 | E84: 0 | F84: 0.9048063857 | G84: 9.844150198 | H84: 0.1817160191 | I84: 19.69859007 | J84: 9.223148021 | K84: 1.384653155 | L84: 0.05987689317 | M84: 0 | N84: 0.07484611646 | P84: 41.0841973 | Q84: 0.03328420548 | R84: 0.2154473213 | S84: 0 | T84: 9.841058523e-05 | U84: 7.518061686 | V84: 0.1222735863 | W84: 50.78030855 | X84: 0.2461636771 | Y84: 0.0001506007577 | Z84: 6.512465199e-06 | AA84: 0 | AB84: 8.140581499e-06 | AC84: 100 | AD84: 1 | AE84: 1429.039177 | AF84: 1441.486126 | AG84: 0.2962562086 | AH84: 0.9233034244 | AI84: 0.2273871129 | AJ84: 0.2235896658 | AK84: 0.7641602797 | AL84: 0.01276701705 | AM84: 0.1146855774 | AN84: 0 | AO84: 0.005656383302 | AP84: 0.1370173732 | AQ84: 0.002561653567 | AR84: 0.4886653785 | AS84: 0.1644670558 | AT84: 0.0223406824 | AU84: 0.0006356155661 | AV84: 0 | AW84: 0.0005272895591 | AY84: 44.59686482 | AZ84: 0.7450909826 | BA84: 6.693120967 | BB84: 0 | BC84: 0.3301100151 | BD84: 7.996418337 | BE84: 0.1494996807 | BF84: 28.51881262 | BG84: 9.598398725 | BH84: 1.303815992 | BI84: 0.03709491612 | BJ84: 0 | BK84: 0.0307729436 | BL84: -0.06411261523 | BM84: 44.51089552 | BN84: 44.51089552 | BO84: 0.7641602797 | BP84: 0.01276701705 | BQ84: 0.2293711547 | BR84: 0 | BS84: 0.0113127666 | BT84: 0.1370173732 | BU84: 0.002561653567 | BV84: 0.4886653785 | BW84: 0.1644670558 | BX84: 0.0446813648 | BY84: 0.001271231132 | BZ84: 0 | CA84: 0.001054579118 | CB84: 0.4114294927 | CC84: 0.00687385551 | CD84: 0.12349511 | CE84: 0 | CF84: 0.006090876415 | CG84: 0.07377115752 | CH84: 0.001379213047 | CI84: 0.2631010196 | CJ84: 0.08855026769 | CK84: 0.02405677414 | CL84: 0.0006844401544 | CM84: 0 | CN84: 0.0005677931229 | CO84: 0.02062156653 | CP84: 0.2091980113 | CQ84: 0 | CR84: 6.090876415e-05 | CS84: 5.985048674 | CT84: 0.0853266383 | CU84: 61.55356163 | CV84: 0.2172943894 | CW84: 0.0002405677414 | CX84: 6.844401544e-06 | CY84: 0 | CZ84: 5.677931229e-06 | DA84: 67.94627088 | DB84: 0.399983273 | DC84: 33.21059515 | DD84: 0.02023320904 | DE84: 0.2052582711 | DF84: 0 | DG84: 5.976169441e-05 | DH84: 5.082427692 | DI84: 0.08371971677 | DJ84: 61.1842557 | DK84: 0.2132021734 | DL84: 0.0002360372279 | DM84: 6.715503741e-06 | DN84: 0 | DO84: 5.571001082e-06 | DP84: 0.3438932525 | DQ84: 0.2273871129 | DR84: 0.3741974097 | DS84: 15.22146672 | DT84: 7.43821195 | DU84: 4.497608211 | DV84: 27.15728688 | DW84: 0.2738937797 | DX84: 0.5604929088 | DY84: 0.1656133115 | DZ84: 0.1886510615 | EA84: 0.1649871054 | EB84: 2 | EC84: 0.2235896658 | ED84: 0.2226073212 | EE84: 0.277567509 | EF84: 0.2235896658 | EG84: 0.2226073212 | EH84: 0 | EI84: 0 | EJ84: 0 | EL84: 0 | EM84: 28.74786859 | EN84: 0 | EO84: 0.2845362703 | EP84: 0.003430929943 | EQ84: 2.330935652 | ER84: 2.339540976
A85: 30 | B85: 45.86674493 | C85: 1.01030172 | D85: 11.57992605 | E85: 0 | F85: 0.895848881 | G85: 9.821119619 | H85: 0.1811274801 | I85: 20.00632986 | J85: 9.134266988 | K85: 1.370945208 | L85: 0.05928411712 | M85: 0 | N85: 0.0741051464 | P85: 41.10706227 | Q85: 0.03294462298 | R85: 0.2184230387 | S85: 0 | T85: 9.73748833e-05 | U85: 7.390615533 | V85: 0.1205304054 | W85: 50.88516035 | X85: 0.2450028837 | Y85: 0.0001490157911 | Z85: 6.4439261e-06 | AA85: 0 | AB85: 8.054907626e-06 | AC85: 100 | AD85: 1 | AE85: 1434.151027 | AF85: 1447.120589 | AG85: 0.2958665635 | AH85: 0.9246492687 | AI85: 0.2445953471 | AJ85: 0.2217165126 | AK85: 0.7633643161 | AL85: 0.01264473548 | AM85: 0.1135709975 | AN85: 0 | AO85: 0.005600385598 | AP85: 0.1366968185 | AQ85: 0.002553356924 | AR85: 0.4962995177 | AS85: 0.1628821303 | AT85: 0.02211951158 | AU85: 0.0006293230271 | AV85: 0 | AW85: 0.0005220694382 | AY85: 44.46221693 | AZ85: 0.7364936509 | BA85: 6.614952027 | BB85: 0 | BC85: 0.3261949165 | BD85: 7.961917355 | BE85: 0.1487204826 | BF85: 28.90700594 | BG85: 9.487082985 | BH85: 1.288352759 | BI85: 0.03665497111 | BJ85: 0 | BK85: 0.03040797707 | BL85: -0.04186985546 | BM85: 44.40673905 | BN85: 44.40673905 | BO85: 0.7633643161 | BP85: 0.01264473548 | BQ85: 0.2271419951 | BR85: 0 | BS85: 0.0112007712 | BT85: 0.1366968185 | BU85: 0.002553356924 | BV85: 0.4962995177 | BW85: 0.1628821303 | BX85: 0.04423902317 | BY85: 0.001258646054 | BZ85: 0 | CA85: 0.001044138876 | CB85: 0.4105598169 | CC85: 0.00680071124 | CD85: 0.1221636563 | CE85: 0 | CF85: 0.006024104709 | CG85: 0.07351957588 | CH85: 0.001373270572 | CI85: 0.266924501 | CJ85: 0.087602808 | CK85: 0.02379304988 | CL85: 0.0006769369261 | CM85: 0 | CN85: 0.0005615686467 | CO85: 0.02040213372 | CP85: 0.2119934714 | CQ85: 0 | CR85: 6.024104709e-05 | CS85: 5.906339531 | CT85: 0.08407293154 | CU85: 61.64328458 | CV85: 0.2161739345 | CW85: 0.0002379304988 | CX85: 6.769369261e-06 | CY85: 0 | CZ85: 5.615686467e-06 | DA85: 67.95630343 | DB85: 0.3989615833 | DC85: 33.20945597 | DD85: 0.02001495342 | DE85: 0.2079703777 | DF85: 0 | DG85: 5.909782615e-05 | DH85: 4.993320038 | DI85: 0.08247744241 | DJ85: 61.27438505 | DK85: 0.2120715064 | DL85: 0.0002334151868 | DM85: 6.640903953e-06 | DN85: 0 | DO85: 5.509115107e-06 | DP85: 0.3444280979 | DQ85: 0.2445953471 | DR85: 0.4004407589 | DS85: 15.43380447 | DT85: 7.351445678 | DU85: 4.440271364 | DV85: 27.22552151 | DW85: 0.2700203805 | DX85: 0.5668873767 | DY85: 0.1630922428 | DZ85: 0.1861676312 | EA85: 0.1660607903 | EB85: 3 | EC85: 0.2257365196 | ED85: 0.2217165126 | EE85: 0.280212323 | EF85: 0.2257365196 | EG85: 0.2217165126 | EH85: 0 | EI85: 0 | EJ85: 0 | EL85: 0 | EM85: 0 | EN85: 28.71026504 | EO85: 0.2882827154 | EP85: 0.003410456505 | EQ85: 2.300714454 | ER85: 2.309390272
A86: 31 | B86: 45.81961936 | C86: 1.000624917 | D86: 11.46743592 | E86: 0 | F86: 0.8869800542 | G86: 9.797055222 | H86: 0.1805275091 | I86: 20.31206085 | J86: 9.046254472 | K86: 1.357372969 | L86: 0.05869720947 | M86: 0 | N86: 0.07337151184 | P86: 41.1293551 | Q86: 0.03260841771 | R86: 0.2212978302 | S86: 0 | T86: 9.634984299e-05 | U86: 7.266457711 | V86: 0.1188337588 | W86: 50.98730961 | X86: 0.2438794349 | Y86: 0.0001474471402 | Z86: 6.376092551e-06 | AA86: 0 | AB86: 7.970115689e-06 | AC86: 100 | AD86: 1 | AE86: 1439.189425 | AF86: 1452.648876 | AG86: 0.2954738743 | AH86: 0.9259588243 | AI86: 0.261460387 | AJ86: 0.2208423771 | AK86: 0.762580001 | AL86: 0.01252362254 | AM86: 0.1124677421 | AN86: 0 | AO86: 0.005544942262 | AP86: 0.1363618743 | AQ86: 0.002544899123 | AR86: 0.5038838246 | AS86: 0.1613126923 | AT86: 0.02190053032 | AU86: 0.0006230927833 | AV86: 0 | AW86: 0.0005169009957 | AY86: 44.32934247 | AZ86: 0.7280074901 | BA86: 6.537833474 | BB86: 0 | BC86: 0.3223316166 | BD86: 7.926817145 | BE86: 0.1479368783 | BF86: 29.29114138 | BG86: 9.377226747 | BH86: 1.273094112 | BI86: 0.03622084679 | BJ86: 0 | BK86: 0.03004783922 | BL86: -0.01995549204 | BM86: 44.30321444 | BN86: 44.30321444 | BO86: 0.762580001 | BP86: 0.01252362254 | BQ86: 0.2249354842 | BR86: 0 | BS86: 0.01108988452 | BT86: 0.1363618743 | BU86: 0.002544899123 | BV86: 0.5038838246 | BW86: 0.1613126923 | BX86: 0.04380106065 | BY86: 0.001246185567 | BZ86: 0 | CA86: 0.001033801991 | CB86: 0.409699962 | CC86: 0.006728379544 | CD86: 0.1208477264 | CE86: 0 | CF86: 0.005958096545 | CG86: 0.07326110658 | CH86: 0.001367259924 | CI86: 0.270714133 | CJ86: 0.08666605973 | CK86: 0.02353234134 | CL86: 0.0006695194979 | CM86: 0 | CN86: 0.000555415348 | CO86: 0.02018513863 | CP86: 0.2146901703 | CQ86: 0 | CR86: 5.958096545e-05 | CS86: 5.829499415 | CT86: 0.08285340692 | CU86: 61.73058828 | CV86: 0.2150890365 | CW86: 0.0002353234134 | CX86: 6.695194979e-06 | CY86: 0 | CZ86: 5.55415348e-06 | DA86: 67.96580617 | DB86: 0.3979633206 | DC86: 33.20836222 | DD86: 0.01979930769 | DE86: 0.2105864526 | DF86: 0 | DG86: 5.844209886e-05 | DH86: 4.90661271 | DI86: 0.08126969682 | DJ86: 61.36209064 | DK86: 0.2109776946 | DL86: 0.0002308252995 | DM86: 6.567218975e-06 | DN86: 0 | DO86: 5.447988033e-06 | DP86: 0.3449446024 | DQ86: 0.261460387 | DR86: 0.4245797085 | DS86: 15.64335532 | DT86: 7.265840964 | DU86: 4.383693034 | DV86: 27.29288931 | DW86: 0.2662173609 | DX86: 0.5731659677 | DY86: 0.1606166714 | DZ86: 0.1837728286 | EA86: 0.1671362253 | EB86: 3 | EC86: 0.2277422345 | ED86: 0.2208423771 | EE86: 0.2827788577 | EF86: 0.2277422345 | EG86: 0.2208423771 | EH86: 0 | EI86: 0 | EJ86: 0 | EL86: 0 | EM86: 0 | EN86: 0 | EO86: 0.291993432 | EP86: 0.003389919522 | EQ86: 2.271546804 | ER86: 2.280286869
A87: 32 | B87: 45.7731811 | C87: 0.9910405956 | D87: 11.35608802 | E87: 0 | F87: 0.8781990274 | G87: 9.771999801 | H87: 0.1799166799 | I87: 20.61577619 | J87: 8.959102244 | K87: 1.343935093 | L87: 0.05811611211 | M87: 0 | N87: 0.07264514014 | P87: 41.15109986 | Q87: 0.03227557356 | R87: 0.22407195 | S87: 0 | T87: 9.533540616e-05 | U87: 7.145463671 | V87: 0.1171816496 | W87: 51.0868628 | X87: 0.2427890707 | Y87: 0.0001458947162 | Z87: 6.308960702e-06 | AA87: 0 | AB87: 7.886200877e-06 | AC87: 100 | AD87: 1 | AE87: 1444.156171 | AF87: 1458.07223 | AG87: 0.2950784021 | AH87: 0.9272335331 | AI87: 0.2779658973 | AJ87: 0.2199845304 | AK87: 0.7618071249 | AL87: 0.01240366707 | AM87: 0.1113756892 | AN87: 0 | AO87: 0.005490047808 | AP87: 0.1360131364 | AQ87: 0.002536288254 | AR87: 0.5114181287 | AS87: 0.1597585949 | AT87: 0.02168371694 | AU87: 0.000616924218 | AV87: 0 | AW87: 0.00051178372 | AY87: 44.19821594 | AZ87: 0.7196309117 | BA87: 6.461749438 | BB87: 0 | BC87: 0.3185193609 | BD87: 7.891154833 | BE87: 0.1471493404 | BF87: 29.671249 | BG87: 9.268809185 | BH87: 1.258037071 | BI87: 0.03579245838 | BJ87: 0 | BK87: 0.02969245972 | BL87: 0.001636319951 | BM87: 44.20033306 | BN87: 44.20033306 | BO87: 0.7618071249 | BP87: 0.01240366707 | BQ87: 0.2227513784 | BR87: 0 | BS87: 0.01098009562 | BT87: 0.1360131364 | BU87: 0.002536288254 | BV87: 0.5114181287 | BW87: 0.1597585949 | BX87: 0.04336743389 | BY87: 0.001233848436 | BZ87: 0 | CA87: 0.00102356744 | CB87: 0.408849825 | CC87: 0.006656851776 | CD87: 0.1195471387 | CE87: 0 | CF87: 0.005892843508 | CG87: 0.07299609732 | CH87: 0.001361185758 | CI87: 0.2744700142 | CJ87: 0.085739909 | CK87: 0.02327461529 | CL87: 0.0006621869245 | CM87: 0 | CN87: 0.0005493324426 | CO87: 0.01997055533 | CP87: 0.2172884592 | CQ87: 0 | CR87: 5.892843508e-05 | CS87: 5.75445141 | CT87: 0.08166656828 | CU87: 61.81556887 | CV87: 0.2140357845 | CW87: 0.0002327461529 | CX87: 6.621869245e-06 | CY87: 0 | CZ87: 5.493324426e-06 | DA87: 67.97479308 | DB87: 0.3969832389 | DC87: 33.20731372 | DD87: 0.01958623623 | DE87: 0.2131068977 | DF87: 0 | DG87: 5.779439938e-05 | DH87: 4.822210729 | DI87: 0.08009495341 | DJ87: 61.4474727 | DK87: 0.2099168185 | DL87: 0.0002282671191 | DM87: 6.494436094e-06 | DN87: 0 | DO87: 5.387609315e-06 | DP87: 0.3454436467 | DQ87: 0.2779658973 | DR87: 0.4467244858 | DS87: 15.85015918 | DT87: 7.18138035 | DU87: 4.327862274 | DV87: 27.35940181 | DW87: 0.2624830908 | DX87: 0.57933135 | DY87: 0.1581855592 | DZ87: 0.1814622212 | EA87: 0.16821323 | EB87: 3 | EC87: 0.2296129114 | ED87: 0.2199845304 | EE87: 0.2852822534 | EF87: 0.2296129114 | EG87: 0.2199845304 | EH87: 0 | EI87: 0 | EJ87: 0 | EL87: 0 | EM87: 0 | EN87: 0 | EO87: 0.295668616 | EP87: 0.003369327983 | EQ87: 2.243380943 | ER87: 2.252179315
A88: 33 | B88: =(B87+0.01*P87)/1.01 -> 45.72741792 | C88: 0.9815478726 | D88: 11.24587004 | E88: 0 | F88: 0.8695049315 | G88: 9.745994493 | H88: 0.179295541 | I88: 20.91747011 | J88: 8.872802113 | K88: 1.330630249 | L88: 0.05754076752 | M88: 0 | N88: 0.0719259594 | P88: 41.17231927 | Q88: 0.0319460729 | R88: 0.226745844 | S88: 0 | T88: 9.433151015e-05 | U88: 7.027515315 | V88: 0.1155721959 | W88: 51.18392066 | X88: 0.2417279077 | Y88: 0.0001443584232 | Z88: 6.242526407e-06 | AA88: 0 | AB88: 7.803158008e-06 | AC88: 100 | AD88: 1 | AE88: 1449.05299 | AF88: 1463.391908 | AG88: 0.2946803973 | AH88: 0.9284747588 | AI88: 0.2943140407 | AJ88: 0.2191426024 | AK88: 0.7610454842 | AL88: 0.01228485804 | AM88: 0.110294718 | AN88: 0 | AO88: 0.0054356968 | AP88: 0.1356511774 | AQ88: 0.002527532049 | AR88: 0.5189022876 | AS88: 0.1582196921 | AT88: 0.02146904998 | AU88: 0.0006108167205 | AV88: 0 | AW88: 0.0005067171045 | AY88: 44.0688122 | AZ88: 0.7113623472 | BA88: 6.386684261 | BB88: 0 | BC88: 0.3147574047 | BD88: 7.854965816 | BE88: 0.1463583157 | BF88: 30.04735977 | BG88: 9.161809698 | BH88: 1.243178695 | BI88: 0.03536972219 | BJ88: 0 | BK88: 0.02934176916 | BL88: 0.02291130525 | BM88: 44.09810542 | BN88: 44.09810542 | BO88: 0.7610454842 | BP88: 0.01228485804 | BQ88: 0.2205894361 | BR88: 0 | BS88: 0.0108713936 | BT88: 0.1356511774 | BU88: 0.002527532049 | BV88: 0.5189022876 | BW88: 0.1582196921 | BX88: 0.04293809997 | BY88: 0.001221633441 | BZ88: 0 | CA88: 0.001013434209 | CB88: 0.408009303 | CC88: 0.006586119319 | CD88: 0.1182617122 | CE88: 0 | CF88: 0.005828337224 | CG88: 0.07272488109 | CH88: 0.001355052505 | CI88: 0.2781922566 | CJ88: 0.08482424195 | CK88: 0.02301983863 | CL88: 0.0006549382647 | CM88: 0 | CN88: 0.0005433191496 | CO88: 0.01975835796 | CP88: 0.2197888721 | CQ88: 0 | CR88: 5.828337224e-05 | CS88: 5.681123036 | CT88: 0.08051100761 | CU88: 61.89831726 | CV88: 0.2130106153 | CW88: 0.0002301983863 | CX88: 6.549382647e-06 | CY88: 0 | CZ88: 5.433191496e-06 | DA88: 67.98327791 | DB88: 0.3960166149 | DC88: 33.20631023 | DD88: 0.01937570391 | DE88: 0.2155322886 | DF88: 0 | DG88: 5.715461609e-05 | DH88: 4.740024227 | DI88: 0.07895177568 | DJ88: 61.53062582 | DK88: 0.2088853042 | DL88: 0.000225740205 | DM88: 6.422542767e-06 | DN88: 0 | DO88: 5.327968547e-06 | DP88: 0.3459260577 | DQ88: 0.2943140407 | DR88: 0.4672804281 | DS88: 16.05425553 | DT88: 7.098046608 | DU88: 4.272768326 | DV88: 27.42507046 | DW88: 0.2588159844 | DX88: 0.5853861178 | DY88: 0.1557978978 | DZ88: 0.17923166 | EA88: 0.1692916299 | EB88: 3 | EC88: 0.2313544471 | ED88: 0.2191426024 | EE88: 0.287736748 | EF88: 0.2313544471 | EG88: 0.2191426024 | EH88: 0 | EI88: 0 | EJ88: 0 | EL88: 0 | EM88: 0 | EN88: 0 | EO88: 0.2993084728 | EP88: 0.003348690434 | EQ88: 2.21616839 | ER88: 2.225019416
A89: 34 | B89: 45.68231793 | C89: 0.9721458746 | D89: 11.1367698 | E89: 0 | F89: 0.8608969057 | G89: 9.719078858 | H89: 0.1786646168 | I89: 21.21713794 | J89: 8.787345933 | K89: 1.317457121 | L89: 0.05697111876 | M89: 0 | N89: 0.07121389845 | P89: 41.19303472 | Q89: 0.03161989671 | R89: 0.2293201286 | S89: 0 | T89: 9.333808828e-05 | U89: 6.912500571 | V89: 0.1140036224 | W89: 51.27857858 | X89: 0.2406924068 | Y89: 0.000142838159 | Z89: 6.176785254e-06 | AA89: 0 | AB89: 7.720981567e-06 | AC89: 100 | AD89: 1 | AE89: 1453.881538 | AF89: 1468.609183 | AG89: 0.2942801007 | AH89: 0.9296837924 | AI89: 0.3103621343 | AJ89: 0.2183162366 | AK89: 0.7602948811 | AL89: 0.0121671845 | AM89: 0.1092247092 | AN89: 0 | AO89: 0.005381883858 | AP89: 0.1352765479 | AQ89: 0.002518637901 | AR89: 0.5263361847 | AS89: 0.1566958386 | AT89: 0.02125650819 | AU89: 0.0006047696863 | AV89: 0 | AW89: 0.0005017006478 | AY89: 43.94110643 | AZ89: 0.7032002483 | BA89: 6.312622498 | BB89: 0 | BC89: 0.3110450133 | BD89: 7.818283845 | BE89: 0.1455642262 | BF89: 30.41950549 | BG89: 9.056207916 | BH89: 1.228516082 | BI89: 0.03495255566 | BJ89: 0 | BK89: 0.02899569905 | BL89: 0.04387507074 | BM89: 43.9965412 | BN89: 43.9965412 | BO89: 0.7602948811 | BP89: 0.0121671845 | BQ89: 0.2184494184 | BR89: 0 | BS89: 0.01076376772 | BT89: 0.1352765479 | BU89: 0.002518637901 | BV89: 0.5263361847 | BW89: 0.1566958386 | BX89: 0.04251301639 | BY89: 0.001209539373 | BZ89: 0 | CA89: 0.001003401296 | CB89: 0.4071782937 | CC89: 0.00651617359 | CD89: 0.116991267 | CE89: 0 | CF89: 0.005764569355 | CG89: 0.07244777691 | CH89: 0.001348864379 | CI89: 0.2818809845 | CJ89: 0.08391894484 | CK89: 0.02276797845 | CL89: 0.0006477725816 | CM89: 0 | CN89: 0.0005373746918 | CO89: 0.01954852077 | CP89: 0.2221921051 | CQ89: 0 | CR89: 5.764569355e-05 | CS89: 5.609445928 | CT89: 0.07938539868 | CU89: 61.97891949 | CV89: 0.212010283 | CW89: 0.0002276797845 | CX89: 6.477725816e-06 | CY89: 0 | CZ89: 5.373746918e-06 | DA89: 67.9912741 | DB89: 0.3950592015 | DC89: 33.20535141 | DD89: 0.01916767608 | DE89: 0.2178633539 | DF89: 0 | DG89: 5.652263894e-05 | DH89: 4.659968109 | DI89: 0.07783881067 | DJ89: 61.61163936 | DK89: 0.2078798942 | DL89: 0.0002232441222 | DM89: 6.351526625e-06 | DN89: 0 | DO89: 5.269055468e-06 | DP89: 0.346392612 | DQ89: 0.3103621343 | DR89: 0.4862067702 | DS89: 16.25568332 | DT89: 7.015822746 | DU89: 4.218400612 | DV89: 27.48990668 | DW89: 0.2552144984 | DX89: 0.591332794 | DY89: 0.1534527076 | DZ89: 0.1770772571 | EA89: 0.1703712559 | EB89: 3 | EC89: 0.2329725397 | ED89: 0.2183162366 | EE89: 0.2901557413 | EF89: 0.2329725397 | EG89: 0.2183162366 | EH89: 0 | EI89: 0 | EJ89: 0 | EL89: 0 | EM89: 0 | EN89: 0 | EO89: 0.3029132162 | EP89: 0.003328014999 | EQ89: 2.189863684 | ER89: 2.198761992
A90: 35 | B90: 45.63786958 | C90: 0.9628337362 | D90: 11.02877525 | E90: 0 | F90: 0.8523740981 | G90: 9.691290954 | H90: 0.1780244089 | I90: 21.51477597 | J90: 8.702725601 | K90: 1.304414406 | L90: 0.05640710943 | M90: 0 | N90: 0.07050888679 | P90: 41.21326643 | Q90: 0.03129702472 | R90: 0.2317955707 | S90: 0 | T90: 9.235507031e-05 | U90: 6.800312999 | V90: 0.1124742531 | W90: 51.37092694 | X90: 0.2396793437 | Y90: 0.0001413338162 | Z90: 6.111732594e-06 | AA90: 0 | AB90: 7.639665742e-06 | AC90: 100 | AD90: 1 | AE90: 1458.643405 | AF90: 1473.72534 | AG90: 0.2938777433 | AH90: 0.9308618566 | AI90: 0.3260862372 | AJ90: 0.2175050892 | AK90: 0.7595551233 | AL90: 0.01205063563 | AM90: 0.1081655445 | AN90: 0 | AO90: 0.005328603657 | AP90: 0.1348897775 | AQ90: 0.00250961288 | AR90: 0.5337197283 | AS90: 0.1551868899 | AT90: 0.02104607053 | AU90: 0.0005987825168 | AV90: 0 | AW90: 0.0004967338532 | AY90: 43.81507413 | AZ90: 0.6951430873 | BA90: 6.239548921 | BB90: 0 | BC90: 0.3073814619 | BD90: 7.781141116 | BE90: 0.1447674711 | BF90: 30.78771868 | BG90: 8.951983704 | BH90: 1.21404637 | BI90: 0.03454087736 | BJ90: 0 | BK90: 0.02865418181 | BL90: 0.06453310775 | BM90: 43.89564934 | BN90: 43.89564934 | BO90: 0.7595551233 | BP90: 0.01205063563 | BQ90: 0.216331089 | BR90: 0 | BS90: 0.01065720731 | BT90: 0.1348897775 | BU90: 0.00250961288 | BV90: 0.5337197283 | BW90: 0.1551868899 | BX90: 0.04209214107 | BY90: 0.001197565034 | BZ90: 0 | CA90: 0.0009934677064 | CB90: 0.4063566953 | CC90: 0.006447006043 | CD90: 0.1157356243 | CE90: 0 | CF90: 0.005701531609 | CG90: 0.07216509049 | CH90: 0.001342625394 | CI90: 0.2855363335 | CJ90: 0.08302390414 | CK90: 0.022519002 | CL90: 0.0006406889435 | CM90: 0 | CN90: 0.0005314982964 | CO90: 0.01934101813 | CP90: 0.2244989974 | CQ90: 0 | CR90: 5.701531609e-05 | CS90: 5.539355547 | CT90: 0.07828849117 | CU90: 62.05745711 | CV90: 0.2110318319 | CW90: 0.00022519002 | CX90: 6.406889435e-06 | CY90: 0 | CZ90: 5.314982964e-06 | DA90: 67.99879486 | DB90: 0.3941071856 | DC90: 33.20443687 | DD90: 0.01896211854 | DE90: 0.2201009571 | DF90: 0 | DG90: 5.589835939e-05 | DH90: 4.581961721 | DI90: 0.07675478302 | DJ90: 61.69059776 | DK90: 0.2068976197 | DL90: 0.0002207784422 | DM90: 6.281375474e-06 | DN90: 0 | DO90: 5.210859962e-06 | DP90: 0.3468440402 | DQ90: 0.3260862372 | DR90: 0.5036354112 | DS90: 16.45448106 | DT90: 6.934692009 | DU90: 4.164748734 | DV90: 27.5539218 | DW90: 0.2516771318 | DX90: 0.5971738316 | DY90: 0.1511490366 | DZ90: 0.1749953666 | EA90: 0.1714519444 | EB90: 3 | EC90: 0.2344726936 | ED90: 0.2175050892 | EE90: 0.2925518541 | EF90: 0.2344726936 | EG90: 0.2175050892 | EH90: 0 | EI90: 0 | EJ90: 0 | EL90: 0 | EM90: 0 | EN90: 0 | EO90: 0.3064830676 | EP90: 0.003307309402 | EQ90: 2.164424164 | ER90: 2.173364642
A91: 36 | B91: 45.59406163 | C91: 0.9536106004 | D91: 10.92187446 | E91: 0 | F91: 0.843935665 | G91: 9.66266741 | H91: 0.1773753974 | I91: 21.81038142 | J91: 8.618933064 | K91: 1.291500811 | L91: 0.05584868371 | M91: 0 | N91: 0.06981085464 | P91: 41.23304395 | Q91: 0.0309774248 | R91: 0.2341727289 | S91: 0 | T91: 9.138235105e-05 | U91: 6.690796789 | V91: 0.1109825203 | W91: 51.46109613 | X91: 0.238685619 | Y91: 0.0001398452339 | Z91: 6.047361466e-06 | AA91: 0 | AB91: 7.559201833e-06 | AC91: 100 | AD91: 1 | AE91: 1463.340118 | AF91: 1478.741674 | AG91: 0.293470895 | AH91: 0.9320106834 | AI91: 0.3417148794 | AJ91: 0.2167088288 | AK91: 0.7588260237 | AL91: 0.0119352007 | AM91: 0.107117107 | AN91: 0 | AO91: 0.005275850921 | AP91: 0.1344913761 | AQ91: 0.002500463756 | AR91: 0.5410528497 | AS91: 0.1536927025 | AT91: 0.02083771618 | AU91: 0.0005928546194 | AV91: 0 | AW91: 0.0004918162291 | AY91: 43.69069115 | AZ91: 0.6871893572 | BA91: 6.16744852 | BB91: 0 | BC91: 0.3037660359 | BD91: 7.743568346 | BE91: 0.1439684279 | BF91: 31.1520325 | BG91: 8.849117173 | BH91: 1.199766736 | BI91: 0.03413460697 | BJ91: 0 | BK91: 0.02831715083 | BL91: 0.08489079435 | BM91: 43.79543801 | BN91: 43.79543801 | BO91: 0.7588260237 | BP91: 0.0119352007 | BQ91: 0.2142342139 | BR91: 0 | BS91: 0.01055170184 | BT91: 0.1344913761 | BU91: 0.002500463756 | BV91: 0.5410528497 | BW91: 0.1536927025 | BX91: 0.04167543235 | BY91: 0.001185709239 | BZ91: 0 | CA91: 0.0009836324582 | CB91: 0.4055444063 | CC91: 0.006378608179 | CD91: 0.1144946067 | CE91: 0 | CF91: 0.005639215744 | CG91: 0.0718771149 | CH91: 0.001336339369 | CI91: 0.2891584499 | CJ91: 0.08213900664 | CK91: 0.02227287671 | CL91: 0.000633686424 | CM91: 0 | CN91: 0.0005256891947 | CO91: 0.01913582454 | CP91: 0.2267102624 | CQ91: 0 | CR91: 5.639215744e-05 | CS91: 5.470793412 | CT91: 0.07721914311 | CU91: 62.13404556 | CV91: 0.2100725006 | CW91: 0.0002227287671 | CX91: 6.33686424e-06 | CY91: 0 | CZ91: 5.256891947e-06 | DA91: 68.00589362 | DB91: 0.3931567589 | DC91: 33.20356635 | DD91: 0.01875898643 | DE91: 0.2222457009 | DF91: 0 | DG91: 5.528163755e-05 | DH91: 4.505890646 | DI91: 0.07569848141 | DJ91: 61.76761926 | DK91: 0.2059355833 | DL91: 0.0002183426124 | DM91: 6.212073593e-06 | DN91: 0 | DO91: 5.153368987e-06 | DP91: 0.3472810296 | DQ91: 0.3417148794 | DR91: 0.5199542027 | DS91: 16.65068673 | DT91: 6.854637877 | DU91: 4.111802465 | DV91: 27.61712707 | DW91: 0.2482024238 | DX91: 0.6029116166 | DY91: 0.1488859596 | DZ91: 0.1729825663 | EA91: 0.172533537 | EB91: 3 | EC91: 0.2358602255 | ED91: 0.2167088288 | EE91: 0.2949369831 | EF91: 0.2358602255 | EG91: 0.2167088288 | EH91: 0 | EI91: 0 | EJ91: 0 | EL91: 0 | EM91: 0 | EN91: 0 | EO91: 0.3100182552 | EP91: 0.003286580991 | EQ91: 2.139809751 | ER91: 2.148788859
A92: 37 | B92: 45.55088324 | C92: 0.9444756185 | D92: 10.81605563 | E92: 0 | F92: 0.8355807711 | G92: 9.633242948 | H92: 0.1767180422 | I92: 22.10395286 | J92: 8.535960317 | K92: 1.278715059 | L92: 0.05529578632 | M92: 0 | N92: 0.06911973291 | P92: 41.25236428 | Q92: 0.03066109646 | R92: 0.236453313 | S92: 0 | T92: 9.041991882e-05 | U92: 6.58396553 | V92: 0.109526894 | W92: 51.54907774 | X92: 0.2377088915 | Y92: 0.0001383723941 | Z92: 5.983671098e-06 | AA92: 0 | AB92: 7.479588873e-06 | AC92: 100 | AD92: 1 | AE92: 1467.973149 | AF92: 1483.659493 | AG92: 0.2930650852 | AH92: 0.9331302219 | AI92: 0.3570033789 | AJ92: 0.2159271351 | AK92: 0.7581074018 | AL92: 0.01182086908 | AM92: 0.1060792808 | AN92: 0 | AO92: 0.005223620429 | AP92: 0.1340818271 | AQ92: 0.002491197009 | AR92: 0.5483355128 | AS92: 0.1522131336 | AT92: 0.02063142449 | AU92: 0.0005869854073 | AV92: 0 | AW92: 0.0004869472888 | AY92: 43.56793364 | AZ92: 0.6793375693 | BA92: 6.096306482 | BB92: 0 | BC92: 0.3001980296 | BD92: 7.705594393 | BE92: 0.1431674532 | BF92: 31.51248118 | BG92: 8.747588648 | BH92: 1.185674393 | BI92: 0.03373366519 | BJ92: 0 | BK92: 0.02798454034 | BL92: =IF(AY92<60,(0.46*(100/(100-AY92))-0.93)*(BH92+BI92)+(-5.33*(100/(100-AY92))+9.69),(11-5.5*(100/(100-AY92)))*EXP(-0.13*(BH92+BI92))) -> 0.1049534024 | BM92: =AY92+BL92*(BH92+BI92) -> 43.69591467 | BN92: 43.69591467 | BO92: 0.7581074018 | BP92: 0.01182086908 | BQ92: 0.2121585616 | BR92: 0 | BS92: 0.01044724086 | BT92: 0.1340818271 | BU92: 0.002491197009 | BV92: 0.5483355128 | BW92: 0.1522131336 | BX92: 0.04126284899 | BY92: 0.001173970815 | BZ92: 0 | CA92: 0.0009738945776 | CB92: 0.4047413259 | CC92: 0.006310971523 | CD92: 0.1132680374 | CE92: 0 | CF92: 0.005577613551 | CG92: 0.07158412692 | CH92: 0.001330009941 | CI92: 0.2927474946 | CJ92: 0.08126413929 | CK92: 0.02202957018 | CL92: 0.0006267641009 | CM92: 0 | CN92: 0.0005199466219 | CO92: 0.01893291457 | CP92: 0.2288274869 | CQ92: 0 | CR92: 5.577613551e-05 | CS92: 5.403696418 | CT92: 0.07617616269 | CU92: 62.20868146 | CV92: 0.2091299837 | CW92: 0.0002202957018 | CX92: 6.267641009e-06 | CY92: 0 | CZ92: 5.199466219e-06 | DA92: =0.5*(CP92-CQ92-CW92-CX92-CZ92)+CQ92+CR92+CS92+CT92+CU92+CV92+2*CW92+2*CX92+CY92+2*CZ92 -> 68.01250119 | DB92: 0.3922056517 | DC92: =(100/3)-DD92-0.5*(DE92-DF92-DL92-DM92-DO92)-DF92 -> 33.20273893 | DD92: 0.01855826918 | DE92: 0.224299438 | DF92: 0 | DG92: 5.467243476e-05 | DH92: 4.431758502 | DI92: 0.07466878526 | DJ92: 61.84270251 | DK92: 0.2049917099 | DL92: 0.0002159364802 | DM92: 6.143616639e-06 | DN92: 0 | DO92: 5.096578941e-06 | DP92: 0.3477042282 | DQ92: 0.3570033789 | DR92: 0.5350362771 | DS92: 16.84433788 | DT92: 6.775644051 | DU92: 4.059551742 | DV92: =DS92+DT92+DU92 -> 27.67953367 | DW92: =DT92/DV92 -> 0.2447889524 | DX92: =DS92/DV92 -> 0.6085484704 | DY92: =DU92/DV92 -> 0.1466625771 | DZ92: 0.171035641 | EA92: 0.1736158804 | EB92: 3 | EC92: 0.2371402712 | ED92: 0.2159271351 | EE92: =6.2819*DW92^2-14.7789*DW92^3+0.00825*(1/DW92)^2 -> 0.2973223539 | EF92: 0.2371402712 | EG92: 0.2159271351 | EH92: 0 | EI92: 0 | EJ92: 0 | EL92: 0 | EM92: 0 | EN92: 0 | EO92: 0.3135190177 | EP92: 0.003265836618 | EQ92: 2.11598274 | ER92: 2.124994496
A93: 38 | B93: 45.50832365 | C93: 0.9354279499 | D93: 10.71130709 | E93: 0 | F93: 0.8273085894 | G93: 9.603052082 | H93: 0.1760527833 | I93: 22.39548875 | J93: 8.453799412 | K93: 1.266055884 | L93: 0.05474836254 | M93: 0 | N93: 0.06843545317 | P93: 41.27125505 | Q93: 0.03034800539 | R93: 0.2386380922 | S93: 0 | T93: 8.946766212e-05 | U93: 6.479672544 | V93: 0.1081059745 | W93: 51.63499406 | X93: =DK93*BW$25*100/SUMPRODUCT($DC93:$DO93,$BO$25:$CA$25) -> 0.2367465647 | Y93: 0.0001369151263 | Z93: 5.920654111e-06 | AA93: 0 | AB93: 7.400817639e-06 | AC93: 100 | AD93: 1 | AE93: 1472.543904 | AF93: 1488.4801 | AG93: 0.2926578568 | AH93: 0.9342220946 | AI93: 0.3722027802 | AJ93: 0.2151596986 | AK93: 0.7573990787 | AL93: 0.01170763026 | AM93: 0.1050519516 | AN93: 0 | AO93: 0.005171907012 | AP93: 0.1336616107 | AQ93: 0.002481818844 | AR93: 0.5555676799 | AS93: 0.1507480414 | AT93: 0.02042717507 | AU93: 0.0005811742995 | AV93: 0 | AW93: 0.0004821265502 | AY93: 43.44677816 | AZ93: 0.6715862599 | BA93: 6.026108251 | BB93: 0 | BC93: 0.2966767493 | BD93: 7.667247705 | BE93: 0.142364885 | BF93: 31.86909836 | BG93: 8.647378766 | BH93: 1.1717666 | BI93: 0.03333797409 | BJ93: 0 | BK93: 0.02765628565 | BL93: 0.1247260853 | BM93: 43.59708613 | BN93: 43.59708613 | BO93: 0.7573990787 | BP93: 0.01170763026 | BQ93: 0.2101039033 | BR93: 0 | BS93: 0.01034381402 | BT93: 0.1336616107 | BU93: 0.002481818844 | BV93: 0.5555676799 | BW93: 0.1507480414 | BX93: 0.04085435014 | BY93: 0.001162348599 | BZ93: 0 | CA93: 0.0009642531004 | CB93: 0.403947354 | CC93: 0.00624408769 | CD93: 0.112055742 | CE93: 0 | CF93: 0.00551671691 | CG93: 0.07128640038 | CH93: 0.001323640579 | CI93: 0.2963036272 | CJ93: 0.08039918999 | CK93: 0.02178905032 | CL93: 0.0006199210617 | CM93: 0 | CN93: 0.0005142698208 | CO93: 0.01873226307 | CP93: 0.2308515835 | CQ93: 0 | CR93: 5.51671691e-05 | CS93: 5.338012964 | CT93: 0.07515853702 | CU93: 62.28147298 | CV93: 0.2082019845 | CW93: 0.0002178905032 | CX93: 6.199210617e-06 | CY93: 0 | CZ93: 5.142698208e-06 | DA93: 68.01867127 | DB93: =0.5*(DE93-DF93-DL93-DM93-DO93)+DF93+DG93+DI93+DK93+2*DL93+2*DM93+CY93+2*DO93 -> 0.3912507371 | DC93: 33.20195427 | DD93: 0.01835992257 | DE93: 0.2262629552 | DF93: 0 | DG93: 5.407061333e-05 | DH93: 4.359458038 | DI93: 0.07366461357 | DJ93: 61.91595789 | DK93: 0.2040635614 | DL93: 0.0002135595018 | DM93: 6.075989137e-06 | DN93: 0 | DO93: 5.040476987e-06 | DP93: 0.3481142454 | DQ93: 0.3722027802 | DR93: =IF(DQ93 >=0, (0.98/DQ93-0.9*LN(DQ93)^2+0.07*LN(DQ93)^4)^-1, DQ93) -> 0.549249454 | DS93: 17.03547145 | DT93: 6.697694511 | DU93: 4.007986682 | DV93: 27.74115265 | DW93: 0.241435336 | DX93: 0.6140866484 | DY93: 0.1444780155 | DZ93: 0.1691515684 | EA93: 0.1746988255 | EB93: 3 | EC93: =IF(DY93>0,((-1.994+2.25*DY93+0.041/DY93)+(-1.183-3.005*DY93+13.774*DY93^2-12.615*DY93^3))/2 + EXP(0.931+1.623*DY93)*DY93^0.245*DX93 + EXP(0.769-7.514*DY93)*DY93^0.577/DX93,0) -> 0.2383177897 | ED93: =-2.5345+5.329*(DY93+DX93*0.348)+0.3012/(DY93+DX93*0.348) -> 0.2151596986 | EE93: 0.2997185666 | EF93: =IF(AND(EC93>0,DY93<-0.1773+0.1404/DX93-0.008434/DX93^2),-EC93,EC93) -> 0.2383177897 | EG93: =IF(AND(ED93>0,DY93<-0.0896+0.02002/DX93+0.02989/DX93^2),-ED93,ED93) -> 0.2151596986 | EH93: 0 | EI93: 0 | EJ93: 0 | EL93: 0 | EM93: 0 | EN93: 0 | EO93: 0.3169855913 | EP93: 0.003245083067 | EQ93: =(2/3-EP93)/EO93 -> 2.092907696 | ER93: =CU93/(CI93*100) -> 2.101947707
A94: 39 | B94: 45.46637247 | C94: 0.9264667624 | D94: 10.6076173 | E94: 0 | F94: 0.8191183011 | G94: 9.572127533 | H94: 0.1753800427 | I94: 22.6849888 | J94: 8.372442453 | K94: 1.253522032 | L94: 0.05420635816 | M94: 0 | N94: 0.0677579477 | P94: 41.28973244 | Q94: 0.03003812758 | R94: 0.2407282763 | S94: 0 | T94: 8.852550006e-05 | U94: 6.37783057 | V94: 0.1067184204 | W94: 51.71891856 | X94: 0.2357964306 | Y94: 0.0001354733066 | Z94: 5.858305151e-06 | AA94: 0 | AB94: 7.322881439e-06 | AC94: 100 | AD94: 1 | AE94: 1477.053743 | AF94: 1493.204805 | AG94: 0.2922494049 | AH94: 0.9352872948 | AI94: 0.3871638614 | AJ94: 0.2144062197 | AK94: 0.7567008816 | AL94: 0.01159547382 | AM94: 0.1040350062 | AN94: 0 | AO94: 0.005120705549 | AP94: 0.1332311824 | AQ94: 0.002472335208 | AR94: 0.5627493438 | AS94: 0.1492972851 | AT94: 0.02022494768 | AU94: 0.0005754207208 | AV94: 0 | AW94: 0.0004773535362 | AY94: 43.32720154 | AZ94: 0.6639339839 | BA94: 5.956839472 | BB94: 0 | BC94: 0.2932015104 | BD94: 7.628554998 | BE94: 0.1415610427 | BF94: 32.22191863 | BG94: 8.548468384 | BH94: 1.158040655 | BI94: 0.03294745671 | BJ94: 0 | BK94: 0.02733232295 | BL94: 0.1442138953 | BM94: 43.49895858 | BN94: 43.49895858 | BO94: 0.7567008816 | BP94: 0.01159547382 | BQ94: 0.2080700124 | BR94: 0 | BS94: 0.0102414111 | BT94: 0.1332311824 | BU94: 0.002472335208 | BV94: 0.5627493438 | BW94: 0.1492972851 | BX94: 0.04044989537 | BY94: 0.001150841442 | BZ94: 0 | CA94: 0.0009547070725 | CB94: 0.403162391 | CC94: 0.00617794833 | CD94: 0.1108575472 | CE94: 0 | CF94: 0.005456517741 | CG94: 0.07098419384 | CH94: 0.001317234588 | CI94: 0.2998270208 | CJ94: 0.07954404693 | CK94: 0.02155128523 | CL94: 0.0006131563984 | CM94: 0 | CN94: 0.0005086580383 | CO94: 0.01853384499 | CP94: 0.2327838083 | CQ94: 0 | CR94: 5.456517741e-05 | CS94: 5.27369137 | CT94: 0.07416527018 | CU94: 62.35248632 | CV94: 0.2072864809 | CW94: 0.0002155128523 | CX94: 6.131563984e-06 | CY94: 0 | CZ94: 5.086580383e-06 | DA94: 68.024416 | DB94: 0.3902895855 | DC94: 33.20121177 | DD94: 0.01816391435 | DE94: 0.2281375051 | DF94: 0 | DG94: 5.347607092e-05 | DH94: 4.288923654 | DI94: 0.07268495102 | DJ94: 61.98745343 | DK94: 0.2031490976 | DL94: 0.0002112112728 | DM94: 6.009179589e-06 | DN94: 0 | DO94: 4.985053585e-06 | DP94: 0.3485116569 | DQ94: 0.3871638614 | DR94: 0.5625565552 | DS94: 17.22412395 | DT94: 6.620773456 | DU94: 3.957097558 | DV94: 27.80199496 | DW94: 0.2381402293 | DX94: 0.6195283458 | DY94: 0.1423314249 | DZ94: 0.1673275043 | EA94: 0.1757822276 | EB94: 3 | EC94: 0.2393975717 | ED94: 0.2144062197 | EE94: 0.3021356433 | EF94: 0.2393975717 | EG94: 0.2144062197 | EH94: 0 | EI94: 0 | EJ94: 0 | EL94: 0 | EM94: 0 | EN94: 0 | EO94: 0.3204182213 | EP94: 0.003224326659 | EQ94: 2.070551223 | ER94: 2.079615311
A95: 40 | B95: 45.4250196 | C95: 0.9175912313 | D95: 10.50497484 | E95: 0 | F95: 0.8110090954 | G95: 9.54050083 | H95: 0.1747002246 | I95: 22.97245345 | J95: 8.291881601 | K95: 1.241112265 | L95: 0.05366971955 | M95: 0 | N95: 0.06708714944 | P95: 41.30781175 | Q95: 0.02973143834 | R95: 0.2427251534 | S95: 0 | T95: 8.759334981e-05 | U95: 6.278356433 | V95: 0.10536296 | W95: 51.8009211 | X95: 0.2348564846 | Y95: 0.0001340468083 | Z95: 5.796618737e-06 | AA95: 0 | AB95: 7.245773422e-06 | AC95: 100 | AD95: 1 | AE95: 1481.503974 | AF95: 1497.834925 | AG95: 0.2918399162 | AH95: 0.9363267669 | AI95: 0.4018582385 | AJ95: 0.213666409 | AK95: 0.7560126421 | AL95: 0.01148438943 | AM95: 0.1030283325 | AN95: 0 | AO95: 0.005070010974 | AP95: 0.1327909811 | AQ95: 0.002462751802 | AR95: 0.5698805152 | AS95: 0.1478607251 | AT95: 0.02002472232 | AU95: 0.0005697241017 | AV95: 0 | AW95: 0.0004726277744 | AY95: 43.20918098 | AZ95: 0.6563793167 | BA95: 5.888486006 | BB95: 0 | BC95: 0.2897716381 | BD95: 7.589541783 | BE95: 0.1407562287 | BF95: 32.57097692 | BG95: 8.450838614 | BH95: 1.144493891 | BI95: 0.03256203725 | BJ95: 0 | BK95: 0.02701258934 | BL95: 0.1634217804 | BM95: 43.40153755 | BN95: 43.40153755 | BO95: 0.7560126421 | BP95: 0.01148438943 | BQ95: 0.2060566649 | BR95: 0 | BS95: 0.01014002195 | BT95: 0.1327909811 | BU95: 0.002462751802 | BV95: 0.5698805152 | BW95: 0.1478607251 | BX95: 0.04004944464 | BY95: 0.001139448203 | BZ95: 0 | CA95: 0.0009452555488 | CB95: 0.4023863379 | CC95: 0.006112545147 | CD95: 0.1096732808 | CE95: 0 | CF95: 0.005397008026 | CG95: 0.0706777554 | CH95: 0.001310795116 | CI95: 0.3033178558 | CJ95: 0.07869859889 | CK95: 0.02131624323 | CL95: 0.0006064692099 | CM95: 0 | CN95: 0.0005031105268 | CO95: 0.01833763544 | CP95: 0.23462549 | CQ95: 0 | CR95: 5.397008026e-05 | CS95: 5.210682651 | CT95: 0.07319541944 | CU95: 62.42178446 | CV95: 0.2063816374 | CW95: 0.0002131624323 | CX95: 6.064692099e-06 | CY95: 0 | CZ95: 5.031105268e-06 | DA95: 68.02974727 | DB95: 0.3893200403 | DC95: 33.2005108 | DD95: 0.01797021272 | DE95: 0.2299244075 | DF95: 0 | DG95: 5.288870671e-05 | DH95: 4.22009294 | DI95: 0.07172883665 | DJ95: 62.05725369 | DK95: 0.2022464639 | DL95: 0.0002088913951 | DM95: 5.943176666e-06 | DN95: 0 | DO95: 4.930299337e-06 | DP95: 0.348897006 | DQ95: 0.4018582385 | DR95: 0.5750368721 | DS95: 17.41033135 | DT95: 6.544865323 | DU95: 3.9068748 | DV95: 27.86207148 | DW95: 0.2349023233 | DX95: 0.6248756977 | DY95: 0.1402219789 | DZ95: 0.1655607699 | EA95: 0.1768659468 | EB95: 3 | EC95: 0.2403842456 | ED95: 0.213666409 | EE95: 0.3045830691 | EF95: 0.2403842456 | EG95: 0.213666409 | EH95: 0 | EI95: 0 | EJ95: 0 | EL95: 0 | EM95: 0 | EN95: 0 | EO95: 0.3238171576 | EP95: 0.003203573407 | EQ95: 2.048881839 | ER95: 2.057966034
A96: 41 | B96: 45.38425517 | C96: 0.9088005403 | D96: 10.4033684 | E96: 0 | F96: 0.8029801696 | G96: 9.508202371 | H96: 0.174013717 | I96: 23.25788382 | J96: 8.212109075 | K96: 1.228825352 | L96: 0.05313839358 | M96: 0 | N96: 0.06642299197 | P96: 41.32550752 | Q96: 0.02942791239 | R96: 0.2446300792 | S96: 0 | T96: 8.66711269e-05 | U96: 6.181170798 | V96: 0.1040383879 | W96: 51.88106819 | X96: 0.2339249089 | Y96: 0.0001326355021 | Z96: 5.73558928e-06 | AA96: 0 | AB96: 7.1694866e-06 | AC96: 100 | AD96: 1 | AE96: 1485.895857 | AF96: 1502.371777 | AG96: 0.2914295697 | AH96: 0.9373414102 | AI96: 0.4165245303 | AJ96: 0.2129399858 | AK96: 0.755334196 | AL96: 0.01137436689 | AM96: 0.1020318197 | AN96: 0 | AO96: 0.005019818267 | AP96: 0.1323414299 | AQ96: 0.002453074094 | AR96: 0.576961222 | AS96: 0.1464382224 | AT96: 0.01982647915 | AU96: 0.0005640838782 | AV96: 0 | AW96: 0.0004679487969 | AY96: 43.09269397 | AZ96: 0.6489208541 | BA96: 5.821033929 | BB96: 0 | BC96: 0.2863864678 | BD96: 7.550232424 | BE96: 0.1399507288 | BF96: 32.91630845 | BG96: 8.354470827 | BH96: 1.131123684 | BI96: 0.03218164101 | BJ96: 0 | BK96: 0.02669702286 | BL96: 0.1823545866 | BM96: 43.30482803 | BN96: 43.30482803 | BO96: 0.755334196 | BP96: 0.01137436689 | BQ96: 0.2040636394 | BR96: 0 | BS96: 0.01003963653 | BT96: 0.1323414299 | BU96: 0.002453074094 | BV96: 0.576961222 | BW96: 0.1464382224 | BX96: 0.03965295831 | BY96: 0.001128167756 | BZ96: 0 | CA96: 0.0009358975938 | CB96: 0.4016190964 | CC96: 0.006047869907 | CD96: 0.1085027726 | CE96: 0 | CF96: 0.005338179808 | CG96: 0.07036732319 | CH96: 0.001304325167 | CI96: 0.3067763196 | CJ96: 0.07786273531 | CK96: 0.02108389289 | CL96: 0.0005998586022 | CM96: 0 | CN96: 0.0004976265446 | CO96: 0.01814360972 | CP96: 0.2363780201 | CQ96: 0 | CR96: 5.338179808e-05 | CS96: 5.148940343 | CT96: 0.07224809176 | CU96: 62.48942734 | CV96: 0.2054857893 | CW96: 0.0002108389289 | CX96: 5.998586022e-06 | CY96: 0 | CZ96: 4.976265446e-06 | DA96: 68.03467668 | DB96: 0.3883401945 | DC96: 33.1998507 | DD96: 0.01777878635 | DE96: 0.2316250395 | DF96: 0 | DG96: 5.230842142e-05 | DH96: 4.152906474 | DI96: 0.07079536033 | DJ96: 62.12542 | DK96: 0.2013539755 | DL96: 0.0002065994766 | DM96: 5.87796921e-06 | DN96: 0 | DO96: 4.876204987e-06 | DP96: 0.3492708059 | DQ96: 0.4165245303 | DR96: 0.5869754597 | DS96: 17.59412915 | DT96: 6.469954784 | DU96: 3.857308992 | DV96: 27.92139293 | DW96: 0.2317203443 | DX96: 0.6301307817 | DY96: 0.1381488739 | DZ96: 0.1638488408 | EA96: 0.1779498469 | EB96: 3 | EC96: 0.2412822833 | ED96: 0.2129399858 | EE96: 0.3070698315 | EF96: 0.2412822833 | EG96: 0.2129399858 | EH96: 0 | EI96: 0 | EJ96: 0 | EL96: 0 | EM96: 0 | EN96: 0 | EO96: 0.3271826543 | EP96: 0.003182829032 | EQ96: 2.027869843 | ER96: 2.036970371
A97: 42 | B97: 45.34406955 | C97: 0.9000938806 | D97: 10.30278684 | E97: 0 | F97: 0.7950307291 | G97: 9.475261464 | H97: 0.173320892 | I97: 23.54128169 | J97: 8.133117153 | K97: 1.216660077 | L97: 0.05261232766 | M97: 0 | N97: 0.06576540957 | P97: 41.34283352 | Q97: 0.02912752393 | R97: 0.2464444676 | S97: 0 | T97: 8.575874542e-05 | U97: 6.086197943 | V97: 0.1027435595 | W97: 51.95942317 | X97: 0.2330000569 | Y97: 0.0001312392565 | Z97: 5.675211094e-06 | AA97: 0 | AB97: 7.094013867e-06 | AC97: 100 | AD97: 1 | AE97: 1490.230608 | AF97: 1506.816677 | AG97: 0.2910185369 | AH97: 0.9383320808 | AI97: 0.430892181 | AJ97: 0.2122266784 | AK97: 0.7546653831 | AL97: 0.01126539607 | AM97: 0.1010453584 | AN97: 0 | AO97: 0.004970122461 | AP97: 0.1318829366 | AQ97: 0.002443307329 | AR97: 0.5839915082 | AS97: 0.1450296395 | AT97: 0.01963019857 | AU97: 0.0005584994921 | AV97: 0 | AW97: 0.0004633161406 | AY97: 42.97771838 | AZ97: 0.6415572127 | BA97: 5.754469536 | BB97: 0 | BC97: =AO97*100/SUM($AK97:$AW97) -> 0.2830453446 | BD97: 7.510650197 | BE97: 0.1391448139 | BF97: 33.25794867 | BG97: 8.259346647 | BH97: 1.117927448 | BI97: 0.0318061944 | BJ97: 0 | BK97: 0.02638556247 | BL97: 0.2010170603 | BM97: 43.20883445 | BN97: 43.20883445 | BO97: 0.7546653831 | BP97: 0.01126539607 | BQ97: 0.2020907168 | BR97: 0 | BS97: 0.009940244921 | BT97: 0.1318829366 | BU97: 0.002443307329 | BV97: 0.5839915082 | BW97: 0.1450296395 | BX97: 0.03926039714 | BY97: 0.001116998984 | BZ97: 0 | CA97: 0.0009266322811 | CB97: 0.4008605691 | CC97: 0.005983914435 | CD97: 0.1073458536 | CE97: 0 | CF97: =BS97/SUM($BO97:$CA97) -> 0.005280025194 | CG97: 0.07005312581 | CH97: 0.001297827605 | CI97: 0.3102026058 | CJ97: 0.07703634634 | CK97: 0.02085420306 | CL97: 0.0005933236883 | CM97: 0 | CN97: 0.000492205356 | CO97: 0.01795174331 | CP97: 0.2380428431 | CQ97: 0 | CR97: 5.280025194e-05 | CS97: 5.088420343 | CT97: 0.07132244054 | CU97: 62.55547205 | CV97: 0.204597429 | CW97: 0.0002085420306 | CX97: 5.933236883e-06 | CY97: 0 | CZ97: 4.92205356e-06 | DA97: 68.03921558 | DB97: 0.3873483686 | DC97: 33.1992308 | DD97: 0.01758960442 | DE97: 0.2332408265 | DF97: 0 | DG97: 5.173511726e-05 | DH97: 4.087307644 | DI97: 0.06988365942 | DJ97: 62.19201065 | DK97: 0.2004701036 | DL97: 0.0002043351311 | DM97: 5.813546234e-06 | DN97: 0 | DO97: 4.822761421e-06 | DP97: 0.3496335418 | DQ97: 0.430892181 | DR97: 0.5982271934 | DS97: 17.77555232 | DT97: 6.396026749 | DU97: 3.808390871 | DV97: 27.97996994 | DW97: 0.2285930529 | DX97: 0.635295619 | DY97: 0.1361113282 | DZ97: 0.1621893357 | EA97: 0.1790337957 | EB97: 3 | EC97: 0.242096007 | ED97: 0.2122266784 | EE97: 0.3096044573 | EF97: 0.242096007 | EG97: 0.2122266784 | EH97: 0 | EI97: 0 | EJ97: 0 | EL97: 0 | EM97: 0 | EN97: 0 | EO97: 0.3305149688 | EP97: 0.003162098975 | EQ97: 2.007487195 | ER97: 2.01660047
A98: 43 | B98: 45.30445335 | C98: 0.8914704514 | D98: 10.20321909 | E98: 0 | F98: 0.7871599868 | G98: 9.44170638 | H98: 0.1726221065 | I98: 23.82264942 | J98: 8.054898172 | K98: 1.204615237 | L98: 0.05209146971 | M98: 0 | N98: 0.06511433714 | P98: 41.35980283 | Q98: 0.0288302467 | R98: 0.2481697816 | S98: 0 | T98: 8.485611825e-05 | U98: 5.993365551 | V98: 0.1014773885 | W98: 52.03604641 | X98: 0.2320804394 | Y98: 0.0001298579383 | Z98: 5.615478414e-06 | AA98: 0 | AB98: 7.019348017e-06 | AC98: 100 | AD98: 1 | AE98: 1494.5094 | AF98: 1511.17094 | AG98: 0.2906069819 | AH98: 0.9392995951 | AI98: 0.4452370645 | AJ98: 0.211526223 | AK98: 0.7540060472 | AL98: 0.01115746694 | AM98: 0.1000688402 | AN98: 0 | AO98: 0.004920918636 | AP98: 0.1314158948 | AQ98: 0.002433456539 | AR98: 0.5909714327 | AS98: 0.1436348396 | AT98: 0.01943586113 | AU98: 0.0005529703907 | AV98: 0 | AW98: 0.0004587293469 | AY98: 42.86423235 | AZ98: 0.634287029 | BA98: 5.688779335 | BB98: 0 | BC98: 0.2797476235 | BD98: 7.470817338 | BE98: 0.13833874 | BF98: 33.59593322 | BG98: 8.16544796 | BH98: 1.104902634 | BI98: 0.03143562495 | BJ98: 0 | BK98: 0.02607814803 | BL98: 0.2194138507 | BM98: 43.11356071 | BN98: 43.11356071 | BO98: 0.7540060472 | BP98: 0.01115746694 | BQ98: 0.2001376805 | BR98: 0 | BS98: 0.009841837271 | BT98: 0.1314158948 | BU98: 0.002433456539 | BV98: 0.5909714327 | BW98: 0.1436348396 | BX98: 0.03887172226 | BY98: 0.001105940781 | BZ98: 0 | CA98: 0.0009174586937 | CB98: 0.400110659 | CC98: 0.005920670621 | CD98: 0.1062023568 | CE98: 0 | CF98: 0.005222536359 | CG98: 0.06973538273 | CH98: 0.00129130516 | CI98: 0.3135969138 | CJ98: 0.07621932285 | CK98: 0.02062714281 | CL98: 0.0005868635888 | CM98: 0 | CN98: 0.0004868462315 | CO98: 0.01776201186 | CP98: 0.2396214487 | CQ98: 0 | CR98: 5.222536359e-05 | CS98: 5.029080752 | CT98: 0.0704176626 | CU98: 62.61997301 | CV98: 0.2037151923 | CW98: 0.0002062714281 | CX98: 5.868635888e-06 | CY98: 0 | CZ98: 4.868462315e-06 | DA98: 68.04337508 | DB98: 0.3863430907 | DC98: 33.19865039 | DD98: 0.01740263652 | DE98: 0.2347732344 | DF98: 0 | DG98: 5.116869794e-05 | DH98: 4.023242477 | DI98: 0.06899291569 | DJ98: 62.2570811 | DK98: 0.1995934624 | DL98: 0.0002020979783 | DM98: 5.749896917e-06 | DN98: 0 | DO98: 4.769959661e-06 | DP98: 0.3499856727 | DQ98: 0.4452370645 | DR98: 0.6090758025 | DS98: 17.95463535 | DT98: 6.323066364 | DU98: 3.760111323 | DV98: 28.03781304 | DW98: 0.2255192427 | DX98: 0.6403721762 | DY98: 0.1341085811 | DZ98: 0.1605800068 | EA98: 0.180117665 | EB98: 3 | EC98: 0.2428295952 | ED98: 0.211526223 | EE98: 0.3121950463 | EF98: 0.2428295952 | EG98: 0.211526223 | EH98: 0 | EI98: 0 | EJ98: 0 | EL98: 0 | EM98: 0 | EN98: 0 | EO98: 0.3338143619 | EP98: 0.003141388412 | EQ98: 1.987707403 | ER98: 1.996830015
A99: 44 | B99: 45.2653974 | C99: 0.8829294592 | D99: 10.10465424 | E99: 0 | F99: 0.7793671637 | G99: 9.407564391 | H99: 0.1719177034 | I99: 24.10198999 | J99: 7.977444531 | K99: 1.192689639 | L99: 0.05157576819 | M99: 0 | N99: 0.06446971023 | P99: 41.3764279 | Q99: 0.02853605405 | R99: 0.249807526 | S99: 0 | T99: 8.396315725e-05 | U99: 5.902604513 | V99: 0.1002388421 | W99: 52.1109955 | X99: 0.2311647117 | Y99: 0.0001284914125 | Z99: 5.556385406e-06 | AA99: 0 | AB99: 6.945481758e-06 | AC99: 100 | AD99: 1 | AE99: 1498.733362 | AF99: 1515.435879 | AG99: 0.2901950618 | AH99: 0.9402447315 | AI99: 0.4593842433 | AJ99: 0.2108383639 | AK99: 0.7533560356 | AL99: 0.01105056958 | AM99: 0.0991021581 | AN99: 0 | AO99: 0.004872201921 | AP99: 0.1309406841 | AQ99: 0.002423526557 | AR99: 0.5979010689 | AS99: 0.1422536873 | AT99: 0.01924344761 | AU99: 0.0005474960265 | AV99: 0 | AW99: 0.0004541879618 | AY99: 42.7522144 | AZ99: 0.6271089601 | BA99: 5.623950045 | BB99: 0 | BC99: 0.2764926692 | BD99: 7.430755096 | BE99: 0.1375327495 | BF99: 33.93029786 | BG99: 8.072756905 | BH99: 1.092046734 | BI99: 0.03106986126 | BJ99: 0 | BK99: 0.02577472032 | BL99: 0.2375495112 | BM99: 43.0190102 | BN99: 43.0190102 | BO99: 0.7533560356 | BP99: 0.01105056958 | BQ99: 0.1982043162 | BR99: 0 | BS99: 0.009744403842 | BT99: 0.1309406841 | BU99: 0.002423526557 | BV99: 0.5979010689 | BW99: 0.1422536873 | BX99: 0.03848689522 | BY99: 0.001094992053 | BZ99: 0 | CA99: 0.0009083759235 | CB99: 0.3993692701 | CC99: 0.00585813042 | CD99: 0.1050721164 | CE99: 0 | CF99: 0.005165705544 | CG99: 0.06941430475 | CH99: 0.001284760441 | CI99: 0.3169594484 | CJ99: 0.07541155653 | CK99: 0.0204026815 | CL99: 0.0005804774321 | CM99: 0 | CN99: 0.0004815484478 | CO99: 0.01757439126 | CP99: 0.2411153637 | CQ99: 0 | CR99: 5.165705544e-05 | CS99: 4.970881744 | CT99: 0.06953299548 | CU99: 62.6829821 | CV99: 0.2028378474 | CW99: 0.000204026815 | CX99: 5.804774321e-06 | CY99: 0 | CZ99: 4.815484478e-06 | DA99: 68.047166 | DB99: 0.3853230786 | DC99: 33.19810875 | DD99: 0.01721785275 | DE99: 0.2362237625 | DF99: 0 | DG99: 5.060906866e-05 | DH99: 3.960659484 | DI99: 0.06812235255 | DJ99: 62.3206841 | DK99: 0.1987227971 | DL99: 0.0001998876436 | DM99: 5.687010606e-06 | DN99: 0 | DO99: 4.717790871e-06 | DP99: 0.3503276332 | DQ99: 0.4593842433 | DR99: 0.6194452445 | DS99: 18.1314122 | DT99: 6.251059005 | DU99: 3.712461379 | DV99: 28.09493258 | DW99: 0.22249774 | DX99: 0.6453623673 | DY99: 0.1321398928 | DZ99: 0.1590187307 | EA99: 0.1812013299 | EB99: 3 | EC99: 0.2434870887 | ED99: 0.2108383639 | EE99: 0.3148493039 | EF99: 0.2434870887 | EG99: 0.2108383639 | EH99: 0 | EI99: 0 | EJ99: 0 | EL99: 0 | EM99: 0 | EN99: 0 | EO99: 0.3370810971 | EP99: 0.003120702265 | EQ99: 1.968505414 | ER99: 1.977634124
A100: 45 | B100: 45.22689275 | C100: 0.8744701186 | D100: 10.0070815 | E100: 0 | F100: 0.7716514884 | G100: 9.372861818 | H100: 0.1712080117 | I100: 24.37930687 | J100: 7.900748691 | K100: 1.180882103 | L100: 0.05106517203 | M100: 0 | N100: 0.06383146504 | P100: 41.39272054 | Q100: 0.028244919 | R100: 0.2513592403 | S100: 0 | T100: 8.307977339e-05 | U100: 5.813848743 | V100: 0.09902693847 | W100: 52.18432537 | X100: 0.2302516617 | Y100: 0.0001271395429 | Z100: 5.49792618e-06 | AA100: 0 | AB100: 6.872407725e-06 | AC100: 100 | AD100: 1 | AE100: 1502.90359 | AF100: 1519.612803 | AG100: 0.2897829272 | AH100: 0.9411682329 | AI100: 0.4733085951 | AJ100: 0.210162853 | AK100: 0.7527151993 | AL100: 0.01094469416 | AM100: 0.0981452061 | AN100: 0 | AO100: 0.004823967495 | AP100: 0.1304576708 | AQ100: 0.002413522022 | AR100: 0.6047805035 | AS100: 0.1408860481 | AT100: 0.01905293895 | AU100: 0.0005420758578 | AV100: 0 | AW100: 0.0004496915357 | AY100: 42.64164332 | AZ100: 0.6200216828 | BA100: 5.559968599 | BB100: 0 | BC100: 0.2732798561 | BD100: 7.390483775 | BE100: 0.136727072 | BF100: 34.26107848 | BG100: 7.981255882 | BH100: 1.079357276 | BI100: 0.03070883304 | BJ100: 0 | BK100: 0.02547522102 | BL100: 0.2554285023 | BM100: 42.92518585 | BN100: 42.92518585 | BO100: 0.7527151993 | BP100: 0.01094469416 | BQ100: 0.1962904122 | BR100: 0 | BS100: 0.00964793499 | BT100: 0.1304576708 | BU100: 0.002413522022 | BV100: 0.6047805035 | BW100: 0.1408860481 | BX100: 0.0381058779 | BY100: 0.001084151716 | BZ100: 0 | CA100: 0.0008993830714 | CB100: 0.398636307 | CC100: 0.005796285852 | CD100: 0.1039549687 | CE100: 0 | CF100: 0.005109525061 | CG100: 0.06909009432 | CH100: 0.001278195932 | CI100: 0.3202904188 | CJ100: 0.07461293988 | CK100: 0.02018078877 | CL100: 0.0005741643539 | CM100: 0 | CN100: 0.0004763112881 | CO100: 0.01738885756 | CP100: 0.2425261459 | CQ100: 0 | CR100: 5.109525061e-05 | CS100: 4.913785435 | CT100: 0.06866771484 | CU100: 62.74454886 | CV100: 0.2019642832 | CW100: 0.0002018078877 | CX100: 5.741643539e-06 | CY100: 0 | CZ100: 4.763112881e-06 | DA100: 68.05059893 | DB100: 0.384287223 | DC100: 33.19760514 | DD100: 0.01703522362 | DE100: 0.2375939372 | DF100: 0 | DG100: 5.005613608e-05 | DH100: 3.899509511 | DI100: 0.0672712324 | DJ100: 62.38286993 | DK100: 0.1978569735 | DL100: 0.0001977037585 | DM100: 5.624876812e-06 | DN100: 0 | DO100: 4.666246348e-06 | DP100: 0.3506598348 | DQ100: 0.4733085951 | DR100: 0.6293738189 | DS100: 18.30591636 | DT100: 6.179990282 | DU100: 3.665432212 | DV100: 28.15133885 | DW100: 0.219527402 | DX100: 0.6502680549 | DY100: 0.1302045431 | DZ100: 0.1575035002 | EA100: 0.1822846691 | EB100: 3 | EC100: 0.2440723965 | ED100: 0.210162853 | EE100: 0.3175745708 | EF100: 0.2440723965 | EG100: 0.210162853 | EH100: 0 | EI100: 0 | EJ100: 0 | EL100: 0 | EM100: 0 | EN100: 0 | EO100: 0.3403154403 | EP100: 0.003100045216 | EQ100: 1.949857523 | ER100: 1.958989254
A101: 46 | B101: 45.18893065 | C101: 0.8660916513 | D101: 9.910490195 | E101: 0 | F101: 0.7640121973 | G101: 9.337624065 | H101: 0.1704933476 | I101: 24.65460409 | J101: 7.824803176 | K101: 1.16919146 | L101: 0.0505596307 | M101: 0 | N101: 0.06319953838 | P101: 41.40869198 | Q101: 0.02795681429 | R101: 0.2528264919 | S101: 0 | T101: 8.220587696e-05 | U101: 5.727035014 | V101: 0.09784074345 | W101: 52.25608851 | X101: 0.2293401992 | Y101: 0.0001258021922 | Z101: 5.440094799e-06 | AA101: 0 | AB101: 6.800118499e-06 | AC101: 100 | AD101: 1 | AE101: 1507.021137 | AF101: 1523.703019 | AG101: 0.2893707217 | AH101: 0.9420708089 | AI101: 0.487255754 | AJ101: 0.2094994489 | AK101: 0.7520833927 | AL101: 0.01083983093 | AM101: 0.09719787955 | AN101: 0 | AO101: 0.004776210583 | AP101: 0.1299672085 | AQ101: 0.002403447391 | AR101: 0.6116098357 | AS101: 0.1395317887 | AT101: 0.0188643163 | AU101: 0.0005367093479 | AV101: 0 | AW101: 0.0004452396236 | AY101: 42.53249827 | AZ101: 0.6130238941 | BA101: 5.496822139 | BB101: 0 | BC101: 0.2701085682 | BD101: 7.350022784 | BE101: 0.1359219243 | BF101: 34.58831099 | BG101: 7.890927544 | BH101: 1.066831828 | BI101: 0.03035247106 | BJ101: 0 | BK101: 0.02517959272 | BL101: 0.2730551933 | BM101: 42.83209014 | BN101: 42.83209014 | BO101: 0.7520833927 | BP101: 0.01083983093 | BQ101: 0.1943957591 | BR101: 0 | BS101: 0.009552421166 | BT101: 0.1299672085 | BU101: 0.002403447391 | BV101: 0.6116098357 | BW101: 0.1395317887 | BX101: 0.0377286326 | BY101: 0.001073418696 | BZ101: 0 | CA101: 0.0008904792473 | CB101: 0.3979116751 | CC101: 0.005735129008 | CD101: 0.1028507515 | CE101: 0 | CF101: 0.00505398729 | CG101: 0.06876294592 | CH101: 0.001271614008 | CI101: 0.3235900388 | CJ101: 0.07382336625 | CK101: 0.01996143452 | CL101: 0.0005679234982 | CM101: 0 | CN101: 0.0004711340423 | CO101: 0.01720538703 | CP101: 0.2438553776 | CQ101: 0 | CR101: 5.05398729e-05 | CS101: 4.857755761 | CT101: 0.06782113208 | CU101: 62.80472059 | CV101: 0.2010935001 | CW101: 0.0001996143452 | CX101: 5.679234982e-06 | CY101: 0 | CZ101: 4.711340423e-06 | DA101: 68.05368422 | DB101: 0.383234572 | DC101: 33.19713882 | DD101: 0.01685472013 | DE101: 0.2388853059 | DF101: 0 | DG101: 4.95098083e-05 | DH101: 3.839745607 | DI101: 0.06643885422 | DJ101: 62.44368649 | DK101: 0.1969949679 | DL101: 0.00019554596 | DM101: 5.563485208e-06 | DN101: 0 | DO101: 4.615317526e-06 | DP101: 0.3509826677 | DQ101: 0.487255754 | DR101: 0.6390809901 | DS101: 18.4781808 | DT101: 6.109846033 | DU101: 3.619015136 | DV101: 28.20704197 | DW101: 0.2166071167 | DX101: 0.6550910521 | DY101: 0.1283018311 | DZ101: 0.1560324164 | EA101: 0.1833675646 | EB101: 3 | EC101: 0.2445893015 | ED101: 0.2094994489 | EE101: 0.3203778511 | EF101: 0.2445893015 | EG101: 0.2094994489 | EH101: 0 | EI101: 0 | EJ101: 0 | EL101: 0 | EM101: 0 | EN101: 0 | EO101: 0.3435176596 | EP101: 0.003079421718 | EQ101: 1.931741284 | ER101: 1.940873113
A102: 47 | B102: 45.15150255 | C102: 0.8577932865 | D102: 9.814869762 | E102: 0 | F102: 0.756448534 | G102: 9.301875658 | H102: 0.1697740149 | I102: 24.92788611 | J102: 7.749600572 | K102: 1.157616552 | L102: 0.05005909416 | M102: 0 | N102: 0.0625738677 | P102: 41.42435294 | Q102: 0.02767171245 | R102: 0.2542108708 | S102: 0 | T102: 8.134137771e-05 | U102: 5.642102796 | V102: 0.09667936756 | W102: 52.32633503 | X102: 0.2284293461 | Y102: 0.0001244792223 | Z102: 5.38288529e-06 | AA102: 0 | AB102: 6.728606612e-06 | AC102: 100 | AD102: 1 | AE102: 1511.087024 | AF102: 1527.707824 | AG102: 0.288958583 | AH102: 0.9429531374 | AI102: 0.501018852 | AJ102: 0.2088479174 | AK102: 0.7514604734 | AL102: 0.01073597024 | AM102: 0.09626007495 | AN102: 0 | AO102: 0.004728926457 | AP102: 0.1294696387 | AQ102: 0.002393306947 | AR102: 0.6183891769 | AS102: 0.1381907768 | AT102: 0.01867756099 | AU102: 0.0005313959657 | AV102: 0 | AW102: 0.0004408317849 | AY102: 42.42475867 | AZ102: 0.6061143105 | BA102: 5.434498013 | BB102: 0 | BC102: 0.2669781989 | BD102: 7.309390673 | BE102: 0.1351175121 | BF102: 34.91203134 | BG102: 7.801754801 | BH102: 1.054467993 | BI102: 0.03000070716 | BJ102: 0 | BK102: 0.02488777886 | BL102: 0.2904338644 | BM102: 42.73972511 | BN102: 42.73972511 | BO102: 0.7514604734 | BP102: 0.01073597024 | BQ102: 0.1925201499 | BR102: 0 | BS102: 0.009457852915 | BT102: 0.1294696387 | BU102: 0.002393306947 | BV102: 0.6183891769 | BW102: 0.1381907768 | BX102: 0.03735512198 | BY102: 0.001062791931 | BZ102: 0 | CA102: 0.0008816635697 | CB102: 0.3971952807 | CC102: 0.005674652048 | CD102: 0.1017593043 | CE102: 0 | CF102: 0.004999084684 | CG102: 0.06843304643 | CH102: 0.001265016935 | CI102: 0.326858526 | CJ102: 0.07304272989 | CK102: 0.01974458895 | CL102: 0.000561754017 | CM102: 0 | CN102: 0.0004660160068 | CO102: 0.01702395615 | CP102: 0.2451046598 | CQ102: 0 | CR102: 4.999084684e-05 | CS102: 4.802758373 | CT102: 0.06699259219 | CU102: 62.86354249 | CV102: 0.2002246003 | CW102: 0.0001974458895 | CX102: 5.61754017e-06 | CY102: 0 | CZ102: 4.660160068e-06 | DA102: 68.05643196 | DB102: 0.382164318 | DC102: 33.19670904 | DD102: 0.01667631371 | DE102: 0.240099432 | DF102: 0 | DG102: 4.896999485e-05 | DH102: 3.781322899 | DI102: 0.06562455133 | DJ102: 62.50317945 | DK102: 0.1961358582 | DL102: 0.0001934138908 | DM102: 5.502825629e-06 | DN102: 0 | DO102: 4.564995973e-06 | DP102: 0.3512965019 | DQ102: 0.501018852 | DR102: 0.648461314 | DS102: 18.64823803 | DT102: 6.040612324 | DU102: 3.573201602 | DV102: 28.26205195 | DW102: 0.2137358014 | DX102: 0.6598331239 | DY102: 0.1264310747 | DZ102: 0.1546036818 | EA102: 0.1844499018 | EB102: 3 | EC102: 0.2450414663 | ED102: 0.2088479174 | EE102: 0.3232658382 | EF102: 0.2450414663 | EG102: 0.2088479174 | EH102: 0 | EI102: 0 | EJ102: 0 | EL102: 0 | EM102: 0 | EN102: 0 | EO102: 0.3466880247 | EP102: 0.003058836003 | EQ102: 1.914135429 | ER102: 1.923264577
A103: 48 | B103: 45.11460007 | C103: 0.8495742611 | D103: 9.720209773 | E103: 0 | F103: 0.7489597499 | G103: 9.265640284 | H103: 0.1690503055 | I103: 25.19915788 | J103: 7.67513353 | K103: 1.146156235 | L103: 0.04956351286 | M103: 0 | N103: 0.06195439108 | P103: 41.43971361 | Q103: 0.0273895858 | R103: 0.2555139841 | S103: 0 | T103: 8.048618495e-05 | U103: 5.558994111 | V103: 0.09554196346 | W103: 52.39511288 | X103: 0.2275182269 | Y103: 0.0001231704944 | Z103: 5.326291651e-06 | AA103: 0 | AB103: 6.657864564e-06 | AC103: 100 | AD103: 1 | AE103: 1515.102239 | AF103: 1531.628514 | AG103: 0.2885466427 | AH103: 0.9438158667 | AI103: 0.5145819501 | AJ103: 0.2082080306 | AK103: 0.7508463023 | AL103: 0.01063310256 | AM103: 0.09533168997 | AN103: 0 | AO103: 0.004682110438 | AP103: 0.1289652908 | AQ103: 0.002383104804 | AR103: 0.6251186496 | AS103: 0.1368628815 | AT103: 0.01849265453 | AU103: 0.0005261351853 | AV103: 0 | AW103: 0.0004364675831 | AY103: 42.31840431 | AZ103: 0.5992916681 | BA103: 5.372983775 | BB103: 0 | BC103: 0.2638881512 | BD103: 7.268605175 | BE103: 0.1343140298 | BF103: 35.23227546 | BG103: 7.713720818 | BH103: 1.042263415 | BI103: 0.02965347425 | BJ103: 0 | BK103: 0.02459972379 | BL103: 0.3075687087 | BM103: 42.6480924 | BN103: 42.6480924 | BO103: 0.7508463023 | BP103: 0.01063310256 | BQ103: 0.1906633799 | BR103: 0 | BS103: 0.009364220876 | BT103: 0.1289652908 | BU103: 0.002383104804 | BV103: 0.6251186496 | BW103: 0.1368628815 | BX103: 0.03698530905 | BY103: 0.001052270371 | BZ103: 0 | CA103: 0.0008729351661 | CB103: 0.3964870308 | CC103: 0.005614847203 | CD103: 0.1006804684 | CE103: 0 | CF103: 0.004944809769 | CG103: 0.06810057541 | CH103: 0.001258406874 | CI103: 0.3300961016 | CJ103: 0.07227092593 | CK103: 0.01953022253 | CL103: 0.0005556550702 | CM103: 0 | CN103: 0.0004609564847 | CO103: 0.01684454161 | CP103: 0.246275608 | CQ103: 0 | CR103: 4.944809769e-05 | CS103: 4.748760531 | CT103: 0.0661814717 | CU103: 62.92105778 | CV103: 0.1993567798 | CW103: 0.0001953022253 | CX103: 5.556550702e-06 | CY103: 0 | CZ103: 4.609564847e-06 | DA103: 68.05885202 | DB103: 0.3810757842 | DC103: 33.19631504 | DD103: 0.01649997623 | DE103: 0.2412378901 | DF103: 0 | DG103: 4.843660668e-05 | DH103: 3.724198473 | DI103: 0.0648276893 | DJ103: 62.56139241 | DK103: 0.1952788152 | DL103: 0.0001913071991 | DM103: 5.442888067e-06 | DN103: 0 | DO103: 4.515273385e-06 | DP103: 0.3516016888 | DQ103: 0.5145819501 | DR103: 0.6575428228 | DS103: 18.81612003 | DT103: 5.972275443 | DU103: 3.527983194 | DV103: 28.31637866 | DW103: 0.2109124021 | DX103: 0.6644959883 | DY103: 0.1245916095 | DZ103: 0.1532155933 | EA103: 0.1855315689 | EB103: 3 | EC103: 0.2454324381 | ED103: 0.2082080306 | EE103: 0.3262449397 | EF103: 0.2454324381 | EG103: 0.2082080306 | EH103: 0 | EI103: 0 | EJ103: 0 | EL103: 0 | EM103: 0 | EN103: 0 | EO103: 0.3498268067 | EP103: 0.003038292097 | EQ103: 1.897019788 | ER103: 1.90614362
A104: 49 | B104: =(B103+0.01*P103)/1.01 -> 45.07821506 | C104: 0.8414338187 | D104: 9.626499914 | E104: 0 | F104: 0.7415451037 | G104: 9.228940817 | H104: 0.1683225001 | I104: 25.46842476 | J104: 7.601394765 | K104: 1.134809373 | L104: 0.04907283775 | M104: 0 | N104: 0.06134104718 | P104: 41.4547837 | Q104: 0.02711040653 | R104: 0.2567374515 | S104: 0 | T104: 7.964020769e-05 | U104: 5.477653393 | V104: 0.09442772347 | W104: 52.46246789 | X104: 0.2266060609 | Y104: 0.0001218758693 | Z104: 5.270307862e-06 | AA104: 0 | AB104: 6.587884827e-06 | AC104: 100 | AD104: 1 | AE104: 1519.067736 | AF104: 1535.466373 | AG104: 0.2881350263 | AH104: 0.9446596171 | AI104: 0.528189683 | AJ104: 0.2075795668 | AK104: 0.7502407433 | AL104: 0.0105312184 | AM104: 0.09441262347 | AN104: 0 | AO104: 0.004635757891 | AP104: 0.1284544834 | AQ104: 0.002372844921 | AR104: 0.6317983866 | AS104: 0.1355479728 | AT104: 0.01830957861 | AU104: 0.0005209264859 | AV104: 0 | AW104: 0.0004321465862 | AY104: 42.21341524 | AZ104: 0.5925547222 | BA104: 5.312267181 | BB104: 0 | BC104: 0.2608378371 | BD104: 7.227683243 | BE104: 0.1335116612 | BF104: 35.54907926 | BG104: 7.626809009 | BH104: 1.03021577 | BI104: 0.02931070627 | BJ104: 0 | BK104: 0.0243153727 | BL104: 0.3244638341 | BM104: 42.55719326 | BN104: 42.55719326 | BO104: 0.7502407433 | BP104: 0.0105312184 | BQ104: 0.1888252469 | BR104: 0 | BS104: 0.009271515782 | BT104: 0.1284544834 | BU104: 0.002372844921 | BV104: 0.6317983866 | BW104: 0.1355479728 | BX104: 0.03661915723 | BY104: 0.001041852972 | BZ104: 0 | CA104: 0.0008642931725 | CB104: 0.3957868332 | CC104: 0.005555706774 | CD104: 0.09961408679 | CE104: 0 | CF104: 0.004891155143 | CG104: 0.06776570543 | CH104: 0.00125178589 | CI104: 0.3333029896 | CJ104: 0.07150785047 | CK104: 0.01931830603 | CL104: 0.0005496258262 | CM104: 0 | CN104: 0.0004559547862 | CO104: 0.01666712032 | CP104: 0.2473698469 | CQ104: 0 | CR104: 4.891155143e-05 | CS104: 4.695731009 | CT104: 0.06538717676 | CU104: 62.9773078 | CV104: 0.1984893206 | CW104: 0.0001931830603 | CX104: 5.496258262e-06 | CY104: 0 | CZ104: 4.559547862e-06 | DA104: 68.060954 | DB104: 0.3799684134 | DC104: 33.19595606 | DD104: 0.01632567999 | DE104: 0.2423022622 | DF104: 0 | DG104: 4.790955612e-05 | DH104: 3.668331265 | DI104: 0.06404766406 | DJ104: 62.61836699 | DK104: 0.1944230957 | DL104: 0.0001892255387 | DM104: 5.383662671e-06 | DN104: 0 | DO104: 4.466141592e-06 | DP104: 0.3518985619 | DQ104: 0.528189683 | DR104: 0.6665201087 | DS104: 18.98185832 | DT104: 5.904821903 | DU104: 3.483351629 | DV104: 28.37003185 | DW104: 0.2081358926 | DX104: 0.6690813185 | DY104: 0.1227827888 | DZ104: 0.1518665369 | EA104: 0.1866124574 | EB104: 3 | EC104: 0.2457656543 | ED104: 0.2075795668 | EE104: 0.3293213003 | EF104: 0.2457656543 | EG104: 0.2075795668 | EH104: 0 | EI104: 0 | EJ104: 0 | EL104: 0 | EM104: 0 | EN104: 0 | EO104: 0.352934278 | EP104: 0.003017793825 | EQ104: 1.880375226 | ER104: 1.889491237
A105: 50 | B105: 45.0423395 | C105: 0.8333712107 | D105: 9.533729989 | E105: 0 | F105: 0.7342038615 | G105: 9.191799357 | H105: 0.1675908687 | I105: 25.73569252 | J105: 7.528377055 | K105: 1.123574843 | L105: 0.04858702025 | M105: 0 | N105: 0.06073377531 | P105: 41.46957249 | Q105: 0.02683414672 | R105: 0.2578829009 | S105: 0 | T105: 7.880335475e-05 | U105: 5.398027362 | V105: 0.09333587725 | W105: 52.52844394 | X105: 0.2256921541 | Y105: 0.0001205952074 | Z105: 5.214927888e-06 | AA105: 0 | AB105: 6.51865986e-06 | AC105: 100 | AD105: 1 | AE105: 1522.984439 | AF105: 1539.222681 | AG105: 0.2877238541 | AH105: 0.9454849821 | AI105: 0.5416326584 | AJ105: 0.2069623104 | AK105: 0.7496436632 | AL105: 0.0104303084 | AM105: 0.09350277543 | AN105: 0 | AO105: 0.004589864227 | AP105: 0.1279375241 | AQ105: 0.002362531101 | AR105: 0.6384285311 | AS105: 0.1342459219 | AT105: 0.01812831513 | AU105: 0.0005157693518 | AV105: 0 | AW105: 0.0004278683667 | AY105: 42.10977185 | AZ105: 0.5859022473 | BA105: 5.252336189 | BB105: 0 | BC105: 0.2578266781 | BD105: 7.186641088 | BE105: 0.1327105804 | BF105: 35.86247854 | BG105: 7.541003041 | BH105: 1.018322773 | BI105: 0.02897233819 | BJ105: 0 | BK105: 0.02403467165 | BL105: 0.3411232656 | BM105: 42.46702858 | BN105: 42.46702858 | BO105: 0.7496436632 | BP105: 0.0104303084 | BQ105: 0.1870055509 | BR105: 0 | BS105: 0.009179728454 | BT105: 0.1279375241 | BU105: 0.002362531101 | BV105: 0.6384285311 | BW105: 0.1342459219 | BX105: 0.03625663025 | BY105: 0.001031538704 | BZ105: 0 | CA105: 0.0008557367334 | CB105: 0.3950945967 | CC105: 0.005497223137 | CD105: 0.09856000433 | CE105: 0 | CF105: 0.004838113479 | CG105: 0.06742860237 | CH105: 0.001245155956 | CI105: 0.3364794173 | CJ105: 0.07075340055 | CK105: 0.0191088105 | CL105: 0.0005436654614 | CM105: 0 | CN105: 0.0004510102281 | CO105: 0.01649166941 | CP105: 0.2483890068 | CQ105: 0 | CR105: 4.838113479e-05 | CS105: 4.643640007 | CT105: 0.06460914146 | CU105: 63.03233214 | CV105: 0.1976215836 | CW105: 0.000191088105 | CX105: 5.436654614e-06 | CY105: 0 | CZ105: 4.510102281e-06 | DA105: 68.06274731 | DB105: 0.3788417573 | DC105: 33.19563132 | DD105: 0.01615339772 | DE105: 0.2432941334 | DF105: 0 | DG105: 4.738875689e-05 | DH105: 3.613681959 | DI105: 0.06328390004 | DJ105: 62.67414295 | DK105: 0.1935680348 | DL105: 0.0001871685688 | DM105: 5.325139746e-06 | DN105: 0 | DO105: 4.417592549e-06 | DP105: 0.3521874382 | DQ105: 0.5416326584 | DR105: 0.6752820753 | DS105: 19.14548394 | DT105: 5.838238436 | DU105: 3.439298754 | DV105: 28.42302113 | DW105: 0.2054052738 | DX105: 0.6735907436 | DY105: 0.1210039826 | DZ105: 0.1505549814 | EA105: 0.1876924613 | EB105: 3 | EC105: 0.246044447 | ED105: 0.2069623104 | EE105: 0.3325008228 | EF105: 0.246044447 | EG105: 0.2069623104 | EH105: 0 | EI105: 0 | EJ105: 0 | EL105: 0 | EM105: 0 | EN105: 0 | EO105: 0.3560107118 | EP105: 0.002997344822 | EQ105: 1.864183576 | ER105: 1.873289387
A106: 51 | B106: 45.00696557 | C106: 0.8253856952 | D106: 9.441889918 | E106: 0 | F106: 0.7269352966 | G106: 9.154237258 | H106: 0.1668556707 | I106: 26.00096728 | J106: 7.456073244 | K106: 1.112451534 | L106: 0.04810601227 | M106: 0 | N106: 0.06013251534 | P106: 41.4840888 | Q106: 0.02656077839 | R106: 0.2589519648 | S106: 0 | T106: 7.797553486e-05 | U106: 5.320064901 | V106: 0.09226568968 | W106: 52.59308306 | X106: 0.2247758925 | Y106: 0.0001193283691 | Z106: 5.160145689e-06 | AA106: 0 | AB106: 6.450182112e-06 | AC106: 100 | AD106: 1 | AE106: 1526.853245 | AF106: 1542.898709 | AG106: 0.2873132407 | AH106: 0.9462925306 | AI106: 0.5549823465 | AJ106: 0.2063560513 | AK106: 0.7490549317 | AL106: 0.01033036327 | AM106: 0.09260204702 | AN106: 0 | AO106: 0.004544424905 | AP106: 0.12741471 | AQ106: 0.002352167004 | AR106: =I106/AR$25 -> 0.6450092353 | AS106: 0.1329566013 | AT106: 0.01794884612 | AU106: 0.0005106632727 | AV106: 0 | AW106: 0.0004236325009 | AY106: 42.00745481 | AZ106: 0.5793330369 | BA106: 5.193178953 | BB106: 0 | BC106: 0.2548541045 | BD106: 7.145494206 | BE106: 0.131910952 | BF106: 36.17250906 | BG106: 7.456286828 | BH106: 1.006582175 | BI106: 0.02863830601 | BJ106: 0 | BK106: 0.02375756755 | BL106: 0.3575509465 | BM106: 42.37759887 | BN106: 42.37759887 | BO106: 0.7490549317 | BP106: 0.01033036327 | BQ106: 0.185204094 | BR106: 0 | BS106: 0.009088849809 | BT106: 0.12741471 | BU106: 0.002352167004 | BV106: =I106/BV$25 -> 0.6450092353 | BW106: 0.1329566013 | BX106: 0.03589769225 | BY106: 0.001021326545 | BZ106: 0 | CA106: 0.0008472650018 | CB106: 0.3944102306 | CC106: 0.00543938874 | CD106: 0.09751806756 | CE106: 0 | CF106: 0.004785677522 | CG106: 0.06708942568 | CH106: 0.001238518954 | CI106: 0.3396256142 | CJ106: 0.07000747416 | CK106: 0.01890170731 | CL106: 0.0005377731608 | CM106: 0 | CN106: 0.0004461221342 | CO106: 0.01631816622 | CP106: 0.2493347202 | CQ106: 0 | CR106: 4.785677522e-05 | CS106: 4.592459071 | CT106: 0.06384682609 | CU106: 63.0861687 | CV106: 0.1967530024 | CW106: 0.0001890170731 | CX106: 5.377731608e-06 | CY106: 0 | CZ106: 4.461221342e-06 | DA106: 68.0642411 | DB106: 0.3776954664 | DC106: 33.19534007 | DD106: 0.01598310259 | DE106: 0.2442150887 | DF106: 0 | DG106: 4.687412405e-05 | DH106: 3.560212895 | DI106: 0.06253584854 | DJ106: 62.7287583 | DK106: 0.1927130401 | DL106: 0.0001851359539 | DM106: 5.267309746e-06 | DN106: 0 | DO106: 4.369618338e-06 | DP106: 0.352468619 | DQ106: 0.5549823465 | DR106: 0.6839012668 | DS106: 19.30702745 | DT106: 5.772511989 | DU106: 3.39581654 | DV106: 28.47535598 | DW106: 0.2027195725 | DX106: 0.6780258503 | DY106: 0.1192545773 | DZ106: 0.1492794733 | EA106: 0.1887714776 | EB106: 3 | EC106: 0.2462720483 | ED106: 0.2063560513 | EE106: 0.335789189 | EF106: 0.2462720483 | EG106: 0.2063560513 | EH106: 0 | EI106: 0 | EJ106: 0 | EL106: 0 | EM106: 0 | EN106: 0 | EO106: 0.3590563822 | EP106: 0.002976948542 | EQ106: 1.848427576 | ER106: 1.857520931
A107: 52 | B107: 44.9720856 | C107: 0.8174765376 | D107: 9.350969741 | E107: 0 | F107: 0.7197386894 | G107: 9.116275155 | H107: 0.1661171561 | I107: 26.26425556 | J107: 7.38447624 | K107: 1.101438344 | L107: 0.04762976621 | M107: 0 | N107: 0.05953720777 | P107: 41.49834109 | Q107: 0.02629027349 | R107: 0.2599462769 | S107: 0 | T107: 7.715665675e-05 | U107: 5.243716946 | V107: 0.09121645882 | W107: 52.6564255 | X107: 0.2238567352 | Y107: 0.0001180752146 | Z107: 5.105955226e-06 | AA107: 0 | AB107: 6.382444033e-06 | AC107: 100 | AD107: 1 | AE107: 1530.675021 | AF107: 1546.495719 | AG107: 0.2869032955 | AH107: 0.9470828072 | AI107: 0.5682444644 | AJ107: 0.2057605848 | AK107: =B107/AK$25 -> 0.7484744213 | AL107: 0.01023137383 | AM107: 0.09171034053 | AN107: 0 | AO107: 0.004499435425 | AP107: 0.1268863285 | AQ107: 0.002341756151 | AR107: 0.6515406603 | AS107: 0.1316798845 | AT107: 0.01777115384 | AU107: 0.000505607743 | AV107: 0 | AW107: 0.0004194385696 | AY107: 41.9064451 | AZ107: 0.572845903 | BA107: 5.134783823 | BB107: 0 | BC107: 0.2519195556 | BD107: 7.104257416 | BE107: 0.1311129316 | BF107: 36.47920642 | BG107: 7.372644531 | BH107: 0.9949917612 | BI107: 0.02830854672 | BJ107: 0 | BK107: 0.02348400813 | BL107: 0.373750741 | BM107: 42.28890435 | BN107: 42.28890435 | BO107: =B107/BO$25 -> 0.7484744213 | BP107: 0.01023137383 | BQ107: 0.1834206811 | BR107: 0 | BS107: 0.00899887085 | BT107: 0.1268863285 | BU107: 0.002341756151 | BV107: 0.6515406603 | BW107: 0.1316798845 | BX107: 0.03554230767 | BY107: 0.001011215486 | BZ107: 0 | CA107: 0.0008388771393 | CB107: 0.3937336454 | CC107: 0.005382196105 | CD107: 0.09648812483 | CE107: 0 | CF107: 0.004733840093 | CG107: 0.06674832865 | CH107: 0.001231876681 | CI107: 0.3427418119 | CJ107: 0.0692699703 | CK107: 0.01869696808 | CL107: 0.0005319481177 | CM107: 0 | CN107: 0.0004412898353 | CO107: 0.01614658832 | CP107: 0.2502086178 | CQ107: 0 | CR107: 4.733840093e-05 | CS107: 4.54216101 | CT107: 0.06309971573 | CU107: 63.13885382 | CV107: 0.1958830768 | CW107: 0.0001869696808 | CX107: 5.319481177e-06 | CY107: 0 | CZ107: 4.412898353e-06 | DA107: 68.06544432 | DB107: 0.3765292818 | DC107: 33.19508154 | DD107: 0.01581476815 | DE107: 0.2450667102 | DF107: 0 | DG107: 4.6365574e-05 | DH107: 3.507887978 | DI107: 0.06180298619 | DJ107: 62.78224941 | DK107: 0.1918575853 | DL107: 0.0001831273639 | DM107: 5.210163278e-06 | DN107: 0 | DO107: 4.322211167e-06 | DP107: 0.3527423911 | DQ107: 0.5682444644 | DR107: 0.6924038241 | DS107: 19.46651894 | DT107: 5.707629726 | DU107: 3.352897086 | DV107: 28.52704575 | DW107: 0.2000778411 | DX107: 0.6823881838 | DY107: 0.1175339751 | DZ107: 0.1480386323 | EA107: 0.189849406 | EB107: 3 | EC107: 0.2464515944 | ED107: 0.2057605848 | EE107: 0.339191878 | EF107: 0.2464515944 | EG107: 0.2057605848 | EH107: 0 | EI107: 0 | EJ107: 0 | EL107: 0 | EM107: 0 | EN107: 0 | EO107: 0.3620715635 | EP107: 0.002956608267 | EQ107: 1.833090818 | ER107: 1.842169576
A108: 53 | B108: 44.93769209 | C108: 0.8096430102 | D108: 9.260959607 | E108: 0 | F108: 0.7126133277 | G108: 9.077932995 | H108: 0.165375565 | I108: 26.52556417 | J108: 7.313579018 | K108: 1.090534183 | L108: 0.04715823492 | M108: 0 | N108: 0.05894779365 | P108: 41.51233741 | Q108: 0.02602260398 | R108: 0.2608674685 | S108: 0 | T108: 7.634662924e-05 | U108: 5.168936381 | V108: 0.09018751411 | W108: 52.71850987 | X108: 0.2229342085 | Y108: 0.0001168356045 | Z108: 5.052350464e-06 | AA108: 0 | AB108: 6.31543808e-06 | AC108: 100 | AD108: 1 | AE108: 1534.450607 | AF108: 1550.014962 | AG108: 0.2864941231 | AH108: 0.9478563347 | AI108: 0.5814245928 | AJ108: 0.2051757117 | AK108: 0.747902007 | AL108: 0.01013333096 | AM108: 0.09082755936 | AN108: 0 | AO108: 0.004454891335 | AP108: 0.126352657 | AQ108: 0.00233130193 | AR108: 0.6580229757 | AS108: 0.1304156461 | AT108: 0.01759522068 | AU108: 0.0005006022624 | AV108: 0 | AW108: 0.0004152861577 | AY108: 41.806724 | AZ108: 0.566439676 | BA108: 5.077139344 | BB108: 0 | BC108: 0.2490224798 | BD108: 7.062944888 | BE108: 0.1303166664 | BF108: 36.7826061 | BG108: 7.290060556 | BH108: 0.9835493524 | BI108: 0.02798299833 | BJ108: 0 | BK108: 0.02321394195 | BL108: 0.3897264355 | BM108: 42.20094489 | BN108: 42.20094489 | BO108: 0.747902007 | BP108: 0.01013333096 | BQ108: 0.1816551187 | BR108: 0 | BS108: 0.00890978267 | BT108: 0.126352657 | BU108: 0.00233130193 | BV108: 0.6580229757 | BW108: 0.1304156461 | BX108: 0.03519044136 | BY108: 0.001001204525 | BZ108: 0 | CA108: 0.0008305723154 | CB108: 0.3930647522 | CC108: 0.005325637831 | CD108: 0.09547002623 | CE108: 0 | CF108: 0.004682594089 | CG108: 0.06640545867 | CH108: 0.001225230855 | CI108: 0.3458282442 | CJ108: 0.06854078895 | CK108: 0.01849456478 | CL108: 0.0005261895339 | CM108: 0 | CN108: 0.0004365126692 | CO108: 0.01597691349 | CP108: 0.2510123264 | CQ108: 0 | CR108: 4.682594089e-05 | CS108: 4.492719833 | CT108: 0.06236731876 | CU108: 63.19042231 | CV108: 0.1950113681 | CW108: 0.0001849456478 | CX108: 5.261895339e-06 | CY108: 0 | CZ108: 4.365126692e-06 | DA108: 68.06636568 | DB108: 0.375343026 | DC108: 33.19485496 | DD108: 0.01564836841 | DE108: 0.2458505743 | DF108: 0 | DG108: 4.586302444e-05 | DH108: 3.456672594 | DI108: 0.06108481346 | DJ108: 62.83465105 | DK108: 0.1910012051 | DL108: 0.0001811424736 | DM108: 5.153691094e-06 | DN108: 0 | DO108: 4.275363363e-06 | DP108: 0.3530090274 | DQ108: 0.5814245928 | DR108: 0.7008134375 | DS108: 19.62398803 | DT108: 5.64357902 | DU108: 3.31053261 | DV108: 28.57809966 | DW108: 0.1974791567 | DX108: 0.6866792496 | DY108: 0.1158415937 | DZ108: 0.1468311467 | EA108: 0.1909261487 | EB108: 3 | EC108: 0.2465861304 | ED108: 0.2051757117 | EE108: 0.3427141841 | EF108: 0.2465861304 | EG108: 0.2051757117 | EH108: 0 | EI108: 0 | EJ108: 0 | EL108: 0 | EM108: 0 | EN108: 0 | EO108: 0.3650565303 | EP108: 0.00293632711 | EQ108: 1.818157694 | ER108: 1.827219823
A109: 54 | B109: 44.90377769 | C109: 0.8018843924 | D109: 9.171849784 | E109: 0 | F109: 0.7055585061 | G109: 9.039230058 | H109: 0.1646311289 | I109: 26.78490027 | J109: 7.243374614 | K109: 1.079737971 | L109: 0.04669137173 | M109: 0 | N109: 0.05836421466 | P109: 41.52608547 | Q109: 0.02575774182 | R109: 0.2617171665 | S109: 0 | T109: 7.554536129e-05 | U109: 5.095677935 | V109: 0.08917821456 | W109: 52.77937317 | X109: 0.2220079008 | Y109: 0.0001156093994 | Z109: 4.999325379e-06 | AA109: 0 | AB109: 6.249156724e-06 | AC109: 100 | AD109: 1 | AE109: 1538.18082 | AF109: 1553.457682 | AG109: 0.2860858231 | AH109: 0.9486136141 | AI109: 0.5945282598 | AJ109: 0.2046012375 | AK109: 0.7473375666 | AL109: 0.01003622564 | AM109: 0.08995360805 | AN109: 0 | AO109: 0.004410788226 | AP109: 0.125813964 | AQ109: 0.002320807602 | AR109: 0.6644563585 | AS109: 0.1291637621 | AT109: 0.01742102924 | AU109: 0.0004956463354 | AV109: 0 | AW109: 0.0004111748541 | AY109: 41.70827305 | AZ109: 0.5601132047 | BA109: 5.020234248 | BB109: 0 | BC109: 0.246162334 | BD109: 7.02157017 | BE109: 0.1295222955 | BF109: 37.08274342 | BG109: 7.208519547 | BH109: 0.9722528036 | BI109: 0.02766159981 | BJ109: 0 | BK109: 0.02294731839 | BL109: 0.4054817406 | BM109: 42.11372009 | BN109: 42.11372009 | BO109: 0.7473375666 | BP109: 0.01003622564 | BQ109: 0.1799072161 | BR109: 0 | BS109: 0.008821576451 | BT109: 0.125813964 | BU109: 0.002320807602 | BV109: 0.6644563585 | BW109: 0.1291637621 | BX109: 0.03484205848 | BY109: 0.0009912926707 | BZ109: 0 | CA109: 0.0008223497082 | CB109: 0.3924034632 | CC109: 0.005269706587 | CD109: 0.09446362367 | CE109: 0 | CF109: 0.004631932482 | CG109: 0.06606095745 | CH109: 0.001218583116 | CI109: 0.3488851462 | CJ109: 0.06781983111 | CK109: 0.01829446962 | CL109: 0.0005204966194 | CM109: 0 | CN109: 0.0004317899806 | CO109: 0.01580911976 | CP109: 0.2517474657 | CQ109: 0 | CR109: 4.631932482e-05 | CS109: 4.444110672 | CT109: 0.06164916558 | CU109: 63.2409076 | CV109: 0.1941374931 | CW109: 0.0001829446962 | CX109: 5.204966194e-06 | CY109: 0 | CZ109: 4.317899806e-06 | DA109: 68.06701369 | DB109: 0.3741365962 | DC109: 33.19465959 | DD109: 0.01548387773 | DE109: 0.246568249 | DF109: 0 | DG109: 4.536639439e-05 | DH109: 3.406533534 | DI109: 0.06038085336 | DJ109: 62.88599654 | DK109: 0.19014349 | DL109: 0.0001791809633 | DM109: 5.097884092e-06 | DN109: 0 | DO109: 4.229067377e-06 | DP109: 0.3532687879 | DQ109: 0.5945282598 | DR109: 0.709151721 | DS109: 19.77946389 | DT109: 5.580347453 | DU109: 3.268715454 | DV109: 28.62852679 | DW109: 0.1949226201 | DX109: 0.6909005143 | DY109: 0.1141768655 | DZ109: 0.145655769 | EA109: 0.1920016104 | EB109: 3 | EC109: 0.246678614 | ED109: 0.2046012375 | EE109: 0.3463612333 | EF109: 0.246678614 | EG109: 0.2046012375 | EH109: 0 | EI109: 0 | EJ109: 0 | EL109: 0 | EM109: 0 | EN109: 0 | EO109: 0.3680115574 | EP109: 0.00291610803 | EQ109: 1.803613352 | ER109: 1.812656924
A110: 55 | B110: 44.87033519 | C110: 0.7941999701 | D110: 9.083630649 | E110: 0 | F110: 0.6985735263 | G110: 9.000184988 | H110: 0.1638840703 | I110: 27.04227129 | J110: 7.173856131 | K110: 1.069048641 | L110: 0.04622913042 | M110: 0 | N110: 0.05778641302 | P110: 41.53959265 | Q110: 0.02549565902 | R110: 0.2624969905 | S110: 0 | T110: 7.47527621e-05 | U110: 5.023898094 | V110: 0.08818794717 | W110: 52.83905093 | X110: 0.2210774571 | Y110: 0.0001143964604 | Z110: 4.946873962e-06 | AA110: 0 | AB110: 6.183592453e-06 | AC110: 100 | AD110: 1 | AE110: 1541.866452 | AF110: 1556.825111 | AG110: 0.2856784906 | AH110: 0.9493551265 | AI110: 0.6075609947 | AJ110: 0.2040369728 | AK110: 0.7467809802 | AL110: 0.009940048938 | AM110: 0.08908839224 | AN110: 0 | AO110: 0.004367121731 | AP110: 0.125270509 | AQ110: 0.002310276306 | AR110: 0.6708409935 | AS110: 0.1279241094 | AT110: 0.01724856227 | AU110: 0.0004907394713 | AV110: 0 | AW110: 0.0004071042518 | AY110: 41.61107413 | AZ110: 0.5538653556 | BA110: 4.964057457 | BB110: 0 | BC110: 0.2433385837 | BD110: 6.980146218 | BE110: 0.1287299505 | BF110: 37.37965354 | BG110: 7.12800639 | BH110: 0.9611000042 | BI110: 0.02734429111 | BJ110: 0 | BK110: 0.02268408764 | BL110: 0.4210202927 | BM110: 42.02722923 | BN110: 42.02722923 | BO110: 0.7467809802 | BP110: 0.009940048938 | BQ110: 0.1781767845 | BR110: 0 | BS110: 0.008734243462 | BT110: 0.125270509 | BU110: 0.002310276306 | BV110: 0.6708409935 | BW110: 0.1279241094 | BX110: 0.03449712454 | BY110: 0.0009814789427 | BZ110: 0 | CA110: 0.0008142085036 | CB110: 0.391749691 | CC110: 0.005214395122 | CD110: 0.0934687708 | CE110: 0 | CF110: 0.004581848318 | CG110: 0.06571496127 | CH110: 0.001211935029 | CI110: 0.3519127548 | CJ110: 0.06710699879 | CK110: 0.01809665516 | CL110: 0.000514868593 | CM110: 0 | CN110: 0.0004271211215 | CO110: 0.01564318537 | CP110: 0.2524156464 | CQ110: 0 | CR110: 4.581848318e-05 | CS110: 4.39630973 | CT110: 0.06094480737 | CU110: 63.29034176 | CV110: 0.1932611204 | CW110: 0.0001809665516 | CX110: 5.14868593e-06 | CY110: 0 | CZ110: 4.271211215e-06 | DA110: 68.06739664 | DB110: 0.3729099568 | DC110: 33.19449465 | DD110: 0.01532127091 | DE110: 0.2472212923 | DF110: 0 | DG110: 4.487560412e-05 | DH110: 3.357438924 | DI110: 0.05969065012 | DJ110: 62.93631779 | DK110: 0.1892840821 | DL110: 0.000177242518 | DM110: 5.042733315e-06 | DN110: 0 | DO110: 4.183315777e-06 | DP110: 0.3535219202 | DQ110: 0.6075609947 | DR110: 0.7174385275 | DS110: 19.93297522 | DT110: 5.517922812 | DU110: 3.227438074 | DV110: 28.67833611 | DW110: 0.1924073556 | DX110: 0.6950534071 | DY110: 0.1125392373 | DZ110: 0.1445113123 | EA110: 0.1930756983 | EB110: 3 | EC110: 0.2467319203 | ED110: 0.2040369728 | EE110: 0.3501379991 | EF110: 0.2467319203 | EG110: 0.2040369728 | EH110: 0 | EI110: 0 | EJ110: 0 | EL110: 0 | EM110: 0 | EN110: 0 | EO110: 0.3709369193 | EP110: 0.002895953832 | EQ110: 1.789443645 | ER110: 1.798466833
A111: 56 | B111: 44.83735754 | C111: 0.7865890363 | D111: 8.996292692 | E111: 0 | F111: 0.6916576969 | G111: 8.96081581 | H111: 0.1631346037 | I111: 27.29768495 | J111: 7.105016738 | K111: 1.058465134 | L111: 0.04577146524 | M111: 0 | N111: 0.05721433154 | P111: 41.55286599 | Q111: 0.02523632763 | R111: 0.2632085504 | S111: 0 | T111: 7.396874116e-05 | U111: 4.953555013 | V111: 0.08721612541 | W111: 52.89757724 | X111: 0.2201425742 | Y111: 0.0001131966489 | Z111: 4.894990224e-06 | AA111: 0 | AB111: 6.11873778e-06 | AC111: 100 | AD111: 1 | AE111: 1545.50827 | AF111: 1560.11847 | AG111: 0.285272216 | AH111: 0.9500813338 | AI111: 0.62045884 | AJ111: 0.2034827325 | AK111: 0.7462321302 | AL111: 0.009844792004 | AM111: 0.08823181864 | AN111: 0 | AO111: 0.004323887529 | AP111: 0.1247225428 | AQ111: 0.002299711064 | AR111: 0.6771770719 | AS111: 0.1266965662 | AT111: 0.0170778027 | AU111: 0.0004858811846 | AV111: 0 | AW111: 0.000403073948 | AY111: 41.51510934 | AZ111: 0.5476950133 | BA111: 4.908598076 | BB111: 0 | BC111: 0.240550703 | BD111: 6.93868542 | BE111: 0.1279397555 | BF111: 37.67337139 | BG111: 7.048506206 | BH111: 0.9500888768 | BI111: 0.02703101313 | BJ111: 0 | BK111: 0.02242420065 | BL111: 0.4363456559 | BM111: 41.94147136 | BN111: 41.94147136 | BO111: 0.7462321302 | BP111: 0.009844792004 | BQ111: 0.1764636373 | BR111: 0 | BS111: 0.008647775058 | BT111: 0.1247225428 | BU111: 0.002299711064 | BV111: 0.6771770719 | BW111: 0.1266965662 | BX111: 0.0341556054 | BY111: 0.0009717623692 | BZ111: 0 | CA111: 0.0008061478959 | CB111: 0.3911033497 | CC111: 0.005159696257 | CD111: 0.09248532305 | CE111: 0 | CF111: 0.004532334719 | CG111: 0.06536760117 | CH111: 0.001205288092 | CI111: 0.3549113077 | CJ111: 0.06640219503 | CK111: 0.01790109423 | CL111: 0.0005093046819 | CM111: 0 | CN111: 0.0004225054506 | CO111: 0.01547908877 | CP111: 0.2530184676 | CQ111: 0 | CR111: 4.532334719e-05 | CS111: 4.349294214 | CT111: 0.06025381492 | CU111: 63.33875559 | CV111: 0.1923819655 | CW111: 0.0001790109423 | CX111: 5.093046819e-06 | CY111: 0 | CZ111: 4.225054506e-06 | DA111: 68.06752263 | DB111: 0.3716631334 | DC111: 33.19435941 | DD111: 0.01516052313 | DE111: 0.2478112496 | DF111: 0 | DG111: 4.439057516e-05 | DH111: 3.309358151 | DI111: 0.05901376808 | DJ111: 62.98564538 | DK111: 0.1884226702 | DL111: 0.0001753268278 | DM111: 4.988229944e-06 | DN111: 0 | DO111: 4.138101248e-06 | DP111: 0.3537686607 | DQ111: 0.62045884 | DR111: 0.7256479204 | DS111: 20.0845503 | DT111: 5.456293089 | DU111: 3.186693042 | DV111: 28.72753643 | DW111: 0.1899325096 | DX111: 0.6991393205 | DY111: 0.1109281699 | DZ111: 0.1433966468 | EA111: 0.1941483218 | EB111: 3 | EC111: 0.2467488447 | ED111: 0.2034827325 | EE111: 0.3540493167 | EF111: 0.2467488447 | EG111: 0.2034827325 | EH111: 0 | EI111: 0 | EJ111: 0 | EL111: 0 | EM111: 0 | EN111: 0 | EO111: 0.3738328903 | EP111: 0.002875867179 | EQ111: 1.775635095 | ER111: 1.784636167
A112: 57 | B112: 44.80483783 | C112: 0.7790508907 | D112: 8.909826513 | E112: 0 | F112: 0.6848103332 | G112: 8.921139961 | H112: 0.1623829356 | I112: 27.55114923 | J112: 7.036849668 | K112: 1.047986402 | L112: 0.04531833088 | M112: 0 | N112: 0.0566479136 | P112: 41.56591224 | Q112: 0.0249797198 | R112: 0.263853445 | S112: 0 | T112: 7.319320832e-05 | U112: 4.884608431 | V112: 0.08626218778 | W112: 52.95498487 | X112: 0.219202997 | Y112: 0.0001120098271 | Z112: 4.843668198e-06 | AA112: 0 | AB112: 6.054585247e-06 | AC112: 100 | AD112: 1 | AE112: 1549.107021 | AF112: 1563.33897 | AG112: 0.2848670857 | AH112: 0.9507926799 | AI112: 0.633379357 | AJ112: 0.2029383364 | AK112: 0.7456909017 | AL112: 0.009750446072 | AM112: 0.08738379507 | AN112: 0 | AO112: 0.00428108134 | AP112: 0.1241703082 | AQ112: 0.002289114787 | AR112: 0.6834647919 | AS112: 0.1254810119 | AT112: 0.01690873363 | AU112: 0.0004810709943 | AV112: 0 | AW112: 0.0003990835436 | AY112: 41.42036112 | AZ112: 0.5416010795 | BA112: 4.853845393 | BB112: 0 | BC112: 0.2377981744 | BD112: 6.897199621 | BE112: 0.1271518278 | BF112: 37.96393174 | BG112: 6.970004348 | BH112: 0.9392173773 | BI112: 0.0267217077 | BJ112: 0 | BK112: 0.0221676092 | BL112: 0.4514613234 | BM112: 41.85644525 | BN112: 41.85644525 | BO112: 0.7456909017 | BP112: 0.009750446072 | BQ112: 0.1747675901 | BR112: 0 | BS112: 0.008562162679 | BT112: 0.1241703082 | BU112: 0.002289114787 | BV112: 0.6834647919 | BW112: 0.1254810119 | BX112: 0.03381746726 | BY112: 0.0009621419886 | BZ112: 0 | CA112: 0.0007981670872 | CB112: 0.3904643536 | CC112: 0.00510560289 | CD112: 0.09151313763 | CE112: 0 | CF112: 0.004483384883 | CG112: 0.0650190032 | CH112: 0.001198643733 | CI112: 0.3578810437 | CJ112: 0.06570532388 | CK112: 0.01770775996 | CL112: 0.0005038041216 | CM112: 0 | CN112: 0.0004179423339 | CO112: 0.01531680867 | CP112: 0.2535575155 | CQ112: 0 | CR112: 4.483384883e-05 | CS112: 4.303042288 | CT112: 0.05957577758 | CU112: 63.38617866 | CV112: 0.1914997872 | CW112: 0.0001770775996 | CX112: 5.038041216e-06 | CY112: 0 | CZ112: 4.179423339e-06 | DA112: 68.06739954 | DB112: 0.3703962068 | DC112: 33.19425313 | DD112: 0.01500160995 | DE112: 0.2483396528 | DF112: 0 | DG112: 4.391123027e-05 | DH112: 3.262261805 | DI112: 0.05834979053 | DJ112: 63.03400866 | DK112: 0.1875589866 | DL112: 0.0001734335877 | DM112: 4.9343653e-06 | DN112: 0 | DO112: 4.093416591e-06 | DP112: 0.3540092345 | DQ112: 0.633379357 | DR112: 0.7338936911 | DS112: 20.23421693 | DT112: 5.395446472 | DU112: 3.146473047 | DV112: 28.77613645 | DW112: 0.1874972508 | DX112: 0.7031596117 | DY112: 0.1093431376 | DZ112: 0.1423106961 | EA112: 0.1952193928 | EB112: 3 | EC112: 0.2467321073 | ED112: 0.2029383364 | EE112: 0.3580998974 | EF112: 0.2467321073 | EG112: 0.2029383364 | EH112: 0 | EI112: 0 | EJ112: 0 | EL112: 0 | EM112: 0 | EN112: 0 | EO112: 0.3766997442 | EP112: 0.002855850592 | EQ112: 1.762174852 | ER112: 1.771152168
A113: 58 | B113: 44.77276926 | C113: 0.7715848395 | D113: 8.824222819 | E113: 0 | F113: 0.6780307576 | G113: 8.881174302 | H113: 0.1616292649 | I113: 27.80267235 | J113: 6.969348215 | K113: 1.037611408 | L113: 0.04486968249 | M113: 0 | N113: 0.05608710311 | P113: 41.57873789 | Q113: 0.02472580775 | R113: 0.2644332596 | S113: =DF113*BR$25*100/SUMPRODUCT($DC113:$DO113,$BO$25:$CA$25) -> 0 | T113: 7.24260738e-05 | U113: 4.817019598 | V113: 0.08532559647 | W113: 53.01130529 | X113: 0.2182585139 | Y113: 0.0001108358574 | Z113: 4.792901943e-06 | AA113: 0 | AB113: 5.991127428e-06 | AC113: 100 | AD113: 1 | AE113: 1552.663431 | AF113: 1566.487809 | AG113: 0.2844631817 | AH113: 0.9514895912 | AI113: 0.6463040178 | AJ113: 0.2024036082 | AK113: 0.7451571816 | AL113: 0.009657002459 | AM113: 0.08654423039 | AN113: 0 | AO113: 0.004238698926 | AP113: 0.1236140398 | AQ113: 0.002278490278 | AR113: 0.6897043574 | AS113: 0.1242773269 | AT113: 0.01674133832 | AU113: 0.0004763084242 | AV113: 0 | AW113: 0.0003951326437 | AY113: 41.32681213 | AZ113: 0.5355824734 | BA113: 4.799788875 | BB113: 0 | BC113: 0.2350804884 | BD113: 6.855700147 | BE113: 0.1263662782 | BF113: 38.25136912 | BG113: 6.892486402 | BH113: 0.9284834939 | BI113: 0.02641631759 | BJ113: 0 | BK113: 0.02191426579 | BL113: 0.4663707194 | BM113: 41.77214945 | BN113: 41.77214945 | BO113: 0.7451571816 | BP113: 0.009657002459 | BQ113: 0.1730884608 | BR113: 0 | BS113: 0.008477397852 | BT113: 0.1236140398 | BU113: 0.002278490278 | BV113: 0.6897043574 | BW113: 0.1242773269 | BX113: 0.03348267663 | BY113: 0.0009526168485 | BZ113: 0 | CA113: 0.0007902652874 | CB113: 0.3898326184 | CC113: 0.005052107995 | CD113: 0.0905520735 | CE113: 0 | CF113: 0.004434992084 | CG113: 0.06466928856 | CH113: 0.001192003316 | CI113: 0.3608222026 | CJ113: 0.06501629045 | CK113: 0.01751662579 | CL113: 0.0004983661562 | CM113: 0 | CN113: 0.0004134311442 | CO113: 0.01515632398 | CP113: 0.2540343614 | CQ113: 0 | CR113: 4.434992084e-05 | CS113: 4.257533014 | CT113: 0.05891030227 | CU113: 63.43263941 | CV113: 0.1906143836 | CW113: 0.0001751662579 | CX113: 4.983661562e-06 | CY113: 0 | CZ113: 4.134311442e-06 | DA113: 68.06703507 | DB113: 0.3691093077 | DC113: 33.19417506 | DD113: 0.0148445073 | DE113: 0.2488080181 | DF113: 0 | DG113: 4.343749344e-05 | DH113: 3.216121613 | DI113: 0.05769831873 | DJ113: 63.08143575 | DK113: 0.1866928031 | DL113: 0.0001715624974 | DM113: 4.881130841e-06 | DN113: 0 | DO113: 4.049254717e-06 | DP113: 0.3542438567 | DQ113: 0.6463040178 | DR113: 0.7421769107 | DS113: 20.38200251 | DT113: 5.335371349 | DU113: 3.106770885 | DV113: 28.82414474 | DW113: 0.1851007687 | DX113: 0.7071156036 | DY113: 0.1077836277 | DZ113: 0.1412524344 | EA113: 0.1962888252 | EB113: 3 | EC113: 0.2466843562 | ED113: 0.2024036082 | EE113: 0.3622943407 | EF113: 0.2466843562 | EG113: 0.2024036082 | EH113: 0 | EI113: 0 | EJ113: 0 | EL113: 0 | EM113: 0 | EN113: 0 | EO113: 0.3795377542 | EP113: 0.002835906464 | EQ113: 1.749050662 | ER113: 1.758002666
A114: 59 | B114: 44.74114518 | C114: 0.7641901956 | D114: 8.739472427 | E114: 0 | F114: 0.6713182989 | G114: 8.840935147 | H114: 0.160873783 | I114: 28.05226278 | J114: 6.902505743 | K114: 1.027339125 | L114: 0.04442547566 | M114: 0 | N114: 0.05553184458 | P114: 41.59134911 | Q114: 0.02447456381 | R114: 0.264949565 | S114: 0 | T114: 7.166724828e-05 | U114: 4.750751202 | V114: 0.08440583614 | W114: 53.06656876 | X114: 0.2173089535 | Y114: 0.0001096746033 | Z114: 4.742685548e-06 | AA114: 0 | AB114: 5.928356935e-06 | AC114: 100 | AD114: 1 | AE114: 1556.178203 | AF114: 1569.566176 | AG114: 0.2840605824 | AH114: 0.9521724778 | AI114: 0.6590459228 | AJ114: 0.2018783758 | AK114: 0.7446308593 | AL114: 0.009564452566 | AM114: 0.08571303454 | AN114: 0 | AO114: 0.004196736093 | AP114: 0.1230539647 | AQ114: 0.002267840239 | AR114: 0.6958959782 | AS114: 0.1230853928 | AT114: 0.0165756002 | AU114: 0.000471593003 | AV114: 0 | AW114: 0.0003912208572 | AY114: 41.23444535 | AZ114: 0.5296381311 | BA114: 4.746418167 | BB114: 0 | BC114: 0.232397144 | BD114: 6.814197825 | BE114: 0.1255832111 | BF114: 38.53571783 | BG114: 6.815938179 | BH114: 0.9178852474 | BI114: 0.0261147865 | BJ114: 0 | BK114: 0.02166412371 | BL114: 0.4810772003 | BM114: 41.68858225 | BN114: 41.68858225 | BO114: 0.7446308593 | BP114: 0.009564452566 | BQ114: 0.1714260691 | BR114: 0 | BS114: 0.008393472186 | BT114: 0.1230539647 | BU114: 0.002267840239 | BV114: 0.6958959782 | BW114: 0.1230853928 | BX114: 0.0331512004 | BY114: 0.000943186006 | BZ114: 0 | CA114: 0.0007824417144 | CB114: 0.3892080603 | CC114: 0.004999204619 | CD114: 0.08960199136 | CE114: 0 | CF114: 0.00438714967 | CG114: 0.06431857384 | CH114: 0.001185368145 | CI114: 0.3637350245 | CJ114: 0.06433500087 | CK114: 0.01732766543 | CL114: 0.0004929900383 | CM114: 0 | CN114: 0.0004089712616 | CO114: 0.01499761386 | CP114: 0.2544505604 | CQ114: 0 | CR114: 4.38714967e-05 | CS114: 4.212746312 | CT114: 0.05825701249 | CU114: 63.47816519 | CV114: 0.1897255893 | CW114: 0.0001732766543 | CX114: 4.929900383e-06 | CY114: 0 | CZ114: 4.089712616e-06 | DA114: 68.0664367 | DB114: 0.3678026118 | DC114: 33.19412449 | DD114: 0.0146891915 | DE114: 0.2492178454 | DF114: 0 | DG114: 4.296928983e-05 | DH114: 3.17091039 | DI114: 0.05705897092 | DJ114: 63.12795367 | DK114: 0.1858239278 | DL114: 0.0001697132613 | DM114: 4.828518158e-06 | DN114: 0 | DO114: 4.005608652e-06 | DP114: 0.3544727326 | DQ114: 0.6590459228 | DR114: 0.7503889252 | DS114: 20.52793397 | DT114: 5.276056298 | DU114: 3.067579464 | DV114: 28.87156973 | DW114: 0.1827422737 | DX114: 0.7110085859 | DY114: 0.1062491404 | DZ114: 0.1402208836 | EA114: 0.1973565351 | EB114: 3 | EC114: 0.2466081707 | ED114: 0.2018783758 | EE114: 0.3666371473 | EF114: 0.2466081707 | EG114: 0.2018783758 | EH114: 0 | EI114: 0 | EJ114: 0 | EL114: 0 | EM114: 0 | EN114: 0 | EO114: 0.3823471929 | EP114: 0.002816037059 | EQ114: 1.736250826 | ER114: 1.745176046
A115: 60 | B115: 44.70995908 | C115: 0.7568662784 | D115: 8.65556626 | E115: 0 | F115: 0.6646722926 | G115: 8.800438276 | H115: 0.1601166746 | I115: 28.29992917 | J115: 6.836315676 | K115: 1.017168536 | L115: 0.04398566642 | M115: 0 | N115: 0.05498208303 | P115: 41.60375185 | Q115: 0.02422596047 | R115: 0.2654039158 | S115: 0 | T115: 7.091664294e-05 | U115: 4.685767298 | V115: 0.08350241274 | W115: 53.12080438 | X115: 0.2163541809 | Y115: 0.0001085259288 | Z115: 4.693013136e-06 | AA115: 0 | AB115: 5.86626642e-06 | AC115: 100 | AD115: 1 | AE115: 1559.652024 | AF115: 1572.575246 | AG115: 0.283659362 | AH115: 0.9528417345 | AI115: 0.6718742686 | AJ115: 0.2013624713 | AK115: 0.7441118263 | AL115: 0.009472787875 | AM115: 0.08489011848 | AN115: 0 | AO115: 0.004155188686 | AP115: 0.1224903025 | AQ115: 0.00225716727 | AR115: 0.7020398694 | AS115: 0.1219050924 | AT115: 0.01641150286 | AU115: 0.0004669242638 | AV115: 0 | AW115: 0.0003873477969 | AY115: 41.143244 | AZ115: 0.5237670053 | BA115: 4.693723086 | BB115: 0 | BC115: 0.229747648 | BD115: 6.772703008 | BE115: 0.1248027251 | BF115: 38.81701193 | BG115: 6.740345716 | BH115: 0.9074206898 | BI115: 0.02581705899 | BJ115: 0 | BK115: 0.02141713699 | BL115: 0.4955840567 | BM115: 41.60574174 | BN115: 41.60574174 | BO115: 0.7441118263 | BP115: 0.009472787875 | BQ115: 0.169780237 | BR115: 0 | BS115: 0.008310377372 | BT115: 0.1224903025 | BU115: 0.00225716727 | BV115: 0.7020398694 | BW115: 0.1219050924 | BX115: 0.03282300573 | BY115: 0.0009338485276 | BZ115: 0 | CA115: 0.0007746955938 | CB115: 0.3885905965 | CC115: 0.004946885886 | CD115: 0.08866275367 | CE115: 0 | CF115: 0.004339851063 | CG115: 0.06396697116 | CH115: 0.001178739465 | CI115: 0.3666197499 | CJ115: 0.06366136231 | CK115: 0.01714085293 | CL115: 0.0004876750289 | CM115: 0 | CN115: 0.0004045620729 | CO115: 0.01484065766 | CP115: 0.2548076501 | CQ115: 0 | CR115: 4.339851063e-05 | CS115: 4.168662909 | CT115: 0.05761554749 | CU115: 63.5227823 | CV115: 0.1888332718 | CW115: 0.0001714085293 | CX115: 4.876750289e-06 | CY115: 0 | CZ115: 4.045620729e-06 | DA115: 68.06561175 | DB115: 0.3664763352 | DC115: 33.1941007 | DD115: 0.01453563924 | DE115: 0.2495706163 | DF115: 0 | DG115: 4.250654579e-05 | DH115: 3.126601979 | DI115: 0.05643138143 | DJ115: 63.17358835 | DK115: 0.1849522022 | DL115: 0.0001678855885 | DM115: 4.776518974e-06 | DN115: 0 | DO115: 3.962471528e-06 | DP115: 0.3546960585 | DQ115: 0.6718742686 | DR115: 0.758713973 | DS115: 20.67203784 | DT115: 5.217490091 | DU115: 3.028891801 | DV115: 28.91841973 | DW115: 0.180420996 | DX115: 0.714839816 | DY115: 0.104739188 | DZ115: 0.1392151102 | EA115: 0.1984224407 | EB115: 3 | EC115: 0.2465060649 | ED115: 0.2013624713 | EE115: 0.37113273 | EF115: 0.2465060649 | EG115: 0.2013624713 | EH115: 0 | EI115: 0 | EJ115: 0 | EL115: 0 | EM115: 0 | EN115: 0 | EO115: 0.385128332 | EP115: 0.002796244521 | EQ115: 1.723764177 | ER115: 1.73266122

Sheet MEGAPRIMELT3
R5: ERROR CODES | X5: BATCH PRIMARY MELT | AV5: ACCUMULATED FRACTIONAL PRIMARY MELT
A6: Sample Name | B6: SiO2 | C6: TiO2 | D6: Al2O3 | E6: Cr2O3 | F6: FeO* | G6: MnO | H6: MgO | I6: CaO | J6: Na2O | K6: K2O | L6: NiO | M6: P2O5 | O6: P | P6: Fe2+/Fe* | Q6: Fe2O3/TiO2 | R6: INPUT | S6: BATCH OUTPUT ERRORS | U6: AFM OUTPUT ERRORS | X6: %ol addition | Y6: SiO2 | Z6: TiO2 | AA6: Al2O3 | AB6: Cr2O3 | AC6: Fe2O3 | AD6: FeO | AE6: MnO | AF6: MgO | AG6: CaO | AH6: Na2O | AI6: K2O | AJ6: NiO | AK6: P2O5 | AL6: T | AM6: Old TP | AN6: New TP | AO6: KD | AP6: Xfo | AQ6: F (Fe/Mg) | AR6: Proj F1 | AS6: Proj F2 | AT6: Proj F3 | AV6: %ol addition | AW6: SiO2 | AX6: TiO2 | AY6: Al2O3 | AZ6: Cr2O3 | BA6: Fe2O3 | BB6: FeO | BC6: MnO | BD6: MgO | BE6: CaO | BF6: Na2O | BG6: K2O | BH6: NiO | BI6: P2O5 | BJ6: T | BK6: TP old | BL6: TP new | BM6: KD | BN6: Xfo | BO6: F_AFM | BP6: Proj F1 | BQ6: Proj F2 | BR6: Proj F3 | BS6: Residual Mineralogy
A7: Mkea | B7: 48.3 | C7: 2.64 | D7: 13.15 | E7: 0 | F7: 11.056 | G7: 0.18 | H7: 8.05 | I7: 13.18 | J7: 2.28 | K7: 0.74 | L7: 0 | M7: 0.311 | O7: =1 -> 1 | P7: =0.9 -> 0.9 | R7: No error | S7: no Fe/Mg error | T7: no Na/Si error | U7: No error | V7: no Fe/Mg error | W7: no Na/Si error | X7: 33.91710758 | Y7: 46.03936577 | Z7: 1.904784987 | AA7: 9.417371767 | AB7: 0 | AC7: 0.8765205107 | AD7: 10.28014427 | AE7: 0.174450117 | AF7: 19.44091051 | AG7: 9.489714692 | AH7: 1.626827142 | AI7: 0.5280053004 | AJ7: 0 | AK7: 0.2219049303 | AL7: 1430.857514 | AM7: 1560.272722 | AN7: 1549.262325 | AO7: 0.2959478346 | AP7: 0.9192809135 | AQ7: 0.1625810714 | AR7: 0.2739489168 | AS7: 0.1777155622 | AT7: 0.1625810714 | AV7: 31.00921132 | AW7: 46.18833738 | AX7: 1.95883309 | AY7: 9.688893323 | AZ7: 0 | BA7: 0.9022468383 | BB7: 10.34217578 | BC7: 0.1760052017 | BD7: 18.53624631 | BE7: 9.760766251 | BF7: 1.674575355 | BG7: 0.5435025274 | BH7: 0 | BI7: 0.2284179541 | BJ7: 1415.581648 | BK7: 1541.406787 | BL7: 1526.274881 | BM7: 0.2968035489 | BN7: 0.9149850378 | BO7: 0.1625529562 | BP7: 0.26410667 | BQ7: 0.1703978151 | BR7: 0.1625529562 | BS7: Garnet Peridotite
A8: OJP | B8: 49.69 | C8: 0.753 | D8: 15.01 | E8: 0.075 | F8: 9.856 | G8: 0.17 | H8: 9.98 | I8: 12.51 | J8: 1.66 | K8: 0.091 | L8: 0.025 | M8: 0.061 | O8: 1 | P8: 0.9 | R8: No error | S8: FeO/MgO forbidden | T8: no Na/Si error | U8: No error | V8: no Fe/Mg error | W8: no Na/Si error | X8: 26.17078106 | Y8: 47.61230114 | Z8: 0.5854385877 | AA8: 11.60381646 | AB8: 0.0647289436 | AC8: 0.8441529894 | AD8: 9.055998374 | AE8: 0.1644317771 | AF8: 18.83369123 | AG8: 9.709125523 | AH8: 1.279590672 | AI8: 0.07014623563 | AJ8: 0.1295569735 | AK8: 0.047021103 | AL8: 1412.083785 | AM8: 1547.687539 | AN8: 1533.848103 | AO8: 0.3047977289 | AP8: 0.9240144929 | AQ8: 0.2930721755 | AR8: 0.2930721755 | AS8: 0.3560098685 | AT8: 0.3937483527 | AV8: 19.95626406 | AW8: 48.03942952 | AX8: 0.621515818 | AY8: 12.33211154 | AZ8: 0.06722472284 | BA8: 0.8979857864 | BB8: 9.130851887 | BC8: 0.1672060942 | BD8: 16.84662439 | BE8: 10.31178958 | BF8: 1.361191929 | BG8: 0.07461955754 | BH8: 0.0994294725 | BI8: 0.0500197034 | BJ8: 1376.916095 | BK8: 1504.060066 | BL8: 1482.973522 | BM8: 0.3073810835 | BN8: 0.9145167813 | BO8: 0.2778857904 | BP8: 0.2778857904 | BQ8: 0.3396478512 | BR8: 0.4172790806 | BS8: Harzburgite
A9: Gorgona | B9: 46.54 | C9: 0.7 | D9: 11.9 | E9: 0.25 | F9: 11.21 | G9: 0.18 | H9: 17.82 | I9: 10.09 | J9: 1.11 | K9: 0.04 | L9: 0.1 | M9: 0.05 | O9: 1 | P9: 0.9 | R9: No error | S9: FeO/MgO forbidden | T9: no Na/Si error | U9: No error | V9: no Fe/Mg error | W9: no Na/Si error | X9: 11.57946477 | Y9: 45.88004167 | Z9: 0.6254614483 | AA9: 10.61521735 | AB9: 0.2322456813 | AC9: 1.108759547 | AD9: 9.818728767 | AE9: 0.1731976278 | AF9: 21.31917582 | AG9: 9.009376628 | AH9: 0.9880916926 | AI9: 0.03560690784 | AJ9: 0.1495882295 | AK9: 0.0445086348 | AL9: 1457.989424 | AM9: 1597.45278 | AN9: 1596.549819 | AO9: 0.296070262 | AP9: 0.9289266922 | AQ9: 0.3016775109 | AR9: 0.3065268938 | AS9: 0.3016775109 | AT9: 0.2888598468 | AV9: 4.067998565 | AW9: 46.26192425 | AX9: 0.672354564 | AY9: 11.42257481 | AZ9: 0.2435269374 | BA9: 1.194785145 | BB9: 10.00391307 | BC9: 0.1776586571 | BD9: 19.06610399 | BE9: 9.688955559 | BF9: 1.064755005 | BG9: 0.03836954972 | BH9: 0.1171165275 | BI9: 0.04796193715 | BJ9: 1420.463485 | BK9: 1552.540996 | BL9: 1539.755203 | BM9: 0.2995828555 | BN9: 0.9189512681 | BO9: 0.2885197533 | BP9: 0.2885197533 | BQ9: 0.2915216969 | BR9: 0.3042363342 | BS9: Harzburgite
A10: West Greenland 332768 | B10: 48.19 | C10: 1.28 | D10: 14.82 | E10: 0.08 | F10: 11.57 | G10: 0.203 | H10: 8.77 | I10: 13.23 | J10: 1.7 | K10: 0.06 | L10: 0.026 | M10: 0.09 | O10: 1 | P10: 0.9 | R10: No error | S10: no Fe/Mg error | T10: no Na/Si error | U10: No error | V10: no Fe/Mg error | W10: no Na/Si error | X10: 39.67738711 | Y10: 45.6012493 | Z10: 0.8722794458 | AA10: 10.02016044 | AB10: 0.06352983138 | AC10: 0.8648546588 | AD10: 10.4148365 | AE10: 0.1896980057 | AF10: 21.48019598 | AG10: 8.993588272 | AH10: 1.143671243 | AI10: 0.0403648674 | AJ10: 0.2550241634 | AK10: 0.06054730109 | AL10: 1463.224028 | AM10: 1600.532309 | AN10: 1600.576104 | AO10: 0.2941759376 | AP10: 0.9259454493 | AQ10: 0.2347728082 | AR10: 0.3045551085 | AS10: 0.2579318126 | AT10: 0.2347728082 | AV10: 34.28374409 | AW10: 45.86184518 | AX10: 0.9189148622 | AY10: 10.56305519 | AZ10: 0.06575912354 | BA10: 0.9126792349 | BB10: 10.57114704 | BC10: 0.1933755164 | BD10: 19.90592274 | BE10: 9.47716835 | BF10: 1.206913768 | BG10: 0.04259695651 | BH10: 0.2167266086 | BI10: 0.06389543477 | BJ10: 1437.160364 | BK10: 1569.710501 | BL10: 1561.024746 | BM10: 0.2965254299 | BN10: 0.9188154436 | BO10: 0.2409602193 | BP10: 0.291189408 | BQ10: 0.2507769061 | BR10: 0.2409602193 | BS10: Garnet Peridotite
A11: West Greenland 136912 | B11: 44.97 | C11: 1.1 | D11: 10.39 | E11: 0 | F11: 10.93 | G11: 0.198 | H11: 21.84 | I11: 8.71 | J11: 1.14 | K11: 0.65 | L11: 0 | M11: 0.085 | O11: 1 | P11: 0.9 | R11: No error | S11: no Fe/Mg error | T11: no Na/Si error | U11: No error | V11: no Fe/Mg error | W11: no Na/Si error | X11: -11.10441183 | Y11: 45.3569634 | Z11: 1.223684748 | AA11: 11.57521967 | AB11: 0 | AC11: 1.355875877 | AD11: 10.11883289 | AE11: 0.2054370672 | AF11: 18.37526619 | AG11: 9.695361939 | AH11: 1.272761802 | AI11: 0.7256975185 | AJ11: 0 | AK11: 0.09489890627 | AL11: 1414.471318 | AM11: 1537.973945 | AN11: 1522.169979 | AO11: 0.2947189165 | AP11: 0.9165847889 | AQ11: 0.1283994477 | AR11: 0.2655267269 | AS11: 0.1462802702 | AT11: 0.1283994477 | AV11: -12.95603162 | AW11: 45.44023603 | AX11: 1.246012171 | AY11: 11.79005403 | AZ11: 0 | BA11: 1.381457682 | BB11: 10.15343827 | BC11: 0.2065385006 | BD11: 17.77592346 | BE11: 9.873485474 | BF11: 1.296775463 | BG11: 0.7393895186 | BH11: 0 | BI11: 0.09668939858 | BJ11: 1404.005335 | BK11: 1524.973108 | BL11: 1506.848801 | BM11: 0.2952927364 | BN11: 0.9135472833 | BO11: 0.1274238973 | BP11: 0.2587604735 | BQ11: 0.1417324038 | BR11: 0.1274238973 | BS11: Garnet Peridotite
A12: Superior Archean | B12: 50.76 | C12: 0.54 | D12: 8.73 | E12: 0 | F12: 10.89 | G12: 0.29 | H12: 16.38 | I12: 10.68 | J12: 1.65 | K12: 0.01 | L12: 0.013 | M12: 0.05 | O12: 1 | P12: 0.9 | R12: No error | S12: FeO/MgO forbidden | T12: no Na/Si error | U12: No error | V12: no Fe/Mg error | W12: no Na/Si error | X12: 29.23354157 | Y12: 48.28810589 | Z12: 0.4071256608 | AA12: 6.557872855 | AB12: 0 | AC12: 0.9036061738 | AD12: 9.175925635 | AE12: 0.2621426039 | AF12: 25.05570033 | AG12: 8.039817516 | AH12: 1.232190237 | AI12: 0.007467819618 | AJ12: 0.03270617263 | AK12: 0.03733909809 | AL12: 1511.316939 | AM12: 1665.509631 | AN12: 1688.858828 | AO12: 0.3045236405 | AP12: 0.9411104138 | AQ12: 0.5231805044 | AR12: 0.5231805044 | AS12: 0.6020352781 | AT12: 0.5485644748 | AV12: 9.295554773 | AW12: 49.8355188 | AX12: 0.4932468094 | AY12: 7.961558006 | AZ12: 0 | BA12: 1.101868824 | BB12: 9.693434289 | BC12: 0.2825011617 | BD12: 19.30628006 | BE12: 9.749217525 | BF12: 1.502548397 | BG12: 0.009106353921 | BH12: 0.01918800197 | BI12: 0.0455317696 | BJ12: 1422.16988 | BK12: 1557.508699 | BL12: 1545.850084 | BM12: 0.314741665 | BN12: 0.9185515422 | BO12: 0.3749289289 | BP12: 0.3749289289 | BQ12: 0.6590281949 | BR12: 0.6902786661 | BS12: Harzburgite
A13: Siqueiros MORB | B13: 48.92 | C13: 0.99 | D13: 17.28 | E13: 0.05 | F13: 8.1 | G13: 0.149 | H13: 9.84 | I13: 12.26 | J13: 2.26 | K13: 0.04 | L13: 0.032 | M13: 0.085 | O13: 1 | P13: 0.88 | R13: No error | S13: no Fe/Mg error | T13: no Na/Si error | U13: No error | V13: no Fe/Mg error | W13: no Na/Si error | X13: 5.334764092 | Y13: 48.43632488 | Z13: 0.9394101902 | AA13: 16.37394596 | AB13: 0.04865288845 | AC13: 1.023016788 | AD13: 7.263087593 | AE13: 0.1496358049 | AF13: 11.82290534 | AG13: 11.63052303 | AH13: 2.140757352 | AI13: 0.03788951065 | AJ13: 0.05333544769 | AK13: 0.08051521013 | AL13: 1277.250071 | AM13: 1366.307278 | AN13: 1351.393481 | AO13: 0.3027411195 | AP13: 0.9054953386 | AQ13: 0.09738220846 | AR13: 0.09681631163 | AS13: 0.09738220846 | AT13: 0.2738086111 | AV13: 4.621080655 | AW13: 48.49115343 | AX13: 0.9458502721 | AY13: 16.48916494 | AZ13: 0.04883190871 | BA13: 1.030268842 | BB13: 7.249420437 | BC13: 0.149612968 | BD13: 11.55969724 | BE13: 11.71075015 | BF13: 2.155932946 | BG13: 0.03815810524 | BH13: 0.05007278729 | BI13: 0.08108597364 | BJ13: 1271.359396 | BK13: 1357.322741 | BL13: 1344.382707 | BM13: 0.3026997977 | BN13: 0.9037790815 | BO13: 0.0913070061 | BP13: 0.08595038234 | BQ13: 0.0913070061 | BR13: 0.2751316938 | BS13: Spinel Peridotite
A14: Iceland IT-220 | B14: 47.74 | C14: 1.35 | D14: 15.57 | E14: 0 | F14: 10.88 | G14: 0.19 | H14: 10.01 | I14: 12.23 | J14: 1.85 | K14: 0.08 | L14: 0 | M14: 0.1 | O14: 1 | P14: 0.9 | R14: No error | S14: no Fe/Mg error | T14: no Na/Si error | U14: No error | V14: no Fe/Mg error | W14: no Na/Si error | X14: 28.74904749 | Y14: 45.92675123 | Z14: 1.022547403 | AA14: 11.7223832 | AB14: 0 | AC14: 0.9070767704 | AD14: 9.849659164 | AE14: 0.1818606947 | AF14: 19.62085991 | AG14: 9.24567297 | AH14: 1.388127594 | AI14: 0.06002713922 | AJ14: 0 | AK14: 0.07503392402 | AL14: 1427.737442 | AM14: 1563.944686 | AN14: 1553.818429 | AO14: 0.296353159 | AP14: 0.9229561916 | AQ14: 0.2230139051 | AR14: 0.2768800992 | AS14: 0.2230139051 | AT14: 0.2228351564 | AV14: 23.95399466 | AW14: 46.16703562 | AX14: 1.070826748 | AY14: 12.28506106 | AZ14: 0 | BA14: 0.951388535 | BB14: 9.942959996 | BC14: 0.1844891695 | BD14: 18.11547493 | BE14: 9.685165731 | BF14: 1.455939256 | BG14: 0.0629595354 | BH14: 0 | BI14: 0.07869941925 | BJ14: 1402.055949 | BK14: 1532.382189 | BL14: 1515.536267 | BM14: 0.2981659145 | BN14: 0.9159017202 | BO14: 0.2103743184 | BP14: 0.2624154091 | BQ14: 0.2103743184 | BR14: 0.2273711622 | BS14: Spinel Peridotite
A15: Iceland IT-220 | B15: 47.74 | C15: 1.35 | D15: 15.57 | E15: 0 | F15: 10.88 | G15: 0.19 | H15: 10.01 | I15: 12.23 | J15: 1.85 | K15: 0.08 | L15: 0 | M15: 0.1 | O15: 1 | P15: 0.9 | Q15: 0.89547 | R15: No error | S15: no Fe/Mg error | T15: no Na/Si error | U15: No error | V15: no Fe/Mg error | W15: no Na/Si error | X15: 28.74904749 | Y15: 45.92675123 | Z15: 1.022547403 | AA15: 11.7223832 | AB15: 0 | AC15: 0.9070767704 | AD15: 9.849659164 | AE15: 0.1818606947 | AF15: 19.62085991 | AG15: 9.24567297 | AH15: 1.388127594 | AI15: 0.06002713922 | AJ15: 0 | AK15: 0.07503392402 | AL15: 1427.737442 | AM15: 1563.944686 | AN15: 1553.818429 | AO15: 0.296353159 | AP15: 0.9229561916 | AQ15: 0.2230139051 | AR15: 0.2768800992 | AS15: 0.2230139051 | AT15: 0.2228351564 | AV15: 23.95399466 | AW15: 46.16703562 | AX15: 1.070826748 | AY15: 12.28506106 | AZ15: 0 | BA15: 0.951388535 | BB15: 9.942959996 | BC15: 0.1844891695 | BD15: 18.11547493 | BE15: 9.685165731 | BF15: 1.455939256 | BG15: 0.0629595354 | BH15: 0 | BI15: 0.07869941925 | BJ15: 1402.055949 | BK15: 1532.382189 | BL15: 1515.536267 | BM15: 0.2981659145 | BN15: 0.9159017202 | BO15: 0.2103743184 | BP15: 0.2624154091 | BQ15: 0.2103743184 | BR15: 0.2273711622 | BS15: Spinel Peridotite

Sheet MKea
B2: INPUT MEASURED LIQUID COMPOSITION HERE | H2: Mauna Kea sample SR0684-8.95 (Stolper et al., 2004) | Q2: SOURCE PERIDOTITE COMPOSITION FOR Fe/Mg CALCULATION | Y2: R
B3: SiO2 | C3: TiO2 | D3: Al2O3 | E3: Cr2O3 | F3: FeO* | G3: MnO | H3: MgO | I3: CaO | J3: Na2O | K3: K2O | L3: NiO | M3: P2O5 | O3: sum | Q3: FeO | R3: 8.02 | Y3: 8.3143
B4: 48.3 | C4: 2.64 | D4: 13.15 | E4: 0 | F4: 11.056 | G4: 0.18 | H4: 8.05 | I4: 13.18 | J4: 2.28 | K4: 0.74 | L4: 0 | M4: 0.311 | O4: =SUM(B4:M4) -> 99.887 | Q4: MgO | R4: 38.12
B5: SPECIFY MOLE FRACTION Fe2+/Fe* | F5: 0.9 | K5: Option to fix Fe2O3/TiO2: | L5: 1
Q6: Pressure | R6: 1 | S6: (bars) | X6: Precision of F iteration:
B7: INPUT COMPOSITION ERROR CODES: | G7: =IF(I4 < 13.81-0.274*H4, "Pyroxenite Source … no solution", IF(I4 > 2.318*B4-93.626, "Volatile peridotite source … no solution", "No error")) -> No error | Y7: 0.0001
A9: OUTPUT: | B9: BATCH PRIMARY MELT | H9: OUTPUT COMPOSITION ERROR CODES: | P9: =IF(G11 < 0.577*I11 - 0.00026*I11^3 + 5.48/I11,"FeO/MgO forbidden", "no Fe/Mg error") -> no Fe/Mg error | S9: =IF((INDEX(DY28:DY115,$EO$23)*(-INDEX($A28:$A115,$EO$22)+$EO$21)+INDEX(DY28:DY115,$EO$22)*(-$EO$21+INDEX($A28:$A115,$EO$23)))/(INDEX($A28:$A115,$EO$23)-INDEX($A28:$A115,$EO$22)) < 0, "Negative normative Quartz", "no Na/Si error") -> no Na/Si error
A10: %ol addition | B10: SiO2 | C10: TiO2 | D10: Al2O3 | E10: Cr2O3 | F10: Fe2O3 | G10: FeO | H10: MnO | I10: MgO | J10: CaO | K10: Na2O | L10: K2O | M10: NiO | N10: P2O5 | O10: T (°C) | P10: TP | Q10: TP new | R10: KD | S10: Xfo | T10: F (Fe/Mg) | U10: Proj F1 | V10: Proj F2 | W10: Proj F3 | AH10: Interpolated Fbatch
A11: =IF(OR(AH11<0,AND(EO21=0,ABS(DQ55-AJ55)>0.03)),"NO SOLUTION",EO21) -> 33.91710758 | B11: =(INDEX(B28:B115,$EO$23)*(-INDEX($A28:$A115,$EO$22)+$EO$21)+INDEX(B28:B115,$EO$22)*(-$EO$21+INDEX($A28:$A115,$EO$23)))/(INDEX($A28:$A115,$EO$23)-INDEX($A28:$A115,$EO$22)) -> 46.03936577 | C11: 1.904784987 | D11: 9.417371767 | E11: 0 | F11: 0.8765205107 | G11: 10.28014427 | H11: 0.174450117 | I11: 19.44091051 | J11: 9.489714692 | K11: 1.626827142 | L11: 0.5280053004 | M11: 0 | N11: 0.2219049303 | O11: =(INDEX(AE28:AE115,$EO$23)*(-INDEX($A28:$A115,$EO$22)+$EO$21)+INDEX(AE28:AE115,$EO$22)*(-$EO$21+INDEX($A28:$A115,$EO$23)))/(INDEX($A28:$A115,$EO$23)-INDEX($A28:$A115,$EO$22)) -> 1430.857514 | P11: =1463+12.74*I11-2924/I11 -> 1560.272722 | Q11: =1025 + 28.6*I11 - 0.084*I11^2 -> 1549.262325 | R11: =(INDEX(AG28:AG115,$EO$23)*(-INDEX($A28:$A115,$EO$22)+$EO$21)+INDEX(AG28:AG115,$EO$22)*(-$EO$21+INDEX($A28:$A115,$EO$23)))/(INDEX($A28:$A115,$EO$23)-INDEX($A28:$A115,$EO$22)) -> 0.2959478346 | S11: =(INDEX(AH28:AH115,$EO$23)*(-INDEX($A28:$A115,$EO$22)+$EO$21)+INDEX(AH28:AH115,$EO$22)*(-$EO$21+INDEX($A28:$A115,$EO$23)))/(INDEX($A28:$A115,$EO$23)-INDEX($A28:$A115,$EO$22)) -> 0.9192809135 | T11: =IF($A$11="NO SOLUTION",$A$11,(INDEX(AI28:AI115,$EO$23)*(-INDEX($A28:$A115,$EO$22)+$EO$21)+INDEX(AI28:AI115,$EO$22)*(-$EO$21+INDEX($A28:$A115,$EO$23)))/(INDEX($A28:$A115,$EO$23)-INDEX($A28:$A115,$EO$22))) -> 0.1625810714 | U11: =(INDEX(EE28:EE115,$EO$23)*(-INDEX($A28:$A115,$EO$22)+$EO$21)+INDEX(EE28:EE115,$EO$22)*(-$EO$21+INDEX($A28:$A115,$EO$23)))/(INDEX($A28:$A115,$EO$23)-INDEX($A28:$A115,$EO$22)) -> 0.2739489168 | V11: =(INDEX(EF28:EF115,$EO$23)*(-INDEX($A28:$A115,$EO$22)+$EO$21)+INDEX(EF28:EF115,$EO$22)*(-$EO$21+INDEX($A28:$A115,$EO$23)))/(INDEX($A28:$A115,$EO$23)-INDEX($A28:$A115,$EO$22)) -> 0.1777155622 | W11: =(INDEX(EG28:EG115,$EO$23)*(-INDEX($A28:$A115,$EO$22)+$EO$21)+INDEX(EG28:EG115,$EO$22)*(-$EO$21+INDEX($A28:$A115,$EO$23)))/(INDEX($A28:$A115,$EO$23)-INDEX($A28:$A115,$EO$22)) -> 0.1625810714 | AH11: =(INDEX(AI28:AI115,$EO$23)*(-INDEX($A28:$A115,$EO$22)+$EO$21)+INDEX(AI28:AI115,$EO$22)*(-$EO$21+INDEX($A28:$A115,$EO$23)))/(INDEX($A28:$A115,$EO$23)-INDEX($A28:$A115,$EO$22)) -> 0.1625810714
B13: ACCUMULATED FRACTIONAL PRIMARY MELT | H13: OUTPUT COMPOSITION ERROR CODES: | M13: =IF(J15 > 1.095 + 0.154*I15 + 116.58/I15, "Augite accumulation warning", IF(OR(AND(I15 <= 20.6, J15 < 11.436 - 0.104*I15),AND(I15 > 20.6, J15 < -23.209 + 3.643*I15 - 0.1*I15^2)), "Augite fractionation warning", "No error")) -> No error | P13: =IF(G15 < 0.577*I15 - 0.00026*I15^3 + 5.48/I15,"FeO/MgO forbidden", "no Fe/Mg error") -> no Fe/Mg error | T13: =IF((INDEX(DY28:DY115,$EK$23)*(-INDEX($A28:$A115,$EK$22)+$EK$21)+INDEX(DY28:DY115,$EK$22)*(-$EK$21+INDEX($A28:$A115,$EK$23)))/(INDEX($A28:$A115,$EK$23)-INDEX($A28:$A115,$EK$22)) < 0, "Negative normative Quartz", "no Na/Si error") -> no Na/Si error
A14: %ol addition | B14: SiO2 | C14: TiO2 | D14: Al2O3 | E14: Cr2O3 | F14: Fe2O3 | G14: FeO | H14: MnO | I14: MgO | J14: CaO | K14: Na2O | L14: K2O | M14: NiO | N14: P2O5 | O14: T (°C) | P14: TP_AFM | Q14: TP new | R14: KD | S14: Xfo | T14: F_AFM | U14: Proj F1 | V14: Proj F2 | W14: Proj F3 | X14: Residual Lithology | AH14: Interpolated FAFM | CP14: =AH55 -> 0.8276281357
A15: =IF(OR(AH15<0,AND(EK21=0,ABS(DR55-AJ55)>0.03)),"NO SOLUTION",EK21) -> 31.00921132 | B15: =(INDEX(B28:B115,$EK$23)*(-INDEX($A28:$A115,$EK$22)+$EK21)+INDEX(B28:B115,$EK$22)*(-$EK21+INDEX($A28:$A115,$EK$23)))/(INDEX($A28:$A115,$EK$23)-INDEX($A28:$A115,$EK$22)) -> 46.18833738 | C15: 1.95883309 | D15: 9.688893323 | E15: 0 | F15: 0.9022468383 | G15: 10.34217578 | H15: 0.1760052017 | I15: 18.53624631 | J15: 9.760766251 | K15: 1.674575355 | L15: 0.5435025274 | M15: 0 | N15: 0.2284179541 | O15: =(INDEX(AE28:AE115,$EK$23)*(-INDEX($A28:$A115,$EK$22)+$EK$21)+INDEX(AE28:AE115,$EK$22)*(-$EK$21+INDEX($A28:$A115,$EK$23)))/(INDEX($A28:$A115,$EK$23)-INDEX($A28:$A115,$EK$22)) -> 1415.581648 | P15: =1463+12.74*I15-2924/I15 -> 1541.406787 | Q15: =1025 + 28.6*I15 - 0.084*I15^2 -> 1526.274881 | R15: =(INDEX(AG28:AG115,$EK$23)*(-INDEX($A28:$A115,$EK$22)+$EK$21)+INDEX(AG28:AG115,$EK$22)*(-$EK$21+INDEX($A28:$A115,$EK$23)))/(INDEX($A28:$A115,$EK$23)-INDEX($A28:$A115,$EK$22)) -> 0.2968035489 | S15: =(INDEX(AH28:AH115,$EK$23)*(-INDEX($A28:$A115,$EK$22)+$EK$21)+INDEX(AH28:AH115,$EK$22)*(-$EK$21+INDEX($A28:$A115,$EK$23)))/(INDEX($A28:$A115,$EK$23)-INDEX($A28:$A115,$EK$22)) -> 0.9149850378 | T15: =IF($A$15="NO SOLUTION",$A$15,(INDEX(DR28:DR115,$EK$23)*(-INDEX($A28:$A115,$EK$22)+$EK$21)+INDEX(DR28:DR115,$EK$22)*(-$EK$21+INDEX($A28:$A115,$EK$23)))/(INDEX($A28:$A115,$EK$23)-INDEX($A28:$A115,$EK$22))) -> 0.1625529562 | U15: =(INDEX(EE28:EE115,$EK$23)*(-INDEX($A28:$A115,$EK$22)+$EK$21)+INDEX(EE28:EE115,$EK$22)*(-$EK$21+INDEX($A28:$A115,$EK$23)))/(INDEX($A28:$A115,$EK$23)-INDEX($A28:$A115,$EK$22)) -> 0.26410667 | V15: =(INDEX(EF28:EF115,$EK$23)*(-INDEX($A28:$A115,$EK$22)+$EK$21)+INDEX(EF28:EF115,$EK$22)*(-$EK$21+INDEX($A28:$A115,$EK$23)))/(INDEX($A28:$A115,$EK$23)-INDEX($A28:$A115,$EK$22)) -> 0.1703978151 | W15: =(INDEX(EG28:EG115,$EK$23)*(-INDEX($A28:$A115,$EK$22)+$EK$21)+INDEX(EG28:EG115,$EK$22)*(-$EK$21+INDEX($A28:$A115,$EK$23)))/(INDEX($A28:$A115,$EK$23)-INDEX($A28:$A115,$EK$22)) -> 0.1625529562 | X15: =IF(ABS(T15-U15)<0.0000001, "Harzburgite", IF(ABS(T15-V15)<0.000001,"Spinel Peridotite","Garnet Peridotite")) -> Garnet Peridotite | AH15: =(INDEX(DR28:DR115,$EK$23)*(-INDEX($A28:$A115,$EK$22)+$EK$21)+INDEX(DR28:DR115,$EK$22)*(-$EK$21+INDEX($A28:$A115,$EK$23)))/(INDEX($A28:$A115,$EK$23)-INDEX($A28:$A115,$EK$22)) -> 0.1625529562 | CP15: =(2/3)*$AH55/$CI55 -> 4.916996932
CP16: =CI55 -> 0.1122132265
B17: Normalized
B18: =B4*100/$O4 -> 48.35464074 | C18: 2.642986575 | D18: 13.16487631 | E18: 0 | F18: 11.06850741 | G18: 0.1802036301 | H18: 8.059106791 | I18: 13.19491025 | J18: 2.282579315 | K18: 0.740837146 | L18: 0 | M18: 0.3113518276 | N18: =SUM(B18:M18) -> 100
CN19: 0 | CO19: 0 | CP19: 0 | CQ19: 0 | CR19: 0 | CS19: 0.279 | CT19: 0.259 | CU19: 1 | CV19: 0.0056 | CW19: 0 | CX19: 0 | CY19: 3.346 | CZ19: 0
B20: SiO2 | C20: TiO2 | D20: Al2O3 | E20: Cr2O3 | F20: Fe2O3 | G20: FeO | H20: MnO | I20: MgO | J20: CaO | K20: Na2O | L20: K2O | M20: NiO | N20: P2O5 | O20: SUM | S20: Fe2O3/TiO2 | CN20: 0.82 | CO20: 0.0001 | CP20: 0.0001 | CQ20: 0.0001 | CR20: 0.0001 | CS20: 0.031 | CT20: -0.049 | CU20: 0 | CV20: 0.0135 | CW20: 0.0001 | CX20: 0.0001 | CY20: -3.665 | CZ20: 0.0001 | EH20: PRIM1 | EI20: PRIM2 | EJ20: PRIM3 | EK20: PRIMAFM | EL20: PRIM4 | EM20: PRIM5 | EN20: PRIM6 | EO20: PRIMBAT
B21: =B18 -> 48.35464074 | C21: =C18 -> 2.642986575 | D21: =D18 -> 13.16487631 | E21: =E18 -> 0 | F21: =(1-F5)/0.9*F18 -> 1.229834157 | G21: =F5*F18 -> 9.961656672 | H21: =G18 -> 0.1802036301 | I21: 8.059106791 | J21: 13.19491025 | K21: 2.282579315 | L21: 0.740837146 | M21: 0 | N21: 0.3113518276 | O21: =SUM(B21:N21) -> 100.1229834 | S21: =F21/C21 -> 0.4653198653 | T21: =S21-L5 -> -0.5346801347 | EH21: =IF(MAX(EH55:EH115)=0,MIN(EH28:EH52),MAX(EH55:EH115)) -> 0 | EI21: =IF(MAX(EI55:EI115)=0,MIN(EI28:EI52),MAX(EI55:EI115)) -> 0 | EJ21: =IF(MAX(EJ55:EJ115)=0,MIN(EJ28:EJ52),MAX(EJ55:EJ115)) -> 31.00921132 | EK21: =IF(EH$21<>0,EH21,IF(EI$21<>0,EI21,EJ21)) -> 31.00921132 | EL21: =IF(MAX(EL55:EL115)=0,MIN(EL30:EL52),MAX(EL55:EL115)) -> 0 | EM21: =IF(MAX(EM55:EM115)=0,MIN(EM30:EM52),MAX(EM55:EM115)) -> 0 | EN21: =IF(MAX(EN55:EN115)=0,MIN(EN30:EN52),MAX(EN55:EN115)) -> 33.91710758 | EO21: =IF(EL$21<>0,EL21,IF(EM$21<>0,EM21,EN21)) -> 33.91710758
CO22: Olivine/Melt Molar Partition Coefficients (single cation basis) | EH22: =MATCH(EH21,EH28:EH115,0) -> 1 | EI22: =MATCH(EI21,EI28:EI115,0) -> 1 | EJ22: =MATCH(EJ21,EJ28:EJ115,0) -> 59 | EK22: =IF(EH$21<>0,EH22,IF(EI$21<>0,EI22,EJ22)) -> 59 | EL22: =MATCH(EL21,EL28:EL115,0) -> 1 | EM22: =MATCH(EM21,EM28:EM115,0) -> 1 | EN22: =MATCH(EN21,EN28:EN115,0) -> 61 | EO22: =IF(EL$21<>0,EL22,IF(EM$21<>0,EM22,EN22)) -> 61
B23: Renormalized | CO23: 0 | CP23: 0.0035 | CQ23: 0.067 | CR23: 0 | CS23: 0.263 | CT23: 0.214 | CU23: 1 | CV23: 0.0071 | CW23: 0 | CX23: 0 | CY23: 3.346 | CZ23: 0 | EH23: =EH22+1 -> 2 | EI23: 2 | EJ23: 60 | EK23: 60 | EL23: 2 | EM23: 2 | EN23: 62 | EO23: 62
B24: =B21*100/$O21 -> 48.2952456 | C24: 2.639740132 | D24: 13.14870558 | E24: 0 | F24: 1.228323523 | G24: 9.949420535 | H24: 0.1799822817 | I24: 8.0492076 | J24: 13.17870263 | K24: 2.279775569 | L24: 0.7399271583 | M24: 0 | N24: 0.3109693868 | AK24: Mole Fraction | AY24: Mole%Anhydrous | BO24: CATION MOLE FRAC | CB24: NORM CATION MOLE FRAC | CO24: 0.03 | CP24: -0.031 | CQ24: 0.183 | CR24: 0.0001 | CS24: 0.196 | CT24: 0.118 | CU24: 0 | CV24: -0.019 | CW24: 0.0001 | CX24: 0.0001 | CY24: -3.665 | CZ24: 0.0001
B25: MELT COMPOSITIONS ALONG OLIVINE CONTROL LINE | P25: EQUILIBRIUM OLIVINE COMPOSITION (WT % OXIDES) | AK25: 60.085 | AL25: 79.899 | AM25: 101.962 | AN25: 151.99 | AO25: 159.962 | AP25: 71.846 | AQ25: 70.937 | AR25: 40.311 | AS25: 56.079 | AT25: 61.979 | AU25: 94.203 | AV25: 74.71 | AW25: 141.945 | BO25: =AK25 -> 60.085 | BP25: =AL25 -> 79.899 | BQ25: =AM25/2 -> 50.981 | BR25: =AN25/2 -> 75.995 | BS25: =AO25/2 -> 79.981 | BT25: =AP25 -> 71.846 | BU25: =AQ25 -> 70.937 | BV25: =AR25 -> 40.311 | BW25: =AS25 -> 56.079 | BX25: =AT25/2 -> 30.9895 | BY25: =AU25/2 -> 47.1015 | BZ25: =AV25 -> 74.71 | CA25: =AW25/2 -> 70.9725 | CP25: 0.093 | CV25: 0.063
A26: %ol addition | B26: SiO2 | C26: TiO2 | D26: Al2O3 | E26: Cr2O3 | F26: Fe2O3 | G26: FeO | H26: MnO | I26: MgO | J26: CaO | K26: Na2O | L26: K2O | M26: NiO | N26: P2O5 | P26: =DC26 -> SiO2 | Q26: TiO2 | R26: Al2O3 | S26: Cr2O3 | T26: Fe2O3 | U26: FeO | V26: MnO | W26: MgO | X26: CaO | Y26: Na2O | Z26: K2O | AA26: NiO | AB26: P2O5 | AC26: SUM | AD26: P (bars) | AE26: T (C) | AF26: Old T (C) | AG26: KD | AH26: Xfo | AI26: F (Fe/Mg) | AJ26: F (proj) | AK26: SiO2 | AL26: TiO2 | AM26: Al2O3 | AN26: Cr2O3 | AO26: Fe2O3 | AP26: FeO | AQ26: MnO | AR26: MgO | AS26: CaO | AT26: Na2O | AU26: K2O | AV26: NiO | AW26: P2O5 | AY26: =AK26 -> SiO2 | AZ26: TiO2 | BA26: Al2O3 | BB26: Cr2O3 | BC26: Fe2O3 | BD26: FeO | BE26: MnO | BF26: MgO | BG26: CaO | BH26: Na2O | BI26: K2O | BJ26: NiO | BK26: P2O5 | BL26: PSI | BM26: SiO2A | BN26: SiO2# | BO26: Si | BP26: Ti | BQ26: Al | BR26: Cr | BS26: Fe3 | BT26: Fe2 | BU26: Mn | BV26: Mg | BW26: Ca | BX26: Na | BY26: K | BZ26: Ni | CA26: P | CB26: Si | CC26: Ti | CD26: Al | CE26: Cr | CF26: Fe3 | CG26: Fe2 | CH26: Mn | CI26: Mg | CJ26: Ca | CK26: Na | CL26: K | CM26: Ni | CN26: P | CO26: TiO2 | CP26: =BA26 -> Al2O3 | CQ26: Cr2O3 | CR26: Fe2O3 | CS26: FeO | CT26: MnO | CU26: MgO | CV26: CaO | CW26: Na2O | CX26: K2O | CY26: NiO | CZ26: P2O5 | DA26: Sum1 | DB26: Sum2 | DC26: SiO2 | DD26: =CO26 -> TiO2 | DE26: Al2O3 | DF26: Cr2O3 | DG26: Fe2O3 | DH26: FeO | DI26: MnO | DJ26: MgO | DK26: CaO | DL26: Na2O | DM26: K2O | DN26: NiO | DO26: P2O5 | DP26: K2O | DQ26: F(Fe/Mg) | DR26: FAFM | DS26: OL | DT26: AN | DU26: QZ | DV26: SUM | DW26: ANNORM | DX26: OLNORM | DY26: QZNORM | DZ26: S-CPX | EA26: S-GTLHZHZ | EB26: DOMAIN | EC26: F2temp | ED26: F3temp | EE26: F1 | EF26: F2 | EG26: F3 | EH26: PRIM1finder | EI26: PRIM2finder | EJ26: PRIM3finder | EL26: PRIM4finder | EM26: PRIM5finder | EN26: PRIM6finder | EO26: SUMA | EP26: SUMB | EQ26: DMGO2 | ER26: DMGO1
B27: Forward Fractionation (down-temperature)
A28: =A55-1 -> -1 | B28: =(B55-0.01*P55)/0.99 -> 48.38448709 | C28: 2.665525044 | D28: 13.28077293 | E28: 0 | F28: 1.240729468 | G28: 9.886588072 | H28: 0.1794621231 | I28: 7.690505083 | J28: 13.30761862 | K28: 2.302801074 | L28: 0.7474003486 | M28: 0 | N28: 0.3141101465 | P28: =DC28*BO$25*100/SUMPRODUCT($DC28:$DO28,$BO$25:$CA$25) -> 39.36601474 | Q28: 0.08781171551 | R28: 0.07415712282 | S28: 0 | T28: 0.0001362465571 | U28: 16.65167232 | V28: 0.2385784236 | W28: 43.14885559 | X28: 0.4324044001 | Y28: 0.0002528743987 | Z28: 8.207326975e-05 | AA28: 0 | AB28: 3.449295526e-05 | AC28: =SUM(B28:O28) -> 100 | AD28: =AD55 -> 1 | AE28: =(113100/$Y$3 + AD28*0.00000411/$Y$3)/(52.05/$Y$3 + 2*LN(EQ28) + 2*LN(1.5*(CG28+CH28+CI28+CJ28+CM28)) + 2*LN(3*CB28) - (3.5*LN(1-CD28) + 7*LN(1-CC28))) - 273.15 -> 1182.095384 | AF28: =54*AD28/10000 - 2*(AD28/10000)^2+935+33*I28-0.37*I28^2 -> 1166.908836 | AG28: =Kditerator(AD28,AE28+273.15,0.0001,B28:O28) -> 0.3001905375 | AH28: =1/(AG28/(AR28/AP28)+1) -> 0.8220130151 | AI28: =DQ28 -> -0.9334449711 | AJ28: =IF(EB28=1,EE28,IF(EB28=2,EF28,EG28)) -> -0.002392423936 | AK28: =B28/AK$25 -> 0.8052673228 | AL28: =C28/AL$25 -> 0.03336118154 | AM28: =D28/AM$25 -> 0.1302521815 | AN28: =E28/AN$25 -> 0 | AO28: =F28/AO$25 -> 0.007756401317 | AP28: =G28/AP$25 -> 0.1376080516 | AQ28: =H28/AQ$25 -> 0.002529880361 | AR28: =I28/AR$25 -> 0.1907793179 | AS28: =J28/AS$25 -> 0.2373012824 | AT28: =K28/AT$25 -> 0.03715453741 | AU28: =L28/AU$25 -> 0.007933933618 | AV28: =M28/AV$25 -> 0 | AW28: =N28/AW$25 -> 0.002212900394 | AY28: =AK28*100/SUM($AK28:$AW28) -> 50.57713074 | AZ28: =AL28*100/SUM($AK28:$AW28) -> 2.095344977 | BA28: =AM28*100/SUM($AK28:$AW28) -> 8.180862961 | BB28: 0 | BC28: 0.4871630977 | BD28: 8.642869538 | BE28: 0.1588964138 | BF28: 11.98244388 | BG28: 14.90438969 | BH28: 2.333597605 | BI28: 0.4983135246 | BJ28: 0 | BK28: 0.1389875752 | BL28: =IF(AY28<60,(0.46*(100/(100-AY28))-0.93)*(BH28+BI28)+(-5.33*(100/(100-AY28))+9.69),(11-5.5*(100/(100-AY28)))*EXP(-0.13*(BH28+BI28))) -> -1.092376405 | BM28: =AY28+BL28*(BH28+BI28) -> 47.48361784 | BN28: =BM28+0.8*O28 -> 47.48361784 | BO28: =B28/BO$25 -> 0.8052673228 | BP28: =C28/BP$25 -> 0.03336118154 | BQ28: =D28/BQ$25 -> 0.2605043631 | BR28: =E28/BR$25 -> 0 | BS28: =F28/BS$25 -> 0.01551280263 | BT28: =G28/BT$25 -> 0.1376080516 | BU28: =H28/BU$25 -> 0.002529880361 | BV28: =I28/BV$25 -> 0.1907793179 | BW28: =J28/BW$25 -> 0.2373012824 | BX28: =K28/BX$25 -> 0.07430907481 | BY28: =L28/BY$25 -> 0.01586786724 | BZ28: =M28/BZ$25 -> 0 | CA28: =N28/CA$25 -> 0.004425800789 | CB28: =BO28/SUM($BO28:$CA28) -> 0.4530420805 | CC28: =BP28/SUM($BO28:$CA28) -> 0.01876894624 | CD28: =BQ28/SUM($BO28:$CA28) -> 0.1465593292 | CE28: 0 | CF28: 0.008727477424 | CG28: 0.07741806504 | CH28: 0.001423306559 | CI28: 0.1073321326 | CJ28: 0.1335053139 | CK28: 0.04180616411 | CL28: 0.008927236188 | CM28: 0 | CN28: 0.002489948295 | CO28: =(CO$23*(2/3)*$AH28/$CI28+CO$24)*CC28*100 -> 0.05630683872 | CP28: =(CP$23*(2/3)*$AH28/$CI28+CP$24+CP$25*$CI28/((2/3)*$AH28))*CD28*100 -> 0.074523724 | CQ28: =(CQ$23*(2/3)*$AH28/$CI28+CQ$24)*CE28*100 -> 0 | CR28: 8.727477424e-05 | CS28: 11.91314193 | CT28: 0.1723091635 | CU28: 54.80086767 | CV28: =(CV$23*(2/3)*$AH28/$CI28+CV$24+CV$25*$CI28/((2/3)*$AH28))*CJ28*100 -> 0.3950389072 | CW28: =(CW$23*(2/3)*$AH28/$CI28+CW$24)*CK28*100 -> 0.0004180616411 | CX28: 8.927236188e-05 | CY28: 0 | CZ28: 2.489948295e-05 | DA28: =0.5*(CP28-CQ28-CW28-CX28-CZ28)+CQ28+CR28+CS28+CT28+CU28+CV28+2*CW28+2*CX28+CY28+2*CZ28 -> 67.31950516 | DB28: =0.5*(DE28-DF28-DL28-DM28-DO28)+DF28+DG28+DI28+DK28+2*DL28+2*DM28+CY28+2*DO28 -> 0.5996236963 | DC28: =(100/3)-DD28-0.5*(DE28-DF28-DL28-DM28-DO28)-DF28 -> 33.24093556 | DD28: =CO28*(200/3)/$DA28 -> 0.05576079681 | DE28: 0.07380102178 | DF28: 0 | DG28: 8.642841727e-05 | DH28: =(1-$AH28)*((200/3)-DB28) -> 11.75907378 | DI28: =CT28*(200/3)/$DA28 -> 0.170638176 | DJ28: =$AH28*((200/3)-DB28) -> 54.30796919 | DK28: =CV28*(200/3)/$DA28 -> 0.3912079728 | DL28: 0.0004140074412 | DM28: 8.840663308e-05 | DN28: =(3.346*(DJ28/CI28)/100-3.665)*CM28*100 -> 0 | DO28: =CZ28*(200/3)/$DA28 -> 2.46580174e-05 | DP28: =0.3813-0.7896/I28+1.0389/I28^2 -> 0.2961935816 | DQ28: =FFeMg($G28, $I28, $R$3, $R$4, $DP28,$Y$7) -> -0.9334449711 | DR28: =IF(DQ28 >=0, (0.98/DQ28-0.9*LN(DQ28)^2+0.07*LN(DQ28)^4)^-1, DQ28) -> -0.9334449711 | DS28: =-1.5*AZ28+0.5*(BA28+BB28+BD28+BE28+BF28+BJ28)-0.5*BG28-0.5*BH28+3*BI28 -> 4.215465855 | DT28: =AZ28+BA28+BB28 -> 10.27620794 | DU28: =AY28-0.5*(BA28+BB28+BD28+BE28+BF28+BJ28)-1.5*BG28-3*(BH28+BI28) -> 5.242276414 | DV28: =DS28+DT28+DU28 -> 19.73395021 | DW28: =DT28/DV28 -> 0.5207375021 | DX28: =DS28/DV28 -> 0.2136149028 | DY28: =DU28/DV28 -> 0.2656475951 | DZ28: =-0.074 + 0.1713/DX28 - 0.0135/DX28^2 -> 0.4320609568 | EA28: =IF(DW28<700,1/(16.843 + 28.733*DW28 - 14.183*EXP(DW28)),0) -> 0.1260787295 | EB28: =IF(AND(DX28>0.5,DY28<EA28),3,IF(DY28>DZ28,1,2)) -> 2 | EC28: =IF(DY28>0,((-1.994+2.25*DY28+0.041/DY28)+(-1.183-3.005*DY28+13.774*DY28^2-12.615*DY28^3))/2 + EXP(0.931+1.623*DY28)*DY28^0.245*DX28 + EXP(0.769-7.514*DY28)*DY28^0.577/DX28,0) -> -0.002392423936 | ED28: =-2.5345+5.329*(DY28+DX28*0.348)+0.3012/(DY28+DX28*0.348) -> 0.1632030856 | EE28: =6.2819*DW28^2-14.7789*DW28^3+0.00825*(1/DW28)^2 -> -0.3530143645 | EF28: =IF(AND(EC28>0,DY28<-0.1773+0.1404/DX28-0.008434/DX28^2),-EC28,EC28) -> -0.002392423936 | EG28: =IF(AND(ED28>0,DY28<-0.0896+0.02002/DX28+0.02989/DX28^2),-ED28,ED28) -> -0.1632030856 | EH28: =IF(AND(EB28=1,ABS($DR28-EE28)<0.03,DR28>=0),(EE29-$DR29)*($A28-$A29)/($DR28-$DR29-EE28+EE29)+$A29,0) -> 0 | EI28: =IF(AND(EB28=2,ABS($DR28-EF28)<0.03,DR28>=0),(EF29-$DR29)*($A28-$A29)/($DR28-$DR29-EF28+EF29)+$A29,0) -> 0 | EJ28: =IF(AND(EB28=3,ABS($DR28-EG28)<0.03,DR28>=0),(EG29-$DR29)*($A28-$A29)/($DR28-$DR29-EG28+EG29)+$A29,0) -> 0 | EL28: =IF(AND(ABS($DQ28-EE28)<0.03,EB28=1,DQ28>=0),(EE29-$DQ29)*($A28-$A29)/($DQ28-$DQ29-EE28+EE29)+$A29,0) -> 0 | EM28: =IF(AND(ABS($DQ28-EF28)<0.03,EB28=2,DQ28>=0),(EF29-$DQ29)*($A28-$A29)/($DQ28-$DQ29-EF28+EF29)+$A29,0) -> 0 | EN28: =IF(AND(ABS($DQ28-EG28)<0.03,EB28=3,DQ28>=0),(EG29-$DQ29)*($A28-$A29)/($DQ28-$DQ29-EG28+EG29)+$A29,0) -> 0 | EO28: =SUMPRODUCT($CO$19:$CZ$19,$CC28:$CN28) -> 0.1300480389 | EP28: =SUMPRODUCT($CO$20:$CZ$20,$CC28:$CN28) -> 0.004155267642 | EQ28: =(2/3-EP28)/EO28 -> 5.094359011 | ER28: =CU28/(CI28*100) -> 5.105728018
A29: =A28-1 -> -2 | B29: =(B28-0.01*P28)/0.99 -> 48.47558277 | C29: 2.691562552 | D29: 13.41417309 | E29: 0 | F29: 1.253260712 | G29: 9.818253888 | H29: 0.1788649888 | I29: 7.332339927 | J29: 13.43767129 | K29: 2.326059137 | L29: 0.754949018 | M29: 0 | N29: 0.3172826278 | P29: 39.26570985 | Q29: 0.0885831478 | R29: 0.0750396502 | S29: 0 | T29: 0.0001374886356 | U29: 17.16139871 | V29: 0.2461452711 | W29: 42.71200044 | X29: 0.4506126417 | Y29: 0.0002551797036 | Z29: 8.282148275e-05 | AA29: 0 | AB29: 3.480740694e-05 | AC29: 100 | AD29: =AD28 -> 1 | AE29: =(113100/$Y$3 + AD29*0.00000411/$Y$3)/(52.05/$Y$3 + 2*LN(EQ29) + 2*LN(1.5*(CG29+CH29+CI29+CJ29+CM29)) + 2*LN(3*CB29) - (3.5*LN(1-CD29) + 7*LN(1-CC29))) - 273.15 -> 1171.565376 | AF29: =54*AD29/10000 - 2*(AD29/10000)^2+935+33*I29-0.37*I29^2 -> 1157.08023 | AG29: =Kditerator(AD29,AE29+273.15,0.0001,B29:O29) -> 0.3000620703 | AH29: 0.8160359235 | AI29: -0.9986355397 | AJ29: =IF(EB29=1,EE29,IF(EB29=2,EF29,EG29)) -> -0.001280452124 | AK29: 0.8067834363 | AL29: 0.03368706182 | AM29: 0.1315605137 | AN29: 0 | AO29: 0.007834740202 | AP29: 0.1366569313 | AQ29: 0.002521462548 | AR29: 0.1818942702 | AS29: 0.2396203799 | AT29: 0.03752979455 | AU29: 0.008014065561 | AV29: 0 | AW29: 0.002235250469 | AY29: 50.79419392 | AZ29: 2.120900199 | BA29: 8.282904609 | BB29: 0 | BC29: 0.4932665883 | BD29: 8.603769434 | BE29: 0.1587484966 | BF29: 11.45186232 | BG29: 15.08623442 | BH29: 2.362834407 | BI29: 0.5045567148 | BJ29: 0 | BK29: 0.1407289003 | BL29: -1.128150984 | BM29: 47.5593438 | BN29: 47.5593438 | BO29: 0.8067834363 | BP29: 0.03368706182 | BQ29: 0.2631210273 | BR29: 0 | BS29: 0.0156694804 | BT29: 0.1366569313 | BU29: 0.002521462548 | BV29: 0.1818942702 | BW29: 0.2396203799 | BX29: 0.07505958911 | BY29: 0.01602813112 | BZ29: 0 | CA29: 0.004470500938 | CB29: 0.4543947397 | CC29: 0.01897315066 | CD29: 0.1481944291 | CE29: 0 | CF29: 0.008825329264 | CG29: 0.07696760735 | CH29: 0.001420132426 | CI29: 0.1024460789 | CJ29: 0.1349584477 | CK29: 0.04227489178 | CL29: 0.009027327709 | CM29: 0 | CN29: 0.002517865413 | CO29: 0.05691945198 | CP29: 0.07556721138 | CQ29: 0 | CR29: 8.825329264e-05 | CS29: 12.25801928 | CT29: 0.1781433536 | CU29: 54.4023949 | CV29: 0.4125285932 | CW29: 0.0004227489178 | CX29: 9.027327709e-05 | CY29: 0 | CZ29: 2.517865413e-05 | DA29: 67.28976529 | DB29: =0.5*(DE29-DF29-DL29-DM29-DO29)+DF29+DG29+DI29+DK29+2*DL29+2*DM29+CY29+2*DO29 -> 0.6235233589 | DC29: 33.23977383 | DD29: 0.05639238175 | DE29: 0.07486746417 | DF29: 0 | DG29: 8.743607319e-05 | DH29: 12.14956587 | DI29: 0.1764937583 | DJ29: 53.89357744 | DK29: 0.4087086067 | DL29: 0.0004188342917 | DM29: 8.943735272e-05 | DN29: 0 | DO29: 2.494550152e-05 | DP29: 0.2929363083 | DQ29: -0.9986355397 | DR29: =IF(DQ29 >=0, (0.98/DQ29-0.9*LN(DQ29)^2+0.07*LN(DQ29)^4)^-1, DQ29) -> -0.9986355397 | DS29: 3.856427863 | DT29: 10.40380481 | DU29: 5.314026496 | DV29: 19.57425917 | DW29: 0.5315043966 | DX29: 0.1970152653 | DY29: 0.2714803381 | DZ29: =-0.074 + 0.1713/DX29 - 0.0135/DX29^2 -> 0.4476722206 | EA29: 0.1252743236 | EB29: =IF(AND(DX29>0.5,DY29<EA29),3,IF(DY29>DZ29,1,2)) -> 2 | EC29: =IF(DY29>0,((-1.994+2.25*DY29+0.041/DY29)+(-1.183-3.005*DY29+13.774*DY29^2-12.615*DY29^3))/2 + EXP(0.931+1.623*DY29)*DY29^0.245*DX29 + EXP(0.769-7.514*DY29)*DY29^0.577/DX29,0) -> 0.001280452124 | ED29: =-2.5345+5.329*(DY29+DX29*0.348)+0.3012/(DY29+DX29*0.348) -> 0.1633557996 | EE29: -0.4152062699 | EF29: =IF(AND(EC29>0,DY29<-0.1773+0.1404/DX29-0.008434/DX29^2),-EC29,EC29) -> -0.001280452124 | EG29: =IF(AND(ED29>0,DY29<-0.0896+0.02002/DX29+0.02989/DX29^2),-ED29,ED29) -> -0.1633557996 | EH29: 0 | EI29: 0 | EJ29: 0 | EL29: 0 | EM29: 0 | EN29: 0 | EO29: =SUMPRODUCT($CO$19:$CZ$19,$CC29:$CN29) -> 0.125043623 | EP29: =SUMPRODUCT($CO$20:$CZ$20,$CC29:$CN29) -> 0.004161329682 | EQ29: =(2/3-EP29)/EO29 -> 5.298193713 | ER29: =CU29/(CI29*100) -> 5.310344279
